Workbook

Sheet ReadMe

Sheet GOM Scores and Quartiles
I1: ** This is using 45Q guidelines of electric power plants emit >= 500000 tonne/year CO2 and power generating emit >= 100000 tonne/year
E2: Nearest CO2 source > 25,000 tonne/year | G2: Nearest CO2 source | I2: Nearest CO2 source** | K2: Presence - Yes or No | S2: Number per grid | AD2: Numerical Attribute Scores (Additive) | BI2: General scores via Scenarios | BM2: Quartiles for Scenarios
A3: Grid Labeling | C3: Centroid | G3: Source to Sink | I3: 45Q updated | S3: Leakage | V3: Infrastructure | Z3: Development | AC3: Relevant Plays per Grid
A4: Grid FID | B4: Grid ID | C4: Longitude (degrees) | D4: Latitude (degrees) | E4: CO2 Source ID (tied to NATCARB dataset)* | F4: Distance (km) | G4: CO2 Source ID (tied to NATCARB dataset) | H4: Distance (km) | I4: CO2 Source ID (tied to NATCARB dataset) | J4: Distance (km) | K4: Caisson Platform | L4: Fixed Platform | M4: Well Protector Platform | N4: Pipeline | O4: Fault | P4: Salt dome | Q4: Shipping Route (w/5 MI Buffer) | R4: Shipping Route (w/10 mi Buffer) | S4: Fault | T4: Active Wells | U4: P&A Wells | V4: Caisson Platform | W4: Major Platform | X4: Well Protector Platform | Y4: Pipeline | Z4: Salt dome | AA4: EOR Wells | AB4: Shipping Route (w/10 mi Buffer) | AC4: Number of plays | AD4: (SUM) Injectivity W Depth - (kh) | AE4: (SUM) Quality W/O Depth - ([h x E]/[1,000 feet to reservoir bottom]) | AF4: Capacity per Grid - (million tonnes) | AG4: Water Depth - (feet) | AH4: Average Calculated Water Depth - (feet) | AI4: (SUM) Hydrocarbon Potential W/O Depth - ([h x So]/[1,000 feet to reservoir bottom]) | AJ4: Recoverable Oil (barrels)/acre foot | AK4: (Sum) Projected Remaining OIP - (barrels) | AL4: New Injectivity (mD/MPa °K) | AM4: Subsea Depth - (feet) | AN4: Average Calculated Subsea Depth of Reservoirs - (feet) | AO4: Sum of injectivity proxy - (kh) | AP4: Sum of hydrocarbon potential - ([h x So]/[1,000 feet to reservoir bottom]) | AQ4: Sum of recoverable oil per acre-foot | AR4: Projected remaining oil in place (barrels) | AS4: Pipeline ROW proxy | AT4: Density of active caisson platform infrastructure | AU4: Density of active well protector platform infrastructure | AV4: Density of major active multi-purpose platform infrastructure- major | AW4: Distance to closest on-shore CO2 source > 25000 tonnes | AX4: Within major shipping route buffer area | AY4: Subsea depth - Saline Reservoirs | AZ4: Water depth - Saline Reservoirs | BA4: Subsea depth - Oil Reservoirs | BB4: Water depth - Oil Reservoirs | BC4: Above salt domes | BD4: Active Well Density | BE4: P&A Well Density | BF4: Faults | BG4: Sum of Reservoir Quality W/O Depth (feet) | BH4: New Injectivity | BI4: S1 | BJ4: S2 | BK4: S3 | BL4: S4 | BM4: S1 | BN4: S2 | BO4: S3 | BP4: S4
A5: 0 | B5: 36663 | C5: -96.96405313 | D5: 26.0003415 | E5: 1671 | F5: 56.26565172 | G5: 860 | H5: 39.71042069 | I5: 286 | J5: 127.2050466 | K5: 0 | L5: 0 | M5: 0 | N5: 1 | O5: 0 | P5: 0 | Q5: 1 | R5: 1 | S5: 0 | T5: 4 | U5: 4 | V5: 0 | W5: 0 | X5: 0 | Y5: 2 | Z5: 0 | AA5: 0 | AB5: 5 | AC5: 5 | AD5: 31.9 | AE5: 2932.66 | AF5: 2739 | AG5: 730.58 | AH5: 146.116 | AI5: 0 | AJ5: 0 | AK5: 0 | AL5: 16089607.61 | AM5: 29958 | AN5: =AM5/AC5 -> 5991.6 | AO5: =((AD5-MIN(AD:AD))/((MAX(AD:AD)-MIN(AD:AD))))*100 -> 7.718238994 | AP5: =((AI5-MIN(AI:AI))/((MAX(AI:AI)-MIN(AI:AI))))*100 -> 0 | AQ5: =((AJ5-MIN(AJ:AJ))/((MAX(AJ:AJ)-MIN(AJ:AJ))))*100 -> 0 | AR5: =((AK5-MIN(AK:AK))/((MAX(AK:AK)-MIN(AK:AK))))*100 -> 0 | AS5: =((N5-MIN(N:N))/((MAX(N:N)-MIN(N:N))))*100 -> 100 | AT5: =((V5-MIN(V:V))/((MAX(V:V)-MIN(V:V))))*100 -> 0 | AU5: =((X5-MIN(X:X))/((MAX(X:X)-MIN(X:X))))*100 -> 0 | AV5: =((W5-MIN(W:W))/((MAX(W:W)-MIN(W:W))))*100 -> 0 | AW5: =((J5-MIN(J:J))/((MAX(J:J)-MIN(J:J))))*100 -> 51.06991308 | AX5: =((Q5-MIN(Q:Q))/((MAX(Q:Q)-MIN(Q:Q))))*100 -> 100 | AY5: =(1-((AN5-MIN(AN:AN))/((MAX(AN:AN)-MIN(AN:AN)))))*100 -> 64.77046073 | AZ5: =(1-((AH5-MIN(AH:AH))/((MAX(AH:AH)-MIN(AH:AH)))))*100 -> 64.81473496 | BA5: =(1-((AN5-MIN(AN:AN))/((MAX(AN:AN)-MIN(AN:AN)))))*100 -> 64.77046073 | BB5: =(1-((AH5-MIN(AH:AH))/((MAX(AH:AH)-MIN(AH:AH)))))*100 -> 64.81473496 | BC5: =((P5-MIN(P:P))/((MAX(P:P)-MIN(P:P))))*100 -> 0 | BD5: =(1-((T5-MIN(T:T))/((MAX(T:T)-MIN(T:T)))))*100 -> 99.1011236 | BE5: =(1-((U5-MIN(U:U))/((MAX(U:U)-MIN(U:U)))))*100 -> 98.31932773 | BF5: =(1-((O5-MIN(O:O))/((MAX(O:O)-MIN(O:O)))))*100 -> 100 | BG5: =((AE5-MIN(AE:AE))/((MAX(AE:AE)-MIN(AE:AE))))*100 -> 9.127139682 | BH5: =((AL5-MIN(AL:AL))/((MAX(AL:AL)-MIN(AL:AL))))*100 -> 12.39582505 | BI5: =($BG5*'Scenario Weighting'!E$3)+('GOM Scores and Quartiles'!$BH5*'Scenario Weighting'!E$4)+('GOM Scores and Quartiles'!$AP5*'Scenario Weighting'!E$5)+('GOM Scores and Quartiles'!$AQ5*'Scenario Weighting'!E$6)+('GOM Scores and Quartiles'!$AR5*'Scenario Weighting'!E$7)+('GOM Scores and Quartiles'!$AS5*'Scenario Weighting'!E$12)+('GOM Scores and Quartiles'!$AT5*'Scenario Weighting'!E$8)+('GOM Scores and Quartiles'!$AU5*'Scenario Weighting'!E$9)+('GOM Scores and Quartiles'!$AV5*'Scenario Weighting'!E$10)+('GOM Scores and Quartiles'!$AW5*'Scenario Weighting'!E$11)+('GOM Scores and Quartiles'!$AX5*'Scenario Weighting'!E$13)+('GOM Scores and Quartiles'!$AZ5*'Scenario Weighting'!E$14)+('GOM Scores and Quartiles'!$BB5*'Scenario Weighting'!E$15)+('GOM Scores and Quartiles'!$BC5*'Scenario Weighting'!E$16)+('GOM Scores and Quartiles'!$BE5*'Scenario Weighting'!E$17)+('GOM Scores and Quartiles'!$BF5*'Scenario Weighting'!E$18) -> 57.74624306 | BJ5: =IF(AR5=0, "", ($BG5*'Scenario Weighting'!F$3)+('GOM Scores and Quartiles'!$BH5*'Scenario Weighting'!F$4)+('GOM Scores and Quartiles'!$AP5*'Scenario Weighting'!F$5)+('GOM Scores and Quartiles'!$AQ5*'Scenario Weighting'!F$6)+('GOM Scores and Quartiles'!$AR5*'Scenario Weighting'!F$7)+('GOM Scores and Quartiles'!$AS5*'Scenario Weighting'!F$12)+('GOM Scores and Quartiles'!$AT5*'Scenario Weighting'!F$8)+('GOM Scores and Quartiles'!$AU5*'Scenario Weighting'!F$9)+('GOM Scores and Quartiles'!$AV5*'Scenario Weighting'!F$10)+('GOM Scores and Quartiles'!$AW5*'Scenario Weighting'!F$11)+('GOM Scores and Quartiles'!$AX5*'Scenario Weighting'!F$13)+('GOM Scores and Quartiles'!$AZ5*'Scenario Weighting'!F$14)+('GOM Scores and Quartiles'!$BB5*'Scenario Weighting'!F$15)+('GOM Scores and Quartiles'!$BC5*'Scenario Weighting'!F$16)+('GOM Scores and Quartiles'!$BE5*'Scenario Weighting'!F$17)+('GOM Scores and Quartiles'!$BF5*'Scenario Weighting'!F$18)) ->  | BK5: =('GOM Scores and Quartiles'!$BG5*0.12)+('GOM Scores and Quartiles'!$BH5*0.12)+('GOM Scores and Quartiles'!$AS5*0.2)+('GOM Scores and Quartiles'!$AT5*0.05)+('GOM Scores and Quartiles'!$AU5*0.1)+('GOM Scores and Quartiles'!$AV5*0.2)+('GOM Scores and Quartiles'!$AW5*0.1)+('GOM Scores and Quartiles'!$BE5*0.07)+('GOM Scores and Quartiles'!$BF5*0.04) -> 38.57210002 | BL5: =IF(AR5=0, "", ($BG5*'Scenario Weighting'!H$3)+('GOM Scores and Quartiles'!$BH5*'Scenario Weighting'!H$4)+('GOM Scores and Quartiles'!$AP5*'Scenario Weighting'!H$5)+('GOM Scores and Quartiles'!$AQ5*'Scenario Weighting'!H$6)+('GOM Scores and Quartiles'!$AR5*'Scenario Weighting'!H$7)+('GOM Scores and Quartiles'!$AS5*'Scenario Weighting'!H$12)+('GOM Scores and Quartiles'!$AT5*'Scenario Weighting'!H$8)+('GOM Scores and Quartiles'!$AU5*'Scenario Weighting'!H$9)+('GOM Scores and Quartiles'!$AV5*'Scenario Weighting'!H$10)+('GOM Scores and Quartiles'!$AW5*'Scenario Weighting'!H$11)+('GOM Scores and Quartiles'!$AX5*'Scenario Weighting'!H$13)+('GOM Scores and Quartiles'!$AZ5*'Scenario Weighting'!H$14)+('GOM Scores and Quartiles'!$BB5*'Scenario Weighting'!H$15)+('GOM Scores and Quartiles'!$BC5*'Scenario Weighting'!H$16)+('GOM Scores and Quartiles'!$BE5*'Scenario Weighting'!H$17)+('GOM Scores and Quartiles'!$BF5*'Scenario Weighting'!H$18)) ->  | BM5: =IF(BI5>='Scenario Weighting'!C$24, "75-100%", IF('GOM Scores and Quartiles'!BI5>='Scenario Weighting'!C$23, "50-75%", IF('GOM Scores and Quartiles'!BI5>='Scenario Weighting'!C$22, "25-50%", "0-25%"))) -> 25-50% | BN5: =IF(BJ5="", "", IF(BJ5>='Scenario Weighting'!D$24, "75-100%", IF('GOM Scores and Quartiles'!BJ5>='Scenario Weighting'!D$23, "50-75%", IF('GOM Scores and Quartiles'!BJ5>='Scenario Weighting'!D$22, "25-50%", "0-25%")))) ->  | BO5: =IF(BK5>='Scenario Weighting'!E$24, "75-100%", IF('GOM Scores and Quartiles'!BK5>='Scenario Weighting'!E$23, "50-75%", IF('GOM Scores and Quartiles'!BK5>='Scenario Weighting'!E$22, "25-50%", "0-25%"))) -> 25-50% | BP5: =IF(BL5="", "", IF(BL5>='Scenario Weighting'!F$24, "75-100%", IF('GOM Scores and Quartiles'!BL5>='Scenario Weighting'!F$23, "50-75%", IF('GOM Scores and Quartiles'!BL5>='Scenario Weighting'!F$22, "25-50%", "0-25%")))) -> 
A6: 1 | B6: 36668 | C6: -97.03553738 | D6: 26.07182575 | E6: 1671 | F6: 50.94034588 | G6: 860 | H6: 34.17963509 | I6: 286 | J6: 117.8806924 | K6: 0 | L6: 0 | M6: 0 | N6: 0 | O6: 0 | P6: 0 | Q6: 1 | R6: 1 | S6: 0 | T6: 0 | U6: 0 | V6: 0 | W6: 0 | X6: 0 | Y6: 0 | Z6: 0 | AA6: 0 | AB6: 14 | AC6: 1 | AD6: 4.54 | AE6: 665.86 | AF6: 577 | AG6: 190.4 | AH6: 190.4 | AI6: 0 | AJ6: 0 | AK6: 0 | AL6: 3376965.5 | AM6: 5804 | AN6: 5804 | AO6: 0.8352201258 | AP6: 0 | AQ6: 0 | AR6: 0 | AS6: 0 | AT6: 0 | AU6: 0 | AV6: 0 | AW6: 47.27183725 | AX6: 100 | AY6: 67.08975521 | AZ6: 51.17503927 | BA6: 67.08975521 | BB6: 51.17503927 | BC6: 0 | BD6: 100 | BE6: 100 | BF6: 100 | BG6: 1.525940417 | BH6: 1.755723044 | BI6: =($BG6*'Scenario Weighting'!E$3)+('GOM Scores and Quartiles'!$BH6*'Scenario Weighting'!E$4)+('GOM Scores and Quartiles'!$AP6*'Scenario Weighting'!E$5)+('GOM Scores and Quartiles'!$AQ6*'Scenario Weighting'!E$6)+('GOM Scores and Quartiles'!$AR6*'Scenario Weighting'!E$7)+('GOM Scores and Quartiles'!$AS6*'Scenario Weighting'!E$12)+('GOM Scores and Quartiles'!$AT6*'Scenario Weighting'!E$8)+('GOM Scores and Quartiles'!$AU6*'Scenario Weighting'!E$9)+('GOM Scores and Quartiles'!$AV6*'Scenario Weighting'!E$10)+('GOM Scores and Quartiles'!$AW6*'Scenario Weighting'!E$11)+('GOM Scores and Quartiles'!$AX6*'Scenario Weighting'!E$13)+('GOM Scores and Quartiles'!$AZ6*'Scenario Weighting'!E$14)+('GOM Scores and Quartiles'!$BB6*'Scenario Weighting'!E$15)+('GOM Scores and Quartiles'!$BC6*'Scenario Weighting'!E$16)+('GOM Scores and Quartiles'!$BE6*'Scenario Weighting'!E$17)+('GOM Scores and Quartiles'!$BF6*'Scenario Weighting'!E$18) -> 30.57194503 | BJ6: =IF(AR6=0, "", ($BG6*'Scenario Weighting'!F$3)+('GOM Scores and Quartiles'!$BH6*'Scenario Weighting'!F$4)+('GOM Scores and Quartiles'!$AP6*'Scenario Weighting'!F$5)+('GOM Scores and Quartiles'!$AQ6*'Scenario Weighting'!F$6)+('GOM Scores and Quartiles'!$AR6*'Scenario Weighting'!F$7)+('GOM Scores and Quartiles'!$AS6*'Scenario Weighting'!F$12)+('GOM Scores and Quartiles'!$AT6*'Scenario Weighting'!F$8)+('GOM Scores and Quartiles'!$AU6*'Scenario Weighting'!F$9)+('GOM Scores and Quartiles'!$AV6*'Scenario Weighting'!F$10)+('GOM Scores and Quartiles'!$AW6*'Scenario Weighting'!F$11)+('GOM Scores and Quartiles'!$AX6*'Scenario Weighting'!F$13)+('GOM Scores and Quartiles'!$AZ6*'Scenario Weighting'!F$14)+('GOM Scores and Quartiles'!$BB6*'Scenario Weighting'!F$15)+('GOM Scores and Quartiles'!$BC6*'Scenario Weighting'!F$16)+('GOM Scores and Quartiles'!$BE6*'Scenario Weighting'!F$17)+('GOM Scores and Quartiles'!$BF6*'Scenario Weighting'!F$18)) ->  | BK6: =('GOM Scores and Quartiles'!$BG6*0.12)+('GOM Scores and Quartiles'!$BH6*0.12)+('GOM Scores and Quartiles'!$AS6*0.2)+('GOM Scores and Quartiles'!$AT6*0.05)+('GOM Scores and Quartiles'!$AU6*0.1)+('GOM Scores and Quartiles'!$AV6*0.2)+('GOM Scores and Quartiles'!$AW6*0.1)+('GOM Scores and Quartiles'!$BE6*0.07)+('GOM Scores and Quartiles'!$BF6*0.04) -> 16.12098334 | BL6: =IF(AR6=0, "", ($BG6*'Scenario Weighting'!H$3)+('GOM Scores and Quartiles'!$BH6*'Scenario Weighting'!H$4)+('GOM Scores and Quartiles'!$AP6*'Scenario Weighting'!H$5)+('GOM Scores and Quartiles'!$AQ6*'Scenario Weighting'!H$6)+('GOM Scores and Quartiles'!$AR6*'Scenario Weighting'!H$7)+('GOM Scores and Quartiles'!$AS6*'Scenario Weighting'!H$12)+('GOM Scores and Quartiles'!$AT6*'Scenario Weighting'!H$8)+('GOM Scores and Quartiles'!$AU6*'Scenario Weighting'!H$9)+('GOM Scores and Quartiles'!$AV6*'Scenario Weighting'!H$10)+('GOM Scores and Quartiles'!$AW6*'Scenario Weighting'!H$11)+('GOM Scores and Quartiles'!$AX6*'Scenario Weighting'!H$13)+('GOM Scores and Quartiles'!$AZ6*'Scenario Weighting'!H$14)+('GOM Scores and Quartiles'!$BB6*'Scenario Weighting'!H$15)+('GOM Scores and Quartiles'!$BC6*'Scenario Weighting'!H$16)+('GOM Scores and Quartiles'!$BE6*'Scenario Weighting'!H$17)+('GOM Scores and Quartiles'!$BF6*'Scenario Weighting'!H$18)) ->  | BM6: =IF(BI6>='Scenario Weighting'!C$24, "75-100%", IF('GOM Scores and Quartiles'!BI6>='Scenario Weighting'!C$23, "50-75%", IF('GOM Scores and Quartiles'!BI6>='Scenario Weighting'!C$22, "25-50%", "0-25%"))) -> 0-25% | BN6: =IF(BJ6="", "", IF(BJ6>='Scenario Weighting'!D$24, "75-100%", IF('GOM Scores and Quartiles'!BJ6>='Scenario Weighting'!D$23, "50-75%", IF('GOM Scores and Quartiles'!BJ6>='Scenario Weighting'!D$22, "25-50%", "0-25%")))) ->  | BO6: =IF(BK6>='Scenario Weighting'!E$24, "75-100%", IF('GOM Scores and Quartiles'!BK6>='Scenario Weighting'!E$23, "50-75%", IF('GOM Scores and Quartiles'!BK6>='Scenario Weighting'!E$22, "25-50%", "0-25%"))) -> 0-25% | BP6: =IF(BL6="", "", IF(BL6>='Scenario Weighting'!F$24, "75-100%", IF('GOM Scores and Quartiles'!BL6>='Scenario Weighting'!F$23, "50-75%", IF('GOM Scores and Quartiles'!BL6>='Scenario Weighting'!F$22, "25-50%", "0-25%")))) -> 
A7: 2 | B7: 36669 | C7: -96.96405313 | D7: 26.07182575 | E7: 1671 | F7: 57.78350713 | G7: 860 | H7: 41.0346219 | I7: 286 | J7: 124.7187947 | K7: 0 | L7: 0 | M7: 0 | N7: 1 | O7: 0 | P7: 0 | Q7: 1 | R7: 1 | S7: 0 | T7: 1 | U7: 1 | V7: 0 | W7: 0 | X7: 0 | Y7: 2 | Z7: 0 | AA7: 0 | AB7: 5 | AC7: 5 | AD7: 31.9 | AE7: 2932.66 | AF7: 2739 | AG7: 730.58 | AH7: 146.116 | AI7: 0 | AJ7: 0 | AK7: 0 | AL7: 16089607.61 | AM7: 29958 | AN7: 5991.6 | AO7: 7.718238994 | AP7: 0 | AQ7: 0 | AR7: 0 | AS7: 100 | AT7: 0 | AU7: 0 | AV7: 0 | AW7: 50.05719168 | AX7: 100 | AY7: 64.77046073 | AZ7: 64.81473496 | BA7: 64.77046073 | BB7: 64.81473496 | BC7: 0 | BD7: 99.7752809 | BE7: 99.57983193 | BF7: 100 | BG7: 9.127139682 | BH7: 12.39582505 | BI7: =($BG7*'Scenario Weighting'!E$3)+('GOM Scores and Quartiles'!$BH7*'Scenario Weighting'!E$4)+('GOM Scores and Quartiles'!$AP7*'Scenario Weighting'!E$5)+('GOM Scores and Quartiles'!$AQ7*'Scenario Weighting'!E$6)+('GOM Scores and Quartiles'!$AR7*'Scenario Weighting'!E$7)+('GOM Scores and Quartiles'!$AS7*'Scenario Weighting'!E$12)+('GOM Scores and Quartiles'!$AT7*'Scenario Weighting'!E$8)+('GOM Scores and Quartiles'!$AU7*'Scenario Weighting'!E$9)+('GOM Scores and Quartiles'!$AV7*'Scenario Weighting'!E$10)+('GOM Scores and Quartiles'!$AW7*'Scenario Weighting'!E$11)+('GOM Scores and Quartiles'!$AX7*'Scenario Weighting'!E$13)+('GOM Scores and Quartiles'!$AZ7*'Scenario Weighting'!E$14)+('GOM Scores and Quartiles'!$BB7*'Scenario Weighting'!E$15)+('GOM Scores and Quartiles'!$BC7*'Scenario Weighting'!E$16)+('GOM Scores and Quartiles'!$BE7*'Scenario Weighting'!E$17)+('GOM Scores and Quartiles'!$BF7*'Scenario Weighting'!E$18) -> 57.670181 | BJ7: =IF(AR7=0, "", ($BG7*'Scenario Weighting'!F$3)+('GOM Scores and Quartiles'!$BH7*'Scenario Weighting'!F$4)+('GOM Scores and Quartiles'!$AP7*'Scenario Weighting'!F$5)+('GOM Scores and Quartiles'!$AQ7*'Scenario Weighting'!F$6)+('GOM Scores and Quartiles'!$AR7*'Scenario Weighting'!F$7)+('GOM Scores and Quartiles'!$AS7*'Scenario Weighting'!F$12)+('GOM Scores and Quartiles'!$AT7*'Scenario Weighting'!F$8)+('GOM Scores and Quartiles'!$AU7*'Scenario Weighting'!F$9)+('GOM Scores and Quartiles'!$AV7*'Scenario Weighting'!F$10)+('GOM Scores and Quartiles'!$AW7*'Scenario Weighting'!F$11)+('GOM Scores and Quartiles'!$AX7*'Scenario Weighting'!F$13)+('GOM Scores and Quartiles'!$AZ7*'Scenario Weighting'!F$14)+('GOM Scores and Quartiles'!$BB7*'Scenario Weighting'!F$15)+('GOM Scores and Quartiles'!$BC7*'Scenario Weighting'!F$16)+('GOM Scores and Quartiles'!$BE7*'Scenario Weighting'!F$17)+('GOM Scores and Quartiles'!$BF7*'Scenario Weighting'!F$18)) ->  | BK7: =('GOM Scores and Quartiles'!$BG7*0.12)+('GOM Scores and Quartiles'!$BH7*0.12)+('GOM Scores and Quartiles'!$AS7*0.2)+('GOM Scores and Quartiles'!$AT7*0.05)+('GOM Scores and Quartiles'!$AU7*0.1)+('GOM Scores and Quartiles'!$AV7*0.2)+('GOM Scores and Quartiles'!$AW7*0.1)+('GOM Scores and Quartiles'!$BE7*0.07)+('GOM Scores and Quartiles'!$BF7*0.04) -> 38.55906317 | BL7: =IF(AR7=0, "", ($BG7*'Scenario Weighting'!H$3)+('GOM Scores and Quartiles'!$BH7*'Scenario Weighting'!H$4)+('GOM Scores and Quartiles'!$AP7*'Scenario Weighting'!H$5)+('GOM Scores and Quartiles'!$AQ7*'Scenario Weighting'!H$6)+('GOM Scores and Quartiles'!$AR7*'Scenario Weighting'!H$7)+('GOM Scores and Quartiles'!$AS7*'Scenario Weighting'!H$12)+('GOM Scores and Quartiles'!$AT7*'Scenario Weighting'!H$8)+('GOM Scores and Quartiles'!$AU7*'Scenario Weighting'!H$9)+('GOM Scores and Quartiles'!$AV7*'Scenario Weighting'!H$10)+('GOM Scores and Quartiles'!$AW7*'Scenario Weighting'!H$11)+('GOM Scores and Quartiles'!$AX7*'Scenario Weighting'!H$13)+('GOM Scores and Quartiles'!$AZ7*'Scenario Weighting'!H$14)+('GOM Scores and Quartiles'!$BB7*'Scenario Weighting'!H$15)+('GOM Scores and Quartiles'!$BC7*'Scenario Weighting'!H$16)+('GOM Scores and Quartiles'!$BE7*'Scenario Weighting'!H$17)+('GOM Scores and Quartiles'!$BF7*'Scenario Weighting'!H$18)) ->  | BM7: =IF(BI7>='Scenario Weighting'!C$24, "75-100%", IF('GOM Scores and Quartiles'!BI7>='Scenario Weighting'!C$23, "50-75%", IF('GOM Scores and Quartiles'!BI7>='Scenario Weighting'!C$22, "25-50%", "0-25%"))) -> 25-50% | BN7: =IF(BJ7="", "", IF(BJ7>='Scenario Weighting'!D$24, "75-100%", IF('GOM Scores and Quartiles'!BJ7>='Scenario Weighting'!D$23, "50-75%", IF('GOM Scores and Quartiles'!BJ7>='Scenario Weighting'!D$22, "25-50%", "0-25%")))) ->  | BO7: =IF(BK7>='Scenario Weighting'!E$24, "75-100%", IF('GOM Scores and Quartiles'!BK7>='Scenario Weighting'!E$23, "50-75%", IF('GOM Scores and Quartiles'!BK7>='Scenario Weighting'!E$22, "25-50%", "0-25%"))) -> 25-50% | BP7: =IF(BL7="", "", IF(BL7>='Scenario Weighting'!F$24, "75-100%", IF('GOM Scores and Quartiles'!BL7>='Scenario Weighting'!F$23, "50-75%", IF('GOM Scores and Quartiles'!BL7>='Scenario Weighting'!F$22, "25-50%", "0-25%")))) -> 
A8: 3 | B8: 36670 | C8: -97.03553738 | D8: 26.14330999 | E8: 1671 | F8: 53.57451713 | G8: 860 | H8: 37.42891809 | I8: 286 | J8: 115.7408557 | K8: 0 | L8: 0 | M8: 0 | N8: 0 | O8: 1 | P8: 0 | Q8: 1 | R8: 1 | S8: 1 | T8: 0 | U8: 0 | V8: 0 | W8: 0 | X8: 0 | Y8: 0 | Z8: 0 | AA8: 0 | AB8: 14 | AC8: 5 | AD8: 31.9 | AE8: 2932.66 | AF8: 2739 | AG8: 730.58 | AH8: 146.116 | AI8: 0 | AJ8: 0 | AK8: 0 | AL8: 16089607.61 | AM8: 29958 | AN8: 5991.6 | AO8: 7.718238994 | AP8: 0 | AQ8: 0 | AR8: 0 | AS8: 0 | AT8: 0 | AU8: 0 | AV8: 0 | AW8: 46.40022064 | AX8: 100 | AY8: 64.77046073 | AZ8: 64.81473496 | BA8: 64.77046073 | BB8: 64.81473496 | BC8: 0 | BD8: 100 | BE8: 100 | BF8: 0 | BG8: 9.127139682 | BH8: 12.39582505 | BI8: =($BG8*'Scenario Weighting'!E$3)+('GOM Scores and Quartiles'!$BH8*'Scenario Weighting'!E$4)+('GOM Scores and Quartiles'!$AP8*'Scenario Weighting'!E$5)+('GOM Scores and Quartiles'!$AQ8*'Scenario Weighting'!E$6)+('GOM Scores and Quartiles'!$AR8*'Scenario Weighting'!E$7)+('GOM Scores and Quartiles'!$AS8*'Scenario Weighting'!E$12)+('GOM Scores and Quartiles'!$AT8*'Scenario Weighting'!E$8)+('GOM Scores and Quartiles'!$AU8*'Scenario Weighting'!E$9)+('GOM Scores and Quartiles'!$AV8*'Scenario Weighting'!E$10)+('GOM Scores and Quartiles'!$AW8*'Scenario Weighting'!E$11)+('GOM Scores and Quartiles'!$AX8*'Scenario Weighting'!E$13)+('GOM Scores and Quartiles'!$AZ8*'Scenario Weighting'!E$14)+('GOM Scores and Quartiles'!$BB8*'Scenario Weighting'!E$15)+('GOM Scores and Quartiles'!$BC8*'Scenario Weighting'!E$16)+('GOM Scores and Quartiles'!$BE8*'Scenario Weighting'!E$17)+('GOM Scores and Quartiles'!$BF8*'Scenario Weighting'!E$18) -> 32.31288726 | BJ8: =IF(AR8=0, "", ($BG8*'Scenario Weighting'!F$3)+('GOM Scores and Quartiles'!$BH8*'Scenario Weighting'!F$4)+('GOM Scores and Quartiles'!$AP8*'Scenario Weighting'!F$5)+('GOM Scores and Quartiles'!$AQ8*'Scenario Weighting'!F$6)+('GOM Scores and Quartiles'!$AR8*'Scenario Weighting'!F$7)+('GOM Scores and Quartiles'!$AS8*'Scenario Weighting'!F$12)+('GOM Scores and Quartiles'!$AT8*'Scenario Weighting'!F$8)+('GOM Scores and Quartiles'!$AU8*'Scenario Weighting'!F$9)+('GOM Scores and Quartiles'!$AV8*'Scenario Weighting'!F$10)+('GOM Scores and Quartiles'!$AW8*'Scenario Weighting'!F$11)+('GOM Scores and Quartiles'!$AX8*'Scenario Weighting'!F$13)+('GOM Scores and Quartiles'!$AZ8*'Scenario Weighting'!F$14)+('GOM Scores and Quartiles'!$BB8*'Scenario Weighting'!F$15)+('GOM Scores and Quartiles'!$BC8*'Scenario Weighting'!F$16)+('GOM Scores and Quartiles'!$BE8*'Scenario Weighting'!F$17)+('GOM Scores and Quartiles'!$BF8*'Scenario Weighting'!F$18)) ->  | BK8: =('GOM Scores and Quartiles'!$BG8*0.12)+('GOM Scores and Quartiles'!$BH8*0.12)+('GOM Scores and Quartiles'!$AS8*0.2)+('GOM Scores and Quartiles'!$AT8*0.05)+('GOM Scores and Quartiles'!$AU8*0.1)+('GOM Scores and Quartiles'!$AV8*0.2)+('GOM Scores and Quartiles'!$AW8*0.1)+('GOM Scores and Quartiles'!$BE8*0.07)+('GOM Scores and Quartiles'!$BF8*0.04) -> 14.22277783 | BL8: =IF(AR8=0, "", ($BG8*'Scenario Weighting'!H$3)+('GOM Scores and Quartiles'!$BH8*'Scenario Weighting'!H$4)+('GOM Scores and Quartiles'!$AP8*'Scenario Weighting'!H$5)+('GOM Scores and Quartiles'!$AQ8*'Scenario Weighting'!H$6)+('GOM Scores and Quartiles'!$AR8*'Scenario Weighting'!H$7)+('GOM Scores and Quartiles'!$AS8*'Scenario Weighting'!H$12)+('GOM Scores and Quartiles'!$AT8*'Scenario Weighting'!H$8)+('GOM Scores and Quartiles'!$AU8*'Scenario Weighting'!H$9)+('GOM Scores and Quartiles'!$AV8*'Scenario Weighting'!H$10)+('GOM Scores and Quartiles'!$AW8*'Scenario Weighting'!H$11)+('GOM Scores and Quartiles'!$AX8*'Scenario Weighting'!H$13)+('GOM Scores and Quartiles'!$AZ8*'Scenario Weighting'!H$14)+('GOM Scores and Quartiles'!$BB8*'Scenario Weighting'!H$15)+('GOM Scores and Quartiles'!$BC8*'Scenario Weighting'!H$16)+('GOM Scores and Quartiles'!$BE8*'Scenario Weighting'!H$17)+('GOM Scores and Quartiles'!$BF8*'Scenario Weighting'!H$18)) ->  | BM8: =IF(BI8>='Scenario Weighting'!C$24, "75-100%", IF('GOM Scores and Quartiles'!BI8>='Scenario Weighting'!C$23, "50-75%", IF('GOM Scores and Quartiles'!BI8>='Scenario Weighting'!C$22, "25-50%", "0-25%"))) -> 0-25% | BN8: =IF(BJ8="", "", IF(BJ8>='Scenario Weighting'!D$24, "75-100%", IF('GOM Scores and Quartiles'!BJ8>='Scenario Weighting'!D$23, "50-75%", IF('GOM Scores and Quartiles'!BJ8>='Scenario Weighting'!D$22, "25-50%", "0-25%")))) ->  | BO8: =IF(BK8>='Scenario Weighting'!E$24, "75-100%", IF('GOM Scores and Quartiles'!BK8>='Scenario Weighting'!E$23, "50-75%", IF('GOM Scores and Quartiles'!BK8>='Scenario Weighting'!E$22, "25-50%", "0-25%"))) -> 0-25% | BP8: =IF(BL8="", "", IF(BL8>='Scenario Weighting'!F$24, "75-100%", IF('GOM Scores and Quartiles'!BL8>='Scenario Weighting'!F$23, "50-75%", IF('GOM Scores and Quartiles'!BL8>='Scenario Weighting'!F$22, "25-50%", "0-25%")))) -> 
A9: 4 | B9: 36671 | C9: -96.96405313 | D9: 26.14330999 | E9: 1671 | F9: 60.11858068 | G9: 860 | H9: 43.77446968 | I9: 286 | J9: 122.6941477 | K9: 0 | L9: 0 | M9: 0 | N9: 1 | O9: 0 | P9: 0 | Q9: 1 | R9: 1 | S9: 0 | T9: 0 | U9: 0 | V9: 0 | W9: 0 | X9: 0 | Y9: 2 | Z9: 0 | AA9: 0 | AB9: 5 | AC9: 5 | AD9: 31.9 | AE9: 2932.66 | AF9: 2739 | AG9: 730.58 | AH9: 146.116 | AI9: 0 | AJ9: 0 | AK9: 0 | AL9: 16089607.61 | AM9: 29958 | AN9: 5991.6 | AO9: 7.718238994 | AP9: 0 | AQ9: 0 | AR9: 0 | AS9: 100 | AT9: 0 | AU9: 0 | AV9: 0 | AW9: 49.23249512 | AX9: 100 | AY9: 64.77046073 | AZ9: 64.81473496 | BA9: 64.77046073 | BB9: 64.81473496 | BC9: 0 | BD9: 100 | BE9: 100 | BF9: 100 | BG9: 9.127139682 | BH9: 12.39582505 | BI9: =($BG9*'Scenario Weighting'!E$3)+('GOM Scores and Quartiles'!$BH9*'Scenario Weighting'!E$4)+('GOM Scores and Quartiles'!$AP9*'Scenario Weighting'!E$5)+('GOM Scores and Quartiles'!$AQ9*'Scenario Weighting'!E$6)+('GOM Scores and Quartiles'!$AR9*'Scenario Weighting'!E$7)+('GOM Scores and Quartiles'!$AS9*'Scenario Weighting'!E$12)+('GOM Scores and Quartiles'!$AT9*'Scenario Weighting'!E$8)+('GOM Scores and Quartiles'!$AU9*'Scenario Weighting'!E$9)+('GOM Scores and Quartiles'!$AV9*'Scenario Weighting'!E$10)+('GOM Scores and Quartiles'!$AW9*'Scenario Weighting'!E$11)+('GOM Scores and Quartiles'!$AX9*'Scenario Weighting'!E$13)+('GOM Scores and Quartiles'!$AZ9*'Scenario Weighting'!E$14)+('GOM Scores and Quartiles'!$BB9*'Scenario Weighting'!E$15)+('GOM Scores and Quartiles'!$BC9*'Scenario Weighting'!E$16)+('GOM Scores and Quartiles'!$BE9*'Scenario Weighting'!E$17)+('GOM Scores and Quartiles'!$BF9*'Scenario Weighting'!E$18) -> 57.59611471 | BJ9: =IF(AR9=0, "", ($BG9*'Scenario Weighting'!F$3)+('GOM Scores and Quartiles'!$BH9*'Scenario Weighting'!F$4)+('GOM Scores and Quartiles'!$AP9*'Scenario Weighting'!F$5)+('GOM Scores and Quartiles'!$AQ9*'Scenario Weighting'!F$6)+('GOM Scores and Quartiles'!$AR9*'Scenario Weighting'!F$7)+('GOM Scores and Quartiles'!$AS9*'Scenario Weighting'!F$12)+('GOM Scores and Quartiles'!$AT9*'Scenario Weighting'!F$8)+('GOM Scores and Quartiles'!$AU9*'Scenario Weighting'!F$9)+('GOM Scores and Quartiles'!$AV9*'Scenario Weighting'!F$10)+('GOM Scores and Quartiles'!$AW9*'Scenario Weighting'!F$11)+('GOM Scores and Quartiles'!$AX9*'Scenario Weighting'!F$13)+('GOM Scores and Quartiles'!$AZ9*'Scenario Weighting'!F$14)+('GOM Scores and Quartiles'!$BB9*'Scenario Weighting'!F$15)+('GOM Scores and Quartiles'!$BC9*'Scenario Weighting'!F$16)+('GOM Scores and Quartiles'!$BE9*'Scenario Weighting'!F$17)+('GOM Scores and Quartiles'!$BF9*'Scenario Weighting'!F$18)) ->  | BK9: =('GOM Scores and Quartiles'!$BG9*0.12)+('GOM Scores and Quartiles'!$BH9*0.12)+('GOM Scores and Quartiles'!$AS9*0.2)+('GOM Scores and Quartiles'!$AT9*0.05)+('GOM Scores and Quartiles'!$AU9*0.1)+('GOM Scores and Quartiles'!$AV9*0.2)+('GOM Scores and Quartiles'!$AW9*0.1)+('GOM Scores and Quartiles'!$BE9*0.07)+('GOM Scores and Quartiles'!$BF9*0.04) -> 38.50600528 | BL9: =IF(AR9=0, "", ($BG9*'Scenario Weighting'!H$3)+('GOM Scores and Quartiles'!$BH9*'Scenario Weighting'!H$4)+('GOM Scores and Quartiles'!$AP9*'Scenario Weighting'!H$5)+('GOM Scores and Quartiles'!$AQ9*'Scenario Weighting'!H$6)+('GOM Scores and Quartiles'!$AR9*'Scenario Weighting'!H$7)+('GOM Scores and Quartiles'!$AS9*'Scenario Weighting'!H$12)+('GOM Scores and Quartiles'!$AT9*'Scenario Weighting'!H$8)+('GOM Scores and Quartiles'!$AU9*'Scenario Weighting'!H$9)+('GOM Scores and Quartiles'!$AV9*'Scenario Weighting'!H$10)+('GOM Scores and Quartiles'!$AW9*'Scenario Weighting'!H$11)+('GOM Scores and Quartiles'!$AX9*'Scenario Weighting'!H$13)+('GOM Scores and Quartiles'!$AZ9*'Scenario Weighting'!H$14)+('GOM Scores and Quartiles'!$BB9*'Scenario Weighting'!H$15)+('GOM Scores and Quartiles'!$BC9*'Scenario Weighting'!H$16)+('GOM Scores and Quartiles'!$BE9*'Scenario Weighting'!H$17)+('GOM Scores and Quartiles'!$BF9*'Scenario Weighting'!H$18)) ->  | BM9: =IF(BI9>='Scenario Weighting'!C$24, "75-100%", IF('GOM Scores and Quartiles'!BI9>='Scenario Weighting'!C$23, "50-75%", IF('GOM Scores and Quartiles'!BI9>='Scenario Weighting'!C$22, "25-50%", "0-25%"))) -> 25-50% | BN9: =IF(BJ9="", "", IF(BJ9>='Scenario Weighting'!D$24, "75-100%", IF('GOM Scores and Quartiles'!BJ9>='Scenario Weighting'!D$23, "50-75%", IF('GOM Scores and Quartiles'!BJ9>='Scenario Weighting'!D$22, "25-50%", "0-25%")))) ->  | BO9: =IF(BK9>='Scenario Weighting'!E$24, "75-100%", IF('GOM Scores and Quartiles'!BK9>='Scenario Weighting'!E$23, "50-75%", IF('GOM Scores and Quartiles'!BK9>='Scenario Weighting'!E$22, "25-50%", "0-25%"))) -> 25-50% | BP9: =IF(BL9="", "", IF(BL9>='Scenario Weighting'!F$24, "75-100%", IF('GOM Scores and Quartiles'!BL9>='Scenario Weighting'!F$23, "50-75%", IF('GOM Scores and Quartiles'!BL9>='Scenario Weighting'!F$22, "25-50%", "0-25%")))) -> 
A10: 5 | B10: 36706 | C10: -96.89256889 | D10: 26.0003415 | E10: 1671 | F10: 63.34065247 | G10: 860 | H10: 46.85452019 | I10: 286 | J10: 133.9520507 | K10: 0 | L10: 0 | M10: 0 | N10: 0 | O10: 0 | P10: 0 | Q10: 1 | R10: 1 | S10: 0 | T10: 0 | U10: 0 | V10: 0 | W10: 0 | X10: 0 | Y10: 0 | Z10: 0 | AA10: 0 | AB10: 3 | AC10: 5 | AD10: 31.9 | AE10: 2932.66 | AF10: 2739 | AG10: 730.58 | AH10: 146.116 | AI10: 0 | AJ10: 0 | AK10: 0 | AL10: 16089607.61 | AM10: 29958 | AN10: 5991.6 | AO10: 7.718238994 | AP10: 0 | AQ10: 0 | AR10: 0 | AS10: 0 | AT10: 0 | AU10: 0 | AV10: 0 | AW10: 53.81816059 | AX10: 100 | AY10: 64.77046073 | AZ10: 64.81473496 | BA10: 64.77046073 | BB10: 64.81473496 | BC10: 0 | BD10: 100 | BE10: 100 | BF10: 100 | BG10: 9.127139682 | BH10: 12.39582505 | BI10: =($BG10*'Scenario Weighting'!E$3)+('GOM Scores and Quartiles'!$BH10*'Scenario Weighting'!E$4)+('GOM Scores and Quartiles'!$AP10*'Scenario Weighting'!E$5)+('GOM Scores and Quartiles'!$AQ10*'Scenario Weighting'!E$6)+('GOM Scores and Quartiles'!$AR10*'Scenario Weighting'!E$7)+('GOM Scores and Quartiles'!$AS10*'Scenario Weighting'!E$12)+('GOM Scores and Quartiles'!$AT10*'Scenario Weighting'!E$8)+('GOM Scores and Quartiles'!$AU10*'Scenario Weighting'!E$9)+('GOM Scores and Quartiles'!$AV10*'Scenario Weighting'!E$10)+('GOM Scores and Quartiles'!$AW10*'Scenario Weighting'!E$11)+('GOM Scores and Quartiles'!$AX10*'Scenario Weighting'!E$13)+('GOM Scores and Quartiles'!$AZ10*'Scenario Weighting'!E$14)+('GOM Scores and Quartiles'!$BB10*'Scenario Weighting'!E$15)+('GOM Scores and Quartiles'!$BC10*'Scenario Weighting'!E$16)+('GOM Scores and Quartiles'!$BE10*'Scenario Weighting'!E$17)+('GOM Scores and Quartiles'!$BF10*'Scenario Weighting'!E$18) -> 38.05468126 | BJ10: =IF(AR10=0, "", ($BG10*'Scenario Weighting'!F$3)+('GOM Scores and Quartiles'!$BH10*'Scenario Weighting'!F$4)+('GOM Scores and Quartiles'!$AP10*'Scenario Weighting'!F$5)+('GOM Scores and Quartiles'!$AQ10*'Scenario Weighting'!F$6)+('GOM Scores and Quartiles'!$AR10*'Scenario Weighting'!F$7)+('GOM Scores and Quartiles'!$AS10*'Scenario Weighting'!F$12)+('GOM Scores and Quartiles'!$AT10*'Scenario Weighting'!F$8)+('GOM Scores and Quartiles'!$AU10*'Scenario Weighting'!F$9)+('GOM Scores and Quartiles'!$AV10*'Scenario Weighting'!F$10)+('GOM Scores and Quartiles'!$AW10*'Scenario Weighting'!F$11)+('GOM Scores and Quartiles'!$AX10*'Scenario Weighting'!F$13)+('GOM Scores and Quartiles'!$AZ10*'Scenario Weighting'!F$14)+('GOM Scores and Quartiles'!$BB10*'Scenario Weighting'!F$15)+('GOM Scores and Quartiles'!$BC10*'Scenario Weighting'!F$16)+('GOM Scores and Quartiles'!$BE10*'Scenario Weighting'!F$17)+('GOM Scores and Quartiles'!$BF10*'Scenario Weighting'!F$18)) ->  | BK10: =('GOM Scores and Quartiles'!$BG10*0.12)+('GOM Scores and Quartiles'!$BH10*0.12)+('GOM Scores and Quartiles'!$AS10*0.2)+('GOM Scores and Quartiles'!$AT10*0.05)+('GOM Scores and Quartiles'!$AU10*0.1)+('GOM Scores and Quartiles'!$AV10*0.2)+('GOM Scores and Quartiles'!$AW10*0.1)+('GOM Scores and Quartiles'!$BE10*0.07)+('GOM Scores and Quartiles'!$BF10*0.04) -> 18.96457183 | BL10: =IF(AR10=0, "", ($BG10*'Scenario Weighting'!H$3)+('GOM Scores and Quartiles'!$BH10*'Scenario Weighting'!H$4)+('GOM Scores and Quartiles'!$AP10*'Scenario Weighting'!H$5)+('GOM Scores and Quartiles'!$AQ10*'Scenario Weighting'!H$6)+('GOM Scores and Quartiles'!$AR10*'Scenario Weighting'!H$7)+('GOM Scores and Quartiles'!$AS10*'Scenario Weighting'!H$12)+('GOM Scores and Quartiles'!$AT10*'Scenario Weighting'!H$8)+('GOM Scores and Quartiles'!$AU10*'Scenario Weighting'!H$9)+('GOM Scores and Quartiles'!$AV10*'Scenario Weighting'!H$10)+('GOM Scores and Quartiles'!$AW10*'Scenario Weighting'!H$11)+('GOM Scores and Quartiles'!$AX10*'Scenario Weighting'!H$13)+('GOM Scores and Quartiles'!$AZ10*'Scenario Weighting'!H$14)+('GOM Scores and Quartiles'!$BB10*'Scenario Weighting'!H$15)+('GOM Scores and Quartiles'!$BC10*'Scenario Weighting'!H$16)+('GOM Scores and Quartiles'!$BE10*'Scenario Weighting'!H$17)+('GOM Scores and Quartiles'!$BF10*'Scenario Weighting'!H$18)) ->  | BM10: =IF(BI10>='Scenario Weighting'!C$24, "75-100%", IF('GOM Scores and Quartiles'!BI10>='Scenario Weighting'!C$23, "50-75%", IF('GOM Scores and Quartiles'!BI10>='Scenario Weighting'!C$22, "25-50%", "0-25%"))) -> 0-25% | BN10: =IF(BJ10="", "", IF(BJ10>='Scenario Weighting'!D$24, "75-100%", IF('GOM Scores and Quartiles'!BJ10>='Scenario Weighting'!D$23, "50-75%", IF('GOM Scores and Quartiles'!BJ10>='Scenario Weighting'!D$22, "25-50%", "0-25%")))) ->  | BO10: =IF(BK10>='Scenario Weighting'!E$24, "75-100%", IF('GOM Scores and Quartiles'!BK10>='Scenario Weighting'!E$23, "50-75%", IF('GOM Scores and Quartiles'!BK10>='Scenario Weighting'!E$22, "25-50%", "0-25%"))) -> 0-25% | BP10: =IF(BL10="", "", IF(BL10>='Scenario Weighting'!F$24, "75-100%", IF('GOM Scores and Quartiles'!BL10>='Scenario Weighting'!F$23, "50-75%", IF('GOM Scores and Quartiles'!BL10>='Scenario Weighting'!F$22, "25-50%", "0-25%")))) -> 
A11: 6 | B11: 36707 | C11: -96.82108464 | D11: 26.0003415 | E11: 1671 | F11: 70.43048359 | G11: 860 | H11: 54.00276216 | I11: 286 | J11: 140.73833 | K11: 0 | L11: 0 | M11: 0 | N11: 0 | O11: 1 | P11: 0 | Q11: 1 | R11: 1 | S11: 1 | T11: 0 | U11: 0 | V11: 0 | W11: 0 | X11: 0 | Y11: 0 | Z11: 0 | AA11: 0 | AB11: 3 | AC11: 5 | AD11: 31.9 | AE11: 2932.66 | AF11: 2739 | AG11: 730.58 | AH11: 146.116 | AI11: 0 | AJ11: 0 | AK11: 0 | AL11: 16089607.61 | AM11: 29958 | AN11: 5991.6 | AO11: 7.718238994 | AP11: 0 | AQ11: 0 | AR11: 0 | AS11: 0 | AT11: 0 | AU11: 0 | AV11: 0 | AW11: 56.58240605 | AX11: 100 | AY11: 64.77046073 | AZ11: 64.81473496 | BA11: 64.77046073 | BB11: 64.81473496 | BC11: 0 | BD11: 100 | BE11: 100 | BF11: 0 | BG11: 9.127139682 | BH11: 12.39582505 | BI11: =($BG11*'Scenario Weighting'!E$3)+('GOM Scores and Quartiles'!$BH11*'Scenario Weighting'!E$4)+('GOM Scores and Quartiles'!$AP11*'Scenario Weighting'!E$5)+('GOM Scores and Quartiles'!$AQ11*'Scenario Weighting'!E$6)+('GOM Scores and Quartiles'!$AR11*'Scenario Weighting'!E$7)+('GOM Scores and Quartiles'!$AS11*'Scenario Weighting'!E$12)+('GOM Scores and Quartiles'!$AT11*'Scenario Weighting'!E$8)+('GOM Scores and Quartiles'!$AU11*'Scenario Weighting'!E$9)+('GOM Scores and Quartiles'!$AV11*'Scenario Weighting'!E$10)+('GOM Scores and Quartiles'!$AW11*'Scenario Weighting'!E$11)+('GOM Scores and Quartiles'!$AX11*'Scenario Weighting'!E$13)+('GOM Scores and Quartiles'!$AZ11*'Scenario Weighting'!E$14)+('GOM Scores and Quartiles'!$BB11*'Scenario Weighting'!E$15)+('GOM Scores and Quartiles'!$BC11*'Scenario Weighting'!E$16)+('GOM Scores and Quartiles'!$BE11*'Scenario Weighting'!E$17)+('GOM Scores and Quartiles'!$BF11*'Scenario Weighting'!E$18) -> 33.3311058 | BJ11: =IF(AR11=0, "", ($BG11*'Scenario Weighting'!F$3)+('GOM Scores and Quartiles'!$BH11*'Scenario Weighting'!F$4)+('GOM Scores and Quartiles'!$AP11*'Scenario Weighting'!F$5)+('GOM Scores and Quartiles'!$AQ11*'Scenario Weighting'!F$6)+('GOM Scores and Quartiles'!$AR11*'Scenario Weighting'!F$7)+('GOM Scores and Quartiles'!$AS11*'Scenario Weighting'!F$12)+('GOM Scores and Quartiles'!$AT11*'Scenario Weighting'!F$8)+('GOM Scores and Quartiles'!$AU11*'Scenario Weighting'!F$9)+('GOM Scores and Quartiles'!$AV11*'Scenario Weighting'!F$10)+('GOM Scores and Quartiles'!$AW11*'Scenario Weighting'!F$11)+('GOM Scores and Quartiles'!$AX11*'Scenario Weighting'!F$13)+('GOM Scores and Quartiles'!$AZ11*'Scenario Weighting'!F$14)+('GOM Scores and Quartiles'!$BB11*'Scenario Weighting'!F$15)+('GOM Scores and Quartiles'!$BC11*'Scenario Weighting'!F$16)+('GOM Scores and Quartiles'!$BE11*'Scenario Weighting'!F$17)+('GOM Scores and Quartiles'!$BF11*'Scenario Weighting'!F$18)) ->  | BK11: =('GOM Scores and Quartiles'!$BG11*0.12)+('GOM Scores and Quartiles'!$BH11*0.12)+('GOM Scores and Quartiles'!$AS11*0.2)+('GOM Scores and Quartiles'!$AT11*0.05)+('GOM Scores and Quartiles'!$AU11*0.1)+('GOM Scores and Quartiles'!$AV11*0.2)+('GOM Scores and Quartiles'!$AW11*0.1)+('GOM Scores and Quartiles'!$BE11*0.07)+('GOM Scores and Quartiles'!$BF11*0.04) -> 15.24099637 | BL11: =IF(AR11=0, "", ($BG11*'Scenario Weighting'!H$3)+('GOM Scores and Quartiles'!$BH11*'Scenario Weighting'!H$4)+('GOM Scores and Quartiles'!$AP11*'Scenario Weighting'!H$5)+('GOM Scores and Quartiles'!$AQ11*'Scenario Weighting'!H$6)+('GOM Scores and Quartiles'!$AR11*'Scenario Weighting'!H$7)+('GOM Scores and Quartiles'!$AS11*'Scenario Weighting'!H$12)+('GOM Scores and Quartiles'!$AT11*'Scenario Weighting'!H$8)+('GOM Scores and Quartiles'!$AU11*'Scenario Weighting'!H$9)+('GOM Scores and Quartiles'!$AV11*'Scenario Weighting'!H$10)+('GOM Scores and Quartiles'!$AW11*'Scenario Weighting'!H$11)+('GOM Scores and Quartiles'!$AX11*'Scenario Weighting'!H$13)+('GOM Scores and Quartiles'!$AZ11*'Scenario Weighting'!H$14)+('GOM Scores and Quartiles'!$BB11*'Scenario Weighting'!H$15)+('GOM Scores and Quartiles'!$BC11*'Scenario Weighting'!H$16)+('GOM Scores and Quartiles'!$BE11*'Scenario Weighting'!H$17)+('GOM Scores and Quartiles'!$BF11*'Scenario Weighting'!H$18)) ->  | BM11: =IF(BI11>='Scenario Weighting'!C$24, "75-100%", IF('GOM Scores and Quartiles'!BI11>='Scenario Weighting'!C$23, "50-75%", IF('GOM Scores and Quartiles'!BI11>='Scenario Weighting'!C$22, "25-50%", "0-25%"))) -> 0-25% | BN11: =IF(BJ11="", "", IF(BJ11>='Scenario Weighting'!D$24, "75-100%", IF('GOM Scores and Quartiles'!BJ11>='Scenario Weighting'!D$23, "50-75%", IF('GOM Scores and Quartiles'!BJ11>='Scenario Weighting'!D$22, "25-50%", "0-25%")))) ->  | BO11: =IF(BK11>='Scenario Weighting'!E$24, "75-100%", IF('GOM Scores and Quartiles'!BK11>='Scenario Weighting'!E$23, "50-75%", IF('GOM Scores and Quartiles'!BK11>='Scenario Weighting'!E$22, "25-50%", "0-25%"))) -> 0-25% | BP11: =IF(BL11="", "", IF(BL11>='Scenario Weighting'!F$24, "75-100%", IF('GOM Scores and Quartiles'!BL11>='Scenario Weighting'!F$23, "50-75%", IF('GOM Scores and Quartiles'!BL11>='Scenario Weighting'!F$22, "25-50%", "0-25%")))) -> 
A12: 7 | B12: 36710 | C12: -96.7496004 | D12: 26.0003415 | E12: 1671 | F12: 77.53107498 | G12: 860 | H12: 61.15369224 | I12: 286 | J12: 147.5584622 | K12: 0 | L12: 0 | M12: 0 | N12: 0 | O12: 0 | P12: 0 | Q12: 1 | R12: 1 | S12: 0 | T12: 0 | U12: 0 | V12: 0 | W12: 0 | X12: 0 | Y12: 0 | Z12: 0 | AA12: 0 | AB12: 1 | AC12: 4 | AD12: 24.77 | AE12: 2236.34 | AF12: 2102 | AG12: 708.18 | AH12: 177.045 | AI12: 0 | AJ12: 0 | AK12: 0 | AL12: 13795828.89 | AM12: 17431 | AN12: 4357.75 | AO12: 5.924528302 | AP12: 0 | AQ12: 0 | AR12: 0 | AS12: 0 | AT12: 0 | AU12: 0 | AV12: 0 | AW12: 59.36044072 | AX12: 100 | AY12: 84.96971071 | AZ12: 55.28844673 | BA12: 84.96971071 | BB12: 55.28844673 | BC12: 0 | BD12: 100 | BE12: 100 | BF12: 100 | BG12: 6.792188618 | BH12: 10.47600072 | BI12: =($BG12*'Scenario Weighting'!E$3)+('GOM Scores and Quartiles'!$BH12*'Scenario Weighting'!E$4)+('GOM Scores and Quartiles'!$AP12*'Scenario Weighting'!E$5)+('GOM Scores and Quartiles'!$AQ12*'Scenario Weighting'!E$6)+('GOM Scores and Quartiles'!$AR12*'Scenario Weighting'!E$7)+('GOM Scores and Quartiles'!$AS12*'Scenario Weighting'!E$12)+('GOM Scores and Quartiles'!$AT12*'Scenario Weighting'!E$8)+('GOM Scores and Quartiles'!$AU12*'Scenario Weighting'!E$9)+('GOM Scores and Quartiles'!$AV12*'Scenario Weighting'!E$10)+('GOM Scores and Quartiles'!$AW12*'Scenario Weighting'!E$11)+('GOM Scores and Quartiles'!$AX12*'Scenario Weighting'!E$13)+('GOM Scores and Quartiles'!$AZ12*'Scenario Weighting'!E$14)+('GOM Scores and Quartiles'!$BB12*'Scenario Weighting'!E$15)+('GOM Scores and Quartiles'!$BC12*'Scenario Weighting'!E$16)+('GOM Scores and Quartiles'!$BE12*'Scenario Weighting'!E$17)+('GOM Scores and Quartiles'!$BF12*'Scenario Weighting'!E$18) -> 35.11280649 | BJ12: =IF(AR12=0, "", ($BG12*'Scenario Weighting'!F$3)+('GOM Scores and Quartiles'!$BH12*'Scenario Weighting'!F$4)+('GOM Scores and Quartiles'!$AP12*'Scenario Weighting'!F$5)+('GOM Scores and Quartiles'!$AQ12*'Scenario Weighting'!F$6)+('GOM Scores and Quartiles'!$AR12*'Scenario Weighting'!F$7)+('GOM Scores and Quartiles'!$AS12*'Scenario Weighting'!F$12)+('GOM Scores and Quartiles'!$AT12*'Scenario Weighting'!F$8)+('GOM Scores and Quartiles'!$AU12*'Scenario Weighting'!F$9)+('GOM Scores and Quartiles'!$AV12*'Scenario Weighting'!F$10)+('GOM Scores and Quartiles'!$AW12*'Scenario Weighting'!F$11)+('GOM Scores and Quartiles'!$AX12*'Scenario Weighting'!F$13)+('GOM Scores and Quartiles'!$AZ12*'Scenario Weighting'!F$14)+('GOM Scores and Quartiles'!$BB12*'Scenario Weighting'!F$15)+('GOM Scores and Quartiles'!$BC12*'Scenario Weighting'!F$16)+('GOM Scores and Quartiles'!$BE12*'Scenario Weighting'!F$17)+('GOM Scores and Quartiles'!$BF12*'Scenario Weighting'!F$18)) ->  | BK12: =('GOM Scores and Quartiles'!$BG12*0.12)+('GOM Scores and Quartiles'!$BH12*0.12)+('GOM Scores and Quartiles'!$AS12*0.2)+('GOM Scores and Quartiles'!$AT12*0.05)+('GOM Scores and Quartiles'!$AU12*0.1)+('GOM Scores and Quartiles'!$AV12*0.2)+('GOM Scores and Quartiles'!$AW12*0.1)+('GOM Scores and Quartiles'!$BE12*0.07)+('GOM Scores and Quartiles'!$BF12*0.04) -> 19.00822679 | BL12: =IF(AR12=0, "", ($BG12*'Scenario Weighting'!H$3)+('GOM Scores and Quartiles'!$BH12*'Scenario Weighting'!H$4)+('GOM Scores and Quartiles'!$AP12*'Scenario Weighting'!H$5)+('GOM Scores and Quartiles'!$AQ12*'Scenario Weighting'!H$6)+('GOM Scores and Quartiles'!$AR12*'Scenario Weighting'!H$7)+('GOM Scores and Quartiles'!$AS12*'Scenario Weighting'!H$12)+('GOM Scores and Quartiles'!$AT12*'Scenario Weighting'!H$8)+('GOM Scores and Quartiles'!$AU12*'Scenario Weighting'!H$9)+('GOM Scores and Quartiles'!$AV12*'Scenario Weighting'!H$10)+('GOM Scores and Quartiles'!$AW12*'Scenario Weighting'!H$11)+('GOM Scores and Quartiles'!$AX12*'Scenario Weighting'!H$13)+('GOM Scores and Quartiles'!$AZ12*'Scenario Weighting'!H$14)+('GOM Scores and Quartiles'!$BB12*'Scenario Weighting'!H$15)+('GOM Scores and Quartiles'!$BC12*'Scenario Weighting'!H$16)+('GOM Scores and Quartiles'!$BE12*'Scenario Weighting'!H$17)+('GOM Scores and Quartiles'!$BF12*'Scenario Weighting'!H$18)) ->  | BM12: =IF(BI12>='Scenario Weighting'!C$24, "75-100%", IF('GOM Scores and Quartiles'!BI12>='Scenario Weighting'!C$23, "50-75%", IF('GOM Scores and Quartiles'!BI12>='Scenario Weighting'!C$22, "25-50%", "0-25%"))) -> 0-25% | BN12: =IF(BJ12="", "", IF(BJ12>='Scenario Weighting'!D$24, "75-100%", IF('GOM Scores and Quartiles'!BJ12>='Scenario Weighting'!D$23, "50-75%", IF('GOM Scores and Quartiles'!BJ12>='Scenario Weighting'!D$22, "25-50%", "0-25%")))) ->  | BO12: =IF(BK12>='Scenario Weighting'!E$24, "75-100%", IF('GOM Scores and Quartiles'!BK12>='Scenario Weighting'!E$23, "50-75%", IF('GOM Scores and Quartiles'!BK12>='Scenario Weighting'!E$22, "25-50%", "0-25%"))) -> 0-25% | BP12: =IF(BL12="", "", IF(BL12>='Scenario Weighting'!F$24, "75-100%", IF('GOM Scores and Quartiles'!BL12>='Scenario Weighting'!F$23, "50-75%", IF('GOM Scores and Quartiles'!BL12>='Scenario Weighting'!F$22, "25-50%", "0-25%")))) -> 
A13: 8 | B13: 36711 | C13: -96.67811615 | D13: 26.0003415 | E13: 1671 | F13: 84.63972033 | G13: 860 | H13: 68.30646439 | I13: 286 | J13: 154.4079613 | K13: 0 | L13: 0 | M13: 0 | N13: 0 | O13: 1 | P13: 0 | Q13: 1 | R13: 1 | S13: 1 | T13: 0 | U13: 0 | V13: 0 | W13: 0 | X13: 0 | Y13: 0 | Z13: 0 | AA13: 0 | AB13: 1 | AC13: 4 | AD13: 24.77 | AE13: 2236.34 | AF13: 2102 | AG13: 708.18 | AH13: 177.045 | AI13: 0 | AJ13: 0 | AK13: 0 | AL13: 13795828.89 | AM13: 17431 | AN13: 4357.75 | AO13: 5.924528302 | AP13: 0 | AQ13: 0 | AR13: 0 | AS13: 0 | AT13: 0 | AU13: 0 | AV13: 0 | AW13: 62.15043738 | AX13: 100 | AY13: 84.96971071 | AZ13: 55.28844673 | BA13: 84.96971071 | BB13: 55.28844673 | BC13: 0 | BD13: 100 | BE13: 100 | BF13: 0 | BG13: 6.792188618 | BH13: 10.47600072 | BI13: =($BG13*'Scenario Weighting'!E$3)+('GOM Scores and Quartiles'!$BH13*'Scenario Weighting'!E$4)+('GOM Scores and Quartiles'!$AP13*'Scenario Weighting'!E$5)+('GOM Scores and Quartiles'!$AQ13*'Scenario Weighting'!E$6)+('GOM Scores and Quartiles'!$AR13*'Scenario Weighting'!E$7)+('GOM Scores and Quartiles'!$AS13*'Scenario Weighting'!E$12)+('GOM Scores and Quartiles'!$AT13*'Scenario Weighting'!E$8)+('GOM Scores and Quartiles'!$AU13*'Scenario Weighting'!E$9)+('GOM Scores and Quartiles'!$AV13*'Scenario Weighting'!E$10)+('GOM Scores and Quartiles'!$AW13*'Scenario Weighting'!E$11)+('GOM Scores and Quartiles'!$AX13*'Scenario Weighting'!E$13)+('GOM Scores and Quartiles'!$AZ13*'Scenario Weighting'!E$14)+('GOM Scores and Quartiles'!$BB13*'Scenario Weighting'!E$15)+('GOM Scores and Quartiles'!$BC13*'Scenario Weighting'!E$16)+('GOM Scores and Quartiles'!$BE13*'Scenario Weighting'!E$17)+('GOM Scores and Quartiles'!$BF13*'Scenario Weighting'!E$18) -> 30.39180616 | BJ13: =IF(AR13=0, "", ($BG13*'Scenario Weighting'!F$3)+('GOM Scores and Quartiles'!$BH13*'Scenario Weighting'!F$4)+('GOM Scores and Quartiles'!$AP13*'Scenario Weighting'!F$5)+('GOM Scores and Quartiles'!$AQ13*'Scenario Weighting'!F$6)+('GOM Scores and Quartiles'!$AR13*'Scenario Weighting'!F$7)+('GOM Scores and Quartiles'!$AS13*'Scenario Weighting'!F$12)+('GOM Scores and Quartiles'!$AT13*'Scenario Weighting'!F$8)+('GOM Scores and Quartiles'!$AU13*'Scenario Weighting'!F$9)+('GOM Scores and Quartiles'!$AV13*'Scenario Weighting'!F$10)+('GOM Scores and Quartiles'!$AW13*'Scenario Weighting'!F$11)+('GOM Scores and Quartiles'!$AX13*'Scenario Weighting'!F$13)+('GOM Scores and Quartiles'!$AZ13*'Scenario Weighting'!F$14)+('GOM Scores and Quartiles'!$BB13*'Scenario Weighting'!F$15)+('GOM Scores and Quartiles'!$BC13*'Scenario Weighting'!F$16)+('GOM Scores and Quartiles'!$BE13*'Scenario Weighting'!F$17)+('GOM Scores and Quartiles'!$BF13*'Scenario Weighting'!F$18)) ->  | BK13: =('GOM Scores and Quartiles'!$BG13*0.12)+('GOM Scores and Quartiles'!$BH13*0.12)+('GOM Scores and Quartiles'!$AS13*0.2)+('GOM Scores and Quartiles'!$AT13*0.05)+('GOM Scores and Quartiles'!$AU13*0.1)+('GOM Scores and Quartiles'!$AV13*0.2)+('GOM Scores and Quartiles'!$AW13*0.1)+('GOM Scores and Quartiles'!$BE13*0.07)+('GOM Scores and Quartiles'!$BF13*0.04) -> 15.28722646 | BL13: =IF(AR13=0, "", ($BG13*'Scenario Weighting'!H$3)+('GOM Scores and Quartiles'!$BH13*'Scenario Weighting'!H$4)+('GOM Scores and Quartiles'!$AP13*'Scenario Weighting'!H$5)+('GOM Scores and Quartiles'!$AQ13*'Scenario Weighting'!H$6)+('GOM Scores and Quartiles'!$AR13*'Scenario Weighting'!H$7)+('GOM Scores and Quartiles'!$AS13*'Scenario Weighting'!H$12)+('GOM Scores and Quartiles'!$AT13*'Scenario Weighting'!H$8)+('GOM Scores and Quartiles'!$AU13*'Scenario Weighting'!H$9)+('GOM Scores and Quartiles'!$AV13*'Scenario Weighting'!H$10)+('GOM Scores and Quartiles'!$AW13*'Scenario Weighting'!H$11)+('GOM Scores and Quartiles'!$AX13*'Scenario Weighting'!H$13)+('GOM Scores and Quartiles'!$AZ13*'Scenario Weighting'!H$14)+('GOM Scores and Quartiles'!$BB13*'Scenario Weighting'!H$15)+('GOM Scores and Quartiles'!$BC13*'Scenario Weighting'!H$16)+('GOM Scores and Quartiles'!$BE13*'Scenario Weighting'!H$17)+('GOM Scores and Quartiles'!$BF13*'Scenario Weighting'!H$18)) ->  | BM13: =IF(BI13>='Scenario Weighting'!C$24, "75-100%", IF('GOM Scores and Quartiles'!BI13>='Scenario Weighting'!C$23, "50-75%", IF('GOM Scores and Quartiles'!BI13>='Scenario Weighting'!C$22, "25-50%", "0-25%"))) -> 0-25% | BN13: =IF(BJ13="", "", IF(BJ13>='Scenario Weighting'!D$24, "75-100%", IF('GOM Scores and Quartiles'!BJ13>='Scenario Weighting'!D$23, "50-75%", IF('GOM Scores and Quartiles'!BJ13>='Scenario Weighting'!D$22, "25-50%", "0-25%")))) ->  | BO13: =IF(BK13>='Scenario Weighting'!E$24, "75-100%", IF('GOM Scores and Quartiles'!BK13>='Scenario Weighting'!E$23, "50-75%", IF('GOM Scores and Quartiles'!BK13>='Scenario Weighting'!E$22, "25-50%", "0-25%"))) -> 0-25% | BP13: =IF(BL13="", "", IF(BL13>='Scenario Weighting'!F$24, "75-100%", IF('GOM Scores and Quartiles'!BL13>='Scenario Weighting'!F$23, "50-75%", IF('GOM Scores and Quartiles'!BL13>='Scenario Weighting'!F$22, "25-50%", "0-25%")))) -> 
A14: 9 | B14: 36712 | C14: -96.89256889 | D14: 26.07182575 | E14: 1671 | F14: 64.69272284 | G14: 860 | H14: 47.97806624 | I14: 286 | J14: 131.5892603 | K14: 0 | L14: 0 | M14: 0 | N14: 0 | O14: 0 | P14: 0 | Q14: 1 | R14: 1 | S14: 0 | T14: 0 | U14: 1 | V14: 0 | W14: 0 | X14: 0 | Y14: 0 | Z14: 0 | AA14: 0 | AB14: 3 | AC14: 5 | AD14: 31.9 | AE14: 2932.66 | AF14: 2739 | AG14: 730.58 | AH14: 146.116 | AI14: 0 | AJ14: 0 | AK14: 0 | AL14: 16089607.61 | AM14: 29958 | AN14: 5991.6 | AO14: 7.718238994 | AP14: 0 | AQ14: 0 | AR14: 0 | AS14: 0 | AT14: 0 | AU14: 0 | AV14: 0 | AW14: 52.85572858 | AX14: 100 | AY14: 64.77046073 | AZ14: 64.81473496 | BA14: 64.77046073 | BB14: 64.81473496 | BC14: 0 | BD14: 100 | BE14: 99.57983193 | BF14: 100 | BG14: 9.127139682 | BH14: 12.39582505 | BI14: =($BG14*'Scenario Weighting'!E$3)+('GOM Scores and Quartiles'!$BH14*'Scenario Weighting'!E$4)+('GOM Scores and Quartiles'!$AP14*'Scenario Weighting'!E$5)+('GOM Scores and Quartiles'!$AQ14*'Scenario Weighting'!E$6)+('GOM Scores and Quartiles'!$AR14*'Scenario Weighting'!E$7)+('GOM Scores and Quartiles'!$AS14*'Scenario Weighting'!E$12)+('GOM Scores and Quartiles'!$AT14*'Scenario Weighting'!E$8)+('GOM Scores and Quartiles'!$AU14*'Scenario Weighting'!E$9)+('GOM Scores and Quartiles'!$AV14*'Scenario Weighting'!E$10)+('GOM Scores and Quartiles'!$AW14*'Scenario Weighting'!E$11)+('GOM Scores and Quartiles'!$AX14*'Scenario Weighting'!E$13)+('GOM Scores and Quartiles'!$AZ14*'Scenario Weighting'!E$14)+('GOM Scores and Quartiles'!$BB14*'Scenario Weighting'!E$15)+('GOM Scores and Quartiles'!$BC14*'Scenario Weighting'!E$16)+('GOM Scores and Quartiles'!$BE14*'Scenario Weighting'!E$17)+('GOM Scores and Quartiles'!$BF14*'Scenario Weighting'!E$18) -> 37.95003469 | BJ14: =IF(AR14=0, "", ($BG14*'Scenario Weighting'!F$3)+('GOM Scores and Quartiles'!$BH14*'Scenario Weighting'!F$4)+('GOM Scores and Quartiles'!$AP14*'Scenario Weighting'!F$5)+('GOM Scores and Quartiles'!$AQ14*'Scenario Weighting'!F$6)+('GOM Scores and Quartiles'!$AR14*'Scenario Weighting'!F$7)+('GOM Scores and Quartiles'!$AS14*'Scenario Weighting'!F$12)+('GOM Scores and Quartiles'!$AT14*'Scenario Weighting'!F$8)+('GOM Scores and Quartiles'!$AU14*'Scenario Weighting'!F$9)+('GOM Scores and Quartiles'!$AV14*'Scenario Weighting'!F$10)+('GOM Scores and Quartiles'!$AW14*'Scenario Weighting'!F$11)+('GOM Scores and Quartiles'!$AX14*'Scenario Weighting'!F$13)+('GOM Scores and Quartiles'!$AZ14*'Scenario Weighting'!F$14)+('GOM Scores and Quartiles'!$BB14*'Scenario Weighting'!F$15)+('GOM Scores and Quartiles'!$BC14*'Scenario Weighting'!F$16)+('GOM Scores and Quartiles'!$BE14*'Scenario Weighting'!F$17)+('GOM Scores and Quartiles'!$BF14*'Scenario Weighting'!F$18)) ->  | BK14: =('GOM Scores and Quartiles'!$BG14*0.12)+('GOM Scores and Quartiles'!$BH14*0.12)+('GOM Scores and Quartiles'!$AS14*0.2)+('GOM Scores and Quartiles'!$AT14*0.05)+('GOM Scores and Quartiles'!$AU14*0.1)+('GOM Scores and Quartiles'!$AV14*0.2)+('GOM Scores and Quartiles'!$AW14*0.1)+('GOM Scores and Quartiles'!$BE14*0.07)+('GOM Scores and Quartiles'!$BF14*0.04) -> 18.83891686 | BL14: =IF(AR14=0, "", ($BG14*'Scenario Weighting'!H$3)+('GOM Scores and Quartiles'!$BH14*'Scenario Weighting'!H$4)+('GOM Scores and Quartiles'!$AP14*'Scenario Weighting'!H$5)+('GOM Scores and Quartiles'!$AQ14*'Scenario Weighting'!H$6)+('GOM Scores and Quartiles'!$AR14*'Scenario Weighting'!H$7)+('GOM Scores and Quartiles'!$AS14*'Scenario Weighting'!H$12)+('GOM Scores and Quartiles'!$AT14*'Scenario Weighting'!H$8)+('GOM Scores and Quartiles'!$AU14*'Scenario Weighting'!H$9)+('GOM Scores and Quartiles'!$AV14*'Scenario Weighting'!H$10)+('GOM Scores and Quartiles'!$AW14*'Scenario Weighting'!H$11)+('GOM Scores and Quartiles'!$AX14*'Scenario Weighting'!H$13)+('GOM Scores and Quartiles'!$AZ14*'Scenario Weighting'!H$14)+('GOM Scores and Quartiles'!$BB14*'Scenario Weighting'!H$15)+('GOM Scores and Quartiles'!$BC14*'Scenario Weighting'!H$16)+('GOM Scores and Quartiles'!$BE14*'Scenario Weighting'!H$17)+('GOM Scores and Quartiles'!$BF14*'Scenario Weighting'!H$18)) ->  | BM14: =IF(BI14>='Scenario Weighting'!C$24, "75-100%", IF('GOM Scores and Quartiles'!BI14>='Scenario Weighting'!C$23, "50-75%", IF('GOM Scores and Quartiles'!BI14>='Scenario Weighting'!C$22, "25-50%", "0-25%"))) -> 0-25% | BN14: =IF(BJ14="", "", IF(BJ14>='Scenario Weighting'!D$24, "75-100%", IF('GOM Scores and Quartiles'!BJ14>='Scenario Weighting'!D$23, "50-75%", IF('GOM Scores and Quartiles'!BJ14>='Scenario Weighting'!D$22, "25-50%", "0-25%")))) ->  | BO14: =IF(BK14>='Scenario Weighting'!E$24, "75-100%", IF('GOM Scores and Quartiles'!BK14>='Scenario Weighting'!E$23, "50-75%", IF('GOM Scores and Quartiles'!BK14>='Scenario Weighting'!E$22, "25-50%", "0-25%"))) -> 0-25% | BP14: =IF(BL14="", "", IF(BL14>='Scenario Weighting'!F$24, "75-100%", IF('GOM Scores and Quartiles'!BL14>='Scenario Weighting'!F$23, "50-75%", IF('GOM Scores and Quartiles'!BL14>='Scenario Weighting'!F$22, "25-50%", "0-25%")))) -> 
A15: 10 | B15: 36713 | C15: -96.82108464 | D15: 26.07182575 | E15: 1671 | F15: 71.648888 | G15: 860 | H15: 54.97646048 | I15: 286 | J15: 138.4872724 | K15: 0 | L15: 0 | M15: 0 | N15: 0 | O15: 1 | P15: 0 | Q15: 1 | R15: 1 | S15: 1 | T15: 0 | U15: 1 | V15: 0 | W15: 0 | X15: 0 | Y15: 0 | Z15: 0 | AA15: 0 | AB15: 3 | AC15: 5 | AD15: 31.9 | AE15: 2932.66 | AF15: 2739 | AG15: 730.58 | AH15: 146.116 | AI15: 0 | AJ15: 0 | AK15: 0 | AL15: 16089607.61 | AM15: 29958 | AN15: 5991.6 | AO15: 7.718238994 | AP15: 0 | AQ15: 0 | AR15: 0 | AS15: 0 | AT15: 0 | AU15: 0 | AV15: 0 | AW15: 55.66548595 | AX15: 100 | AY15: 64.77046073 | AZ15: 64.81473496 | BA15: 64.77046073 | BB15: 64.81473496 | BC15: 0 | BD15: 100 | BE15: 99.57983193 | BF15: 0 | BG15: 9.127139682 | BH15: 12.39582505 | BI15: =($BG15*'Scenario Weighting'!E$3)+('GOM Scores and Quartiles'!$BH15*'Scenario Weighting'!E$4)+('GOM Scores and Quartiles'!$AP15*'Scenario Weighting'!E$5)+('GOM Scores and Quartiles'!$AQ15*'Scenario Weighting'!E$6)+('GOM Scores and Quartiles'!$AR15*'Scenario Weighting'!E$7)+('GOM Scores and Quartiles'!$AS15*'Scenario Weighting'!E$12)+('GOM Scores and Quartiles'!$AT15*'Scenario Weighting'!E$8)+('GOM Scores and Quartiles'!$AU15*'Scenario Weighting'!E$9)+('GOM Scores and Quartiles'!$AV15*'Scenario Weighting'!E$10)+('GOM Scores and Quartiles'!$AW15*'Scenario Weighting'!E$11)+('GOM Scores and Quartiles'!$AX15*'Scenario Weighting'!E$13)+('GOM Scores and Quartiles'!$AZ15*'Scenario Weighting'!E$14)+('GOM Scores and Quartiles'!$BB15*'Scenario Weighting'!E$15)+('GOM Scores and Quartiles'!$BC15*'Scenario Weighting'!E$16)+('GOM Scores and Quartiles'!$BE15*'Scenario Weighting'!E$17)+('GOM Scores and Quartiles'!$BF15*'Scenario Weighting'!E$18) -> 33.23101043 | BJ15: =IF(AR15=0, "", ($BG15*'Scenario Weighting'!F$3)+('GOM Scores and Quartiles'!$BH15*'Scenario Weighting'!F$4)+('GOM Scores and Quartiles'!$AP15*'Scenario Weighting'!F$5)+('GOM Scores and Quartiles'!$AQ15*'Scenario Weighting'!F$6)+('GOM Scores and Quartiles'!$AR15*'Scenario Weighting'!F$7)+('GOM Scores and Quartiles'!$AS15*'Scenario Weighting'!F$12)+('GOM Scores and Quartiles'!$AT15*'Scenario Weighting'!F$8)+('GOM Scores and Quartiles'!$AU15*'Scenario Weighting'!F$9)+('GOM Scores and Quartiles'!$AV15*'Scenario Weighting'!F$10)+('GOM Scores and Quartiles'!$AW15*'Scenario Weighting'!F$11)+('GOM Scores and Quartiles'!$AX15*'Scenario Weighting'!F$13)+('GOM Scores and Quartiles'!$AZ15*'Scenario Weighting'!F$14)+('GOM Scores and Quartiles'!$BB15*'Scenario Weighting'!F$15)+('GOM Scores and Quartiles'!$BC15*'Scenario Weighting'!F$16)+('GOM Scores and Quartiles'!$BE15*'Scenario Weighting'!F$17)+('GOM Scores and Quartiles'!$BF15*'Scenario Weighting'!F$18)) ->  | BK15: =('GOM Scores and Quartiles'!$BG15*0.12)+('GOM Scores and Quartiles'!$BH15*0.12)+('GOM Scores and Quartiles'!$AS15*0.2)+('GOM Scores and Quartiles'!$AT15*0.05)+('GOM Scores and Quartiles'!$AU15*0.1)+('GOM Scores and Quartiles'!$AV15*0.2)+('GOM Scores and Quartiles'!$AW15*0.1)+('GOM Scores and Quartiles'!$BE15*0.07)+('GOM Scores and Quartiles'!$BF15*0.04) -> 15.1198926 | BL15: =IF(AR15=0, "", ($BG15*'Scenario Weighting'!H$3)+('GOM Scores and Quartiles'!$BH15*'Scenario Weighting'!H$4)+('GOM Scores and Quartiles'!$AP15*'Scenario Weighting'!H$5)+('GOM Scores and Quartiles'!$AQ15*'Scenario Weighting'!H$6)+('GOM Scores and Quartiles'!$AR15*'Scenario Weighting'!H$7)+('GOM Scores and Quartiles'!$AS15*'Scenario Weighting'!H$12)+('GOM Scores and Quartiles'!$AT15*'Scenario Weighting'!H$8)+('GOM Scores and Quartiles'!$AU15*'Scenario Weighting'!H$9)+('GOM Scores and Quartiles'!$AV15*'Scenario Weighting'!H$10)+('GOM Scores and Quartiles'!$AW15*'Scenario Weighting'!H$11)+('GOM Scores and Quartiles'!$AX15*'Scenario Weighting'!H$13)+('GOM Scores and Quartiles'!$AZ15*'Scenario Weighting'!H$14)+('GOM Scores and Quartiles'!$BB15*'Scenario Weighting'!H$15)+('GOM Scores and Quartiles'!$BC15*'Scenario Weighting'!H$16)+('GOM Scores and Quartiles'!$BE15*'Scenario Weighting'!H$17)+('GOM Scores and Quartiles'!$BF15*'Scenario Weighting'!H$18)) ->  | BM15: =IF(BI15>='Scenario Weighting'!C$24, "75-100%", IF('GOM Scores and Quartiles'!BI15>='Scenario Weighting'!C$23, "50-75%", IF('GOM Scores and Quartiles'!BI15>='Scenario Weighting'!C$22, "25-50%", "0-25%"))) -> 0-25% | BN15: =IF(BJ15="", "", IF(BJ15>='Scenario Weighting'!D$24, "75-100%", IF('GOM Scores and Quartiles'!BJ15>='Scenario Weighting'!D$23, "50-75%", IF('GOM Scores and Quartiles'!BJ15>='Scenario Weighting'!D$22, "25-50%", "0-25%")))) ->  | BO15: =IF(BK15>='Scenario Weighting'!E$24, "75-100%", IF('GOM Scores and Quartiles'!BK15>='Scenario Weighting'!E$23, "50-75%", IF('GOM Scores and Quartiles'!BK15>='Scenario Weighting'!E$22, "25-50%", "0-25%"))) -> 0-25% | BP15: =IF(BL15="", "", IF(BL15>='Scenario Weighting'!F$24, "75-100%", IF('GOM Scores and Quartiles'!BL15>='Scenario Weighting'!F$23, "50-75%", IF('GOM Scores and Quartiles'!BL15>='Scenario Weighting'!F$22, "25-50%", "0-25%")))) -> 
A16: 11 | B16: 36714 | C16: -96.89256889 | D16: 26.14330999 | E16: 1671 | F16: 66.78666361 | G16: 860 | H16: 50.33770251 | I16: 286 | J16: 129.6677886 | K16: 0 | L16: 0 | M16: 1 | N16: 1 | O16: 0 | P16: 0 | Q16: 0 | R16: 1 | S16: 0 | T16: 2 | U16: 5 | V16: 0 | W16: 0 | X16: 1 | Y16: 1 | Z16: 0 | AA16: 0 | AB16: 3 | AC16: 5 | AD16: 31.9 | AE16: 2932.66 | AF16: 2739 | AG16: 730.58 | AH16: 146.116 | AI16: 0 | AJ16: 0 | AK16: 0 | AL16: 16089607.61 | AM16: 29958 | AN16: 5991.6 | AO16: 7.718238994 | AP16: 0 | AQ16: 0 | AR16: 0 | AS16: 100 | AT16: 0 | AU16: 20 | AV16: 0 | AW16: 52.07305826 | AX16: 0 | AY16: 64.77046073 | AZ16: 64.81473496 | BA16: 64.77046073 | BB16: 64.81473496 | BC16: 0 | BD16: 99.5505618 | BE16: 97.89915966 | BF16: 100 | BG16: 9.127139682 | BH16: 12.39582505 | BI16: =($BG16*'Scenario Weighting'!E$3)+('GOM Scores and Quartiles'!$BH16*'Scenario Weighting'!E$4)+('GOM Scores and Quartiles'!$AP16*'Scenario Weighting'!E$5)+('GOM Scores and Quartiles'!$AQ16*'Scenario Weighting'!E$6)+('GOM Scores and Quartiles'!$AR16*'Scenario Weighting'!E$7)+('GOM Scores and Quartiles'!$AS16*'Scenario Weighting'!E$12)+('GOM Scores and Quartiles'!$AT16*'Scenario Weighting'!E$8)+('GOM Scores and Quartiles'!$AU16*'Scenario Weighting'!E$9)+('GOM Scores and Quartiles'!$AV16*'Scenario Weighting'!E$10)+('GOM Scores and Quartiles'!$AW16*'Scenario Weighting'!E$11)+('GOM Scores and Quartiles'!$AX16*'Scenario Weighting'!E$13)+('GOM Scores and Quartiles'!$AZ16*'Scenario Weighting'!E$14)+('GOM Scores and Quartiles'!$BB16*'Scenario Weighting'!E$15)+('GOM Scores and Quartiles'!$BC16*'Scenario Weighting'!E$16)+('GOM Scores and Quartiles'!$BE16*'Scenario Weighting'!E$17)+('GOM Scores and Quartiles'!$BF16*'Scenario Weighting'!E$18) -> 54.83815422 | BJ16: =IF(AR16=0, "", ($BG16*'Scenario Weighting'!F$3)+('GOM Scores and Quartiles'!$BH16*'Scenario Weighting'!F$4)+('GOM Scores and Quartiles'!$AP16*'Scenario Weighting'!F$5)+('GOM Scores and Quartiles'!$AQ16*'Scenario Weighting'!F$6)+('GOM Scores and Quartiles'!$AR16*'Scenario Weighting'!F$7)+('GOM Scores and Quartiles'!$AS16*'Scenario Weighting'!F$12)+('GOM Scores and Quartiles'!$AT16*'Scenario Weighting'!F$8)+('GOM Scores and Quartiles'!$AU16*'Scenario Weighting'!F$9)+('GOM Scores and Quartiles'!$AV16*'Scenario Weighting'!F$10)+('GOM Scores and Quartiles'!$AW16*'Scenario Weighting'!F$11)+('GOM Scores and Quartiles'!$AX16*'Scenario Weighting'!F$13)+('GOM Scores and Quartiles'!$AZ16*'Scenario Weighting'!F$14)+('GOM Scores and Quartiles'!$BB16*'Scenario Weighting'!F$15)+('GOM Scores and Quartiles'!$BC16*'Scenario Weighting'!F$16)+('GOM Scores and Quartiles'!$BE16*'Scenario Weighting'!F$17)+('GOM Scores and Quartiles'!$BF16*'Scenario Weighting'!F$18)) ->  | BK16: =('GOM Scores and Quartiles'!$BG16*0.12)+('GOM Scores and Quartiles'!$BH16*0.12)+('GOM Scores and Quartiles'!$AS16*0.2)+('GOM Scores and Quartiles'!$AT16*0.05)+('GOM Scores and Quartiles'!$AU16*0.1)+('GOM Scores and Quartiles'!$AV16*0.2)+('GOM Scores and Quartiles'!$AW16*0.1)+('GOM Scores and Quartiles'!$BE16*0.07)+('GOM Scores and Quartiles'!$BF16*0.04) -> 40.64300277 | BL16: =IF(AR16=0, "", ($BG16*'Scenario Weighting'!H$3)+('GOM Scores and Quartiles'!$BH16*'Scenario Weighting'!H$4)+('GOM Scores and Quartiles'!$AP16*'Scenario Weighting'!H$5)+('GOM Scores and Quartiles'!$AQ16*'Scenario Weighting'!H$6)+('GOM Scores and Quartiles'!$AR16*'Scenario Weighting'!H$7)+('GOM Scores and Quartiles'!$AS16*'Scenario Weighting'!H$12)+('GOM Scores and Quartiles'!$AT16*'Scenario Weighting'!H$8)+('GOM Scores and Quartiles'!$AU16*'Scenario Weighting'!H$9)+('GOM Scores and Quartiles'!$AV16*'Scenario Weighting'!H$10)+('GOM Scores and Quartiles'!$AW16*'Scenario Weighting'!H$11)+('GOM Scores and Quartiles'!$AX16*'Scenario Weighting'!H$13)+('GOM Scores and Quartiles'!$AZ16*'Scenario Weighting'!H$14)+('GOM Scores and Quartiles'!$BB16*'Scenario Weighting'!H$15)+('GOM Scores and Quartiles'!$BC16*'Scenario Weighting'!H$16)+('GOM Scores and Quartiles'!$BE16*'Scenario Weighting'!H$17)+('GOM Scores and Quartiles'!$BF16*'Scenario Weighting'!H$18)) ->  | BM16: =IF(BI16>='Scenario Weighting'!C$24, "75-100%", IF('GOM Scores and Quartiles'!BI16>='Scenario Weighting'!C$23, "50-75%", IF('GOM Scores and Quartiles'!BI16>='Scenario Weighting'!C$22, "25-50%", "0-25%"))) -> 25-50% | BN16: =IF(BJ16="", "", IF(BJ16>='Scenario Weighting'!D$24, "75-100%", IF('GOM Scores and Quartiles'!BJ16>='Scenario Weighting'!D$23, "50-75%", IF('GOM Scores and Quartiles'!BJ16>='Scenario Weighting'!D$22, "25-50%", "0-25%")))) ->  | BO16: =IF(BK16>='Scenario Weighting'!E$24, "75-100%", IF('GOM Scores and Quartiles'!BK16>='Scenario Weighting'!E$23, "50-75%", IF('GOM Scores and Quartiles'!BK16>='Scenario Weighting'!E$22, "25-50%", "0-25%"))) -> 25-50% | BP16: =IF(BL16="", "", IF(BL16>='Scenario Weighting'!F$24, "75-100%", IF('GOM Scores and Quartiles'!BL16>='Scenario Weighting'!F$23, "50-75%", IF('GOM Scores and Quartiles'!BL16>='Scenario Weighting'!F$22, "25-50%", "0-25%")))) -> 
A17: 12 | B17: 36715 | C17: -96.82108464 | D17: 26.14330999 | E17: 1671 | F17: 73.54504197 | G17: 860 | H17: 57.04352742 | I17: 286 | J17: 136.658663 | K17: 0 | L17: 0 | M17: 0 | N17: 0 | O17: 1 | P17: 0 | Q17: 0 | R17: 1 | S17: 1 | T17: 0 | U17: 0 | V17: 0 | W17: 0 | X17: 0 | Y17: 0 | Z17: 0 | AA17: 0 | AB17: 3 | AC17: 5 | AD17: 31.9 | AE17: 2932.66 | AF17: 2739 | AG17: 730.58 | AH17: 146.116 | AI17: 0 | AJ17: 0 | AK17: 0 | AL17: 16089607.61 | AM17: 29958 | AN17: 5991.6 | AO17: 7.718238994 | AP17: 0 | AQ17: 0 | AR17: 0 | AS17: 0 | AT17: 0 | AU17: 0 | AV17: 0 | AW17: 54.92064111 | AX17: 0 | AY17: 64.77046073 | AZ17: 64.81473496 | BA17: 64.77046073 | BB17: 64.81473496 | BC17: 0 | BD17: 100 | BE17: 100 | BF17: 0 | BG17: 9.127139682 | BH17: 12.39582505 | BI17: =($BG17*'Scenario Weighting'!E$3)+('GOM Scores and Quartiles'!$BH17*'Scenario Weighting'!E$4)+('GOM Scores and Quartiles'!$AP17*'Scenario Weighting'!E$5)+('GOM Scores and Quartiles'!$AQ17*'Scenario Weighting'!E$6)+('GOM Scores and Quartiles'!$AR17*'Scenario Weighting'!E$7)+('GOM Scores and Quartiles'!$AS17*'Scenario Weighting'!E$12)+('GOM Scores and Quartiles'!$AT17*'Scenario Weighting'!E$8)+('GOM Scores and Quartiles'!$AU17*'Scenario Weighting'!E$9)+('GOM Scores and Quartiles'!$AV17*'Scenario Weighting'!E$10)+('GOM Scores and Quartiles'!$AW17*'Scenario Weighting'!E$11)+('GOM Scores and Quartiles'!$AX17*'Scenario Weighting'!E$13)+('GOM Scores and Quartiles'!$AZ17*'Scenario Weighting'!E$14)+('GOM Scores and Quartiles'!$BB17*'Scenario Weighting'!E$15)+('GOM Scores and Quartiles'!$BC17*'Scenario Weighting'!E$16)+('GOM Scores and Quartiles'!$BE17*'Scenario Weighting'!E$17)+('GOM Scores and Quartiles'!$BF17*'Scenario Weighting'!E$18) -> 30.16492931 | BJ17: =IF(AR17=0, "", ($BG17*'Scenario Weighting'!F$3)+('GOM Scores and Quartiles'!$BH17*'Scenario Weighting'!F$4)+('GOM Scores and Quartiles'!$AP17*'Scenario Weighting'!F$5)+('GOM Scores and Quartiles'!$AQ17*'Scenario Weighting'!F$6)+('GOM Scores and Quartiles'!$AR17*'Scenario Weighting'!F$7)+('GOM Scores and Quartiles'!$AS17*'Scenario Weighting'!F$12)+('GOM Scores and Quartiles'!$AT17*'Scenario Weighting'!F$8)+('GOM Scores and Quartiles'!$AU17*'Scenario Weighting'!F$9)+('GOM Scores and Quartiles'!$AV17*'Scenario Weighting'!F$10)+('GOM Scores and Quartiles'!$AW17*'Scenario Weighting'!F$11)+('GOM Scores and Quartiles'!$AX17*'Scenario Weighting'!F$13)+('GOM Scores and Quartiles'!$AZ17*'Scenario Weighting'!F$14)+('GOM Scores and Quartiles'!$BB17*'Scenario Weighting'!F$15)+('GOM Scores and Quartiles'!$BC17*'Scenario Weighting'!F$16)+('GOM Scores and Quartiles'!$BE17*'Scenario Weighting'!F$17)+('GOM Scores and Quartiles'!$BF17*'Scenario Weighting'!F$18)) ->  | BK17: =('GOM Scores and Quartiles'!$BG17*0.12)+('GOM Scores and Quartiles'!$BH17*0.12)+('GOM Scores and Quartiles'!$AS17*0.2)+('GOM Scores and Quartiles'!$AT17*0.05)+('GOM Scores and Quartiles'!$AU17*0.1)+('GOM Scores and Quartiles'!$AV17*0.2)+('GOM Scores and Quartiles'!$AW17*0.1)+('GOM Scores and Quartiles'!$BE17*0.07)+('GOM Scores and Quartiles'!$BF17*0.04) -> 15.07481988 | BL17: =IF(AR17=0, "", ($BG17*'Scenario Weighting'!H$3)+('GOM Scores and Quartiles'!$BH17*'Scenario Weighting'!H$4)+('GOM Scores and Quartiles'!$AP17*'Scenario Weighting'!H$5)+('GOM Scores and Quartiles'!$AQ17*'Scenario Weighting'!H$6)+('GOM Scores and Quartiles'!$AR17*'Scenario Weighting'!H$7)+('GOM Scores and Quartiles'!$AS17*'Scenario Weighting'!H$12)+('GOM Scores and Quartiles'!$AT17*'Scenario Weighting'!H$8)+('GOM Scores and Quartiles'!$AU17*'Scenario Weighting'!H$9)+('GOM Scores and Quartiles'!$AV17*'Scenario Weighting'!H$10)+('GOM Scores and Quartiles'!$AW17*'Scenario Weighting'!H$11)+('GOM Scores and Quartiles'!$AX17*'Scenario Weighting'!H$13)+('GOM Scores and Quartiles'!$AZ17*'Scenario Weighting'!H$14)+('GOM Scores and Quartiles'!$BB17*'Scenario Weighting'!H$15)+('GOM Scores and Quartiles'!$BC17*'Scenario Weighting'!H$16)+('GOM Scores and Quartiles'!$BE17*'Scenario Weighting'!H$17)+('GOM Scores and Quartiles'!$BF17*'Scenario Weighting'!H$18)) ->  | BM17: =IF(BI17>='Scenario Weighting'!C$24, "75-100%", IF('GOM Scores and Quartiles'!BI17>='Scenario Weighting'!C$23, "50-75%", IF('GOM Scores and Quartiles'!BI17>='Scenario Weighting'!C$22, "25-50%", "0-25%"))) -> 0-25% | BN17: =IF(BJ17="", "", IF(BJ17>='Scenario Weighting'!D$24, "75-100%", IF('GOM Scores and Quartiles'!BJ17>='Scenario Weighting'!D$23, "50-75%", IF('GOM Scores and Quartiles'!BJ17>='Scenario Weighting'!D$22, "25-50%", "0-25%")))) ->  | BO17: =IF(BK17>='Scenario Weighting'!E$24, "75-100%", IF('GOM Scores and Quartiles'!BK17>='Scenario Weighting'!E$23, "50-75%", IF('GOM Scores and Quartiles'!BK17>='Scenario Weighting'!E$22, "25-50%", "0-25%"))) -> 0-25% | BP17: =IF(BL17="", "", IF(BL17>='Scenario Weighting'!F$24, "75-100%", IF('GOM Scores and Quartiles'!BL17>='Scenario Weighting'!F$23, "50-75%", IF('GOM Scores and Quartiles'!BL17>='Scenario Weighting'!F$22, "25-50%", "0-25%")))) -> 
A18: 13 | B18: 36716 | C18: -96.7496004 | D18: 26.07182575 | E18: 1671 | F18: 78.63954299 | G18: 860 | H18: 62.01120125 | I18: 286 | J18: 145.4089069 | K18: 0 | L18: 0 | M18: 0 | N18: 0 | O18: 0 | P18: 0 | Q18: 1 | R18: 1 | S18: 0 | T18: 0 | U18: 0 | V18: 0 | W18: 0 | X18: 0 | Y18: 0 | Z18: 0 | AA18: 0 | AB18: 1 | AC18: 5 | AD18: 31.9 | AE18: 2932.66 | AF18: 2739 | AG18: 730.58 | AH18: 146.116 | AI18: 0 | AJ18: 0 | AK18: 0 | AL18: 16089607.61 | AM18: 29958 | AN18: 5991.6 | AO18: 7.718238994 | AP18: 0 | AQ18: 0 | AR18: 0 | AS18: 0 | AT18: 0 | AU18: 0 | AV18: 0 | AW18: 58.48486544 | AX18: 100 | AY18: 64.77046073 | AZ18: 64.81473496 | BA18: 64.77046073 | BB18: 64.81473496 | BC18: 0 | BD18: 100 | BE18: 100 | BF18: 100 | BG18: 9.127139682 | BH18: 12.39582505 | BI18: =($BG18*'Scenario Weighting'!E$3)+('GOM Scores and Quartiles'!$BH18*'Scenario Weighting'!E$4)+('GOM Scores and Quartiles'!$AP18*'Scenario Weighting'!E$5)+('GOM Scores and Quartiles'!$AQ18*'Scenario Weighting'!E$6)+('GOM Scores and Quartiles'!$AR18*'Scenario Weighting'!E$7)+('GOM Scores and Quartiles'!$AS18*'Scenario Weighting'!E$12)+('GOM Scores and Quartiles'!$AT18*'Scenario Weighting'!E$8)+('GOM Scores and Quartiles'!$AU18*'Scenario Weighting'!E$9)+('GOM Scores and Quartiles'!$AV18*'Scenario Weighting'!E$10)+('GOM Scores and Quartiles'!$AW18*'Scenario Weighting'!E$11)+('GOM Scores and Quartiles'!$AX18*'Scenario Weighting'!E$13)+('GOM Scores and Quartiles'!$AZ18*'Scenario Weighting'!E$14)+('GOM Scores and Quartiles'!$BB18*'Scenario Weighting'!E$15)+('GOM Scores and Quartiles'!$BC18*'Scenario Weighting'!E$16)+('GOM Scores and Quartiles'!$BE18*'Scenario Weighting'!E$17)+('GOM Scores and Quartiles'!$BF18*'Scenario Weighting'!E$18) -> 38.52135174 | BJ18: =IF(AR18=0, "", ($BG18*'Scenario Weighting'!F$3)+('GOM Scores and Quartiles'!$BH18*'Scenario Weighting'!F$4)+('GOM Scores and Quartiles'!$AP18*'Scenario Weighting'!F$5)+('GOM Scores and Quartiles'!$AQ18*'Scenario Weighting'!F$6)+('GOM Scores and Quartiles'!$AR18*'Scenario Weighting'!F$7)+('GOM Scores and Quartiles'!$AS18*'Scenario Weighting'!F$12)+('GOM Scores and Quartiles'!$AT18*'Scenario Weighting'!F$8)+('GOM Scores and Quartiles'!$AU18*'Scenario Weighting'!F$9)+('GOM Scores and Quartiles'!$AV18*'Scenario Weighting'!F$10)+('GOM Scores and Quartiles'!$AW18*'Scenario Weighting'!F$11)+('GOM Scores and Quartiles'!$AX18*'Scenario Weighting'!F$13)+('GOM Scores and Quartiles'!$AZ18*'Scenario Weighting'!F$14)+('GOM Scores and Quartiles'!$BB18*'Scenario Weighting'!F$15)+('GOM Scores and Quartiles'!$BC18*'Scenario Weighting'!F$16)+('GOM Scores and Quartiles'!$BE18*'Scenario Weighting'!F$17)+('GOM Scores and Quartiles'!$BF18*'Scenario Weighting'!F$18)) ->  | BK18: =('GOM Scores and Quartiles'!$BG18*0.12)+('GOM Scores and Quartiles'!$BH18*0.12)+('GOM Scores and Quartiles'!$AS18*0.2)+('GOM Scores and Quartiles'!$AT18*0.05)+('GOM Scores and Quartiles'!$AU18*0.1)+('GOM Scores and Quartiles'!$AV18*0.2)+('GOM Scores and Quartiles'!$AW18*0.1)+('GOM Scores and Quartiles'!$BE18*0.07)+('GOM Scores and Quartiles'!$BF18*0.04) -> 19.43124231 | BL18: =IF(AR18=0, "", ($BG18*'Scenario Weighting'!H$3)+('GOM Scores and Quartiles'!$BH18*'Scenario Weighting'!H$4)+('GOM Scores and Quartiles'!$AP18*'Scenario Weighting'!H$5)+('GOM Scores and Quartiles'!$AQ18*'Scenario Weighting'!H$6)+('GOM Scores and Quartiles'!$AR18*'Scenario Weighting'!H$7)+('GOM Scores and Quartiles'!$AS18*'Scenario Weighting'!H$12)+('GOM Scores and Quartiles'!$AT18*'Scenario Weighting'!H$8)+('GOM Scores and Quartiles'!$AU18*'Scenario Weighting'!H$9)+('GOM Scores and Quartiles'!$AV18*'Scenario Weighting'!H$10)+('GOM Scores and Quartiles'!$AW18*'Scenario Weighting'!H$11)+('GOM Scores and Quartiles'!$AX18*'Scenario Weighting'!H$13)+('GOM Scores and Quartiles'!$AZ18*'Scenario Weighting'!H$14)+('GOM Scores and Quartiles'!$BB18*'Scenario Weighting'!H$15)+('GOM Scores and Quartiles'!$BC18*'Scenario Weighting'!H$16)+('GOM Scores and Quartiles'!$BE18*'Scenario Weighting'!H$17)+('GOM Scores and Quartiles'!$BF18*'Scenario Weighting'!H$18)) ->  | BM18: =IF(BI18>='Scenario Weighting'!C$24, "75-100%", IF('GOM Scores and Quartiles'!BI18>='Scenario Weighting'!C$23, "50-75%", IF('GOM Scores and Quartiles'!BI18>='Scenario Weighting'!C$22, "25-50%", "0-25%"))) -> 0-25% | BN18: =IF(BJ18="", "", IF(BJ18>='Scenario Weighting'!D$24, "75-100%", IF('GOM Scores and Quartiles'!BJ18>='Scenario Weighting'!D$23, "50-75%", IF('GOM Scores and Quartiles'!BJ18>='Scenario Weighting'!D$22, "25-50%", "0-25%")))) ->  | BO18: =IF(BK18>='Scenario Weighting'!E$24, "75-100%", IF('GOM Scores and Quartiles'!BK18>='Scenario Weighting'!E$23, "50-75%", IF('GOM Scores and Quartiles'!BK18>='Scenario Weighting'!E$22, "25-50%", "0-25%"))) -> 0-25% | BP18: =IF(BL18="", "", IF(BL18>='Scenario Weighting'!F$24, "75-100%", IF('GOM Scores and Quartiles'!BL18>='Scenario Weighting'!F$23, "50-75%", IF('GOM Scores and Quartiles'!BL18>='Scenario Weighting'!F$22, "25-50%", "0-25%")))) -> 
A19: 14 | B19: 36717 | C19: -96.67811615 | D19: 26.07182575 | E19: 1671 | F19: 85.65624548 | G19: 860 | H19: 69.07118223 | I19: 286 | J19: 152.3509442 | K19: 0 | L19: 0 | M19: 0 | N19: 0 | O19: 1 | P19: 0 | Q19: 1 | R19: 1 | S19: 1 | T19: 0 | U19: 0 | V19: 0 | W19: 0 | X19: 0 | Y19: 0 | Z19: 0 | AA19: 0 | AB19: 1 | AC19: 4 | AD19: 24.77 | AE19: 2236.34 | AF19: 2102 | AG19: 708.18 | AH19: 177.045 | AI19: 0 | AJ19: 0 | AK19: 0 | AL19: 13795828.89 | AM19: 17431 | AN19: 4357.75 | AO19: 5.924528302 | AP19: 0 | AQ19: 0 | AR19: 0 | AS19: 0 | AT19: 0 | AU19: 0 | AV19: 0 | AW19: 61.31255553 | AX19: 100 | AY19: 84.96971071 | AZ19: 55.28844673 | BA19: 84.96971071 | BB19: 55.28844673 | BC19: 0 | BD19: 100 | BE19: 100 | BF19: 0 | BG19: 6.792188618 | BH19: 10.47600072 | BI19: =($BG19*'Scenario Weighting'!E$3)+('GOM Scores and Quartiles'!$BH19*'Scenario Weighting'!E$4)+('GOM Scores and Quartiles'!$AP19*'Scenario Weighting'!E$5)+('GOM Scores and Quartiles'!$AQ19*'Scenario Weighting'!E$6)+('GOM Scores and Quartiles'!$AR19*'Scenario Weighting'!E$7)+('GOM Scores and Quartiles'!$AS19*'Scenario Weighting'!E$12)+('GOM Scores and Quartiles'!$AT19*'Scenario Weighting'!E$8)+('GOM Scores and Quartiles'!$AU19*'Scenario Weighting'!E$9)+('GOM Scores and Quartiles'!$AV19*'Scenario Weighting'!E$10)+('GOM Scores and Quartiles'!$AW19*'Scenario Weighting'!E$11)+('GOM Scores and Quartiles'!$AX19*'Scenario Weighting'!E$13)+('GOM Scores and Quartiles'!$AZ19*'Scenario Weighting'!E$14)+('GOM Scores and Quartiles'!$BB19*'Scenario Weighting'!E$15)+('GOM Scores and Quartiles'!$BC19*'Scenario Weighting'!E$16)+('GOM Scores and Quartiles'!$BE19*'Scenario Weighting'!E$17)+('GOM Scores and Quartiles'!$BF19*'Scenario Weighting'!E$18) -> 30.30801797 | BJ19: =IF(AR19=0, "", ($BG19*'Scenario Weighting'!F$3)+('GOM Scores and Quartiles'!$BH19*'Scenario Weighting'!F$4)+('GOM Scores and Quartiles'!$AP19*'Scenario Weighting'!F$5)+('GOM Scores and Quartiles'!$AQ19*'Scenario Weighting'!F$6)+('GOM Scores and Quartiles'!$AR19*'Scenario Weighting'!F$7)+('GOM Scores and Quartiles'!$AS19*'Scenario Weighting'!F$12)+('GOM Scores and Quartiles'!$AT19*'Scenario Weighting'!F$8)+('GOM Scores and Quartiles'!$AU19*'Scenario Weighting'!F$9)+('GOM Scores and Quartiles'!$AV19*'Scenario Weighting'!F$10)+('GOM Scores and Quartiles'!$AW19*'Scenario Weighting'!F$11)+('GOM Scores and Quartiles'!$AX19*'Scenario Weighting'!F$13)+('GOM Scores and Quartiles'!$AZ19*'Scenario Weighting'!F$14)+('GOM Scores and Quartiles'!$BB19*'Scenario Weighting'!F$15)+('GOM Scores and Quartiles'!$BC19*'Scenario Weighting'!F$16)+('GOM Scores and Quartiles'!$BE19*'Scenario Weighting'!F$17)+('GOM Scores and Quartiles'!$BF19*'Scenario Weighting'!F$18)) ->  | BK19: =('GOM Scores and Quartiles'!$BG19*0.12)+('GOM Scores and Quartiles'!$BH19*0.12)+('GOM Scores and Quartiles'!$AS19*0.2)+('GOM Scores and Quartiles'!$AT19*0.05)+('GOM Scores and Quartiles'!$AU19*0.1)+('GOM Scores and Quartiles'!$AV19*0.2)+('GOM Scores and Quartiles'!$AW19*0.1)+('GOM Scores and Quartiles'!$BE19*0.07)+('GOM Scores and Quartiles'!$BF19*0.04) -> 15.20343827 | BL19: =IF(AR19=0, "", ($BG19*'Scenario Weighting'!H$3)+('GOM Scores and Quartiles'!$BH19*'Scenario Weighting'!H$4)+('GOM Scores and Quartiles'!$AP19*'Scenario Weighting'!H$5)+('GOM Scores and Quartiles'!$AQ19*'Scenario Weighting'!H$6)+('GOM Scores and Quartiles'!$AR19*'Scenario Weighting'!H$7)+('GOM Scores and Quartiles'!$AS19*'Scenario Weighting'!H$12)+('GOM Scores and Quartiles'!$AT19*'Scenario Weighting'!H$8)+('GOM Scores and Quartiles'!$AU19*'Scenario Weighting'!H$9)+('GOM Scores and Quartiles'!$AV19*'Scenario Weighting'!H$10)+('GOM Scores and Quartiles'!$AW19*'Scenario Weighting'!H$11)+('GOM Scores and Quartiles'!$AX19*'Scenario Weighting'!H$13)+('GOM Scores and Quartiles'!$AZ19*'Scenario Weighting'!H$14)+('GOM Scores and Quartiles'!$BB19*'Scenario Weighting'!H$15)+('GOM Scores and Quartiles'!$BC19*'Scenario Weighting'!H$16)+('GOM Scores and Quartiles'!$BE19*'Scenario Weighting'!H$17)+('GOM Scores and Quartiles'!$BF19*'Scenario Weighting'!H$18)) ->  | BM19: =IF(BI19>='Scenario Weighting'!C$24, "75-100%", IF('GOM Scores and Quartiles'!BI19>='Scenario Weighting'!C$23, "50-75%", IF('GOM Scores and Quartiles'!BI19>='Scenario Weighting'!C$22, "25-50%", "0-25%"))) -> 0-25% | BN19: =IF(BJ19="", "", IF(BJ19>='Scenario Weighting'!D$24, "75-100%", IF('GOM Scores and Quartiles'!BJ19>='Scenario Weighting'!D$23, "50-75%", IF('GOM Scores and Quartiles'!BJ19>='Scenario Weighting'!D$22, "25-50%", "0-25%")))) ->  | BO19: =IF(BK19>='Scenario Weighting'!E$24, "75-100%", IF('GOM Scores and Quartiles'!BK19>='Scenario Weighting'!E$23, "50-75%", IF('GOM Scores and Quartiles'!BK19>='Scenario Weighting'!E$22, "25-50%", "0-25%"))) -> 0-25% | BP19: =IF(BL19="", "", IF(BL19>='Scenario Weighting'!F$24, "75-100%", IF('GOM Scores and Quartiles'!BL19>='Scenario Weighting'!F$23, "50-75%", IF('GOM Scores and Quartiles'!BL19>='Scenario Weighting'!F$22, "25-50%", "0-25%")))) -> 
A20: 15 | B20: 36718 | C20: -96.7496004 | D20: 26.14330999 | E20: 1671 | F20: 80.37093858 | G20: 860 | H20: 63.84702936 | I20: 286 | J20: 143.6642514 | K20: 0 | L20: 0 | M20: 0 | N20: 0 | O20: 0 | P20: 0 | Q20: 0 | R20: 1 | S20: 0 | T20: 0 | U20: 0 | V20: 0 | W20: 0 | X20: 0 | Y20: 0 | Z20: 0 | AA20: 0 | AB20: 1 | AC20: 5 | AD20: 31.9 | AE20: 2932.66 | AF20: 2739 | AG20: 730.58 | AH20: 146.116 | AI20: 0 | AJ20: 0 | AK20: 0 | AL20: 16089607.61 | AM20: 29958 | AN20: 5991.6 | AO20: 7.718238994 | AP20: 0 | AQ20: 0 | AR20: 0 | AS20: 0 | AT20: 0 | AU20: 0 | AV20: 0 | AW20: 57.77421739 | AX20: 0 | AY20: 64.77046073 | AZ20: 64.81473496 | BA20: 64.77046073 | BB20: 64.81473496 | BC20: 0 | BD20: 100 | BE20: 100 | BF20: 100 | BG20: 9.127139682 | BH20: 12.39582505 | BI20: =($BG20*'Scenario Weighting'!E$3)+('GOM Scores and Quartiles'!$BH20*'Scenario Weighting'!E$4)+('GOM Scores and Quartiles'!$AP20*'Scenario Weighting'!E$5)+('GOM Scores and Quartiles'!$AQ20*'Scenario Weighting'!E$6)+('GOM Scores and Quartiles'!$AR20*'Scenario Weighting'!E$7)+('GOM Scores and Quartiles'!$AS20*'Scenario Weighting'!E$12)+('GOM Scores and Quartiles'!$AT20*'Scenario Weighting'!E$8)+('GOM Scores and Quartiles'!$AU20*'Scenario Weighting'!E$9)+('GOM Scores and Quartiles'!$AV20*'Scenario Weighting'!E$10)+('GOM Scores and Quartiles'!$AW20*'Scenario Weighting'!E$11)+('GOM Scores and Quartiles'!$AX20*'Scenario Weighting'!E$13)+('GOM Scores and Quartiles'!$AZ20*'Scenario Weighting'!E$14)+('GOM Scores and Quartiles'!$BB20*'Scenario Weighting'!E$15)+('GOM Scores and Quartiles'!$BC20*'Scenario Weighting'!E$16)+('GOM Scores and Quartiles'!$BE20*'Scenario Weighting'!E$17)+('GOM Scores and Quartiles'!$BF20*'Scenario Weighting'!E$18) -> 35.45028694 | BJ20: =IF(AR20=0, "", ($BG20*'Scenario Weighting'!F$3)+('GOM Scores and Quartiles'!$BH20*'Scenario Weighting'!F$4)+('GOM Scores and Quartiles'!$AP20*'Scenario Weighting'!F$5)+('GOM Scores and Quartiles'!$AQ20*'Scenario Weighting'!F$6)+('GOM Scores and Quartiles'!$AR20*'Scenario Weighting'!F$7)+('GOM Scores and Quartiles'!$AS20*'Scenario Weighting'!F$12)+('GOM Scores and Quartiles'!$AT20*'Scenario Weighting'!F$8)+('GOM Scores and Quartiles'!$AU20*'Scenario Weighting'!F$9)+('GOM Scores and Quartiles'!$AV20*'Scenario Weighting'!F$10)+('GOM Scores and Quartiles'!$AW20*'Scenario Weighting'!F$11)+('GOM Scores and Quartiles'!$AX20*'Scenario Weighting'!F$13)+('GOM Scores and Quartiles'!$AZ20*'Scenario Weighting'!F$14)+('GOM Scores and Quartiles'!$BB20*'Scenario Weighting'!F$15)+('GOM Scores and Quartiles'!$BC20*'Scenario Weighting'!F$16)+('GOM Scores and Quartiles'!$BE20*'Scenario Weighting'!F$17)+('GOM Scores and Quartiles'!$BF20*'Scenario Weighting'!F$18)) ->  | BK20: =('GOM Scores and Quartiles'!$BG20*0.12)+('GOM Scores and Quartiles'!$BH20*0.12)+('GOM Scores and Quartiles'!$AS20*0.2)+('GOM Scores and Quartiles'!$AT20*0.05)+('GOM Scores and Quartiles'!$AU20*0.1)+('GOM Scores and Quartiles'!$AV20*0.2)+('GOM Scores and Quartiles'!$AW20*0.1)+('GOM Scores and Quartiles'!$BE20*0.07)+('GOM Scores and Quartiles'!$BF20*0.04) -> 19.36017751 | BL20: =IF(AR20=0, "", ($BG20*'Scenario Weighting'!H$3)+('GOM Scores and Quartiles'!$BH20*'Scenario Weighting'!H$4)+('GOM Scores and Quartiles'!$AP20*'Scenario Weighting'!H$5)+('GOM Scores and Quartiles'!$AQ20*'Scenario Weighting'!H$6)+('GOM Scores and Quartiles'!$AR20*'Scenario Weighting'!H$7)+('GOM Scores and Quartiles'!$AS20*'Scenario Weighting'!H$12)+('GOM Scores and Quartiles'!$AT20*'Scenario Weighting'!H$8)+('GOM Scores and Quartiles'!$AU20*'Scenario Weighting'!H$9)+('GOM Scores and Quartiles'!$AV20*'Scenario Weighting'!H$10)+('GOM Scores and Quartiles'!$AW20*'Scenario Weighting'!H$11)+('GOM Scores and Quartiles'!$AX20*'Scenario Weighting'!H$13)+('GOM Scores and Quartiles'!$AZ20*'Scenario Weighting'!H$14)+('GOM Scores and Quartiles'!$BB20*'Scenario Weighting'!H$15)+('GOM Scores and Quartiles'!$BC20*'Scenario Weighting'!H$16)+('GOM Scores and Quartiles'!$BE20*'Scenario Weighting'!H$17)+('GOM Scores and Quartiles'!$BF20*'Scenario Weighting'!H$18)) ->  | BM20: =IF(BI20>='Scenario Weighting'!C$24, "75-100%", IF('GOM Scores and Quartiles'!BI20>='Scenario Weighting'!C$23, "50-75%", IF('GOM Scores and Quartiles'!BI20>='Scenario Weighting'!C$22, "25-50%", "0-25%"))) -> 0-25% | BN20: =IF(BJ20="", "", IF(BJ20>='Scenario Weighting'!D$24, "75-100%", IF('GOM Scores and Quartiles'!BJ20>='Scenario Weighting'!D$23, "50-75%", IF('GOM Scores and Quartiles'!BJ20>='Scenario Weighting'!D$22, "25-50%", "0-25%")))) ->  | BO20: =IF(BK20>='Scenario Weighting'!E$24, "75-100%", IF('GOM Scores and Quartiles'!BK20>='Scenario Weighting'!E$23, "50-75%", IF('GOM Scores and Quartiles'!BK20>='Scenario Weighting'!E$22, "25-50%", "0-25%"))) -> 0-25% | BP20: =IF(BL20="", "", IF(BL20>='Scenario Weighting'!F$24, "75-100%", IF('GOM Scores and Quartiles'!BL20>='Scenario Weighting'!F$23, "50-75%", IF('GOM Scores and Quartiles'!BL20>='Scenario Weighting'!F$22, "25-50%", "0-25%")))) -> 
A21: 16 | B21: 36719 | C21: -96.67811615 | D21: 26.14330999 | E21: 1671 | F21: 87.24850966 | G21: 860 | H21: 70.72002164 | I21: 286 | J21: 150.6825013 | K21: 0 | L21: 0 | M21: 0 | N21: 0 | O21: 0 | P21: 0 | Q21: 0 | R21: 1 | S21: 0 | T21: 0 | U21: 0 | V21: 0 | W21: 0 | X21: 0 | Y21: 0 | Z21: 0 | AA21: 0 | AB21: 1 | AC21: 4 | AD21: 24.77 | AE21: 2236.34 | AF21: 2102 | AG21: 708.18 | AH21: 177.045 | AI21: 0 | AJ21: 0 | AK21: 0 | AL21: 13795828.89 | AM21: 17431 | AN21: 4357.75 | AO21: 5.924528302 | AP21: 0 | AQ21: 0 | AR21: 0 | AS21: 0 | AT21: 0 | AU21: 0 | AV21: 0 | AW21: 60.63295107 | AX21: 0 | AY21: 84.96971071 | AZ21: 55.28844673 | BA21: 84.96971071 | BB21: 55.28844673 | BC21: 0 | BD21: 100 | BE21: 100 | BF21: 100 | BG21: 6.792188618 | BH21: 10.47600072 | BI21: =($BG21*'Scenario Weighting'!E$3)+('GOM Scores and Quartiles'!$BH21*'Scenario Weighting'!E$4)+('GOM Scores and Quartiles'!$AP21*'Scenario Weighting'!E$5)+('GOM Scores and Quartiles'!$AQ21*'Scenario Weighting'!E$6)+('GOM Scores and Quartiles'!$AR21*'Scenario Weighting'!E$7)+('GOM Scores and Quartiles'!$AS21*'Scenario Weighting'!E$12)+('GOM Scores and Quartiles'!$AT21*'Scenario Weighting'!E$8)+('GOM Scores and Quartiles'!$AU21*'Scenario Weighting'!E$9)+('GOM Scores and Quartiles'!$AV21*'Scenario Weighting'!E$10)+('GOM Scores and Quartiles'!$AW21*'Scenario Weighting'!E$11)+('GOM Scores and Quartiles'!$AX21*'Scenario Weighting'!E$13)+('GOM Scores and Quartiles'!$AZ21*'Scenario Weighting'!E$14)+('GOM Scores and Quartiles'!$BB21*'Scenario Weighting'!E$15)+('GOM Scores and Quartiles'!$BC21*'Scenario Weighting'!E$16)+('GOM Scores and Quartiles'!$BE21*'Scenario Weighting'!E$17)+('GOM Scores and Quartiles'!$BF21*'Scenario Weighting'!E$18) -> 32.24005753 | BJ21: =IF(AR21=0, "", ($BG21*'Scenario Weighting'!F$3)+('GOM Scores and Quartiles'!$BH21*'Scenario Weighting'!F$4)+('GOM Scores and Quartiles'!$AP21*'Scenario Weighting'!F$5)+('GOM Scores and Quartiles'!$AQ21*'Scenario Weighting'!F$6)+('GOM Scores and Quartiles'!$AR21*'Scenario Weighting'!F$7)+('GOM Scores and Quartiles'!$AS21*'Scenario Weighting'!F$12)+('GOM Scores and Quartiles'!$AT21*'Scenario Weighting'!F$8)+('GOM Scores and Quartiles'!$AU21*'Scenario Weighting'!F$9)+('GOM Scores and Quartiles'!$AV21*'Scenario Weighting'!F$10)+('GOM Scores and Quartiles'!$AW21*'Scenario Weighting'!F$11)+('GOM Scores and Quartiles'!$AX21*'Scenario Weighting'!F$13)+('GOM Scores and Quartiles'!$AZ21*'Scenario Weighting'!F$14)+('GOM Scores and Quartiles'!$BB21*'Scenario Weighting'!F$15)+('GOM Scores and Quartiles'!$BC21*'Scenario Weighting'!F$16)+('GOM Scores and Quartiles'!$BE21*'Scenario Weighting'!F$17)+('GOM Scores and Quartiles'!$BF21*'Scenario Weighting'!F$18)) ->  | BK21: =('GOM Scores and Quartiles'!$BG21*0.12)+('GOM Scores and Quartiles'!$BH21*0.12)+('GOM Scores and Quartiles'!$AS21*0.2)+('GOM Scores and Quartiles'!$AT21*0.05)+('GOM Scores and Quartiles'!$AU21*0.1)+('GOM Scores and Quartiles'!$AV21*0.2)+('GOM Scores and Quartiles'!$AW21*0.1)+('GOM Scores and Quartiles'!$BE21*0.07)+('GOM Scores and Quartiles'!$BF21*0.04) -> 19.13547783 | BL21: =IF(AR21=0, "", ($BG21*'Scenario Weighting'!H$3)+('GOM Scores and Quartiles'!$BH21*'Scenario Weighting'!H$4)+('GOM Scores and Quartiles'!$AP21*'Scenario Weighting'!H$5)+('GOM Scores and Quartiles'!$AQ21*'Scenario Weighting'!H$6)+('GOM Scores and Quartiles'!$AR21*'Scenario Weighting'!H$7)+('GOM Scores and Quartiles'!$AS21*'Scenario Weighting'!H$12)+('GOM Scores and Quartiles'!$AT21*'Scenario Weighting'!H$8)+('GOM Scores and Quartiles'!$AU21*'Scenario Weighting'!H$9)+('GOM Scores and Quartiles'!$AV21*'Scenario Weighting'!H$10)+('GOM Scores and Quartiles'!$AW21*'Scenario Weighting'!H$11)+('GOM Scores and Quartiles'!$AX21*'Scenario Weighting'!H$13)+('GOM Scores and Quartiles'!$AZ21*'Scenario Weighting'!H$14)+('GOM Scores and Quartiles'!$BB21*'Scenario Weighting'!H$15)+('GOM Scores and Quartiles'!$BC21*'Scenario Weighting'!H$16)+('GOM Scores and Quartiles'!$BE21*'Scenario Weighting'!H$17)+('GOM Scores and Quartiles'!$BF21*'Scenario Weighting'!H$18)) ->  | BM21: =IF(BI21>='Scenario Weighting'!C$24, "75-100%", IF('GOM Scores and Quartiles'!BI21>='Scenario Weighting'!C$23, "50-75%", IF('GOM Scores and Quartiles'!BI21>='Scenario Weighting'!C$22, "25-50%", "0-25%"))) -> 0-25% | BN21: =IF(BJ21="", "", IF(BJ21>='Scenario Weighting'!D$24, "75-100%", IF('GOM Scores and Quartiles'!BJ21>='Scenario Weighting'!D$23, "50-75%", IF('GOM Scores and Quartiles'!BJ21>='Scenario Weighting'!D$22, "25-50%", "0-25%")))) ->  | BO21: =IF(BK21>='Scenario Weighting'!E$24, "75-100%", IF('GOM Scores and Quartiles'!BK21>='Scenario Weighting'!E$23, "50-75%", IF('GOM Scores and Quartiles'!BK21>='Scenario Weighting'!E$22, "25-50%", "0-25%"))) -> 0-25% | BP21: =IF(BL21="", "", IF(BL21>='Scenario Weighting'!F$24, "75-100%", IF('GOM Scores and Quartiles'!BL21>='Scenario Weighting'!F$23, "50-75%", IF('GOM Scores and Quartiles'!BL21>='Scenario Weighting'!F$22, "25-50%", "0-25%")))) -> 
A22: 17 | B22: 36722 | C22: -96.6066319 | D22: 26.0003415 | E22: 1671 | F22: 91.75454695 | G22: 860 | H22: 75.46055296 | I22: 286 | J22: 161.2830831 | K22: 0 | L22: 0 | M22: 0 | N22: 0 | O22: 1 | P22: 0 | Q22: 1 | R22: 1 | S22: 1 | T22: 0 | U22: 0 | V22: 0 | W22: 0 | X22: 0 | Y22: 0 | Z22: 0 | AA22: 0 | AB22: 1 | AC22: 3 | AD22: 18.94 | AE22: 1474.74 | AF22: 1263 | AG22: 583.48 | AH22: 194.4933333 | AI22: 0 | AJ22: 0 | AK22: 0 | AL22: 11233399.48 | AM22: 12343 | AN22: 4114.333333 | AO22: 4.457861635 | AP22: 0 | AQ22: 0 | AR22: 0 | AS22: 0 | AT22: 0 | AU22: 0 | AV22: 0 | AW22: 64.95087089 | AX22: 100 | AY22: 87.97906536 | AZ22: 49.91427193 | BA22: 87.97906536 | BB22: 49.91427193 | BC22: 0 | BD22: 100 | BE22: 100 | BF22: 0 | BG22: 4.238335891 | BH22: 8.331323788 | BI22: =($BG22*'Scenario Weighting'!E$3)+('GOM Scores and Quartiles'!$BH22*'Scenario Weighting'!E$4)+('GOM Scores and Quartiles'!$AP22*'Scenario Weighting'!E$5)+('GOM Scores and Quartiles'!$AQ22*'Scenario Weighting'!E$6)+('GOM Scores and Quartiles'!$AR22*'Scenario Weighting'!E$7)+('GOM Scores and Quartiles'!$AS22*'Scenario Weighting'!E$12)+('GOM Scores and Quartiles'!$AT22*'Scenario Weighting'!E$8)+('GOM Scores and Quartiles'!$AU22*'Scenario Weighting'!E$9)+('GOM Scores and Quartiles'!$AV22*'Scenario Weighting'!E$10)+('GOM Scores and Quartiles'!$AW22*'Scenario Weighting'!E$11)+('GOM Scores and Quartiles'!$AX22*'Scenario Weighting'!E$13)+('GOM Scores and Quartiles'!$AZ22*'Scenario Weighting'!E$14)+('GOM Scores and Quartiles'!$BB22*'Scenario Weighting'!E$15)+('GOM Scores and Quartiles'!$BC22*'Scenario Weighting'!E$16)+('GOM Scores and Quartiles'!$BE22*'Scenario Weighting'!E$17)+('GOM Scores and Quartiles'!$BF22*'Scenario Weighting'!E$18) -> 28.35481762 | BJ22: =IF(AR22=0, "", ($BG22*'Scenario Weighting'!F$3)+('GOM Scores and Quartiles'!$BH22*'Scenario Weighting'!F$4)+('GOM Scores and Quartiles'!$AP22*'Scenario Weighting'!F$5)+('GOM Scores and Quartiles'!$AQ22*'Scenario Weighting'!F$6)+('GOM Scores and Quartiles'!$AR22*'Scenario Weighting'!F$7)+('GOM Scores and Quartiles'!$AS22*'Scenario Weighting'!F$12)+('GOM Scores and Quartiles'!$AT22*'Scenario Weighting'!F$8)+('GOM Scores and Quartiles'!$AU22*'Scenario Weighting'!F$9)+('GOM Scores and Quartiles'!$AV22*'Scenario Weighting'!F$10)+('GOM Scores and Quartiles'!$AW22*'Scenario Weighting'!F$11)+('GOM Scores and Quartiles'!$AX22*'Scenario Weighting'!F$13)+('GOM Scores and Quartiles'!$AZ22*'Scenario Weighting'!F$14)+('GOM Scores and Quartiles'!$BB22*'Scenario Weighting'!F$15)+('GOM Scores and Quartiles'!$BC22*'Scenario Weighting'!F$16)+('GOM Scores and Quartiles'!$BE22*'Scenario Weighting'!F$17)+('GOM Scores and Quartiles'!$BF22*'Scenario Weighting'!F$18)) ->  | BK22: =('GOM Scores and Quartiles'!$BG22*0.12)+('GOM Scores and Quartiles'!$BH22*0.12)+('GOM Scores and Quartiles'!$AS22*0.2)+('GOM Scores and Quartiles'!$AT22*0.05)+('GOM Scores and Quartiles'!$AU22*0.1)+('GOM Scores and Quartiles'!$AV22*0.2)+('GOM Scores and Quartiles'!$AW22*0.1)+('GOM Scores and Quartiles'!$BE22*0.07)+('GOM Scores and Quartiles'!$BF22*0.04) -> 15.00344625 | BL22: =IF(AR22=0, "", ($BG22*'Scenario Weighting'!H$3)+('GOM Scores and Quartiles'!$BH22*'Scenario Weighting'!H$4)+('GOM Scores and Quartiles'!$AP22*'Scenario Weighting'!H$5)+('GOM Scores and Quartiles'!$AQ22*'Scenario Weighting'!H$6)+('GOM Scores and Quartiles'!$AR22*'Scenario Weighting'!H$7)+('GOM Scores and Quartiles'!$AS22*'Scenario Weighting'!H$12)+('GOM Scores and Quartiles'!$AT22*'Scenario Weighting'!H$8)+('GOM Scores and Quartiles'!$AU22*'Scenario Weighting'!H$9)+('GOM Scores and Quartiles'!$AV22*'Scenario Weighting'!H$10)+('GOM Scores and Quartiles'!$AW22*'Scenario Weighting'!H$11)+('GOM Scores and Quartiles'!$AX22*'Scenario Weighting'!H$13)+('GOM Scores and Quartiles'!$AZ22*'Scenario Weighting'!H$14)+('GOM Scores and Quartiles'!$BB22*'Scenario Weighting'!H$15)+('GOM Scores and Quartiles'!$BC22*'Scenario Weighting'!H$16)+('GOM Scores and Quartiles'!$BE22*'Scenario Weighting'!H$17)+('GOM Scores and Quartiles'!$BF22*'Scenario Weighting'!H$18)) ->  | BM22: =IF(BI22>='Scenario Weighting'!C$24, "75-100%", IF('GOM Scores and Quartiles'!BI22>='Scenario Weighting'!C$23, "50-75%", IF('GOM Scores and Quartiles'!BI22>='Scenario Weighting'!C$22, "25-50%", "0-25%"))) -> 0-25% | BN22: =IF(BJ22="", "", IF(BJ22>='Scenario Weighting'!D$24, "75-100%", IF('GOM Scores and Quartiles'!BJ22>='Scenario Weighting'!D$23, "50-75%", IF('GOM Scores and Quartiles'!BJ22>='Scenario Weighting'!D$22, "25-50%", "0-25%")))) ->  | BO22: =IF(BK22>='Scenario Weighting'!E$24, "75-100%", IF('GOM Scores and Quartiles'!BK22>='Scenario Weighting'!E$23, "50-75%", IF('GOM Scores and Quartiles'!BK22>='Scenario Weighting'!E$22, "25-50%", "0-25%"))) -> 0-25% | BP22: =IF(BL22="", "", IF(BL22>='Scenario Weighting'!F$24, "75-100%", IF('GOM Scores and Quartiles'!BL22>='Scenario Weighting'!F$23, "50-75%", IF('GOM Scores and Quartiles'!BL22>='Scenario Weighting'!F$22, "25-50%", "0-25%")))) -> 
A23: 18 | B23: 36723 | C23: -96.53514766 | D23: 26.0003415 | E23: 1671 | F23: 98.87421948 | G23: 860 | H23: 82.6156141 | I23: 5 | J23: 166.9568586 | K23: 0 | L23: 1 | M23: 0 | N23: 0 | O23: 0 | P23: 0 | Q23: 1 | R23: 1 | S23: 0 | T23: 0 | U23: 0 | V23: 0 | W23: 0 | X23: 0 | Y23: 0 | Z23: 0 | AA23: 0 | AB23: 1 | AC23: 3 | AD23: 18.94 | AE23: 1474.74 | AF23: 1263 | AG23: 583.48 | AH23: 194.4933333 | AI23: 0 | AJ23: 0 | AK23: 0 | AL23: 11233399.48 | AM23: 12343 | AN23: 4114.333333 | AO23: 4.457861635 | AP23: 0 | AQ23: 0 | AR23: 0 | AS23: 0 | AT23: 0 | AU23: 0 | AV23: 0 | AW23: 67.26196174 | AX23: 100 | AY23: 87.97906536 | AZ23: 49.91427193 | BA23: 87.97906536 | BB23: 49.91427193 | BC23: 0 | BD23: 100 | BE23: 100 | BF23: 100 | BG23: 4.238335891 | BH23: 8.331323788 | BI23: =($BG23*'Scenario Weighting'!E$3)+('GOM Scores and Quartiles'!$BH23*'Scenario Weighting'!E$4)+('GOM Scores and Quartiles'!$AP23*'Scenario Weighting'!E$5)+('GOM Scores and Quartiles'!$AQ23*'Scenario Weighting'!E$6)+('GOM Scores and Quartiles'!$AR23*'Scenario Weighting'!E$7)+('GOM Scores and Quartiles'!$AS23*'Scenario Weighting'!E$12)+('GOM Scores and Quartiles'!$AT23*'Scenario Weighting'!E$8)+('GOM Scores and Quartiles'!$AU23*'Scenario Weighting'!E$9)+('GOM Scores and Quartiles'!$AV23*'Scenario Weighting'!E$10)+('GOM Scores and Quartiles'!$AW23*'Scenario Weighting'!E$11)+('GOM Scores and Quartiles'!$AX23*'Scenario Weighting'!E$13)+('GOM Scores and Quartiles'!$AZ23*'Scenario Weighting'!E$14)+('GOM Scores and Quartiles'!$BB23*'Scenario Weighting'!E$15)+('GOM Scores and Quartiles'!$BC23*'Scenario Weighting'!E$16)+('GOM Scores and Quartiles'!$BE23*'Scenario Weighting'!E$17)+('GOM Scores and Quartiles'!$BF23*'Scenario Weighting'!E$18) -> 33.5859267 | BJ23: =IF(AR23=0, "", ($BG23*'Scenario Weighting'!F$3)+('GOM Scores and Quartiles'!$BH23*'Scenario Weighting'!F$4)+('GOM Scores and Quartiles'!$AP23*'Scenario Weighting'!F$5)+('GOM Scores and Quartiles'!$AQ23*'Scenario Weighting'!F$6)+('GOM Scores and Quartiles'!$AR23*'Scenario Weighting'!F$7)+('GOM Scores and Quartiles'!$AS23*'Scenario Weighting'!F$12)+('GOM Scores and Quartiles'!$AT23*'Scenario Weighting'!F$8)+('GOM Scores and Quartiles'!$AU23*'Scenario Weighting'!F$9)+('GOM Scores and Quartiles'!$AV23*'Scenario Weighting'!F$10)+('GOM Scores and Quartiles'!$AW23*'Scenario Weighting'!F$11)+('GOM Scores and Quartiles'!$AX23*'Scenario Weighting'!F$13)+('GOM Scores and Quartiles'!$AZ23*'Scenario Weighting'!F$14)+('GOM Scores and Quartiles'!$BB23*'Scenario Weighting'!F$15)+('GOM Scores and Quartiles'!$BC23*'Scenario Weighting'!F$16)+('GOM Scores and Quartiles'!$BE23*'Scenario Weighting'!F$17)+('GOM Scores and Quartiles'!$BF23*'Scenario Weighting'!F$18)) ->  | BK23: =('GOM Scores and Quartiles'!$BG23*0.12)+('GOM Scores and Quartiles'!$BH23*0.12)+('GOM Scores and Quartiles'!$AS23*0.2)+('GOM Scores and Quartiles'!$AT23*0.05)+('GOM Scores and Quartiles'!$AU23*0.1)+('GOM Scores and Quartiles'!$AV23*0.2)+('GOM Scores and Quartiles'!$AW23*0.1)+('GOM Scores and Quartiles'!$BE23*0.07)+('GOM Scores and Quartiles'!$BF23*0.04) -> 19.23455534 | BL23: =IF(AR23=0, "", ($BG23*'Scenario Weighting'!H$3)+('GOM Scores and Quartiles'!$BH23*'Scenario Weighting'!H$4)+('GOM Scores and Quartiles'!$AP23*'Scenario Weighting'!H$5)+('GOM Scores and Quartiles'!$AQ23*'Scenario Weighting'!H$6)+('GOM Scores and Quartiles'!$AR23*'Scenario Weighting'!H$7)+('GOM Scores and Quartiles'!$AS23*'Scenario Weighting'!H$12)+('GOM Scores and Quartiles'!$AT23*'Scenario Weighting'!H$8)+('GOM Scores and Quartiles'!$AU23*'Scenario Weighting'!H$9)+('GOM Scores and Quartiles'!$AV23*'Scenario Weighting'!H$10)+('GOM Scores and Quartiles'!$AW23*'Scenario Weighting'!H$11)+('GOM Scores and Quartiles'!$AX23*'Scenario Weighting'!H$13)+('GOM Scores and Quartiles'!$AZ23*'Scenario Weighting'!H$14)+('GOM Scores and Quartiles'!$BB23*'Scenario Weighting'!H$15)+('GOM Scores and Quartiles'!$BC23*'Scenario Weighting'!H$16)+('GOM Scores and Quartiles'!$BE23*'Scenario Weighting'!H$17)+('GOM Scores and Quartiles'!$BF23*'Scenario Weighting'!H$18)) ->  | BM23: =IF(BI23>='Scenario Weighting'!C$24, "75-100%", IF('GOM Scores and Quartiles'!BI23>='Scenario Weighting'!C$23, "50-75%", IF('GOM Scores and Quartiles'!BI23>='Scenario Weighting'!C$22, "25-50%", "0-25%"))) -> 0-25% | BN23: =IF(BJ23="", "", IF(BJ23>='Scenario Weighting'!D$24, "75-100%", IF('GOM Scores and Quartiles'!BJ23>='Scenario Weighting'!D$23, "50-75%", IF('GOM Scores and Quartiles'!BJ23>='Scenario Weighting'!D$22, "25-50%", "0-25%")))) ->  | BO23: =IF(BK23>='Scenario Weighting'!E$24, "75-100%", IF('GOM Scores and Quartiles'!BK23>='Scenario Weighting'!E$23, "50-75%", IF('GOM Scores and Quartiles'!BK23>='Scenario Weighting'!E$22, "25-50%", "0-25%"))) -> 0-25% | BP23: =IF(BL23="", "", IF(BL23>='Scenario Weighting'!F$24, "75-100%", IF('GOM Scores and Quartiles'!BL23>='Scenario Weighting'!F$23, "50-75%", IF('GOM Scores and Quartiles'!BL23>='Scenario Weighting'!F$22, "25-50%", "0-25%")))) -> 
A24: 19 | B24: 36726 | C24: -96.46366341 | D24: 26.0003415 | E24: 1671 | F24: 105.9977632 | G24: 860 | H24: 89.7714134 | I24: 5 | J24: 159.9537848 | K24: 0 | L24: 0 | M24: 0 | N24: 0 | O24: 0 | P24: 0 | Q24: 1 | R24: 1 | S24: 0 | T24: 0 | U24: 0 | V24: 0 | W24: 0 | X24: 0 | Y24: 0 | Z24: 0 | AA24: 0 | AB24: 1 | AC24: 2 | AD24: 14.39 | AE24: 808.88 | AF24: 686 | AG24: 393.08 | AH24: 196.54 | AI24: 0 | AJ24: 0 | AK24: 0 | AL24: 7856433.98 | AM24: 6539 | AN24: 3269.5 | AO24: 3.313207547 | AP24: 0 | AQ24: 0 | AR24: 0 | AS24: 0 | AT24: 0 | AU24: 0 | AV24: 0 | AW24: 64.4094097 | AX24: 100 | AY24: 98.42372043 | AZ24: 49.28388826 | BA24: 98.42372043 | BB24: 49.28388826 | BC24: 0 | BD24: 100 | BE24: 100 | BF24: 100 | BG24: 2.005525523 | BH24: 5.504904459 | BI24: =($BG24*'Scenario Weighting'!E$3)+('GOM Scores and Quartiles'!$BH24*'Scenario Weighting'!E$4)+('GOM Scores and Quartiles'!$AP24*'Scenario Weighting'!E$5)+('GOM Scores and Quartiles'!$AQ24*'Scenario Weighting'!E$6)+('GOM Scores and Quartiles'!$AR24*'Scenario Weighting'!E$7)+('GOM Scores and Quartiles'!$AS24*'Scenario Weighting'!E$12)+('GOM Scores and Quartiles'!$AT24*'Scenario Weighting'!E$8)+('GOM Scores and Quartiles'!$AU24*'Scenario Weighting'!E$9)+('GOM Scores and Quartiles'!$AV24*'Scenario Weighting'!E$10)+('GOM Scores and Quartiles'!$AW24*'Scenario Weighting'!E$11)+('GOM Scores and Quartiles'!$AX24*'Scenario Weighting'!E$13)+('GOM Scores and Quartiles'!$AZ24*'Scenario Weighting'!E$14)+('GOM Scores and Quartiles'!$BB24*'Scenario Weighting'!E$15)+('GOM Scores and Quartiles'!$BC24*'Scenario Weighting'!E$16)+('GOM Scores and Quartiles'!$BE24*'Scenario Weighting'!E$17)+('GOM Scores and Quartiles'!$BF24*'Scenario Weighting'!E$18) -> 32.35267194 | BJ24: =IF(AR24=0, "", ($BG24*'Scenario Weighting'!F$3)+('GOM Scores and Quartiles'!$BH24*'Scenario Weighting'!F$4)+('GOM Scores and Quartiles'!$AP24*'Scenario Weighting'!F$5)+('GOM Scores and Quartiles'!$AQ24*'Scenario Weighting'!F$6)+('GOM Scores and Quartiles'!$AR24*'Scenario Weighting'!F$7)+('GOM Scores and Quartiles'!$AS24*'Scenario Weighting'!F$12)+('GOM Scores and Quartiles'!$AT24*'Scenario Weighting'!F$8)+('GOM Scores and Quartiles'!$AU24*'Scenario Weighting'!F$9)+('GOM Scores and Quartiles'!$AV24*'Scenario Weighting'!F$10)+('GOM Scores and Quartiles'!$AW24*'Scenario Weighting'!F$11)+('GOM Scores and Quartiles'!$AX24*'Scenario Weighting'!F$13)+('GOM Scores and Quartiles'!$AZ24*'Scenario Weighting'!F$14)+('GOM Scores and Quartiles'!$BB24*'Scenario Weighting'!F$15)+('GOM Scores and Quartiles'!$BC24*'Scenario Weighting'!F$16)+('GOM Scores and Quartiles'!$BE24*'Scenario Weighting'!F$17)+('GOM Scores and Quartiles'!$BF24*'Scenario Weighting'!F$18)) ->  | BK24: =('GOM Scores and Quartiles'!$BG24*0.12)+('GOM Scores and Quartiles'!$BH24*0.12)+('GOM Scores and Quartiles'!$AS24*0.2)+('GOM Scores and Quartiles'!$AT24*0.05)+('GOM Scores and Quartiles'!$AU24*0.1)+('GOM Scores and Quartiles'!$AV24*0.2)+('GOM Scores and Quartiles'!$AW24*0.1)+('GOM Scores and Quartiles'!$BE24*0.07)+('GOM Scores and Quartiles'!$BF24*0.04) -> 18.34219257 | BL24: =IF(AR24=0, "", ($BG24*'Scenario Weighting'!H$3)+('GOM Scores and Quartiles'!$BH24*'Scenario Weighting'!H$4)+('GOM Scores and Quartiles'!$AP24*'Scenario Weighting'!H$5)+('GOM Scores and Quartiles'!$AQ24*'Scenario Weighting'!H$6)+('GOM Scores and Quartiles'!$AR24*'Scenario Weighting'!H$7)+('GOM Scores and Quartiles'!$AS24*'Scenario Weighting'!H$12)+('GOM Scores and Quartiles'!$AT24*'Scenario Weighting'!H$8)+('GOM Scores and Quartiles'!$AU24*'Scenario Weighting'!H$9)+('GOM Scores and Quartiles'!$AV24*'Scenario Weighting'!H$10)+('GOM Scores and Quartiles'!$AW24*'Scenario Weighting'!H$11)+('GOM Scores and Quartiles'!$AX24*'Scenario Weighting'!H$13)+('GOM Scores and Quartiles'!$AZ24*'Scenario Weighting'!H$14)+('GOM Scores and Quartiles'!$BB24*'Scenario Weighting'!H$15)+('GOM Scores and Quartiles'!$BC24*'Scenario Weighting'!H$16)+('GOM Scores and Quartiles'!$BE24*'Scenario Weighting'!H$17)+('GOM Scores and Quartiles'!$BF24*'Scenario Weighting'!H$18)) ->  | BM24: =IF(BI24>='Scenario Weighting'!C$24, "75-100%", IF('GOM Scores and Quartiles'!BI24>='Scenario Weighting'!C$23, "50-75%", IF('GOM Scores and Quartiles'!BI24>='Scenario Weighting'!C$22, "25-50%", "0-25%"))) -> 0-25% | BN24: =IF(BJ24="", "", IF(BJ24>='Scenario Weighting'!D$24, "75-100%", IF('GOM Scores and Quartiles'!BJ24>='Scenario Weighting'!D$23, "50-75%", IF('GOM Scores and Quartiles'!BJ24>='Scenario Weighting'!D$22, "25-50%", "0-25%")))) ->  | BO24: =IF(BK24>='Scenario Weighting'!E$24, "75-100%", IF('GOM Scores and Quartiles'!BK24>='Scenario Weighting'!E$23, "50-75%", IF('GOM Scores and Quartiles'!BK24>='Scenario Weighting'!E$22, "25-50%", "0-25%"))) -> 0-25% | BP24: =IF(BL24="", "", IF(BL24>='Scenario Weighting'!F$24, "75-100%", IF('GOM Scores and Quartiles'!BL24>='Scenario Weighting'!F$23, "50-75%", IF('GOM Scores and Quartiles'!BL24>='Scenario Weighting'!F$22, "25-50%", "0-25%")))) -> 
A25: 20 | B25: 36727 | C25: -96.39217916 | D25: 26.0003415 | E25: 1671 | F25: 113.1244461 | G25: 860 | H25: 96.92778546 | I25: 5 | J25: 152.9640796 | K25: 0 | L25: 0 | M25: 0 | N25: 0 | O25: 0 | P25: 0 | Q25: 1 | R25: 1 | S25: 0 | T25: 0 | U25: 0 | V25: 0 | W25: 0 | X25: 0 | Y25: 0 | Z25: 0 | AA25: 0 | AB25: 1 | AC25: 1 | AD25: 1.22 | AE25: 210.8 | AF25: 351 | AG25: 196.33 | AH25: 196.33 | AI25: 0 | AJ25: 0 | AK25: 0 | AL25: 1726869.1 | AM25: 3142 | AN25: 3142 | AO25: 0 | AP25: 0 | AQ25: 0 | AR25: 0 | AS25: 0 | AT25: 0 | AU25: 0 | AV25: 0 | AW25: 61.56230309 | AX25: 100 | AY25: 100 | AZ25: 49.34856932 | BA25: 100 | BB25: 49.34856932 | BC25: 0 | BD25: 100 | BE25: 100 | BF25: 100 | BG25: 0 | BH25: 0.3746416083 | BI25: =($BG25*'Scenario Weighting'!E$3)+('GOM Scores and Quartiles'!$BH25*'Scenario Weighting'!E$4)+('GOM Scores and Quartiles'!$AP25*'Scenario Weighting'!E$5)+('GOM Scores and Quartiles'!$AQ25*'Scenario Weighting'!E$6)+('GOM Scores and Quartiles'!$AR25*'Scenario Weighting'!E$7)+('GOM Scores and Quartiles'!$AS25*'Scenario Weighting'!E$12)+('GOM Scores and Quartiles'!$AT25*'Scenario Weighting'!E$8)+('GOM Scores and Quartiles'!$AU25*'Scenario Weighting'!E$9)+('GOM Scores and Quartiles'!$AV25*'Scenario Weighting'!E$10)+('GOM Scores and Quartiles'!$AW25*'Scenario Weighting'!E$11)+('GOM Scores and Quartiles'!$AX25*'Scenario Weighting'!E$13)+('GOM Scores and Quartiles'!$AZ25*'Scenario Weighting'!E$14)+('GOM Scores and Quartiles'!$BB25*'Scenario Weighting'!E$15)+('GOM Scores and Quartiles'!$BC25*'Scenario Weighting'!E$16)+('GOM Scores and Quartiles'!$BE25*'Scenario Weighting'!E$17)+('GOM Scores and Quartiles'!$BF25*'Scenario Weighting'!E$18) -> 31.01699734 | BJ25: =IF(AR25=0, "", ($BG25*'Scenario Weighting'!F$3)+('GOM Scores and Quartiles'!$BH25*'Scenario Weighting'!F$4)+('GOM Scores and Quartiles'!$AP25*'Scenario Weighting'!F$5)+('GOM Scores and Quartiles'!$AQ25*'Scenario Weighting'!F$6)+('GOM Scores and Quartiles'!$AR25*'Scenario Weighting'!F$7)+('GOM Scores and Quartiles'!$AS25*'Scenario Weighting'!F$12)+('GOM Scores and Quartiles'!$AT25*'Scenario Weighting'!F$8)+('GOM Scores and Quartiles'!$AU25*'Scenario Weighting'!F$9)+('GOM Scores and Quartiles'!$AV25*'Scenario Weighting'!F$10)+('GOM Scores and Quartiles'!$AW25*'Scenario Weighting'!F$11)+('GOM Scores and Quartiles'!$AX25*'Scenario Weighting'!F$13)+('GOM Scores and Quartiles'!$AZ25*'Scenario Weighting'!F$14)+('GOM Scores and Quartiles'!$BB25*'Scenario Weighting'!F$15)+('GOM Scores and Quartiles'!$BC25*'Scenario Weighting'!F$16)+('GOM Scores and Quartiles'!$BE25*'Scenario Weighting'!F$17)+('GOM Scores and Quartiles'!$BF25*'Scenario Weighting'!F$18)) ->  | BK25: =('GOM Scores and Quartiles'!$BG25*0.12)+('GOM Scores and Quartiles'!$BH25*0.12)+('GOM Scores and Quartiles'!$AS25*0.2)+('GOM Scores and Quartiles'!$AT25*0.05)+('GOM Scores and Quartiles'!$AU25*0.1)+('GOM Scores and Quartiles'!$AV25*0.2)+('GOM Scores and Quartiles'!$AW25*0.1)+('GOM Scores and Quartiles'!$BE25*0.07)+('GOM Scores and Quartiles'!$BF25*0.04) -> 17.2011873 | BL25: =IF(AR25=0, "", ($BG25*'Scenario Weighting'!H$3)+('GOM Scores and Quartiles'!$BH25*'Scenario Weighting'!H$4)+('GOM Scores and Quartiles'!$AP25*'Scenario Weighting'!H$5)+('GOM Scores and Quartiles'!$AQ25*'Scenario Weighting'!H$6)+('GOM Scores and Quartiles'!$AR25*'Scenario Weighting'!H$7)+('GOM Scores and Quartiles'!$AS25*'Scenario Weighting'!H$12)+('GOM Scores and Quartiles'!$AT25*'Scenario Weighting'!H$8)+('GOM Scores and Quartiles'!$AU25*'Scenario Weighting'!H$9)+('GOM Scores and Quartiles'!$AV25*'Scenario Weighting'!H$10)+('GOM Scores and Quartiles'!$AW25*'Scenario Weighting'!H$11)+('GOM Scores and Quartiles'!$AX25*'Scenario Weighting'!H$13)+('GOM Scores and Quartiles'!$AZ25*'Scenario Weighting'!H$14)+('GOM Scores and Quartiles'!$BB25*'Scenario Weighting'!H$15)+('GOM Scores and Quartiles'!$BC25*'Scenario Weighting'!H$16)+('GOM Scores and Quartiles'!$BE25*'Scenario Weighting'!H$17)+('GOM Scores and Quartiles'!$BF25*'Scenario Weighting'!H$18)) ->  | BM25: =IF(BI25>='Scenario Weighting'!C$24, "75-100%", IF('GOM Scores and Quartiles'!BI25>='Scenario Weighting'!C$23, "50-75%", IF('GOM Scores and Quartiles'!BI25>='Scenario Weighting'!C$22, "25-50%", "0-25%"))) -> 0-25% | BN25: =IF(BJ25="", "", IF(BJ25>='Scenario Weighting'!D$24, "75-100%", IF('GOM Scores and Quartiles'!BJ25>='Scenario Weighting'!D$23, "50-75%", IF('GOM Scores and Quartiles'!BJ25>='Scenario Weighting'!D$22, "25-50%", "0-25%")))) ->  | BO25: =IF(BK25>='Scenario Weighting'!E$24, "75-100%", IF('GOM Scores and Quartiles'!BK25>='Scenario Weighting'!E$23, "50-75%", IF('GOM Scores and Quartiles'!BK25>='Scenario Weighting'!E$22, "25-50%", "0-25%"))) -> 0-25% | BP25: =IF(BL25="", "", IF(BL25>='Scenario Weighting'!F$24, "75-100%", IF('GOM Scores and Quartiles'!BL25>='Scenario Weighting'!F$23, "50-75%", IF('GOM Scores and Quartiles'!BL25>='Scenario Weighting'!F$22, "25-50%", "0-25%")))) -> 
A26: 21 | B26: 36728 | C26: -96.6066319 | D26: 26.07182575 | E26: 1671 | F26: 92.69307967 | G26: 860 | H26: 76.14938169 | I26: 286 | J26: 159.3107142 | K26: 0 | L26: 1 | M26: 0 | N26: 0 | O26: 1 | P26: 0 | Q26: 1 | R26: 1 | S26: 2 | T26: 0 | U26: 0 | V26: 0 | W26: 0 | X26: 0 | Y26: 0 | Z26: 0 | AA26: 0 | AB26: 1 | AC26: 3 | AD26: 18.94 | AE26: 1474.74 | AF26: 1263 | AG26: 583.48 | AH26: 194.4933333 | AI26: 0 | AJ26: 0 | AK26: 0 | AL26: 11233399.48 | AM26: 12343 | AN26: 4114.333333 | AO26: 4.457861635 | AP26: 0 | AQ26: 0 | AR26: 0 | AS26: 0 | AT26: 0 | AU26: 0 | AV26: 0 | AW26: 64.14746868 | AX26: 100 | AY26: 87.97906536 | AZ26: 49.91427193 | BA26: 87.97906536 | BB26: 49.91427193 | BC26: 0 | BD26: 100 | BE26: 100 | BF26: 0 | BG26: 4.238335891 | BH26: 8.331323788 | BI26: =($BG26*'Scenario Weighting'!E$3)+('GOM Scores and Quartiles'!$BH26*'Scenario Weighting'!E$4)+('GOM Scores and Quartiles'!$AP26*'Scenario Weighting'!E$5)+('GOM Scores and Quartiles'!$AQ26*'Scenario Weighting'!E$6)+('GOM Scores and Quartiles'!$AR26*'Scenario Weighting'!E$7)+('GOM Scores and Quartiles'!$AS26*'Scenario Weighting'!E$12)+('GOM Scores and Quartiles'!$AT26*'Scenario Weighting'!E$8)+('GOM Scores and Quartiles'!$AU26*'Scenario Weighting'!E$9)+('GOM Scores and Quartiles'!$AV26*'Scenario Weighting'!E$10)+('GOM Scores and Quartiles'!$AW26*'Scenario Weighting'!E$11)+('GOM Scores and Quartiles'!$AX26*'Scenario Weighting'!E$13)+('GOM Scores and Quartiles'!$AZ26*'Scenario Weighting'!E$14)+('GOM Scores and Quartiles'!$BB26*'Scenario Weighting'!E$15)+('GOM Scores and Quartiles'!$BC26*'Scenario Weighting'!E$16)+('GOM Scores and Quartiles'!$BE26*'Scenario Weighting'!E$17)+('GOM Scores and Quartiles'!$BF26*'Scenario Weighting'!E$18) -> 28.2744774 | BJ26: =IF(AR26=0, "", ($BG26*'Scenario Weighting'!F$3)+('GOM Scores and Quartiles'!$BH26*'Scenario Weighting'!F$4)+('GOM Scores and Quartiles'!$AP26*'Scenario Weighting'!F$5)+('GOM Scores and Quartiles'!$AQ26*'Scenario Weighting'!F$6)+('GOM Scores and Quartiles'!$AR26*'Scenario Weighting'!F$7)+('GOM Scores and Quartiles'!$AS26*'Scenario Weighting'!F$12)+('GOM Scores and Quartiles'!$AT26*'Scenario Weighting'!F$8)+('GOM Scores and Quartiles'!$AU26*'Scenario Weighting'!F$9)+('GOM Scores and Quartiles'!$AV26*'Scenario Weighting'!F$10)+('GOM Scores and Quartiles'!$AW26*'Scenario Weighting'!F$11)+('GOM Scores and Quartiles'!$AX26*'Scenario Weighting'!F$13)+('GOM Scores and Quartiles'!$AZ26*'Scenario Weighting'!F$14)+('GOM Scores and Quartiles'!$BB26*'Scenario Weighting'!F$15)+('GOM Scores and Quartiles'!$BC26*'Scenario Weighting'!F$16)+('GOM Scores and Quartiles'!$BE26*'Scenario Weighting'!F$17)+('GOM Scores and Quartiles'!$BF26*'Scenario Weighting'!F$18)) ->  | BK26: =('GOM Scores and Quartiles'!$BG26*0.12)+('GOM Scores and Quartiles'!$BH26*0.12)+('GOM Scores and Quartiles'!$AS26*0.2)+('GOM Scores and Quartiles'!$AT26*0.05)+('GOM Scores and Quartiles'!$AU26*0.1)+('GOM Scores and Quartiles'!$AV26*0.2)+('GOM Scores and Quartiles'!$AW26*0.1)+('GOM Scores and Quartiles'!$BE26*0.07)+('GOM Scores and Quartiles'!$BF26*0.04) -> 14.92310603 | BL26: =IF(AR26=0, "", ($BG26*'Scenario Weighting'!H$3)+('GOM Scores and Quartiles'!$BH26*'Scenario Weighting'!H$4)+('GOM Scores and Quartiles'!$AP26*'Scenario Weighting'!H$5)+('GOM Scores and Quartiles'!$AQ26*'Scenario Weighting'!H$6)+('GOM Scores and Quartiles'!$AR26*'Scenario Weighting'!H$7)+('GOM Scores and Quartiles'!$AS26*'Scenario Weighting'!H$12)+('GOM Scores and Quartiles'!$AT26*'Scenario Weighting'!H$8)+('GOM Scores and Quartiles'!$AU26*'Scenario Weighting'!H$9)+('GOM Scores and Quartiles'!$AV26*'Scenario Weighting'!H$10)+('GOM Scores and Quartiles'!$AW26*'Scenario Weighting'!H$11)+('GOM Scores and Quartiles'!$AX26*'Scenario Weighting'!H$13)+('GOM Scores and Quartiles'!$AZ26*'Scenario Weighting'!H$14)+('GOM Scores and Quartiles'!$BB26*'Scenario Weighting'!H$15)+('GOM Scores and Quartiles'!$BC26*'Scenario Weighting'!H$16)+('GOM Scores and Quartiles'!$BE26*'Scenario Weighting'!H$17)+('GOM Scores and Quartiles'!$BF26*'Scenario Weighting'!H$18)) ->  | BM26: =IF(BI26>='Scenario Weighting'!C$24, "75-100%", IF('GOM Scores and Quartiles'!BI26>='Scenario Weighting'!C$23, "50-75%", IF('GOM Scores and Quartiles'!BI26>='Scenario Weighting'!C$22, "25-50%", "0-25%"))) -> 0-25% | BN26: =IF(BJ26="", "", IF(BJ26>='Scenario Weighting'!D$24, "75-100%", IF('GOM Scores and Quartiles'!BJ26>='Scenario Weighting'!D$23, "50-75%", IF('GOM Scores and Quartiles'!BJ26>='Scenario Weighting'!D$22, "25-50%", "0-25%")))) ->  | BO26: =IF(BK26>='Scenario Weighting'!E$24, "75-100%", IF('GOM Scores and Quartiles'!BK26>='Scenario Weighting'!E$23, "50-75%", IF('GOM Scores and Quartiles'!BK26>='Scenario Weighting'!E$22, "25-50%", "0-25%"))) -> 0-25% | BP26: =IF(BL26="", "", IF(BL26>='Scenario Weighting'!F$24, "75-100%", IF('GOM Scores and Quartiles'!BL26>='Scenario Weighting'!F$23, "50-75%", IF('GOM Scores and Quartiles'!BL26>='Scenario Weighting'!F$22, "25-50%", "0-25%")))) -> 
A27: 22 | B27: 36729 | C27: -96.53514766 | D27: 26.07182575 | E27: 1671 | F27: 99.74578393 | G27: 860 | H27: 83.24115043 | I27: 5 | J27: 165.5383881 | K27: 0 | L27: 0 | M27: 0 | N27: 0 | O27: 1 | P27: 0 | Q27: 1 | R27: 1 | S27: 1 | T27: 0 | U27: 0 | V27: 0 | W27: 0 | X27: 0 | Y27: 0 | Z27: 0 | AA27: 0 | AB27: 1 | AC27: 3 | AD27: 18.94 | AE27: 1474.74 | AF27: 1263 | AG27: 583.48 | AH27: 194.4933333 | AI27: 0 | AJ27: 0 | AK27: 0 | AL27: 11233399.48 | AM27: 12343 | AN27: 4114.333333 | AO27: 4.457861635 | AP27: 0 | AQ27: 0 | AR27: 0 | AS27: 0 | AT27: 0 | AU27: 0 | AV27: 0 | AW27: 66.68417819 | AX27: 100 | AY27: 87.97906536 | AZ27: 49.91427193 | BA27: 87.97906536 | BB27: 49.91427193 | BC27: 0 | BD27: 100 | BE27: 100 | BF27: 0 | BG27: 4.238335891 | BH27: 8.331323788 | BI27: =($BG27*'Scenario Weighting'!E$3)+('GOM Scores and Quartiles'!$BH27*'Scenario Weighting'!E$4)+('GOM Scores and Quartiles'!$AP27*'Scenario Weighting'!E$5)+('GOM Scores and Quartiles'!$AQ27*'Scenario Weighting'!E$6)+('GOM Scores and Quartiles'!$AR27*'Scenario Weighting'!E$7)+('GOM Scores and Quartiles'!$AS27*'Scenario Weighting'!E$12)+('GOM Scores and Quartiles'!$AT27*'Scenario Weighting'!E$8)+('GOM Scores and Quartiles'!$AU27*'Scenario Weighting'!E$9)+('GOM Scores and Quartiles'!$AV27*'Scenario Weighting'!E$10)+('GOM Scores and Quartiles'!$AW27*'Scenario Weighting'!E$11)+('GOM Scores and Quartiles'!$AX27*'Scenario Weighting'!E$13)+('GOM Scores and Quartiles'!$AZ27*'Scenario Weighting'!E$14)+('GOM Scores and Quartiles'!$BB27*'Scenario Weighting'!E$15)+('GOM Scores and Quartiles'!$BC27*'Scenario Weighting'!E$16)+('GOM Scores and Quartiles'!$BE27*'Scenario Weighting'!E$17)+('GOM Scores and Quartiles'!$BF27*'Scenario Weighting'!E$18) -> 28.52814835 | BJ27: =IF(AR27=0, "", ($BG27*'Scenario Weighting'!F$3)+('GOM Scores and Quartiles'!$BH27*'Scenario Weighting'!F$4)+('GOM Scores and Quartiles'!$AP27*'Scenario Weighting'!F$5)+('GOM Scores and Quartiles'!$AQ27*'Scenario Weighting'!F$6)+('GOM Scores and Quartiles'!$AR27*'Scenario Weighting'!F$7)+('GOM Scores and Quartiles'!$AS27*'Scenario Weighting'!F$12)+('GOM Scores and Quartiles'!$AT27*'Scenario Weighting'!F$8)+('GOM Scores and Quartiles'!$AU27*'Scenario Weighting'!F$9)+('GOM Scores and Quartiles'!$AV27*'Scenario Weighting'!F$10)+('GOM Scores and Quartiles'!$AW27*'Scenario Weighting'!F$11)+('GOM Scores and Quartiles'!$AX27*'Scenario Weighting'!F$13)+('GOM Scores and Quartiles'!$AZ27*'Scenario Weighting'!F$14)+('GOM Scores and Quartiles'!$BB27*'Scenario Weighting'!F$15)+('GOM Scores and Quartiles'!$BC27*'Scenario Weighting'!F$16)+('GOM Scores and Quartiles'!$BE27*'Scenario Weighting'!F$17)+('GOM Scores and Quartiles'!$BF27*'Scenario Weighting'!F$18)) ->  | BK27: =('GOM Scores and Quartiles'!$BG27*0.12)+('GOM Scores and Quartiles'!$BH27*0.12)+('GOM Scores and Quartiles'!$AS27*0.2)+('GOM Scores and Quartiles'!$AT27*0.05)+('GOM Scores and Quartiles'!$AU27*0.1)+('GOM Scores and Quartiles'!$AV27*0.2)+('GOM Scores and Quartiles'!$AW27*0.1)+('GOM Scores and Quartiles'!$BE27*0.07)+('GOM Scores and Quartiles'!$BF27*0.04) -> 15.17677698 | BL27: =IF(AR27=0, "", ($BG27*'Scenario Weighting'!H$3)+('GOM Scores and Quartiles'!$BH27*'Scenario Weighting'!H$4)+('GOM Scores and Quartiles'!$AP27*'Scenario Weighting'!H$5)+('GOM Scores and Quartiles'!$AQ27*'Scenario Weighting'!H$6)+('GOM Scores and Quartiles'!$AR27*'Scenario Weighting'!H$7)+('GOM Scores and Quartiles'!$AS27*'Scenario Weighting'!H$12)+('GOM Scores and Quartiles'!$AT27*'Scenario Weighting'!H$8)+('GOM Scores and Quartiles'!$AU27*'Scenario Weighting'!H$9)+('GOM Scores and Quartiles'!$AV27*'Scenario Weighting'!H$10)+('GOM Scores and Quartiles'!$AW27*'Scenario Weighting'!H$11)+('GOM Scores and Quartiles'!$AX27*'Scenario Weighting'!H$13)+('GOM Scores and Quartiles'!$AZ27*'Scenario Weighting'!H$14)+('GOM Scores and Quartiles'!$BB27*'Scenario Weighting'!H$15)+('GOM Scores and Quartiles'!$BC27*'Scenario Weighting'!H$16)+('GOM Scores and Quartiles'!$BE27*'Scenario Weighting'!H$17)+('GOM Scores and Quartiles'!$BF27*'Scenario Weighting'!H$18)) ->  | BM27: =IF(BI27>='Scenario Weighting'!C$24, "75-100%", IF('GOM Scores and Quartiles'!BI27>='Scenario Weighting'!C$23, "50-75%", IF('GOM Scores and Quartiles'!BI27>='Scenario Weighting'!C$22, "25-50%", "0-25%"))) -> 0-25% | BN27: =IF(BJ27="", "", IF(BJ27>='Scenario Weighting'!D$24, "75-100%", IF('GOM Scores and Quartiles'!BJ27>='Scenario Weighting'!D$23, "50-75%", IF('GOM Scores and Quartiles'!BJ27>='Scenario Weighting'!D$22, "25-50%", "0-25%")))) ->  | BO27: =IF(BK27>='Scenario Weighting'!E$24, "75-100%", IF('GOM Scores and Quartiles'!BK27>='Scenario Weighting'!E$23, "50-75%", IF('GOM Scores and Quartiles'!BK27>='Scenario Weighting'!E$22, "25-50%", "0-25%"))) -> 0-25% | BP27: =IF(BL27="", "", IF(BL27>='Scenario Weighting'!F$24, "75-100%", IF('GOM Scores and Quartiles'!BL27>='Scenario Weighting'!F$23, "50-75%", IF('GOM Scores and Quartiles'!BL27>='Scenario Weighting'!F$22, "25-50%", "0-25%")))) -> 
A28: 23 | B28: 36730 | C28: -96.6066319 | D28: 26.14330999 | E28: 1671 | F28: 94.1664328 | G28: 860 | H28: 77.64405098 | I28: 286 | J28: 157.7117196 | K28: 0 | L28: 0 | M28: 0 | N28: 0 | O28: 1 | P28: 0 | Q28: 0 | R28: 1 | S28: 3 | T28: 0 | U28: 0 | V28: 0 | W28: 0 | X28: 0 | Y28: 0 | Z28: 0 | AA28: 0 | AB28: 1 | AC28: 3 | AD28: 18.94 | AE28: 1474.74 | AF28: 1263 | AG28: 583.48 | AH28: 194.4933333 | AI28: 0 | AJ28: 0 | AK28: 0 | AL28: 11233399.48 | AM28: 12343 | AN28: 4114.333333 | AO28: 4.457861635 | AP28: 0 | AQ28: 0 | AR28: 0 | AS28: 0 | AT28: 0 | AU28: 0 | AV28: 0 | AW28: 63.49615249 | AX28: 0 | AY28: 87.97906536 | AZ28: 49.91427193 | BA28: 87.97906536 | BB28: 49.91427193 | BC28: 0 | BD28: 100 | BE28: 100 | BF28: 0 | BG28: 4.238335891 | BH28: 8.331323788 | BI28: =($BG28*'Scenario Weighting'!E$3)+('GOM Scores and Quartiles'!$BH28*'Scenario Weighting'!E$4)+('GOM Scores and Quartiles'!$AP28*'Scenario Weighting'!E$5)+('GOM Scores and Quartiles'!$AQ28*'Scenario Weighting'!E$6)+('GOM Scores and Quartiles'!$AR28*'Scenario Weighting'!E$7)+('GOM Scores and Quartiles'!$AS28*'Scenario Weighting'!E$12)+('GOM Scores and Quartiles'!$AT28*'Scenario Weighting'!E$8)+('GOM Scores and Quartiles'!$AU28*'Scenario Weighting'!E$9)+('GOM Scores and Quartiles'!$AV28*'Scenario Weighting'!E$10)+('GOM Scores and Quartiles'!$AW28*'Scenario Weighting'!E$11)+('GOM Scores and Quartiles'!$AX28*'Scenario Weighting'!E$13)+('GOM Scores and Quartiles'!$AZ28*'Scenario Weighting'!E$14)+('GOM Scores and Quartiles'!$BB28*'Scenario Weighting'!E$15)+('GOM Scores and Quartiles'!$BC28*'Scenario Weighting'!E$16)+('GOM Scores and Quartiles'!$BE28*'Scenario Weighting'!E$17)+('GOM Scores and Quartiles'!$BF28*'Scenario Weighting'!E$18) -> 25.20934578 | BJ28: =IF(AR28=0, "", ($BG28*'Scenario Weighting'!F$3)+('GOM Scores and Quartiles'!$BH28*'Scenario Weighting'!F$4)+('GOM Scores and Quartiles'!$AP28*'Scenario Weighting'!F$5)+('GOM Scores and Quartiles'!$AQ28*'Scenario Weighting'!F$6)+('GOM Scores and Quartiles'!$AR28*'Scenario Weighting'!F$7)+('GOM Scores and Quartiles'!$AS28*'Scenario Weighting'!F$12)+('GOM Scores and Quartiles'!$AT28*'Scenario Weighting'!F$8)+('GOM Scores and Quartiles'!$AU28*'Scenario Weighting'!F$9)+('GOM Scores and Quartiles'!$AV28*'Scenario Weighting'!F$10)+('GOM Scores and Quartiles'!$AW28*'Scenario Weighting'!F$11)+('GOM Scores and Quartiles'!$AX28*'Scenario Weighting'!F$13)+('GOM Scores and Quartiles'!$AZ28*'Scenario Weighting'!F$14)+('GOM Scores and Quartiles'!$BB28*'Scenario Weighting'!F$15)+('GOM Scores and Quartiles'!$BC28*'Scenario Weighting'!F$16)+('GOM Scores and Quartiles'!$BE28*'Scenario Weighting'!F$17)+('GOM Scores and Quartiles'!$BF28*'Scenario Weighting'!F$18)) ->  | BK28: =('GOM Scores and Quartiles'!$BG28*0.12)+('GOM Scores and Quartiles'!$BH28*0.12)+('GOM Scores and Quartiles'!$AS28*0.2)+('GOM Scores and Quartiles'!$AT28*0.05)+('GOM Scores and Quartiles'!$AU28*0.1)+('GOM Scores and Quartiles'!$AV28*0.2)+('GOM Scores and Quartiles'!$AW28*0.1)+('GOM Scores and Quartiles'!$BE28*0.07)+('GOM Scores and Quartiles'!$BF28*0.04) -> 14.85797441 | BL28: =IF(AR28=0, "", ($BG28*'Scenario Weighting'!H$3)+('GOM Scores and Quartiles'!$BH28*'Scenario Weighting'!H$4)+('GOM Scores and Quartiles'!$AP28*'Scenario Weighting'!H$5)+('GOM Scores and Quartiles'!$AQ28*'Scenario Weighting'!H$6)+('GOM Scores and Quartiles'!$AR28*'Scenario Weighting'!H$7)+('GOM Scores and Quartiles'!$AS28*'Scenario Weighting'!H$12)+('GOM Scores and Quartiles'!$AT28*'Scenario Weighting'!H$8)+('GOM Scores and Quartiles'!$AU28*'Scenario Weighting'!H$9)+('GOM Scores and Quartiles'!$AV28*'Scenario Weighting'!H$10)+('GOM Scores and Quartiles'!$AW28*'Scenario Weighting'!H$11)+('GOM Scores and Quartiles'!$AX28*'Scenario Weighting'!H$13)+('GOM Scores and Quartiles'!$AZ28*'Scenario Weighting'!H$14)+('GOM Scores and Quartiles'!$BB28*'Scenario Weighting'!H$15)+('GOM Scores and Quartiles'!$BC28*'Scenario Weighting'!H$16)+('GOM Scores and Quartiles'!$BE28*'Scenario Weighting'!H$17)+('GOM Scores and Quartiles'!$BF28*'Scenario Weighting'!H$18)) ->  | BM28: =IF(BI28>='Scenario Weighting'!C$24, "75-100%", IF('GOM Scores and Quartiles'!BI28>='Scenario Weighting'!C$23, "50-75%", IF('GOM Scores and Quartiles'!BI28>='Scenario Weighting'!C$22, "25-50%", "0-25%"))) -> 0-25% | BN28: =IF(BJ28="", "", IF(BJ28>='Scenario Weighting'!D$24, "75-100%", IF('GOM Scores and Quartiles'!BJ28>='Scenario Weighting'!D$23, "50-75%", IF('GOM Scores and Quartiles'!BJ28>='Scenario Weighting'!D$22, "25-50%", "0-25%")))) ->  | BO28: =IF(BK28>='Scenario Weighting'!E$24, "75-100%", IF('GOM Scores and Quartiles'!BK28>='Scenario Weighting'!E$23, "50-75%", IF('GOM Scores and Quartiles'!BK28>='Scenario Weighting'!E$22, "25-50%", "0-25%"))) -> 0-25% | BP28: =IF(BL28="", "", IF(BL28>='Scenario Weighting'!F$24, "75-100%", IF('GOM Scores and Quartiles'!BL28>='Scenario Weighting'!F$23, "50-75%", IF('GOM Scores and Quartiles'!BL28>='Scenario Weighting'!F$22, "25-50%", "0-25%")))) -> 
A29: 24 | B29: 36731 | C29: -96.53514766 | D29: 26.14330999 | E29: 1671 | F29: 101.1164253 | G29: 860 | H29: 84.60658618 | I29: 5 | J29: 164.4893132 | K29: 0 | L29: 0 | M29: 0 | N29: 0 | O29: 1 | P29: 0 | Q29: 0 | R29: 1 | S29: 1 | T29: 0 | U29: 2 | V29: 0 | W29: 0 | X29: 0 | Y29: 0 | Z29: 0 | AA29: 0 | AB29: 1 | AC29: 3 | AD29: 18.94 | AE29: 1474.74 | AF29: 1263 | AG29: 583.48 | AH29: 194.4933333 | AI29: 0 | AJ29: 0 | AK29: 0 | AL29: 11233399.48 | AM29: 12343 | AN29: 4114.333333 | AO29: 4.457861635 | AP29: 0 | AQ29: 0 | AR29: 0 | AS29: 0 | AT29: 0 | AU29: 0 | AV29: 0 | AW29: 66.25686 | AX29: 0 | AY29: 87.97906536 | AZ29: 49.91427193 | BA29: 87.97906536 | BB29: 49.91427193 | BC29: 0 | BD29: 100 | BE29: 99.15966387 | BF29: 0 | BG29: 4.238335891 | BH29: 8.331323788 | BI29: =($BG29*'Scenario Weighting'!E$3)+('GOM Scores and Quartiles'!$BH29*'Scenario Weighting'!E$4)+('GOM Scores and Quartiles'!$AP29*'Scenario Weighting'!E$5)+('GOM Scores and Quartiles'!$AQ29*'Scenario Weighting'!E$6)+('GOM Scores and Quartiles'!$AR29*'Scenario Weighting'!E$7)+('GOM Scores and Quartiles'!$AS29*'Scenario Weighting'!E$12)+('GOM Scores and Quartiles'!$AT29*'Scenario Weighting'!E$8)+('GOM Scores and Quartiles'!$AU29*'Scenario Weighting'!E$9)+('GOM Scores and Quartiles'!$AV29*'Scenario Weighting'!E$10)+('GOM Scores and Quartiles'!$AW29*'Scenario Weighting'!E$11)+('GOM Scores and Quartiles'!$AX29*'Scenario Weighting'!E$13)+('GOM Scores and Quartiles'!$AZ29*'Scenario Weighting'!E$14)+('GOM Scores and Quartiles'!$BB29*'Scenario Weighting'!E$15)+('GOM Scores and Quartiles'!$BC29*'Scenario Weighting'!E$16)+('GOM Scores and Quartiles'!$BE29*'Scenario Weighting'!E$17)+('GOM Scores and Quartiles'!$BF29*'Scenario Weighting'!E$18) -> 25.46860981 | BJ29: =IF(AR29=0, "", ($BG29*'Scenario Weighting'!F$3)+('GOM Scores and Quartiles'!$BH29*'Scenario Weighting'!F$4)+('GOM Scores and Quartiles'!$AP29*'Scenario Weighting'!F$5)+('GOM Scores and Quartiles'!$AQ29*'Scenario Weighting'!F$6)+('GOM Scores and Quartiles'!$AR29*'Scenario Weighting'!F$7)+('GOM Scores and Quartiles'!$AS29*'Scenario Weighting'!F$12)+('GOM Scores and Quartiles'!$AT29*'Scenario Weighting'!F$8)+('GOM Scores and Quartiles'!$AU29*'Scenario Weighting'!F$9)+('GOM Scores and Quartiles'!$AV29*'Scenario Weighting'!F$10)+('GOM Scores and Quartiles'!$AW29*'Scenario Weighting'!F$11)+('GOM Scores and Quartiles'!$AX29*'Scenario Weighting'!F$13)+('GOM Scores and Quartiles'!$AZ29*'Scenario Weighting'!F$14)+('GOM Scores and Quartiles'!$BB29*'Scenario Weighting'!F$15)+('GOM Scores and Quartiles'!$BC29*'Scenario Weighting'!F$16)+('GOM Scores and Quartiles'!$BE29*'Scenario Weighting'!F$17)+('GOM Scores and Quartiles'!$BF29*'Scenario Weighting'!F$18)) ->  | BK29: =('GOM Scores and Quartiles'!$BG29*0.12)+('GOM Scores and Quartiles'!$BH29*0.12)+('GOM Scores and Quartiles'!$AS29*0.2)+('GOM Scores and Quartiles'!$AT29*0.05)+('GOM Scores and Quartiles'!$AU29*0.1)+('GOM Scores and Quartiles'!$AV29*0.2)+('GOM Scores and Quartiles'!$AW29*0.1)+('GOM Scores and Quartiles'!$BE29*0.07)+('GOM Scores and Quartiles'!$BF29*0.04) -> 15.07522163 | BL29: =IF(AR29=0, "", ($BG29*'Scenario Weighting'!H$3)+('GOM Scores and Quartiles'!$BH29*'Scenario Weighting'!H$4)+('GOM Scores and Quartiles'!$AP29*'Scenario Weighting'!H$5)+('GOM Scores and Quartiles'!$AQ29*'Scenario Weighting'!H$6)+('GOM Scores and Quartiles'!$AR29*'Scenario Weighting'!H$7)+('GOM Scores and Quartiles'!$AS29*'Scenario Weighting'!H$12)+('GOM Scores and Quartiles'!$AT29*'Scenario Weighting'!H$8)+('GOM Scores and Quartiles'!$AU29*'Scenario Weighting'!H$9)+('GOM Scores and Quartiles'!$AV29*'Scenario Weighting'!H$10)+('GOM Scores and Quartiles'!$AW29*'Scenario Weighting'!H$11)+('GOM Scores and Quartiles'!$AX29*'Scenario Weighting'!H$13)+('GOM Scores and Quartiles'!$AZ29*'Scenario Weighting'!H$14)+('GOM Scores and Quartiles'!$BB29*'Scenario Weighting'!H$15)+('GOM Scores and Quartiles'!$BC29*'Scenario Weighting'!H$16)+('GOM Scores and Quartiles'!$BE29*'Scenario Weighting'!H$17)+('GOM Scores and Quartiles'!$BF29*'Scenario Weighting'!H$18)) ->  | BM29: =IF(BI29>='Scenario Weighting'!C$24, "75-100%", IF('GOM Scores and Quartiles'!BI29>='Scenario Weighting'!C$23, "50-75%", IF('GOM Scores and Quartiles'!BI29>='Scenario Weighting'!C$22, "25-50%", "0-25%"))) -> 0-25% | BN29: =IF(BJ29="", "", IF(BJ29>='Scenario Weighting'!D$24, "75-100%", IF('GOM Scores and Quartiles'!BJ29>='Scenario Weighting'!D$23, "50-75%", IF('GOM Scores and Quartiles'!BJ29>='Scenario Weighting'!D$22, "25-50%", "0-25%")))) ->  | BO29: =IF(BK29>='Scenario Weighting'!E$24, "75-100%", IF('GOM Scores and Quartiles'!BK29>='Scenario Weighting'!E$23, "50-75%", IF('GOM Scores and Quartiles'!BK29>='Scenario Weighting'!E$22, "25-50%", "0-25%"))) -> 0-25% | BP29: =IF(BL29="", "", IF(BL29>='Scenario Weighting'!F$24, "75-100%", IF('GOM Scores and Quartiles'!BL29>='Scenario Weighting'!F$23, "50-75%", IF('GOM Scores and Quartiles'!BL29>='Scenario Weighting'!F$22, "25-50%", "0-25%")))) -> 
A30: 25 | B30: 36732 | C30: -96.46366341 | D30: 26.07182575 | E30: 1671 | F30: 106.8112164 | G30: 860 | H30: 90.34329116 | I30: 5 | J30: 158.4770342 | K30: 0 | L30: 0 | M30: 0 | N30: 0 | O30: 0 | P30: 0 | Q30: 1 | R30: 1 | S30: 0 | T30: 0 | U30: 0 | V30: 0 | W30: 0 | X30: 0 | Y30: 0 | Z30: 0 | AA30: 0 | AB30: 1 | AC30: 2 | AD30: 14.39 | AE30: 808.88 | AF30: 686 | AG30: 393.08 | AH30: 196.54 | AI30: 0 | AJ30: 0 | AK30: 0 | AL30: 7856433.98 | AM30: 6539 | AN30: 3269.5 | AO30: 3.313207547 | AP30: 0 | AQ30: 0 | AR30: 0 | AS30: 0 | AT30: 0 | AU30: 0 | AV30: 0 | AW30: 63.80788701 | AX30: 100 | AY30: 98.42372043 | AZ30: 49.28388826 | BA30: 98.42372043 | BB30: 49.28388826 | BC30: 0 | BD30: 100 | BE30: 100 | BF30: 100 | BG30: 2.005525523 | BH30: 5.504904459 | BI30: =($BG30*'Scenario Weighting'!E$3)+('GOM Scores and Quartiles'!$BH30*'Scenario Weighting'!E$4)+('GOM Scores and Quartiles'!$AP30*'Scenario Weighting'!E$5)+('GOM Scores and Quartiles'!$AQ30*'Scenario Weighting'!E$6)+('GOM Scores and Quartiles'!$AR30*'Scenario Weighting'!E$7)+('GOM Scores and Quartiles'!$AS30*'Scenario Weighting'!E$12)+('GOM Scores and Quartiles'!$AT30*'Scenario Weighting'!E$8)+('GOM Scores and Quartiles'!$AU30*'Scenario Weighting'!E$9)+('GOM Scores and Quartiles'!$AV30*'Scenario Weighting'!E$10)+('GOM Scores and Quartiles'!$AW30*'Scenario Weighting'!E$11)+('GOM Scores and Quartiles'!$AX30*'Scenario Weighting'!E$13)+('GOM Scores and Quartiles'!$AZ30*'Scenario Weighting'!E$14)+('GOM Scores and Quartiles'!$BB30*'Scenario Weighting'!E$15)+('GOM Scores and Quartiles'!$BC30*'Scenario Weighting'!E$16)+('GOM Scores and Quartiles'!$BE30*'Scenario Weighting'!E$17)+('GOM Scores and Quartiles'!$BF30*'Scenario Weighting'!E$18) -> 32.29251968 | BJ30: =IF(AR30=0, "", ($BG30*'Scenario Weighting'!F$3)+('GOM Scores and Quartiles'!$BH30*'Scenario Weighting'!F$4)+('GOM Scores and Quartiles'!$AP30*'Scenario Weighting'!F$5)+('GOM Scores and Quartiles'!$AQ30*'Scenario Weighting'!F$6)+('GOM Scores and Quartiles'!$AR30*'Scenario Weighting'!F$7)+('GOM Scores and Quartiles'!$AS30*'Scenario Weighting'!F$12)+('GOM Scores and Quartiles'!$AT30*'Scenario Weighting'!F$8)+('GOM Scores and Quartiles'!$AU30*'Scenario Weighting'!F$9)+('GOM Scores and Quartiles'!$AV30*'Scenario Weighting'!F$10)+('GOM Scores and Quartiles'!$AW30*'Scenario Weighting'!F$11)+('GOM Scores and Quartiles'!$AX30*'Scenario Weighting'!F$13)+('GOM Scores and Quartiles'!$AZ30*'Scenario Weighting'!F$14)+('GOM Scores and Quartiles'!$BB30*'Scenario Weighting'!F$15)+('GOM Scores and Quartiles'!$BC30*'Scenario Weighting'!F$16)+('GOM Scores and Quartiles'!$BE30*'Scenario Weighting'!F$17)+('GOM Scores and Quartiles'!$BF30*'Scenario Weighting'!F$18)) ->  | BK30: =('GOM Scores and Quartiles'!$BG30*0.12)+('GOM Scores and Quartiles'!$BH30*0.12)+('GOM Scores and Quartiles'!$AS30*0.2)+('GOM Scores and Quartiles'!$AT30*0.05)+('GOM Scores and Quartiles'!$AU30*0.1)+('GOM Scores and Quartiles'!$AV30*0.2)+('GOM Scores and Quartiles'!$AW30*0.1)+('GOM Scores and Quartiles'!$BE30*0.07)+('GOM Scores and Quartiles'!$BF30*0.04) -> 18.2820403 | BL30: =IF(AR30=0, "", ($BG30*'Scenario Weighting'!H$3)+('GOM Scores and Quartiles'!$BH30*'Scenario Weighting'!H$4)+('GOM Scores and Quartiles'!$AP30*'Scenario Weighting'!H$5)+('GOM Scores and Quartiles'!$AQ30*'Scenario Weighting'!H$6)+('GOM Scores and Quartiles'!$AR30*'Scenario Weighting'!H$7)+('GOM Scores and Quartiles'!$AS30*'Scenario Weighting'!H$12)+('GOM Scores and Quartiles'!$AT30*'Scenario Weighting'!H$8)+('GOM Scores and Quartiles'!$AU30*'Scenario Weighting'!H$9)+('GOM Scores and Quartiles'!$AV30*'Scenario Weighting'!H$10)+('GOM Scores and Quartiles'!$AW30*'Scenario Weighting'!H$11)+('GOM Scores and Quartiles'!$AX30*'Scenario Weighting'!H$13)+('GOM Scores and Quartiles'!$AZ30*'Scenario Weighting'!H$14)+('GOM Scores and Quartiles'!$BB30*'Scenario Weighting'!H$15)+('GOM Scores and Quartiles'!$BC30*'Scenario Weighting'!H$16)+('GOM Scores and Quartiles'!$BE30*'Scenario Weighting'!H$17)+('GOM Scores and Quartiles'!$BF30*'Scenario Weighting'!H$18)) ->  | BM30: =IF(BI30>='Scenario Weighting'!C$24, "75-100%", IF('GOM Scores and Quartiles'!BI30>='Scenario Weighting'!C$23, "50-75%", IF('GOM Scores and Quartiles'!BI30>='Scenario Weighting'!C$22, "25-50%", "0-25%"))) -> 0-25% | BN30: =IF(BJ30="", "", IF(BJ30>='Scenario Weighting'!D$24, "75-100%", IF('GOM Scores and Quartiles'!BJ30>='Scenario Weighting'!D$23, "50-75%", IF('GOM Scores and Quartiles'!BJ30>='Scenario Weighting'!D$22, "25-50%", "0-25%")))) ->  | BO30: =IF(BK30>='Scenario Weighting'!E$24, "75-100%", IF('GOM Scores and Quartiles'!BK30>='Scenario Weighting'!E$23, "50-75%", IF('GOM Scores and Quartiles'!BK30>='Scenario Weighting'!E$22, "25-50%", "0-25%"))) -> 0-25% | BP30: =IF(BL30="", "", IF(BL30>='Scenario Weighting'!F$24, "75-100%", IF('GOM Scores and Quartiles'!BL30>='Scenario Weighting'!F$23, "50-75%", IF('GOM Scores and Quartiles'!BL30>='Scenario Weighting'!F$22, "25-50%", "0-25%")))) -> 
A31: 26 | B31: 36733 | C31: -96.39217916 | D31: 26.07182575 | E31: 1671 | F31: 113.8870073 | G31: 860 | H31: 97.45353436 | I31: 5 | J31: 151.4235663 | K31: 0 | L31: 0 | M31: 0 | N31: 0 | O31: 0 | P31: 0 | Q31: 1 | R31: 1 | S31: 0 | T31: 0 | U31: 0 | V31: 0 | W31: 0 | X31: 0 | Y31: 0 | Z31: 0 | AA31: 0 | AB31: 1 | AC31: 1 | AD31: 1.22 | AE31: 210.8 | AF31: 351 | AG31: 196.33 | AH31: 196.33 | AI31: 0 | AJ31: 0 | AK31: 0 | AL31: 1726869.1 | AM31: 3142 | AN31: 3142 | AO31: 0 | AP31: 0 | AQ31: 0 | AR31: 0 | AS31: 0 | AT31: 0 | AU31: 0 | AV31: 0 | AW31: 60.93480801 | AX31: 100 | AY31: 100 | AZ31: 49.34856932 | BA31: 100 | BB31: 49.34856932 | BC31: 0 | BD31: 100 | BE31: 100 | BF31: 100 | BG31: 0 | BH31: 0.3746416083 | BI31: =($BG31*'Scenario Weighting'!E$3)+('GOM Scores and Quartiles'!$BH31*'Scenario Weighting'!E$4)+('GOM Scores and Quartiles'!$AP31*'Scenario Weighting'!E$5)+('GOM Scores and Quartiles'!$AQ31*'Scenario Weighting'!E$6)+('GOM Scores and Quartiles'!$AR31*'Scenario Weighting'!E$7)+('GOM Scores and Quartiles'!$AS31*'Scenario Weighting'!E$12)+('GOM Scores and Quartiles'!$AT31*'Scenario Weighting'!E$8)+('GOM Scores and Quartiles'!$AU31*'Scenario Weighting'!E$9)+('GOM Scores and Quartiles'!$AV31*'Scenario Weighting'!E$10)+('GOM Scores and Quartiles'!$AW31*'Scenario Weighting'!E$11)+('GOM Scores and Quartiles'!$AX31*'Scenario Weighting'!E$13)+('GOM Scores and Quartiles'!$AZ31*'Scenario Weighting'!E$14)+('GOM Scores and Quartiles'!$BB31*'Scenario Weighting'!E$15)+('GOM Scores and Quartiles'!$BC31*'Scenario Weighting'!E$16)+('GOM Scores and Quartiles'!$BE31*'Scenario Weighting'!E$17)+('GOM Scores and Quartiles'!$BF31*'Scenario Weighting'!E$18) -> 30.95424784 | BJ31: =IF(AR31=0, "", ($BG31*'Scenario Weighting'!F$3)+('GOM Scores and Quartiles'!$BH31*'Scenario Weighting'!F$4)+('GOM Scores and Quartiles'!$AP31*'Scenario Weighting'!F$5)+('GOM Scores and Quartiles'!$AQ31*'Scenario Weighting'!F$6)+('GOM Scores and Quartiles'!$AR31*'Scenario Weighting'!F$7)+('GOM Scores and Quartiles'!$AS31*'Scenario Weighting'!F$12)+('GOM Scores and Quartiles'!$AT31*'Scenario Weighting'!F$8)+('GOM Scores and Quartiles'!$AU31*'Scenario Weighting'!F$9)+('GOM Scores and Quartiles'!$AV31*'Scenario Weighting'!F$10)+('GOM Scores and Quartiles'!$AW31*'Scenario Weighting'!F$11)+('GOM Scores and Quartiles'!$AX31*'Scenario Weighting'!F$13)+('GOM Scores and Quartiles'!$AZ31*'Scenario Weighting'!F$14)+('GOM Scores and Quartiles'!$BB31*'Scenario Weighting'!F$15)+('GOM Scores and Quartiles'!$BC31*'Scenario Weighting'!F$16)+('GOM Scores and Quartiles'!$BE31*'Scenario Weighting'!F$17)+('GOM Scores and Quartiles'!$BF31*'Scenario Weighting'!F$18)) ->  | BK31: =('GOM Scores and Quartiles'!$BG31*0.12)+('GOM Scores and Quartiles'!$BH31*0.12)+('GOM Scores and Quartiles'!$AS31*0.2)+('GOM Scores and Quartiles'!$AT31*0.05)+('GOM Scores and Quartiles'!$AU31*0.1)+('GOM Scores and Quartiles'!$AV31*0.2)+('GOM Scores and Quartiles'!$AW31*0.1)+('GOM Scores and Quartiles'!$BE31*0.07)+('GOM Scores and Quartiles'!$BF31*0.04) -> 17.13843779 | BL31: =IF(AR31=0, "", ($BG31*'Scenario Weighting'!H$3)+('GOM Scores and Quartiles'!$BH31*'Scenario Weighting'!H$4)+('GOM Scores and Quartiles'!$AP31*'Scenario Weighting'!H$5)+('GOM Scores and Quartiles'!$AQ31*'Scenario Weighting'!H$6)+('GOM Scores and Quartiles'!$AR31*'Scenario Weighting'!H$7)+('GOM Scores and Quartiles'!$AS31*'Scenario Weighting'!H$12)+('GOM Scores and Quartiles'!$AT31*'Scenario Weighting'!H$8)+('GOM Scores and Quartiles'!$AU31*'Scenario Weighting'!H$9)+('GOM Scores and Quartiles'!$AV31*'Scenario Weighting'!H$10)+('GOM Scores and Quartiles'!$AW31*'Scenario Weighting'!H$11)+('GOM Scores and Quartiles'!$AX31*'Scenario Weighting'!H$13)+('GOM Scores and Quartiles'!$AZ31*'Scenario Weighting'!H$14)+('GOM Scores and Quartiles'!$BB31*'Scenario Weighting'!H$15)+('GOM Scores and Quartiles'!$BC31*'Scenario Weighting'!H$16)+('GOM Scores and Quartiles'!$BE31*'Scenario Weighting'!H$17)+('GOM Scores and Quartiles'!$BF31*'Scenario Weighting'!H$18)) ->  | BM31: =IF(BI31>='Scenario Weighting'!C$24, "75-100%", IF('GOM Scores and Quartiles'!BI31>='Scenario Weighting'!C$23, "50-75%", IF('GOM Scores and Quartiles'!BI31>='Scenario Weighting'!C$22, "25-50%", "0-25%"))) -> 0-25% | BN31: =IF(BJ31="", "", IF(BJ31>='Scenario Weighting'!D$24, "75-100%", IF('GOM Scores and Quartiles'!BJ31>='Scenario Weighting'!D$23, "50-75%", IF('GOM Scores and Quartiles'!BJ31>='Scenario Weighting'!D$22, "25-50%", "0-25%")))) ->  | BO31: =IF(BK31>='Scenario Weighting'!E$24, "75-100%", IF('GOM Scores and Quartiles'!BK31>='Scenario Weighting'!E$23, "50-75%", IF('GOM Scores and Quartiles'!BK31>='Scenario Weighting'!E$22, "25-50%", "0-25%"))) -> 0-25% | BP31: =IF(BL31="", "", IF(BL31>='Scenario Weighting'!F$24, "75-100%", IF('GOM Scores and Quartiles'!BL31>='Scenario Weighting'!F$23, "50-75%", IF('GOM Scores and Quartiles'!BL31>='Scenario Weighting'!F$22, "25-50%", "0-25%")))) -> 
A32: 27 | B32: 36734 | C32: -96.46366341 | D32: 26.14330999 | E32: 1671 | F32: 108.0923031 | G32: 860 | H32: 91.59884519 | I32: 5 | J32: 157.3853257 | K32: 0 | L32: 0 | M32: 0 | N32: 0 | O32: 0 | P32: 0 | Q32: 0 | R32: 1 | S32: 0 | T32: 0 | U32: 0 | V32: 0 | W32: 0 | X32: 0 | Y32: 0 | Z32: 0 | AA32: 0 | AB32: 1 | AC32: 2 | AD32: 14.39 | AE32: 808.88 | AF32: 686 | AG32: 393.08 | AH32: 196.54 | AI32: 0 | AJ32: 0 | AK32: 0 | AL32: 7856433.98 | AM32: 6539 | AN32: 3269.5 | AO32: 3.313207547 | AP32: 0 | AQ32: 0 | AR32: 0 | AS32: 0 | AT32: 0 | AU32: 0 | AV32: 0 | AW32: 63.36320296 | AX32: 0 | AY32: 98.42372043 | AZ32: 49.28388826 | BA32: 98.42372043 | BB32: 49.28388826 | BC32: 0 | BD32: 100 | BE32: 100 | BF32: 100 | BG32: 2.005525523 | BH32: 5.504904459 | BI32: =($BG32*'Scenario Weighting'!E$3)+('GOM Scores and Quartiles'!$BH32*'Scenario Weighting'!E$4)+('GOM Scores and Quartiles'!$AP32*'Scenario Weighting'!E$5)+('GOM Scores and Quartiles'!$AQ32*'Scenario Weighting'!E$6)+('GOM Scores and Quartiles'!$AR32*'Scenario Weighting'!E$7)+('GOM Scores and Quartiles'!$AS32*'Scenario Weighting'!E$12)+('GOM Scores and Quartiles'!$AT32*'Scenario Weighting'!E$8)+('GOM Scores and Quartiles'!$AU32*'Scenario Weighting'!E$9)+('GOM Scores and Quartiles'!$AV32*'Scenario Weighting'!E$10)+('GOM Scores and Quartiles'!$AW32*'Scenario Weighting'!E$11)+('GOM Scores and Quartiles'!$AX32*'Scenario Weighting'!E$13)+('GOM Scores and Quartiles'!$AZ32*'Scenario Weighting'!E$14)+('GOM Scores and Quartiles'!$BB32*'Scenario Weighting'!E$15)+('GOM Scores and Quartiles'!$BC32*'Scenario Weighting'!E$16)+('GOM Scores and Quartiles'!$BE32*'Scenario Weighting'!E$17)+('GOM Scores and Quartiles'!$BF32*'Scenario Weighting'!E$18) -> 29.24805127 | BJ32: =IF(AR32=0, "", ($BG32*'Scenario Weighting'!F$3)+('GOM Scores and Quartiles'!$BH32*'Scenario Weighting'!F$4)+('GOM Scores and Quartiles'!$AP32*'Scenario Weighting'!F$5)+('GOM Scores and Quartiles'!$AQ32*'Scenario Weighting'!F$6)+('GOM Scores and Quartiles'!$AR32*'Scenario Weighting'!F$7)+('GOM Scores and Quartiles'!$AS32*'Scenario Weighting'!F$12)+('GOM Scores and Quartiles'!$AT32*'Scenario Weighting'!F$8)+('GOM Scores and Quartiles'!$AU32*'Scenario Weighting'!F$9)+('GOM Scores and Quartiles'!$AV32*'Scenario Weighting'!F$10)+('GOM Scores and Quartiles'!$AW32*'Scenario Weighting'!F$11)+('GOM Scores and Quartiles'!$AX32*'Scenario Weighting'!F$13)+('GOM Scores and Quartiles'!$AZ32*'Scenario Weighting'!F$14)+('GOM Scores and Quartiles'!$BB32*'Scenario Weighting'!F$15)+('GOM Scores and Quartiles'!$BC32*'Scenario Weighting'!F$16)+('GOM Scores and Quartiles'!$BE32*'Scenario Weighting'!F$17)+('GOM Scores and Quartiles'!$BF32*'Scenario Weighting'!F$18)) ->  | BK32: =('GOM Scores and Quartiles'!$BG32*0.12)+('GOM Scores and Quartiles'!$BH32*0.12)+('GOM Scores and Quartiles'!$AS32*0.2)+('GOM Scores and Quartiles'!$AT32*0.05)+('GOM Scores and Quartiles'!$AU32*0.1)+('GOM Scores and Quartiles'!$AV32*0.2)+('GOM Scores and Quartiles'!$AW32*0.1)+('GOM Scores and Quartiles'!$BE32*0.07)+('GOM Scores and Quartiles'!$BF32*0.04) -> 18.23757189 | BL32: =IF(AR32=0, "", ($BG32*'Scenario Weighting'!H$3)+('GOM Scores and Quartiles'!$BH32*'Scenario Weighting'!H$4)+('GOM Scores and Quartiles'!$AP32*'Scenario Weighting'!H$5)+('GOM Scores and Quartiles'!$AQ32*'Scenario Weighting'!H$6)+('GOM Scores and Quartiles'!$AR32*'Scenario Weighting'!H$7)+('GOM Scores and Quartiles'!$AS32*'Scenario Weighting'!H$12)+('GOM Scores and Quartiles'!$AT32*'Scenario Weighting'!H$8)+('GOM Scores and Quartiles'!$AU32*'Scenario Weighting'!H$9)+('GOM Scores and Quartiles'!$AV32*'Scenario Weighting'!H$10)+('GOM Scores and Quartiles'!$AW32*'Scenario Weighting'!H$11)+('GOM Scores and Quartiles'!$AX32*'Scenario Weighting'!H$13)+('GOM Scores and Quartiles'!$AZ32*'Scenario Weighting'!H$14)+('GOM Scores and Quartiles'!$BB32*'Scenario Weighting'!H$15)+('GOM Scores and Quartiles'!$BC32*'Scenario Weighting'!H$16)+('GOM Scores and Quartiles'!$BE32*'Scenario Weighting'!H$17)+('GOM Scores and Quartiles'!$BF32*'Scenario Weighting'!H$18)) ->  | BM32: =IF(BI32>='Scenario Weighting'!C$24, "75-100%", IF('GOM Scores and Quartiles'!BI32>='Scenario Weighting'!C$23, "50-75%", IF('GOM Scores and Quartiles'!BI32>='Scenario Weighting'!C$22, "25-50%", "0-25%"))) -> 0-25% | BN32: =IF(BJ32="", "", IF(BJ32>='Scenario Weighting'!D$24, "75-100%", IF('GOM Scores and Quartiles'!BJ32>='Scenario Weighting'!D$23, "50-75%", IF('GOM Scores and Quartiles'!BJ32>='Scenario Weighting'!D$22, "25-50%", "0-25%")))) ->  | BO32: =IF(BK32>='Scenario Weighting'!E$24, "75-100%", IF('GOM Scores and Quartiles'!BK32>='Scenario Weighting'!E$23, "50-75%", IF('GOM Scores and Quartiles'!BK32>='Scenario Weighting'!E$22, "25-50%", "0-25%"))) -> 0-25% | BP32: =IF(BL32="", "", IF(BL32>='Scenario Weighting'!F$24, "75-100%", IF('GOM Scores and Quartiles'!BL32>='Scenario Weighting'!F$23, "50-75%", IF('GOM Scores and Quartiles'!BL32>='Scenario Weighting'!F$22, "25-50%", "0-25%")))) -> 
A33: 28 | B33: 36735 | C33: -96.39217916 | D33: 26.14330999 | E33: 1671 | F33: 115.0893587 | G33: 860 | H33: 98.61450363 | I33: 5 | J33: 150.2850583 | K33: 0 | L33: 0 | M33: 0 | N33: 0 | O33: 0 | P33: 0 | Q33: 0 | R33: 1 | S33: 0 | T33: 0 | U33: 0 | V33: 0 | W33: 0 | X33: 0 | Y33: 0 | Z33: 0 | AA33: 0 | AB33: 1 | AC33: 1 | AD33: 1.22 | AE33: 210.8 | AF33: 351 | AG33: 196.33 | AH33: 196.33 | AI33: 0 | AJ33: 0 | AK33: 0 | AL33: 1726869.1 | AM33: 3142 | AN33: 3142 | AO33: 0 | AP33: 0 | AQ33: 0 | AR33: 0 | AS33: 0 | AT33: 0 | AU33: 0 | AV33: 0 | AW33: 60.47106119 | AX33: 0 | AY33: 100 | AZ33: 49.34856932 | BA33: 100 | BB33: 49.34856932 | BC33: 0 | BD33: 100 | BE33: 100 | BF33: 100 | BG33: 0 | BH33: 0.3746416083 | BI33: =($BG33*'Scenario Weighting'!E$3)+('GOM Scores and Quartiles'!$BH33*'Scenario Weighting'!E$4)+('GOM Scores and Quartiles'!$AP33*'Scenario Weighting'!E$5)+('GOM Scores and Quartiles'!$AQ33*'Scenario Weighting'!E$6)+('GOM Scores and Quartiles'!$AR33*'Scenario Weighting'!E$7)+('GOM Scores and Quartiles'!$AS33*'Scenario Weighting'!E$12)+('GOM Scores and Quartiles'!$AT33*'Scenario Weighting'!E$8)+('GOM Scores and Quartiles'!$AU33*'Scenario Weighting'!E$9)+('GOM Scores and Quartiles'!$AV33*'Scenario Weighting'!E$10)+('GOM Scores and Quartiles'!$AW33*'Scenario Weighting'!E$11)+('GOM Scores and Quartiles'!$AX33*'Scenario Weighting'!E$13)+('GOM Scores and Quartiles'!$AZ33*'Scenario Weighting'!E$14)+('GOM Scores and Quartiles'!$BB33*'Scenario Weighting'!E$15)+('GOM Scores and Quartiles'!$BC33*'Scenario Weighting'!E$16)+('GOM Scores and Quartiles'!$BE33*'Scenario Weighting'!E$17)+('GOM Scores and Quartiles'!$BF33*'Scenario Weighting'!E$18) -> 27.90787316 | BJ33: =IF(AR33=0, "", ($BG33*'Scenario Weighting'!F$3)+('GOM Scores and Quartiles'!$BH33*'Scenario Weighting'!F$4)+('GOM Scores and Quartiles'!$AP33*'Scenario Weighting'!F$5)+('GOM Scores and Quartiles'!$AQ33*'Scenario Weighting'!F$6)+('GOM Scores and Quartiles'!$AR33*'Scenario Weighting'!F$7)+('GOM Scores and Quartiles'!$AS33*'Scenario Weighting'!F$12)+('GOM Scores and Quartiles'!$AT33*'Scenario Weighting'!F$8)+('GOM Scores and Quartiles'!$AU33*'Scenario Weighting'!F$9)+('GOM Scores and Quartiles'!$AV33*'Scenario Weighting'!F$10)+('GOM Scores and Quartiles'!$AW33*'Scenario Weighting'!F$11)+('GOM Scores and Quartiles'!$AX33*'Scenario Weighting'!F$13)+('GOM Scores and Quartiles'!$AZ33*'Scenario Weighting'!F$14)+('GOM Scores and Quartiles'!$BB33*'Scenario Weighting'!F$15)+('GOM Scores and Quartiles'!$BC33*'Scenario Weighting'!F$16)+('GOM Scores and Quartiles'!$BE33*'Scenario Weighting'!F$17)+('GOM Scores and Quartiles'!$BF33*'Scenario Weighting'!F$18)) ->  | BK33: =('GOM Scores and Quartiles'!$BG33*0.12)+('GOM Scores and Quartiles'!$BH33*0.12)+('GOM Scores and Quartiles'!$AS33*0.2)+('GOM Scores and Quartiles'!$AT33*0.05)+('GOM Scores and Quartiles'!$AU33*0.1)+('GOM Scores and Quartiles'!$AV33*0.2)+('GOM Scores and Quartiles'!$AW33*0.1)+('GOM Scores and Quartiles'!$BE33*0.07)+('GOM Scores and Quartiles'!$BF33*0.04) -> 17.09206311 | BL33: =IF(AR33=0, "", ($BG33*'Scenario Weighting'!H$3)+('GOM Scores and Quartiles'!$BH33*'Scenario Weighting'!H$4)+('GOM Scores and Quartiles'!$AP33*'Scenario Weighting'!H$5)+('GOM Scores and Quartiles'!$AQ33*'Scenario Weighting'!H$6)+('GOM Scores and Quartiles'!$AR33*'Scenario Weighting'!H$7)+('GOM Scores and Quartiles'!$AS33*'Scenario Weighting'!H$12)+('GOM Scores and Quartiles'!$AT33*'Scenario Weighting'!H$8)+('GOM Scores and Quartiles'!$AU33*'Scenario Weighting'!H$9)+('GOM Scores and Quartiles'!$AV33*'Scenario Weighting'!H$10)+('GOM Scores and Quartiles'!$AW33*'Scenario Weighting'!H$11)+('GOM Scores and Quartiles'!$AX33*'Scenario Weighting'!H$13)+('GOM Scores and Quartiles'!$AZ33*'Scenario Weighting'!H$14)+('GOM Scores and Quartiles'!$BB33*'Scenario Weighting'!H$15)+('GOM Scores and Quartiles'!$BC33*'Scenario Weighting'!H$16)+('GOM Scores and Quartiles'!$BE33*'Scenario Weighting'!H$17)+('GOM Scores and Quartiles'!$BF33*'Scenario Weighting'!H$18)) ->  | BM33: =IF(BI33>='Scenario Weighting'!C$24, "75-100%", IF('GOM Scores and Quartiles'!BI33>='Scenario Weighting'!C$23, "50-75%", IF('GOM Scores and Quartiles'!BI33>='Scenario Weighting'!C$22, "25-50%", "0-25%"))) -> 0-25% | BN33: =IF(BJ33="", "", IF(BJ33>='Scenario Weighting'!D$24, "75-100%", IF('GOM Scores and Quartiles'!BJ33>='Scenario Weighting'!D$23, "50-75%", IF('GOM Scores and Quartiles'!BJ33>='Scenario Weighting'!D$22, "25-50%", "0-25%")))) ->  | BO33: =IF(BK33>='Scenario Weighting'!E$24, "75-100%", IF('GOM Scores and Quartiles'!BK33>='Scenario Weighting'!E$23, "50-75%", IF('GOM Scores and Quartiles'!BK33>='Scenario Weighting'!E$22, "25-50%", "0-25%"))) -> 0-25% | BP33: =IF(BL33="", "", IF(BL33>='Scenario Weighting'!F$24, "75-100%", IF('GOM Scores and Quartiles'!BL33>='Scenario Weighting'!F$23, "50-75%", IF('GOM Scores and Quartiles'!BL33>='Scenario Weighting'!F$22, "25-50%", "0-25%")))) -> 
A34: 29 | B34: 37012 | C34: -97.03553738 | D34: 26.21479424 | E34: 1671 | F34: 56.98893686 | G34: 860 | H34: 41.94098174 | I34: 286 | J34: 114.1116176 | K34: 0 | L34: 0 | M34: 0 | N34: 0 | O34: 1 | P34: 0 | Q34: 1 | R34: 1 | S34: 1 | T34: 0 | U34: 0 | V34: 0 | W34: 0 | X34: 0 | Y34: 0 | Z34: 0 | AA34: 0 | AB34: 5 | AC34: 6 | AD34: 33.68 | AE34: 3987.42 | AF34: 3572 | AG34: 823.18 | AH34: 137.1966667 | AI34: 0 | AJ34: 0 | AK34: 0 | AL34: 17394065.31 | AM34: 37178 | AN34: 6196.333333 | AO34: 8.166037736 | AP34: 0 | AQ34: 0 | AR34: 0 | AS34: 0 | AT34: 0 | AU34: 0 | AV34: 0 | AW34: 45.73658541 | AX34: 100 | AY34: 62.23934723 | AZ34: 67.56193468 | BA34: 62.23934723 | BB34: 67.56193468 | BC34: 0 | BD34: 100 | BE34: 100 | BF34: 0 | BG34: 12.66403792 | BH34: 13.48761721 | BI34: =($BG34*'Scenario Weighting'!E$3)+('GOM Scores and Quartiles'!$BH34*'Scenario Weighting'!E$4)+('GOM Scores and Quartiles'!$AP34*'Scenario Weighting'!E$5)+('GOM Scores and Quartiles'!$AQ34*'Scenario Weighting'!E$6)+('GOM Scores and Quartiles'!$AR34*'Scenario Weighting'!E$7)+('GOM Scores and Quartiles'!$AS34*'Scenario Weighting'!E$12)+('GOM Scores and Quartiles'!$AT34*'Scenario Weighting'!E$8)+('GOM Scores and Quartiles'!$AU34*'Scenario Weighting'!E$9)+('GOM Scores and Quartiles'!$AV34*'Scenario Weighting'!E$10)+('GOM Scores and Quartiles'!$AW34*'Scenario Weighting'!E$11)+('GOM Scores and Quartiles'!$AX34*'Scenario Weighting'!E$13)+('GOM Scores and Quartiles'!$AZ34*'Scenario Weighting'!E$14)+('GOM Scores and Quartiles'!$BB34*'Scenario Weighting'!E$15)+('GOM Scores and Quartiles'!$BC34*'Scenario Weighting'!E$16)+('GOM Scores and Quartiles'!$BE34*'Scenario Weighting'!E$17)+('GOM Scores and Quartiles'!$BF34*'Scenario Weighting'!E$18) -> 33.76498722 | BJ34: =IF(AR34=0, "", ($BG34*'Scenario Weighting'!F$3)+('GOM Scores and Quartiles'!$BH34*'Scenario Weighting'!F$4)+('GOM Scores and Quartiles'!$AP34*'Scenario Weighting'!F$5)+('GOM Scores and Quartiles'!$AQ34*'Scenario Weighting'!F$6)+('GOM Scores and Quartiles'!$AR34*'Scenario Weighting'!F$7)+('GOM Scores and Quartiles'!$AS34*'Scenario Weighting'!F$12)+('GOM Scores and Quartiles'!$AT34*'Scenario Weighting'!F$8)+('GOM Scores and Quartiles'!$AU34*'Scenario Weighting'!F$9)+('GOM Scores and Quartiles'!$AV34*'Scenario Weighting'!F$10)+('GOM Scores and Quartiles'!$AW34*'Scenario Weighting'!F$11)+('GOM Scores and Quartiles'!$AX34*'Scenario Weighting'!F$13)+('GOM Scores and Quartiles'!$AZ34*'Scenario Weighting'!F$14)+('GOM Scores and Quartiles'!$BB34*'Scenario Weighting'!F$15)+('GOM Scores and Quartiles'!$BC34*'Scenario Weighting'!F$16)+('GOM Scores and Quartiles'!$BE34*'Scenario Weighting'!F$17)+('GOM Scores and Quartiles'!$BF34*'Scenario Weighting'!F$18)) ->  | BK34: =('GOM Scores and Quartiles'!$BG34*0.12)+('GOM Scores and Quartiles'!$BH34*0.12)+('GOM Scores and Quartiles'!$AS34*0.2)+('GOM Scores and Quartiles'!$AT34*0.05)+('GOM Scores and Quartiles'!$AU34*0.1)+('GOM Scores and Quartiles'!$AV34*0.2)+('GOM Scores and Quartiles'!$AW34*0.1)+('GOM Scores and Quartiles'!$BE34*0.07)+('GOM Scores and Quartiles'!$BF34*0.04) -> 14.71185716 | BL34: =IF(AR34=0, "", ($BG34*'Scenario Weighting'!H$3)+('GOM Scores and Quartiles'!$BH34*'Scenario Weighting'!H$4)+('GOM Scores and Quartiles'!$AP34*'Scenario Weighting'!H$5)+('GOM Scores and Quartiles'!$AQ34*'Scenario Weighting'!H$6)+('GOM Scores and Quartiles'!$AR34*'Scenario Weighting'!H$7)+('GOM Scores and Quartiles'!$AS34*'Scenario Weighting'!H$12)+('GOM Scores and Quartiles'!$AT34*'Scenario Weighting'!H$8)+('GOM Scores and Quartiles'!$AU34*'Scenario Weighting'!H$9)+('GOM Scores and Quartiles'!$AV34*'Scenario Weighting'!H$10)+('GOM Scores and Quartiles'!$AW34*'Scenario Weighting'!H$11)+('GOM Scores and Quartiles'!$AX34*'Scenario Weighting'!H$13)+('GOM Scores and Quartiles'!$AZ34*'Scenario Weighting'!H$14)+('GOM Scores and Quartiles'!$BB34*'Scenario Weighting'!H$15)+('GOM Scores and Quartiles'!$BC34*'Scenario Weighting'!H$16)+('GOM Scores and Quartiles'!$BE34*'Scenario Weighting'!H$17)+('GOM Scores and Quartiles'!$BF34*'Scenario Weighting'!H$18)) ->  | BM34: =IF(BI34>='Scenario Weighting'!C$24, "75-100%", IF('GOM Scores and Quartiles'!BI34>='Scenario Weighting'!C$23, "50-75%", IF('GOM Scores and Quartiles'!BI34>='Scenario Weighting'!C$22, "25-50%", "0-25%"))) -> 0-25% | BN34: =IF(BJ34="", "", IF(BJ34>='Scenario Weighting'!D$24, "75-100%", IF('GOM Scores and Quartiles'!BJ34>='Scenario Weighting'!D$23, "50-75%", IF('GOM Scores and Quartiles'!BJ34>='Scenario Weighting'!D$22, "25-50%", "0-25%")))) ->  | BO34: =IF(BK34>='Scenario Weighting'!E$24, "75-100%", IF('GOM Scores and Quartiles'!BK34>='Scenario Weighting'!E$23, "50-75%", IF('GOM Scores and Quartiles'!BK34>='Scenario Weighting'!E$22, "25-50%", "0-25%"))) -> 0-25% | BP34: =IF(BL34="", "", IF(BL34>='Scenario Weighting'!F$24, "75-100%", IF('GOM Scores and Quartiles'!BL34>='Scenario Weighting'!F$23, "50-75%", IF('GOM Scores and Quartiles'!BL34>='Scenario Weighting'!F$22, "25-50%", "0-25%")))) -> 
A35: 30 | B35: 37013 | C35: -96.96405313 | D35: 26.21479424 | E35: 1671 | F35: 63.18032749 | G35: 860 | H35: 47.68661496 | I35: 286 | J35: 121.1542646 | K35: 0 | L35: 0 | M35: 0 | N35: 1 | O35: 0 | P35: 0 | Q35: 1 | R35: 1 | S35: 0 | T35: 0 | U35: 1 | V35: 0 | W35: 0 | X35: 0 | Y35: 3 | Z35: 0 | AA35: 0 | AB35: 4 | AC35: 6 | AD35: 33.68 | AE35: 3987.42 | AF35: 3572 | AG35: 823.18 | AH35: 137.1966667 | AI35: 0 | AJ35: 0 | AK35: 0 | AL35: 17394065.31 | AM35: 37178 | AN35: 6196.333333 | AO35: 8.166037736 | AP35: 0 | AQ35: 0 | AR35: 0 | AS35: 100 | AT35: 0 | AU35: 0 | AV35: 0 | AW35: 48.60525675 | AX35: 100 | AY35: 62.23934723 | AZ35: 67.56193468 | BA35: 62.23934723 | BB35: 67.56193468 | BC35: 0 | BD35: 100 | BE35: 99.57983193 | BF35: 100 | BG35: 12.66403792 | BH35: 13.48761721 | BI35: =($BG35*'Scenario Weighting'!E$3)+('GOM Scores and Quartiles'!$BH35*'Scenario Weighting'!E$4)+('GOM Scores and Quartiles'!$AP35*'Scenario Weighting'!E$5)+('GOM Scores and Quartiles'!$AQ35*'Scenario Weighting'!E$6)+('GOM Scores and Quartiles'!$AR35*'Scenario Weighting'!E$7)+('GOM Scores and Quartiles'!$AS35*'Scenario Weighting'!E$12)+('GOM Scores and Quartiles'!$AT35*'Scenario Weighting'!E$8)+('GOM Scores and Quartiles'!$AU35*'Scenario Weighting'!E$9)+('GOM Scores and Quartiles'!$AV35*'Scenario Weighting'!E$10)+('GOM Scores and Quartiles'!$AW35*'Scenario Weighting'!E$11)+('GOM Scores and Quartiles'!$AX35*'Scenario Weighting'!E$13)+('GOM Scores and Quartiles'!$AZ35*'Scenario Weighting'!E$14)+('GOM Scores and Quartiles'!$BB35*'Scenario Weighting'!E$15)+('GOM Scores and Quartiles'!$BC35*'Scenario Weighting'!E$16)+('GOM Scores and Quartiles'!$BE35*'Scenario Weighting'!E$17)+('GOM Scores and Quartiles'!$BF35*'Scenario Weighting'!E$18) -> 59.04345099 | BJ35: =IF(AR35=0, "", ($BG35*'Scenario Weighting'!F$3)+('GOM Scores and Quartiles'!$BH35*'Scenario Weighting'!F$4)+('GOM Scores and Quartiles'!$AP35*'Scenario Weighting'!F$5)+('GOM Scores and Quartiles'!$AQ35*'Scenario Weighting'!F$6)+('GOM Scores and Quartiles'!$AR35*'Scenario Weighting'!F$7)+('GOM Scores and Quartiles'!$AS35*'Scenario Weighting'!F$12)+('GOM Scores and Quartiles'!$AT35*'Scenario Weighting'!F$8)+('GOM Scores and Quartiles'!$AU35*'Scenario Weighting'!F$9)+('GOM Scores and Quartiles'!$AV35*'Scenario Weighting'!F$10)+('GOM Scores and Quartiles'!$AW35*'Scenario Weighting'!F$11)+('GOM Scores and Quartiles'!$AX35*'Scenario Weighting'!F$13)+('GOM Scores and Quartiles'!$AZ35*'Scenario Weighting'!F$14)+('GOM Scores and Quartiles'!$BB35*'Scenario Weighting'!F$15)+('GOM Scores and Quartiles'!$BC35*'Scenario Weighting'!F$16)+('GOM Scores and Quartiles'!$BE35*'Scenario Weighting'!F$17)+('GOM Scores and Quartiles'!$BF35*'Scenario Weighting'!F$18)) ->  | BK35: =('GOM Scores and Quartiles'!$BG35*0.12)+('GOM Scores and Quartiles'!$BH35*0.12)+('GOM Scores and Quartiles'!$AS35*0.2)+('GOM Scores and Quartiles'!$AT35*0.05)+('GOM Scores and Quartiles'!$AU35*0.1)+('GOM Scores and Quartiles'!$AV35*0.2)+('GOM Scores and Quartiles'!$AW35*0.1)+('GOM Scores and Quartiles'!$BE35*0.07)+('GOM Scores and Quartiles'!$BF35*0.04) -> 38.96931253 | BL35: =IF(AR35=0, "", ($BG35*'Scenario Weighting'!H$3)+('GOM Scores and Quartiles'!$BH35*'Scenario Weighting'!H$4)+('GOM Scores and Quartiles'!$AP35*'Scenario Weighting'!H$5)+('GOM Scores and Quartiles'!$AQ35*'Scenario Weighting'!H$6)+('GOM Scores and Quartiles'!$AR35*'Scenario Weighting'!H$7)+('GOM Scores and Quartiles'!$AS35*'Scenario Weighting'!H$12)+('GOM Scores and Quartiles'!$AT35*'Scenario Weighting'!H$8)+('GOM Scores and Quartiles'!$AU35*'Scenario Weighting'!H$9)+('GOM Scores and Quartiles'!$AV35*'Scenario Weighting'!H$10)+('GOM Scores and Quartiles'!$AW35*'Scenario Weighting'!H$11)+('GOM Scores and Quartiles'!$AX35*'Scenario Weighting'!H$13)+('GOM Scores and Quartiles'!$AZ35*'Scenario Weighting'!H$14)+('GOM Scores and Quartiles'!$BB35*'Scenario Weighting'!H$15)+('GOM Scores and Quartiles'!$BC35*'Scenario Weighting'!H$16)+('GOM Scores and Quartiles'!$BE35*'Scenario Weighting'!H$17)+('GOM Scores and Quartiles'!$BF35*'Scenario Weighting'!H$18)) ->  | BM35: =IF(BI35>='Scenario Weighting'!C$24, "75-100%", IF('GOM Scores and Quartiles'!BI35>='Scenario Weighting'!C$23, "50-75%", IF('GOM Scores and Quartiles'!BI35>='Scenario Weighting'!C$22, "25-50%", "0-25%"))) -> 25-50% | BN35: =IF(BJ35="", "", IF(BJ35>='Scenario Weighting'!D$24, "75-100%", IF('GOM Scores and Quartiles'!BJ35>='Scenario Weighting'!D$23, "50-75%", IF('GOM Scores and Quartiles'!BJ35>='Scenario Weighting'!D$22, "25-50%", "0-25%")))) ->  | BO35: =IF(BK35>='Scenario Weighting'!E$24, "75-100%", IF('GOM Scores and Quartiles'!BK35>='Scenario Weighting'!E$23, "50-75%", IF('GOM Scores and Quartiles'!BK35>='Scenario Weighting'!E$22, "25-50%", "0-25%"))) -> 25-50% | BP35: =IF(BL35="", "", IF(BL35>='Scenario Weighting'!F$24, "75-100%", IF('GOM Scores and Quartiles'!BL35>='Scenario Weighting'!F$23, "50-75%", IF('GOM Scores and Quartiles'!BL35>='Scenario Weighting'!F$22, "25-50%", "0-25%")))) -> 
A36: 31 | B36: 37014 | C36: -97.03553738 | D36: 26.28627848 | E36: 1671 | F36: 61.05283653 | G36: 860 | H36: 47.35628065 | I36: 286 | J36: 113.0150797 | K36: 0 | L36: 1 | M36: 0 | N36: 0 | O36: 1 | P36: 0 | Q36: 1 | R36: 1 | S36: 1 | T36: 0 | U36: 0 | V36: 0 | W36: 0 | X36: 0 | Y36: 0 | Z36: 0 | AA36: 0 | AB36: 2 | AC36: 6 | AD36: 33.68 | AE36: 3987.42 | AF36: 3572 | AG36: 823.18 | AH36: 137.1966667 | AI36: 0 | AJ36: 0 | AK36: 0 | AL36: 17394065.31 | AM36: 37178 | AN36: 6196.333333 | AO36: 8.166037736 | AP36: 0 | AQ36: 0 | AR36: 0 | AS36: 0 | AT36: 0 | AU36: 0 | AV36: 0 | AW36: 45.2899342 | AX36: 100 | AY36: 62.23934723 | AZ36: 67.56193468 | BA36: 62.23934723 | BB36: 67.56193468 | BC36: 0 | BD36: 100 | BE36: 100 | BF36: 0 | BG36: 12.66403792 | BH36: 13.48761721 | BI36: =($BG36*'Scenario Weighting'!E$3)+('GOM Scores and Quartiles'!$BH36*'Scenario Weighting'!E$4)+('GOM Scores and Quartiles'!$AP36*'Scenario Weighting'!E$5)+('GOM Scores and Quartiles'!$AQ36*'Scenario Weighting'!E$6)+('GOM Scores and Quartiles'!$AR36*'Scenario Weighting'!E$7)+('GOM Scores and Quartiles'!$AS36*'Scenario Weighting'!E$12)+('GOM Scores and Quartiles'!$AT36*'Scenario Weighting'!E$8)+('GOM Scores and Quartiles'!$AU36*'Scenario Weighting'!E$9)+('GOM Scores and Quartiles'!$AV36*'Scenario Weighting'!E$10)+('GOM Scores and Quartiles'!$AW36*'Scenario Weighting'!E$11)+('GOM Scores and Quartiles'!$AX36*'Scenario Weighting'!E$13)+('GOM Scores and Quartiles'!$AZ36*'Scenario Weighting'!E$14)+('GOM Scores and Quartiles'!$BB36*'Scenario Weighting'!E$15)+('GOM Scores and Quartiles'!$BC36*'Scenario Weighting'!E$16)+('GOM Scores and Quartiles'!$BE36*'Scenario Weighting'!E$17)+('GOM Scores and Quartiles'!$BF36*'Scenario Weighting'!E$18) -> 33.72032209 | BJ36: =IF(AR36=0, "", ($BG36*'Scenario Weighting'!F$3)+('GOM Scores and Quartiles'!$BH36*'Scenario Weighting'!F$4)+('GOM Scores and Quartiles'!$AP36*'Scenario Weighting'!F$5)+('GOM Scores and Quartiles'!$AQ36*'Scenario Weighting'!F$6)+('GOM Scores and Quartiles'!$AR36*'Scenario Weighting'!F$7)+('GOM Scores and Quartiles'!$AS36*'Scenario Weighting'!F$12)+('GOM Scores and Quartiles'!$AT36*'Scenario Weighting'!F$8)+('GOM Scores and Quartiles'!$AU36*'Scenario Weighting'!F$9)+('GOM Scores and Quartiles'!$AV36*'Scenario Weighting'!F$10)+('GOM Scores and Quartiles'!$AW36*'Scenario Weighting'!F$11)+('GOM Scores and Quartiles'!$AX36*'Scenario Weighting'!F$13)+('GOM Scores and Quartiles'!$AZ36*'Scenario Weighting'!F$14)+('GOM Scores and Quartiles'!$BB36*'Scenario Weighting'!F$15)+('GOM Scores and Quartiles'!$BC36*'Scenario Weighting'!F$16)+('GOM Scores and Quartiles'!$BE36*'Scenario Weighting'!F$17)+('GOM Scores and Quartiles'!$BF36*'Scenario Weighting'!F$18)) ->  | BK36: =('GOM Scores and Quartiles'!$BG36*0.12)+('GOM Scores and Quartiles'!$BH36*0.12)+('GOM Scores and Quartiles'!$AS36*0.2)+('GOM Scores and Quartiles'!$AT36*0.05)+('GOM Scores and Quartiles'!$AU36*0.1)+('GOM Scores and Quartiles'!$AV36*0.2)+('GOM Scores and Quartiles'!$AW36*0.1)+('GOM Scores and Quartiles'!$BE36*0.07)+('GOM Scores and Quartiles'!$BF36*0.04) -> 14.66719204 | BL36: =IF(AR36=0, "", ($BG36*'Scenario Weighting'!H$3)+('GOM Scores and Quartiles'!$BH36*'Scenario Weighting'!H$4)+('GOM Scores and Quartiles'!$AP36*'Scenario Weighting'!H$5)+('GOM Scores and Quartiles'!$AQ36*'Scenario Weighting'!H$6)+('GOM Scores and Quartiles'!$AR36*'Scenario Weighting'!H$7)+('GOM Scores and Quartiles'!$AS36*'Scenario Weighting'!H$12)+('GOM Scores and Quartiles'!$AT36*'Scenario Weighting'!H$8)+('GOM Scores and Quartiles'!$AU36*'Scenario Weighting'!H$9)+('GOM Scores and Quartiles'!$AV36*'Scenario Weighting'!H$10)+('GOM Scores and Quartiles'!$AW36*'Scenario Weighting'!H$11)+('GOM Scores and Quartiles'!$AX36*'Scenario Weighting'!H$13)+('GOM Scores and Quartiles'!$AZ36*'Scenario Weighting'!H$14)+('GOM Scores and Quartiles'!$BB36*'Scenario Weighting'!H$15)+('GOM Scores and Quartiles'!$BC36*'Scenario Weighting'!H$16)+('GOM Scores and Quartiles'!$BE36*'Scenario Weighting'!H$17)+('GOM Scores and Quartiles'!$BF36*'Scenario Weighting'!H$18)) ->  | BM36: =IF(BI36>='Scenario Weighting'!C$24, "75-100%", IF('GOM Scores and Quartiles'!BI36>='Scenario Weighting'!C$23, "50-75%", IF('GOM Scores and Quartiles'!BI36>='Scenario Weighting'!C$22, "25-50%", "0-25%"))) -> 0-25% | BN36: =IF(BJ36="", "", IF(BJ36>='Scenario Weighting'!D$24, "75-100%", IF('GOM Scores and Quartiles'!BJ36>='Scenario Weighting'!D$23, "50-75%", IF('GOM Scores and Quartiles'!BJ36>='Scenario Weighting'!D$22, "25-50%", "0-25%")))) ->  | BO36: =IF(BK36>='Scenario Weighting'!E$24, "75-100%", IF('GOM Scores and Quartiles'!BK36>='Scenario Weighting'!E$23, "50-75%", IF('GOM Scores and Quartiles'!BK36>='Scenario Weighting'!E$22, "25-50%", "0-25%"))) -> 0-25% | BP36: =IF(BL36="", "", IF(BL36>='Scenario Weighting'!F$24, "75-100%", IF('GOM Scores and Quartiles'!BL36>='Scenario Weighting'!F$23, "50-75%", IF('GOM Scores and Quartiles'!BL36>='Scenario Weighting'!F$22, "25-50%", "0-25%")))) -> 
A37: 32 | B37: 37015 | C37: -96.96405313 | D37: 26.28627848 | E37: 1671 | F37: 66.86900408 | G37: 860 | H37: 52.50972375 | I37: 286 | J37: 120.1178066 | K37: 0 | L37: 1 | M37: 0 | N37: 1 | O37: 1 | P37: 0 | Q37: 1 | R37: 1 | S37: 1 | T37: 0 | U37: 1 | V37: 0 | W37: 0 | X37: 0 | Y37: 1 | Z37: 0 | AA37: 0 | AB37: 1 | AC37: 6 | AD37: 33.68 | AE37: 3987.42 | AF37: 3572 | AG37: 823.18 | AH37: 137.1966667 | AI37: 0 | AJ37: 0 | AK37: 0 | AL37: 17394065.31 | AM37: 37178 | AN37: 6196.333333 | AO37: 8.166037736 | AP37: 0 | AQ37: 0 | AR37: 0 | AS37: 100 | AT37: 0 | AU37: 0 | AV37: 0 | AW37: 48.18307777 | AX37: 100 | AY37: 62.23934723 | AZ37: 67.56193468 | BA37: 62.23934723 | BB37: 67.56193468 | BC37: 0 | BD37: 100 | BE37: 99.57983193 | BF37: 0 | BG37: 12.66403792 | BH37: 13.48761721 | BI37: =($BG37*'Scenario Weighting'!E$3)+('GOM Scores and Quartiles'!$BH37*'Scenario Weighting'!E$4)+('GOM Scores and Quartiles'!$AP37*'Scenario Weighting'!E$5)+('GOM Scores and Quartiles'!$AQ37*'Scenario Weighting'!E$6)+('GOM Scores and Quartiles'!$AR37*'Scenario Weighting'!E$7)+('GOM Scores and Quartiles'!$AS37*'Scenario Weighting'!E$12)+('GOM Scores and Quartiles'!$AT37*'Scenario Weighting'!E$8)+('GOM Scores and Quartiles'!$AU37*'Scenario Weighting'!E$9)+('GOM Scores and Quartiles'!$AV37*'Scenario Weighting'!E$10)+('GOM Scores and Quartiles'!$AW37*'Scenario Weighting'!E$11)+('GOM Scores and Quartiles'!$AX37*'Scenario Weighting'!E$13)+('GOM Scores and Quartiles'!$AZ37*'Scenario Weighting'!E$14)+('GOM Scores and Quartiles'!$BB37*'Scenario Weighting'!E$15)+('GOM Scores and Quartiles'!$BC37*'Scenario Weighting'!E$16)+('GOM Scores and Quartiles'!$BE37*'Scenario Weighting'!E$17)+('GOM Scores and Quartiles'!$BF37*'Scenario Weighting'!E$18) -> 54.00123309 | BJ37: =IF(AR37=0, "", ($BG37*'Scenario Weighting'!F$3)+('GOM Scores and Quartiles'!$BH37*'Scenario Weighting'!F$4)+('GOM Scores and Quartiles'!$AP37*'Scenario Weighting'!F$5)+('GOM Scores and Quartiles'!$AQ37*'Scenario Weighting'!F$6)+('GOM Scores and Quartiles'!$AR37*'Scenario Weighting'!F$7)+('GOM Scores and Quartiles'!$AS37*'Scenario Weighting'!F$12)+('GOM Scores and Quartiles'!$AT37*'Scenario Weighting'!F$8)+('GOM Scores and Quartiles'!$AU37*'Scenario Weighting'!F$9)+('GOM Scores and Quartiles'!$AV37*'Scenario Weighting'!F$10)+('GOM Scores and Quartiles'!$AW37*'Scenario Weighting'!F$11)+('GOM Scores and Quartiles'!$AX37*'Scenario Weighting'!F$13)+('GOM Scores and Quartiles'!$AZ37*'Scenario Weighting'!F$14)+('GOM Scores and Quartiles'!$BB37*'Scenario Weighting'!F$15)+('GOM Scores and Quartiles'!$BC37*'Scenario Weighting'!F$16)+('GOM Scores and Quartiles'!$BE37*'Scenario Weighting'!F$17)+('GOM Scores and Quartiles'!$BF37*'Scenario Weighting'!F$18)) ->  | BK37: =('GOM Scores and Quartiles'!$BG37*0.12)+('GOM Scores and Quartiles'!$BH37*0.12)+('GOM Scores and Quartiles'!$AS37*0.2)+('GOM Scores and Quartiles'!$AT37*0.05)+('GOM Scores and Quartiles'!$AU37*0.1)+('GOM Scores and Quartiles'!$AV37*0.2)+('GOM Scores and Quartiles'!$AW37*0.1)+('GOM Scores and Quartiles'!$BE37*0.07)+('GOM Scores and Quartiles'!$BF37*0.04) -> 34.92709463 | BL37: =IF(AR37=0, "", ($BG37*'Scenario Weighting'!H$3)+('GOM Scores and Quartiles'!$BH37*'Scenario Weighting'!H$4)+('GOM Scores and Quartiles'!$AP37*'Scenario Weighting'!H$5)+('GOM Scores and Quartiles'!$AQ37*'Scenario Weighting'!H$6)+('GOM Scores and Quartiles'!$AR37*'Scenario Weighting'!H$7)+('GOM Scores and Quartiles'!$AS37*'Scenario Weighting'!H$12)+('GOM Scores and Quartiles'!$AT37*'Scenario Weighting'!H$8)+('GOM Scores and Quartiles'!$AU37*'Scenario Weighting'!H$9)+('GOM Scores and Quartiles'!$AV37*'Scenario Weighting'!H$10)+('GOM Scores and Quartiles'!$AW37*'Scenario Weighting'!H$11)+('GOM Scores and Quartiles'!$AX37*'Scenario Weighting'!H$13)+('GOM Scores and Quartiles'!$AZ37*'Scenario Weighting'!H$14)+('GOM Scores and Quartiles'!$BB37*'Scenario Weighting'!H$15)+('GOM Scores and Quartiles'!$BC37*'Scenario Weighting'!H$16)+('GOM Scores and Quartiles'!$BE37*'Scenario Weighting'!H$17)+('GOM Scores and Quartiles'!$BF37*'Scenario Weighting'!H$18)) ->  | BM37: =IF(BI37>='Scenario Weighting'!C$24, "75-100%", IF('GOM Scores and Quartiles'!BI37>='Scenario Weighting'!C$23, "50-75%", IF('GOM Scores and Quartiles'!BI37>='Scenario Weighting'!C$22, "25-50%", "0-25%"))) -> 25-50% | BN37: =IF(BJ37="", "", IF(BJ37>='Scenario Weighting'!D$24, "75-100%", IF('GOM Scores and Quartiles'!BJ37>='Scenario Weighting'!D$23, "50-75%", IF('GOM Scores and Quartiles'!BJ37>='Scenario Weighting'!D$22, "25-50%", "0-25%")))) ->  | BO37: =IF(BK37>='Scenario Weighting'!E$24, "75-100%", IF('GOM Scores and Quartiles'!BK37>='Scenario Weighting'!E$23, "50-75%", IF('GOM Scores and Quartiles'!BK37>='Scenario Weighting'!E$22, "25-50%", "0-25%"))) -> 25-50% | BP37: =IF(BL37="", "", IF(BL37>='Scenario Weighting'!F$24, "75-100%", IF('GOM Scores and Quartiles'!BL37>='Scenario Weighting'!F$23, "50-75%", IF('GOM Scores and Quartiles'!BL37>='Scenario Weighting'!F$22, "25-50%", "0-25%")))) -> 
A38: 33 | B38: 37019 | C38: -97.10702163 | D38: 26.42924698 | E38: 1631 | F38: 60.21173532 | G38: 860 | H38: 56.34046913 | I38: 286 | J38: 105.3493795 | K38: 0 | L38: 1 | M38: 0 | N38: 0 | O38: 1 | P38: 0 | Q38: 0 | R38: 1 | S38: 1 | T38: 0 | U38: 0 | V38: 0 | W38: 0 | X38: 0 | Y38: 0 | Z38: 0 | AA38: 0 | AB38: 6 | AC38: 2 | AD38: 8.35 | AE38: 907.12 | AF38: 988 | AG38: 218.73 | AH38: 109.365 | AI38: 0 | AJ38: 0 | AK38: 0 | AL38: 4020647.81 | AM38: 15669 | AN38: 7834.5 | AO38: 1.793710692 | AP38: 0 | AQ38: 0 | AR38: 0 | AS38: 0 | AT38: 0 | AU38: 0 | AV38: 0 | AW38: 42.16747552 | AX38: 0 | AY38: 41.9867304 | AZ38: 76.1342286 | BA38: 41.9867304 | BB38: 76.1342286 | BC38: 0 | BD38: 100 | BE38: 100 | BF38: 0 | BG38: 2.334951064 | BH38: 2.294465925 | BI38: =($BG38*'Scenario Weighting'!E$3)+('GOM Scores and Quartiles'!$BH38*'Scenario Weighting'!E$4)+('GOM Scores and Quartiles'!$AP38*'Scenario Weighting'!E$5)+('GOM Scores and Quartiles'!$AQ38*'Scenario Weighting'!E$6)+('GOM Scores and Quartiles'!$AR38*'Scenario Weighting'!E$7)+('GOM Scores and Quartiles'!$AS38*'Scenario Weighting'!E$12)+('GOM Scores and Quartiles'!$AT38*'Scenario Weighting'!E$8)+('GOM Scores and Quartiles'!$AU38*'Scenario Weighting'!E$9)+('GOM Scores and Quartiles'!$AV38*'Scenario Weighting'!E$10)+('GOM Scores and Quartiles'!$AW38*'Scenario Weighting'!E$11)+('GOM Scores and Quartiles'!$AX38*'Scenario Weighting'!E$13)+('GOM Scores and Quartiles'!$AZ38*'Scenario Weighting'!E$14)+('GOM Scores and Quartiles'!$BB38*'Scenario Weighting'!E$15)+('GOM Scores and Quartiles'!$BC38*'Scenario Weighting'!E$16)+('GOM Scores and Quartiles'!$BE38*'Scenario Weighting'!E$17)+('GOM Scores and Quartiles'!$BF38*'Scenario Weighting'!E$18) -> 29.75142868 | BJ38: =IF(AR38=0, "", ($BG38*'Scenario Weighting'!F$3)+('GOM Scores and Quartiles'!$BH38*'Scenario Weighting'!F$4)+('GOM Scores and Quartiles'!$AP38*'Scenario Weighting'!F$5)+('GOM Scores and Quartiles'!$AQ38*'Scenario Weighting'!F$6)+('GOM Scores and Quartiles'!$AR38*'Scenario Weighting'!F$7)+('GOM Scores and Quartiles'!$AS38*'Scenario Weighting'!F$12)+('GOM Scores and Quartiles'!$AT38*'Scenario Weighting'!F$8)+('GOM Scores and Quartiles'!$AU38*'Scenario Weighting'!F$9)+('GOM Scores and Quartiles'!$AV38*'Scenario Weighting'!F$10)+('GOM Scores and Quartiles'!$AW38*'Scenario Weighting'!F$11)+('GOM Scores and Quartiles'!$AX38*'Scenario Weighting'!F$13)+('GOM Scores and Quartiles'!$AZ38*'Scenario Weighting'!F$14)+('GOM Scores and Quartiles'!$BB38*'Scenario Weighting'!F$15)+('GOM Scores and Quartiles'!$BC38*'Scenario Weighting'!F$16)+('GOM Scores and Quartiles'!$BE38*'Scenario Weighting'!F$17)+('GOM Scores and Quartiles'!$BF38*'Scenario Weighting'!F$18)) ->  | BK38: =('GOM Scores and Quartiles'!$BG38*0.12)+('GOM Scores and Quartiles'!$BH38*0.12)+('GOM Scores and Quartiles'!$AS38*0.2)+('GOM Scores and Quartiles'!$AT38*0.05)+('GOM Scores and Quartiles'!$AU38*0.1)+('GOM Scores and Quartiles'!$AV38*0.2)+('GOM Scores and Quartiles'!$AW38*0.1)+('GOM Scores and Quartiles'!$BE38*0.07)+('GOM Scores and Quartiles'!$BF38*0.04) -> 11.77227759 | BL38: =IF(AR38=0, "", ($BG38*'Scenario Weighting'!H$3)+('GOM Scores and Quartiles'!$BH38*'Scenario Weighting'!H$4)+('GOM Scores and Quartiles'!$AP38*'Scenario Weighting'!H$5)+('GOM Scores and Quartiles'!$AQ38*'Scenario Weighting'!H$6)+('GOM Scores and Quartiles'!$AR38*'Scenario Weighting'!H$7)+('GOM Scores and Quartiles'!$AS38*'Scenario Weighting'!H$12)+('GOM Scores and Quartiles'!$AT38*'Scenario Weighting'!H$8)+('GOM Scores and Quartiles'!$AU38*'Scenario Weighting'!H$9)+('GOM Scores and Quartiles'!$AV38*'Scenario Weighting'!H$10)+('GOM Scores and Quartiles'!$AW38*'Scenario Weighting'!H$11)+('GOM Scores and Quartiles'!$AX38*'Scenario Weighting'!H$13)+('GOM Scores and Quartiles'!$AZ38*'Scenario Weighting'!H$14)+('GOM Scores and Quartiles'!$BB38*'Scenario Weighting'!H$15)+('GOM Scores and Quartiles'!$BC38*'Scenario Weighting'!H$16)+('GOM Scores and Quartiles'!$BE38*'Scenario Weighting'!H$17)+('GOM Scores and Quartiles'!$BF38*'Scenario Weighting'!H$18)) ->  | BM38: =IF(BI38>='Scenario Weighting'!C$24, "75-100%", IF('GOM Scores and Quartiles'!BI38>='Scenario Weighting'!C$23, "50-75%", IF('GOM Scores and Quartiles'!BI38>='Scenario Weighting'!C$22, "25-50%", "0-25%"))) -> 0-25% | BN38: =IF(BJ38="", "", IF(BJ38>='Scenario Weighting'!D$24, "75-100%", IF('GOM Scores and Quartiles'!BJ38>='Scenario Weighting'!D$23, "50-75%", IF('GOM Scores and Quartiles'!BJ38>='Scenario Weighting'!D$22, "25-50%", "0-25%")))) ->  | BO38: =IF(BK38>='Scenario Weighting'!E$24, "75-100%", IF('GOM Scores and Quartiles'!BK38>='Scenario Weighting'!E$23, "50-75%", IF('GOM Scores and Quartiles'!BK38>='Scenario Weighting'!E$22, "25-50%", "0-25%"))) -> 0-25% | BP38: =IF(BL38="", "", IF(BL38>='Scenario Weighting'!F$24, "75-100%", IF('GOM Scores and Quartiles'!BL38>='Scenario Weighting'!F$23, "50-75%", IF('GOM Scores and Quartiles'!BL38>='Scenario Weighting'!F$22, "25-50%", "0-25%")))) -> 
A39: 34 | B39: 37020 | C39: -97.03553738 | D39: 26.35776273 | E39: 1631 | F39: 63.86570311 | G39: 860 | H39: 53.40076556 | I39: 286 | J39: 112.4668407 | K39: 0 | L39: 0 | M39: 0 | N39: 0 | O39: 1 | P39: 0 | Q39: 1 | R39: 1 | S39: 1 | T39: 0 | U39: 0 | V39: 0 | W39: 0 | X39: 0 | Y39: 0 | Z39: 0 | AA39: 0 | AB39: 1 | AC39: 6 | AD39: 33.68 | AE39: 3987.42 | AF39: 3572 | AG39: 823.18 | AH39: 137.1966667 | AI39: 0 | AJ39: 0 | AK39: 0 | AL39: 17394065.31 | AM39: 37178 | AN39: 6196.333333 | AO39: 8.166037736 | AP39: 0 | AQ39: 0 | AR39: 0 | AS39: 0 | AT39: 0 | AU39: 0 | AV39: 0 | AW39: 45.06662079 | AX39: 100 | AY39: 62.23934723 | AZ39: 67.56193468 | BA39: 62.23934723 | BB39: 67.56193468 | BC39: 0 | BD39: 100 | BE39: 100 | BF39: 0 | BG39: 12.66403792 | BH39: 13.48761721 | BI39: =($BG39*'Scenario Weighting'!E$3)+('GOM Scores and Quartiles'!$BH39*'Scenario Weighting'!E$4)+('GOM Scores and Quartiles'!$AP39*'Scenario Weighting'!E$5)+('GOM Scores and Quartiles'!$AQ39*'Scenario Weighting'!E$6)+('GOM Scores and Quartiles'!$AR39*'Scenario Weighting'!E$7)+('GOM Scores and Quartiles'!$AS39*'Scenario Weighting'!E$12)+('GOM Scores and Quartiles'!$AT39*'Scenario Weighting'!E$8)+('GOM Scores and Quartiles'!$AU39*'Scenario Weighting'!E$9)+('GOM Scores and Quartiles'!$AV39*'Scenario Weighting'!E$10)+('GOM Scores and Quartiles'!$AW39*'Scenario Weighting'!E$11)+('GOM Scores and Quartiles'!$AX39*'Scenario Weighting'!E$13)+('GOM Scores and Quartiles'!$AZ39*'Scenario Weighting'!E$14)+('GOM Scores and Quartiles'!$BB39*'Scenario Weighting'!E$15)+('GOM Scores and Quartiles'!$BC39*'Scenario Weighting'!E$16)+('GOM Scores and Quartiles'!$BE39*'Scenario Weighting'!E$17)+('GOM Scores and Quartiles'!$BF39*'Scenario Weighting'!E$18) -> 33.69799075 | BJ39: =IF(AR39=0, "", ($BG39*'Scenario Weighting'!F$3)+('GOM Scores and Quartiles'!$BH39*'Scenario Weighting'!F$4)+('GOM Scores and Quartiles'!$AP39*'Scenario Weighting'!F$5)+('GOM Scores and Quartiles'!$AQ39*'Scenario Weighting'!F$6)+('GOM Scores and Quartiles'!$AR39*'Scenario Weighting'!F$7)+('GOM Scores and Quartiles'!$AS39*'Scenario Weighting'!F$12)+('GOM Scores and Quartiles'!$AT39*'Scenario Weighting'!F$8)+('GOM Scores and Quartiles'!$AU39*'Scenario Weighting'!F$9)+('GOM Scores and Quartiles'!$AV39*'Scenario Weighting'!F$10)+('GOM Scores and Quartiles'!$AW39*'Scenario Weighting'!F$11)+('GOM Scores and Quartiles'!$AX39*'Scenario Weighting'!F$13)+('GOM Scores and Quartiles'!$AZ39*'Scenario Weighting'!F$14)+('GOM Scores and Quartiles'!$BB39*'Scenario Weighting'!F$15)+('GOM Scores and Quartiles'!$BC39*'Scenario Weighting'!F$16)+('GOM Scores and Quartiles'!$BE39*'Scenario Weighting'!F$17)+('GOM Scores and Quartiles'!$BF39*'Scenario Weighting'!F$18)) ->  | BK39: =('GOM Scores and Quartiles'!$BG39*0.12)+('GOM Scores and Quartiles'!$BH39*0.12)+('GOM Scores and Quartiles'!$AS39*0.2)+('GOM Scores and Quartiles'!$AT39*0.05)+('GOM Scores and Quartiles'!$AU39*0.1)+('GOM Scores and Quartiles'!$AV39*0.2)+('GOM Scores and Quartiles'!$AW39*0.1)+('GOM Scores and Quartiles'!$BE39*0.07)+('GOM Scores and Quartiles'!$BF39*0.04) -> 14.64486069 | BL39: =IF(AR39=0, "", ($BG39*'Scenario Weighting'!H$3)+('GOM Scores and Quartiles'!$BH39*'Scenario Weighting'!H$4)+('GOM Scores and Quartiles'!$AP39*'Scenario Weighting'!H$5)+('GOM Scores and Quartiles'!$AQ39*'Scenario Weighting'!H$6)+('GOM Scores and Quartiles'!$AR39*'Scenario Weighting'!H$7)+('GOM Scores and Quartiles'!$AS39*'Scenario Weighting'!H$12)+('GOM Scores and Quartiles'!$AT39*'Scenario Weighting'!H$8)+('GOM Scores and Quartiles'!$AU39*'Scenario Weighting'!H$9)+('GOM Scores and Quartiles'!$AV39*'Scenario Weighting'!H$10)+('GOM Scores and Quartiles'!$AW39*'Scenario Weighting'!H$11)+('GOM Scores and Quartiles'!$AX39*'Scenario Weighting'!H$13)+('GOM Scores and Quartiles'!$AZ39*'Scenario Weighting'!H$14)+('GOM Scores and Quartiles'!$BB39*'Scenario Weighting'!H$15)+('GOM Scores and Quartiles'!$BC39*'Scenario Weighting'!H$16)+('GOM Scores and Quartiles'!$BE39*'Scenario Weighting'!H$17)+('GOM Scores and Quartiles'!$BF39*'Scenario Weighting'!H$18)) ->  | BM39: =IF(BI39>='Scenario Weighting'!C$24, "75-100%", IF('GOM Scores and Quartiles'!BI39>='Scenario Weighting'!C$23, "50-75%", IF('GOM Scores and Quartiles'!BI39>='Scenario Weighting'!C$22, "25-50%", "0-25%"))) -> 0-25% | BN39: =IF(BJ39="", "", IF(BJ39>='Scenario Weighting'!D$24, "75-100%", IF('GOM Scores and Quartiles'!BJ39>='Scenario Weighting'!D$23, "50-75%", IF('GOM Scores and Quartiles'!BJ39>='Scenario Weighting'!D$22, "25-50%", "0-25%")))) ->  | BO39: =IF(BK39>='Scenario Weighting'!E$24, "75-100%", IF('GOM Scores and Quartiles'!BK39>='Scenario Weighting'!E$23, "50-75%", IF('GOM Scores and Quartiles'!BK39>='Scenario Weighting'!E$22, "25-50%", "0-25%"))) -> 0-25% | BP39: =IF(BL39="", "", IF(BL39>='Scenario Weighting'!F$24, "75-100%", IF('GOM Scores and Quartiles'!BL39>='Scenario Weighting'!F$23, "50-75%", IF('GOM Scores and Quartiles'!BL39>='Scenario Weighting'!F$22, "25-50%", "0-25%")))) -> 
A40: 35 | B40: 37021 | C40: -96.96405313 | D40: 26.35776273 | E40: 1631 | F40: 70.64378913 | G40: 860 | H40: 58.01707916 | I40: 286 | J40: 119.5978779 | K40: 0 | L40: 0 | M40: 0 | N40: 1 | O40: 1 | P40: 0 | Q40: 1 | R40: 1 | S40: 1 | T40: 0 | U40: 0 | V40: 0 | W40: 0 | X40: 0 | Y40: 1 | Z40: 0 | AA40: 0 | AB40: 1 | AC40: 6 | AD40: 33.68 | AE40: 3987.42 | AF40: 3572 | AG40: 823.18 | AH40: 137.1966667 | AI40: 0 | AJ40: 0 | AK40: 0 | AL40: 17394065.31 | AM40: 37178 | AN40: 6196.333333 | AO40: 8.166037736 | AP40: 0 | AQ40: 0 | AR40: 0 | AS40: 100 | AT40: 0 | AU40: 0 | AV40: 0 | AW40: 47.97129599 | AX40: 100 | AY40: 62.23934723 | AZ40: 67.56193468 | BA40: 62.23934723 | BB40: 67.56193468 | BC40: 0 | BD40: 100 | BE40: 100 | BF40: 0 | BG40: 12.66403792 | BH40: 13.48761721 | BI40: =($BG40*'Scenario Weighting'!E$3)+('GOM Scores and Quartiles'!$BH40*'Scenario Weighting'!E$4)+('GOM Scores and Quartiles'!$AP40*'Scenario Weighting'!E$5)+('GOM Scores and Quartiles'!$AQ40*'Scenario Weighting'!E$6)+('GOM Scores and Quartiles'!$AR40*'Scenario Weighting'!E$7)+('GOM Scores and Quartiles'!$AS40*'Scenario Weighting'!E$12)+('GOM Scores and Quartiles'!$AT40*'Scenario Weighting'!E$8)+('GOM Scores and Quartiles'!$AU40*'Scenario Weighting'!E$9)+('GOM Scores and Quartiles'!$AV40*'Scenario Weighting'!E$10)+('GOM Scores and Quartiles'!$AW40*'Scenario Weighting'!E$11)+('GOM Scores and Quartiles'!$AX40*'Scenario Weighting'!E$13)+('GOM Scores and Quartiles'!$AZ40*'Scenario Weighting'!E$14)+('GOM Scores and Quartiles'!$BB40*'Scenario Weighting'!E$15)+('GOM Scores and Quartiles'!$BC40*'Scenario Weighting'!E$16)+('GOM Scores and Quartiles'!$BE40*'Scenario Weighting'!E$17)+('GOM Scores and Quartiles'!$BF40*'Scenario Weighting'!E$18) -> 53.98845827 | BJ40: =IF(AR40=0, "", ($BG40*'Scenario Weighting'!F$3)+('GOM Scores and Quartiles'!$BH40*'Scenario Weighting'!F$4)+('GOM Scores and Quartiles'!$AP40*'Scenario Weighting'!F$5)+('GOM Scores and Quartiles'!$AQ40*'Scenario Weighting'!F$6)+('GOM Scores and Quartiles'!$AR40*'Scenario Weighting'!F$7)+('GOM Scores and Quartiles'!$AS40*'Scenario Weighting'!F$12)+('GOM Scores and Quartiles'!$AT40*'Scenario Weighting'!F$8)+('GOM Scores and Quartiles'!$AU40*'Scenario Weighting'!F$9)+('GOM Scores and Quartiles'!$AV40*'Scenario Weighting'!F$10)+('GOM Scores and Quartiles'!$AW40*'Scenario Weighting'!F$11)+('GOM Scores and Quartiles'!$AX40*'Scenario Weighting'!F$13)+('GOM Scores and Quartiles'!$AZ40*'Scenario Weighting'!F$14)+('GOM Scores and Quartiles'!$BB40*'Scenario Weighting'!F$15)+('GOM Scores and Quartiles'!$BC40*'Scenario Weighting'!F$16)+('GOM Scores and Quartiles'!$BE40*'Scenario Weighting'!F$17)+('GOM Scores and Quartiles'!$BF40*'Scenario Weighting'!F$18)) ->  | BK40: =('GOM Scores and Quartiles'!$BG40*0.12)+('GOM Scores and Quartiles'!$BH40*0.12)+('GOM Scores and Quartiles'!$AS40*0.2)+('GOM Scores and Quartiles'!$AT40*0.05)+('GOM Scores and Quartiles'!$AU40*0.1)+('GOM Scores and Quartiles'!$AV40*0.2)+('GOM Scores and Quartiles'!$AW40*0.1)+('GOM Scores and Quartiles'!$BE40*0.07)+('GOM Scores and Quartiles'!$BF40*0.04) -> 34.93532821 | BL40: =IF(AR40=0, "", ($BG40*'Scenario Weighting'!H$3)+('GOM Scores and Quartiles'!$BH40*'Scenario Weighting'!H$4)+('GOM Scores and Quartiles'!$AP40*'Scenario Weighting'!H$5)+('GOM Scores and Quartiles'!$AQ40*'Scenario Weighting'!H$6)+('GOM Scores and Quartiles'!$AR40*'Scenario Weighting'!H$7)+('GOM Scores and Quartiles'!$AS40*'Scenario Weighting'!H$12)+('GOM Scores and Quartiles'!$AT40*'Scenario Weighting'!H$8)+('GOM Scores and Quartiles'!$AU40*'Scenario Weighting'!H$9)+('GOM Scores and Quartiles'!$AV40*'Scenario Weighting'!H$10)+('GOM Scores and Quartiles'!$AW40*'Scenario Weighting'!H$11)+('GOM Scores and Quartiles'!$AX40*'Scenario Weighting'!H$13)+('GOM Scores and Quartiles'!$AZ40*'Scenario Weighting'!H$14)+('GOM Scores and Quartiles'!$BB40*'Scenario Weighting'!H$15)+('GOM Scores and Quartiles'!$BC40*'Scenario Weighting'!H$16)+('GOM Scores and Quartiles'!$BE40*'Scenario Weighting'!H$17)+('GOM Scores and Quartiles'!$BF40*'Scenario Weighting'!H$18)) ->  | BM40: =IF(BI40>='Scenario Weighting'!C$24, "75-100%", IF('GOM Scores and Quartiles'!BI40>='Scenario Weighting'!C$23, "50-75%", IF('GOM Scores and Quartiles'!BI40>='Scenario Weighting'!C$22, "25-50%", "0-25%"))) -> 25-50% | BN40: =IF(BJ40="", "", IF(BJ40>='Scenario Weighting'!D$24, "75-100%", IF('GOM Scores and Quartiles'!BJ40>='Scenario Weighting'!D$23, "50-75%", IF('GOM Scores and Quartiles'!BJ40>='Scenario Weighting'!D$22, "25-50%", "0-25%")))) ->  | BO40: =IF(BK40>='Scenario Weighting'!E$24, "75-100%", IF('GOM Scores and Quartiles'!BK40>='Scenario Weighting'!E$23, "50-75%", IF('GOM Scores and Quartiles'!BK40>='Scenario Weighting'!E$22, "25-50%", "0-25%"))) -> 25-50% | BP40: =IF(BL40="", "", IF(BL40>='Scenario Weighting'!F$24, "75-100%", IF('GOM Scores and Quartiles'!BL40>='Scenario Weighting'!F$23, "50-75%", IF('GOM Scores and Quartiles'!BL40>='Scenario Weighting'!F$22, "25-50%", "0-25%")))) -> 
A41: 36 | B41: 37022 | C41: -97.03553738 | D41: 26.42924698 | E41: 1631 | F41: 66.59557056 | G41: 860 | H41: 59.88424707 | I41: 286 | J41: 112.4749355 | K41: 0 | L41: 0 | M41: 0 | N41: 0 | O41: 0 | P41: 0 | Q41: 1 | R41: 1 | S41: 0 | T41: 0 | U41: 2 | V41: 0 | W41: 0 | X41: 0 | Y41: 0 | Z41: 0 | AA41: 0 | AB41: 4 | AC41: 9 | AD41: 75.18 | AE41: 14668.52 | AF41: 5132 | AG41: 1079.18 | AH41: 119.9088889 | AI41: 0 | AJ41: 0 | AK41: 0 | AL41: 27877036.51 | AM41: 61936 | AN41: 6881.777778 | AO41: 18.60628931 | AP41: 0 | AQ41: 0 | AR41: 0 | AS41: 0 | AT41: 0 | AU41: 0 | AV41: 0 | AW41: 45.06991804 | AX41: 100 | AY41: 53.76521333 | AZ41: 72.88665756 | BA41: 53.76521333 | BB41: 72.88665756 | BC41: 0 | BD41: 100 | BE41: 99.15966387 | BF41: 100 | BG41: 48.4806823 | BH41: 22.26155121 | BI41: =($BG41*'Scenario Weighting'!E$3)+('GOM Scores and Quartiles'!$BH41*'Scenario Weighting'!E$4)+('GOM Scores and Quartiles'!$AP41*'Scenario Weighting'!E$5)+('GOM Scores and Quartiles'!$AQ41*'Scenario Weighting'!E$6)+('GOM Scores and Quartiles'!$AR41*'Scenario Weighting'!E$7)+('GOM Scores and Quartiles'!$AS41*'Scenario Weighting'!E$12)+('GOM Scores and Quartiles'!$AT41*'Scenario Weighting'!E$8)+('GOM Scores and Quartiles'!$AU41*'Scenario Weighting'!E$9)+('GOM Scores and Quartiles'!$AV41*'Scenario Weighting'!E$10)+('GOM Scores and Quartiles'!$AW41*'Scenario Weighting'!E$11)+('GOM Scores and Quartiles'!$AX41*'Scenario Weighting'!E$13)+('GOM Scores and Quartiles'!$AZ41*'Scenario Weighting'!E$14)+('GOM Scores and Quartiles'!$BB41*'Scenario Weighting'!E$15)+('GOM Scores and Quartiles'!$BC41*'Scenario Weighting'!E$16)+('GOM Scores and Quartiles'!$BE41*'Scenario Weighting'!E$17)+('GOM Scores and Quartiles'!$BF41*'Scenario Weighting'!E$18) -> 46.96751738 | BJ41: =IF(AR41=0, "", ($BG41*'Scenario Weighting'!F$3)+('GOM Scores and Quartiles'!$BH41*'Scenario Weighting'!F$4)+('GOM Scores and Quartiles'!$AP41*'Scenario Weighting'!F$5)+('GOM Scores and Quartiles'!$AQ41*'Scenario Weighting'!F$6)+('GOM Scores and Quartiles'!$AR41*'Scenario Weighting'!F$7)+('GOM Scores and Quartiles'!$AS41*'Scenario Weighting'!F$12)+('GOM Scores and Quartiles'!$AT41*'Scenario Weighting'!F$8)+('GOM Scores and Quartiles'!$AU41*'Scenario Weighting'!F$9)+('GOM Scores and Quartiles'!$AV41*'Scenario Weighting'!F$10)+('GOM Scores and Quartiles'!$AW41*'Scenario Weighting'!F$11)+('GOM Scores and Quartiles'!$AX41*'Scenario Weighting'!F$13)+('GOM Scores and Quartiles'!$AZ41*'Scenario Weighting'!F$14)+('GOM Scores and Quartiles'!$BB41*'Scenario Weighting'!F$15)+('GOM Scores and Quartiles'!$BC41*'Scenario Weighting'!F$16)+('GOM Scores and Quartiles'!$BE41*'Scenario Weighting'!F$17)+('GOM Scores and Quartiles'!$BF41*'Scenario Weighting'!F$18)) ->  | BK41: =('GOM Scores and Quartiles'!$BG41*0.12)+('GOM Scores and Quartiles'!$BH41*0.12)+('GOM Scores and Quartiles'!$AS41*0.2)+('GOM Scores and Quartiles'!$AT41*0.05)+('GOM Scores and Quartiles'!$AU41*0.1)+('GOM Scores and Quartiles'!$AV41*0.2)+('GOM Scores and Quartiles'!$AW41*0.1)+('GOM Scores and Quartiles'!$BE41*0.07)+('GOM Scores and Quartiles'!$BF41*0.04) -> 23.93723629 | BL41: =IF(AR41=0, "", ($BG41*'Scenario Weighting'!H$3)+('GOM Scores and Quartiles'!$BH41*'Scenario Weighting'!H$4)+('GOM Scores and Quartiles'!$AP41*'Scenario Weighting'!H$5)+('GOM Scores and Quartiles'!$AQ41*'Scenario Weighting'!H$6)+('GOM Scores and Quartiles'!$AR41*'Scenario Weighting'!H$7)+('GOM Scores and Quartiles'!$AS41*'Scenario Weighting'!H$12)+('GOM Scores and Quartiles'!$AT41*'Scenario Weighting'!H$8)+('GOM Scores and Quartiles'!$AU41*'Scenario Weighting'!H$9)+('GOM Scores and Quartiles'!$AV41*'Scenario Weighting'!H$10)+('GOM Scores and Quartiles'!$AW41*'Scenario Weighting'!H$11)+('GOM Scores and Quartiles'!$AX41*'Scenario Weighting'!H$13)+('GOM Scores and Quartiles'!$AZ41*'Scenario Weighting'!H$14)+('GOM Scores and Quartiles'!$BB41*'Scenario Weighting'!H$15)+('GOM Scores and Quartiles'!$BC41*'Scenario Weighting'!H$16)+('GOM Scores and Quartiles'!$BE41*'Scenario Weighting'!H$17)+('GOM Scores and Quartiles'!$BF41*'Scenario Weighting'!H$18)) ->  | BM41: =IF(BI41>='Scenario Weighting'!C$24, "75-100%", IF('GOM Scores and Quartiles'!BI41>='Scenario Weighting'!C$23, "50-75%", IF('GOM Scores and Quartiles'!BI41>='Scenario Weighting'!C$22, "25-50%", "0-25%"))) -> 0-25% | BN41: =IF(BJ41="", "", IF(BJ41>='Scenario Weighting'!D$24, "75-100%", IF('GOM Scores and Quartiles'!BJ41>='Scenario Weighting'!D$23, "50-75%", IF('GOM Scores and Quartiles'!BJ41>='Scenario Weighting'!D$22, "25-50%", "0-25%")))) ->  | BO41: =IF(BK41>='Scenario Weighting'!E$24, "75-100%", IF('GOM Scores and Quartiles'!BK41>='Scenario Weighting'!E$23, "50-75%", IF('GOM Scores and Quartiles'!BK41>='Scenario Weighting'!E$22, "25-50%", "0-25%"))) -> 0-25% | BP41: =IF(BL41="", "", IF(BL41>='Scenario Weighting'!F$24, "75-100%", IF('GOM Scores and Quartiles'!BL41>='Scenario Weighting'!F$23, "50-75%", IF('GOM Scores and Quartiles'!BL41>='Scenario Weighting'!F$22, "25-50%", "0-25%")))) -> 
A42: 37 | B42: 37023 | C42: -96.96405313 | D42: 26.42924698 | E42: 1631 | F42: 73.12104299 | G42: 860 | H42: 64.03239932 | I42: 286 | J42: 119.6012311 | K42: 0 | L42: 0 | M42: 0 | N42: 1 | O42: 1 | P42: 0 | Q42: 1 | R42: 1 | S42: 1 | T42: 0 | U42: 0 | V42: 0 | W42: 0 | X42: 0 | Y42: 2 | Z42: 0 | AA42: 0 | AB42: 4 | AC42: 8 | AD42: 64.56 | AE42: 13923.31 | AF42: 4952 | AG42: 1042.98 | AH42: 130.3725 | AI42: 0 | AJ42: 0 | AK42: 0 | AL42: 20603530.51 | AM42: 54043 | AN42: 6755.375 | AO42: 15.93459119 | AP42: 0 | AQ42: 0 | AR42: 0 | AS42: 100 | AT42: 0 | AU42: 0 | AV42: 0 | AW42: 47.97266183 | AX42: 100 | AY42: 55.32792797 | AZ42: 69.66381249 | BA42: 55.32792797 | BB42: 69.66381249 | BC42: 0 | BD42: 100 | BE42: 100 | BF42: 0 | BG42: 45.98178972 | BH42: 16.17384378 | BI42: =($BG42*'Scenario Weighting'!E$3)+('GOM Scores and Quartiles'!$BH42*'Scenario Weighting'!E$4)+('GOM Scores and Quartiles'!$AP42*'Scenario Weighting'!E$5)+('GOM Scores and Quartiles'!$AQ42*'Scenario Weighting'!E$6)+('GOM Scores and Quartiles'!$AR42*'Scenario Weighting'!E$7)+('GOM Scores and Quartiles'!$AS42*'Scenario Weighting'!E$12)+('GOM Scores and Quartiles'!$AT42*'Scenario Weighting'!E$8)+('GOM Scores and Quartiles'!$AU42*'Scenario Weighting'!E$9)+('GOM Scores and Quartiles'!$AV42*'Scenario Weighting'!E$10)+('GOM Scores and Quartiles'!$AW42*'Scenario Weighting'!E$11)+('GOM Scores and Quartiles'!$AX42*'Scenario Weighting'!E$13)+('GOM Scores and Quartiles'!$AZ42*'Scenario Weighting'!E$14)+('GOM Scores and Quartiles'!$BB42*'Scenario Weighting'!E$15)+('GOM Scores and Quartiles'!$BC42*'Scenario Weighting'!E$16)+('GOM Scores and Quartiles'!$BE42*'Scenario Weighting'!E$17)+('GOM Scores and Quartiles'!$BF42*'Scenario Weighting'!E$18) -> 60.01975495 | BJ42: =IF(AR42=0, "", ($BG42*'Scenario Weighting'!F$3)+('GOM Scores and Quartiles'!$BH42*'Scenario Weighting'!F$4)+('GOM Scores and Quartiles'!$AP42*'Scenario Weighting'!F$5)+('GOM Scores and Quartiles'!$AQ42*'Scenario Weighting'!F$6)+('GOM Scores and Quartiles'!$AR42*'Scenario Weighting'!F$7)+('GOM Scores and Quartiles'!$AS42*'Scenario Weighting'!F$12)+('GOM Scores and Quartiles'!$AT42*'Scenario Weighting'!F$8)+('GOM Scores and Quartiles'!$AU42*'Scenario Weighting'!F$9)+('GOM Scores and Quartiles'!$AV42*'Scenario Weighting'!F$10)+('GOM Scores and Quartiles'!$AW42*'Scenario Weighting'!F$11)+('GOM Scores and Quartiles'!$AX42*'Scenario Weighting'!F$13)+('GOM Scores and Quartiles'!$AZ42*'Scenario Weighting'!F$14)+('GOM Scores and Quartiles'!$BB42*'Scenario Weighting'!F$15)+('GOM Scores and Quartiles'!$BC42*'Scenario Weighting'!F$16)+('GOM Scores and Quartiles'!$BE42*'Scenario Weighting'!F$17)+('GOM Scores and Quartiles'!$BF42*'Scenario Weighting'!F$18)) ->  | BK42: =('GOM Scores and Quartiles'!$BG42*0.12)+('GOM Scores and Quartiles'!$BH42*0.12)+('GOM Scores and Quartiles'!$AS42*0.2)+('GOM Scores and Quartiles'!$AT42*0.05)+('GOM Scores and Quartiles'!$AU42*0.1)+('GOM Scores and Quartiles'!$AV42*0.2)+('GOM Scores and Quartiles'!$AW42*0.1)+('GOM Scores and Quartiles'!$BE42*0.07)+('GOM Scores and Quartiles'!$BF42*0.04) -> 39.2559422 | BL42: =IF(AR42=0, "", ($BG42*'Scenario Weighting'!H$3)+('GOM Scores and Quartiles'!$BH42*'Scenario Weighting'!H$4)+('GOM Scores and Quartiles'!$AP42*'Scenario Weighting'!H$5)+('GOM Scores and Quartiles'!$AQ42*'Scenario Weighting'!H$6)+('GOM Scores and Quartiles'!$AR42*'Scenario Weighting'!H$7)+('GOM Scores and Quartiles'!$AS42*'Scenario Weighting'!H$12)+('GOM Scores and Quartiles'!$AT42*'Scenario Weighting'!H$8)+('GOM Scores and Quartiles'!$AU42*'Scenario Weighting'!H$9)+('GOM Scores and Quartiles'!$AV42*'Scenario Weighting'!H$10)+('GOM Scores and Quartiles'!$AW42*'Scenario Weighting'!H$11)+('GOM Scores and Quartiles'!$AX42*'Scenario Weighting'!H$13)+('GOM Scores and Quartiles'!$AZ42*'Scenario Weighting'!H$14)+('GOM Scores and Quartiles'!$BB42*'Scenario Weighting'!H$15)+('GOM Scores and Quartiles'!$BC42*'Scenario Weighting'!H$16)+('GOM Scores and Quartiles'!$BE42*'Scenario Weighting'!H$17)+('GOM Scores and Quartiles'!$BF42*'Scenario Weighting'!H$18)) ->  | BM42: =IF(BI42>='Scenario Weighting'!C$24, "75-100%", IF('GOM Scores and Quartiles'!BI42>='Scenario Weighting'!C$23, "50-75%", IF('GOM Scores and Quartiles'!BI42>='Scenario Weighting'!C$22, "25-50%", "0-25%"))) -> 25-50% | BN42: =IF(BJ42="", "", IF(BJ42>='Scenario Weighting'!D$24, "75-100%", IF('GOM Scores and Quartiles'!BJ42>='Scenario Weighting'!D$23, "50-75%", IF('GOM Scores and Quartiles'!BJ42>='Scenario Weighting'!D$22, "25-50%", "0-25%")))) ->  | BO42: =IF(BK42>='Scenario Weighting'!E$24, "75-100%", IF('GOM Scores and Quartiles'!BK42>='Scenario Weighting'!E$23, "50-75%", IF('GOM Scores and Quartiles'!BK42>='Scenario Weighting'!E$22, "25-50%", "0-25%"))) -> 25-50% | BP42: =IF(BL42="", "", IF(BL42>='Scenario Weighting'!F$24, "75-100%", IF('GOM Scores and Quartiles'!BL42>='Scenario Weighting'!F$23, "50-75%", IF('GOM Scores and Quartiles'!BL42>='Scenario Weighting'!F$22, "25-50%", "0-25%")))) -> 
A43: 38 | B43: 37041 | C43: -97.10702163 | D43: 26.50073122 | E43: 1631 | F43: 63.90457686 | G43: 860 | H43: 63.51726429 | I43: 286 | J43: 105.956184 | K43: 0 | L43: 0 | M43: 0 | N43: 0 | O43: 1 | P43: 0 | Q43: 1 | R43: 1 | S43: 1 | T43: 0 | U43: 0 | V43: 0 | W43: 0 | X43: 0 | Y43: 0 | Z43: 0 | AA43: 0 | AB43: 7 | AC43: 8 | AD43: 72.14 | AE43: 13576.03 | AF43: 3862 | AG43: 1005.73 | AH43: 125.71625 | AI43: 0 | AJ43: 0 | AK43: 0 | AL43: 26597783.87 | AM43: 54307 | AN43: 6788.375 | AO43: 17.84150943 | AP43: 0 | AQ43: 0 | AR43: 0 | AS43: 0 | AT43: 0 | AU43: 0 | AV43: 0 | AW43: 42.41464432 | AX43: 100 | AY43: 54.91994972 | AZ43: 71.09796101 | BA43: 54.91994972 | BB43: 71.09796101 | BC43: 0 | BD43: 100 | BE43: 100 | BF43: 0 | BG43: 44.81726506 | BH43: 21.19085493 | BI43: =($BG43*'Scenario Weighting'!E$3)+('GOM Scores and Quartiles'!$BH43*'Scenario Weighting'!E$4)+('GOM Scores and Quartiles'!$AP43*'Scenario Weighting'!E$5)+('GOM Scores and Quartiles'!$AQ43*'Scenario Weighting'!E$6)+('GOM Scores and Quartiles'!$AR43*'Scenario Weighting'!E$7)+('GOM Scores and Quartiles'!$AS43*'Scenario Weighting'!E$12)+('GOM Scores and Quartiles'!$AT43*'Scenario Weighting'!E$8)+('GOM Scores and Quartiles'!$AU43*'Scenario Weighting'!E$9)+('GOM Scores and Quartiles'!$AV43*'Scenario Weighting'!E$10)+('GOM Scores and Quartiles'!$AW43*'Scenario Weighting'!E$11)+('GOM Scores and Quartiles'!$AX43*'Scenario Weighting'!E$13)+('GOM Scores and Quartiles'!$AZ43*'Scenario Weighting'!E$14)+('GOM Scores and Quartiles'!$BB43*'Scenario Weighting'!E$15)+('GOM Scores and Quartiles'!$BC43*'Scenario Weighting'!E$16)+('GOM Scores and Quartiles'!$BE43*'Scenario Weighting'!E$17)+('GOM Scores and Quartiles'!$BF43*'Scenario Weighting'!E$18) -> 40.47207073 | BJ43: =IF(AR43=0, "", ($BG43*'Scenario Weighting'!F$3)+('GOM Scores and Quartiles'!$BH43*'Scenario Weighting'!F$4)+('GOM Scores and Quartiles'!$AP43*'Scenario Weighting'!F$5)+('GOM Scores and Quartiles'!$AQ43*'Scenario Weighting'!F$6)+('GOM Scores and Quartiles'!$AR43*'Scenario Weighting'!F$7)+('GOM Scores and Quartiles'!$AS43*'Scenario Weighting'!F$12)+('GOM Scores and Quartiles'!$AT43*'Scenario Weighting'!F$8)+('GOM Scores and Quartiles'!$AU43*'Scenario Weighting'!F$9)+('GOM Scores and Quartiles'!$AV43*'Scenario Weighting'!F$10)+('GOM Scores and Quartiles'!$AW43*'Scenario Weighting'!F$11)+('GOM Scores and Quartiles'!$AX43*'Scenario Weighting'!F$13)+('GOM Scores and Quartiles'!$AZ43*'Scenario Weighting'!F$14)+('GOM Scores and Quartiles'!$BB43*'Scenario Weighting'!F$15)+('GOM Scores and Quartiles'!$BC43*'Scenario Weighting'!F$16)+('GOM Scores and Quartiles'!$BE43*'Scenario Weighting'!F$17)+('GOM Scores and Quartiles'!$BF43*'Scenario Weighting'!F$18)) ->  | BK43: =('GOM Scores and Quartiles'!$BG43*0.12)+('GOM Scores and Quartiles'!$BH43*0.12)+('GOM Scores and Quartiles'!$AS43*0.2)+('GOM Scores and Quartiles'!$AT43*0.05)+('GOM Scores and Quartiles'!$AU43*0.1)+('GOM Scores and Quartiles'!$AV43*0.2)+('GOM Scores and Quartiles'!$AW43*0.1)+('GOM Scores and Quartiles'!$BE43*0.07)+('GOM Scores and Quartiles'!$BF43*0.04) -> 19.16243883 | BL43: =IF(AR43=0, "", ($BG43*'Scenario Weighting'!H$3)+('GOM Scores and Quartiles'!$BH43*'Scenario Weighting'!H$4)+('GOM Scores and Quartiles'!$AP43*'Scenario Weighting'!H$5)+('GOM Scores and Quartiles'!$AQ43*'Scenario Weighting'!H$6)+('GOM Scores and Quartiles'!$AR43*'Scenario Weighting'!H$7)+('GOM Scores and Quartiles'!$AS43*'Scenario Weighting'!H$12)+('GOM Scores and Quartiles'!$AT43*'Scenario Weighting'!H$8)+('GOM Scores and Quartiles'!$AU43*'Scenario Weighting'!H$9)+('GOM Scores and Quartiles'!$AV43*'Scenario Weighting'!H$10)+('GOM Scores and Quartiles'!$AW43*'Scenario Weighting'!H$11)+('GOM Scores and Quartiles'!$AX43*'Scenario Weighting'!H$13)+('GOM Scores and Quartiles'!$AZ43*'Scenario Weighting'!H$14)+('GOM Scores and Quartiles'!$BB43*'Scenario Weighting'!H$15)+('GOM Scores and Quartiles'!$BC43*'Scenario Weighting'!H$16)+('GOM Scores and Quartiles'!$BE43*'Scenario Weighting'!H$17)+('GOM Scores and Quartiles'!$BF43*'Scenario Weighting'!H$18)) ->  | BM43: =IF(BI43>='Scenario Weighting'!C$24, "75-100%", IF('GOM Scores and Quartiles'!BI43>='Scenario Weighting'!C$23, "50-75%", IF('GOM Scores and Quartiles'!BI43>='Scenario Weighting'!C$22, "25-50%", "0-25%"))) -> 0-25% | BN43: =IF(BJ43="", "", IF(BJ43>='Scenario Weighting'!D$24, "75-100%", IF('GOM Scores and Quartiles'!BJ43>='Scenario Weighting'!D$23, "50-75%", IF('GOM Scores and Quartiles'!BJ43>='Scenario Weighting'!D$22, "25-50%", "0-25%")))) ->  | BO43: =IF(BK43>='Scenario Weighting'!E$24, "75-100%", IF('GOM Scores and Quartiles'!BK43>='Scenario Weighting'!E$23, "50-75%", IF('GOM Scores and Quartiles'!BK43>='Scenario Weighting'!E$22, "25-50%", "0-25%"))) -> 0-25% | BP43: =IF(BL43="", "", IF(BL43>='Scenario Weighting'!F$24, "75-100%", IF('GOM Scores and Quartiles'!BL43>='Scenario Weighting'!F$23, "50-75%", IF('GOM Scores and Quartiles'!BL43>='Scenario Weighting'!F$22, "25-50%", "0-25%")))) -> 
A44: 39 | B44: 37043 | C44: -97.10702163 | D44: 26.57221547 | E44: 1631 | F44: 68.14937149 | G44: 860 | H44: 70.85267873 | I44: 286 | J44: 107.1465449 | K44: 0 | L44: 0 | M44: 0 | N44: 0 | O44: 1 | P44: 0 | Q44: 1 | R44: 1 | S44: 1 | T44: 0 | U44: 0 | V44: 0 | W44: 0 | X44: 0 | Y44: 0 | Z44: 0 | AA44: 0 | AB44: 6 | AC44: 10 | AD44: 80.46 | AE44: 15729.32 | AF44: 5830 | AG44: 1181.38 | AH44: 118.138 | AI44: 0 | AJ44: 0 | AK44: 0 | AL44: 30065761.56 | AM44: 70571 | AN44: 7057.1 | AO44: 19.93459119 | AP44: 0 | AQ44: 0 | AR44: 0 | AS44: 0 | AT44: 0 | AU44: 0 | AV44: 0 | AW44: 42.89951233 | AX44: 100 | AY44: 51.59770873 | AZ44: 73.43210029 | BA44: 51.59770873 | BB44: 73.43210029 | BC44: 0 | BD44: 100 | BE44: 100 | BF44: 0 | BG44: 52.03783431 | BH44: 24.09344875 | BI44: =($BG44*'Scenario Weighting'!E$3)+('GOM Scores and Quartiles'!$BH44*'Scenario Weighting'!E$4)+('GOM Scores and Quartiles'!$AP44*'Scenario Weighting'!E$5)+('GOM Scores and Quartiles'!$AQ44*'Scenario Weighting'!E$6)+('GOM Scores and Quartiles'!$AR44*'Scenario Weighting'!E$7)+('GOM Scores and Quartiles'!$AS44*'Scenario Weighting'!E$12)+('GOM Scores and Quartiles'!$AT44*'Scenario Weighting'!E$8)+('GOM Scores and Quartiles'!$AU44*'Scenario Weighting'!E$9)+('GOM Scores and Quartiles'!$AV44*'Scenario Weighting'!E$10)+('GOM Scores and Quartiles'!$AW44*'Scenario Weighting'!E$11)+('GOM Scores and Quartiles'!$AX44*'Scenario Weighting'!E$13)+('GOM Scores and Quartiles'!$AZ44*'Scenario Weighting'!E$14)+('GOM Scores and Quartiles'!$BB44*'Scenario Weighting'!E$15)+('GOM Scores and Quartiles'!$BC44*'Scenario Weighting'!E$16)+('GOM Scores and Quartiles'!$BE44*'Scenario Weighting'!E$17)+('GOM Scores and Quartiles'!$BF44*'Scenario Weighting'!E$18) -> 42.73927378 | BJ44: =IF(AR44=0, "", ($BG44*'Scenario Weighting'!F$3)+('GOM Scores and Quartiles'!$BH44*'Scenario Weighting'!F$4)+('GOM Scores and Quartiles'!$AP44*'Scenario Weighting'!F$5)+('GOM Scores and Quartiles'!$AQ44*'Scenario Weighting'!F$6)+('GOM Scores and Quartiles'!$AR44*'Scenario Weighting'!F$7)+('GOM Scores and Quartiles'!$AS44*'Scenario Weighting'!F$12)+('GOM Scores and Quartiles'!$AT44*'Scenario Weighting'!F$8)+('GOM Scores and Quartiles'!$AU44*'Scenario Weighting'!F$9)+('GOM Scores and Quartiles'!$AV44*'Scenario Weighting'!F$10)+('GOM Scores and Quartiles'!$AW44*'Scenario Weighting'!F$11)+('GOM Scores and Quartiles'!$AX44*'Scenario Weighting'!F$13)+('GOM Scores and Quartiles'!$AZ44*'Scenario Weighting'!F$14)+('GOM Scores and Quartiles'!$BB44*'Scenario Weighting'!F$15)+('GOM Scores and Quartiles'!$BC44*'Scenario Weighting'!F$16)+('GOM Scores and Quartiles'!$BE44*'Scenario Weighting'!F$17)+('GOM Scores and Quartiles'!$BF44*'Scenario Weighting'!F$18)) ->  | BK44: =('GOM Scores and Quartiles'!$BG44*0.12)+('GOM Scores and Quartiles'!$BH44*0.12)+('GOM Scores and Quartiles'!$AS44*0.2)+('GOM Scores and Quartiles'!$AT44*0.05)+('GOM Scores and Quartiles'!$AU44*0.1)+('GOM Scores and Quartiles'!$AV44*0.2)+('GOM Scores and Quartiles'!$AW44*0.1)+('GOM Scores and Quartiles'!$BE44*0.07)+('GOM Scores and Quartiles'!$BF44*0.04) -> 20.4257052 | BL44: =IF(AR44=0, "", ($BG44*'Scenario Weighting'!H$3)+('GOM Scores and Quartiles'!$BH44*'Scenario Weighting'!H$4)+('GOM Scores and Quartiles'!$AP44*'Scenario Weighting'!H$5)+('GOM Scores and Quartiles'!$AQ44*'Scenario Weighting'!H$6)+('GOM Scores and Quartiles'!$AR44*'Scenario Weighting'!H$7)+('GOM Scores and Quartiles'!$AS44*'Scenario Weighting'!H$12)+('GOM Scores and Quartiles'!$AT44*'Scenario Weighting'!H$8)+('GOM Scores and Quartiles'!$AU44*'Scenario Weighting'!H$9)+('GOM Scores and Quartiles'!$AV44*'Scenario Weighting'!H$10)+('GOM Scores and Quartiles'!$AW44*'Scenario Weighting'!H$11)+('GOM Scores and Quartiles'!$AX44*'Scenario Weighting'!H$13)+('GOM Scores and Quartiles'!$AZ44*'Scenario Weighting'!H$14)+('GOM Scores and Quartiles'!$BB44*'Scenario Weighting'!H$15)+('GOM Scores and Quartiles'!$BC44*'Scenario Weighting'!H$16)+('GOM Scores and Quartiles'!$BE44*'Scenario Weighting'!H$17)+('GOM Scores and Quartiles'!$BF44*'Scenario Weighting'!H$18)) ->  | BM44: =IF(BI44>='Scenario Weighting'!C$24, "75-100%", IF('GOM Scores and Quartiles'!BI44>='Scenario Weighting'!C$23, "50-75%", IF('GOM Scores and Quartiles'!BI44>='Scenario Weighting'!C$22, "25-50%", "0-25%"))) -> 0-25% | BN44: =IF(BJ44="", "", IF(BJ44>='Scenario Weighting'!D$24, "75-100%", IF('GOM Scores and Quartiles'!BJ44>='Scenario Weighting'!D$23, "50-75%", IF('GOM Scores and Quartiles'!BJ44>='Scenario Weighting'!D$22, "25-50%", "0-25%")))) ->  | BO44: =IF(BK44>='Scenario Weighting'!E$24, "75-100%", IF('GOM Scores and Quartiles'!BK44>='Scenario Weighting'!E$23, "50-75%", IF('GOM Scores and Quartiles'!BK44>='Scenario Weighting'!E$22, "25-50%", "0-25%"))) -> 0-25% | BP44: =IF(BL44="", "", IF(BL44>='Scenario Weighting'!F$24, "75-100%", IF('GOM Scores and Quartiles'!BL44>='Scenario Weighting'!F$23, "50-75%", IF('GOM Scores and Quartiles'!BL44>='Scenario Weighting'!F$22, "25-50%", "0-25%")))) -> 
A45: 40 | B45: 37044 | C45: -97.03553738 | D45: 26.50073122 | E45: 1631 | F45: 69.95221149 | G45: 860 | H45: 66.67881929 | I45: 286 | J45: 113.0392611 | K45: 0 | L45: 0 | M45: 0 | N45: 0 | O45: 1 | P45: 0 | Q45: 1 | R45: 1 | S45: 1 | T45: 0 | U45: 0 | V45: 0 | W45: 0 | X45: 0 | Y45: 0 | Z45: 0 | AA45: 0 | AB45: 5 | AC45: 9 | AD45: 75.18 | AE45: 14668.52 | AF45: 5132 | AG45: 1079.18 | AH45: 119.9088889 | AI45: 0 | AJ45: 0 | AK45: 0 | AL45: 27877036.51 | AM45: 61936 | AN45: 6881.777778 | AO45: 18.60628931 | AP45: 0 | AQ45: 0 | AR45: 0 | AS45: 0 | AT45: 0 | AU45: 0 | AV45: 0 | AW45: 45.29978398 | AX45: 100 | AY45: 53.76521333 | AZ45: 72.88665756 | BA45: 53.76521333 | BB45: 72.88665756 | BC45: 0 | BD45: 100 | BE45: 100 | BF45: 0 | BG45: 48.4806823 | BH45: 22.26155121 | BI45: =($BG45*'Scenario Weighting'!E$3)+('GOM Scores and Quartiles'!$BH45*'Scenario Weighting'!E$4)+('GOM Scores and Quartiles'!$AP45*'Scenario Weighting'!E$5)+('GOM Scores and Quartiles'!$AQ45*'Scenario Weighting'!E$6)+('GOM Scores and Quartiles'!$AR45*'Scenario Weighting'!E$7)+('GOM Scores and Quartiles'!$AS45*'Scenario Weighting'!E$12)+('GOM Scores and Quartiles'!$AT45*'Scenario Weighting'!E$8)+('GOM Scores and Quartiles'!$AU45*'Scenario Weighting'!E$9)+('GOM Scores and Quartiles'!$AV45*'Scenario Weighting'!E$10)+('GOM Scores and Quartiles'!$AW45*'Scenario Weighting'!E$11)+('GOM Scores and Quartiles'!$AX45*'Scenario Weighting'!E$13)+('GOM Scores and Quartiles'!$AZ45*'Scenario Weighting'!E$14)+('GOM Scores and Quartiles'!$BB45*'Scenario Weighting'!E$15)+('GOM Scores and Quartiles'!$BC45*'Scenario Weighting'!E$16)+('GOM Scores and Quartiles'!$BE45*'Scenario Weighting'!E$17)+('GOM Scores and Quartiles'!$BF45*'Scenario Weighting'!E$18) -> 42.00731069 | BJ45: =IF(AR45=0, "", ($BG45*'Scenario Weighting'!F$3)+('GOM Scores and Quartiles'!$BH45*'Scenario Weighting'!F$4)+('GOM Scores and Quartiles'!$AP45*'Scenario Weighting'!F$5)+('GOM Scores and Quartiles'!$AQ45*'Scenario Weighting'!F$6)+('GOM Scores and Quartiles'!$AR45*'Scenario Weighting'!F$7)+('GOM Scores and Quartiles'!$AS45*'Scenario Weighting'!F$12)+('GOM Scores and Quartiles'!$AT45*'Scenario Weighting'!F$8)+('GOM Scores and Quartiles'!$AU45*'Scenario Weighting'!F$9)+('GOM Scores and Quartiles'!$AV45*'Scenario Weighting'!F$10)+('GOM Scores and Quartiles'!$AW45*'Scenario Weighting'!F$11)+('GOM Scores and Quartiles'!$AX45*'Scenario Weighting'!F$13)+('GOM Scores and Quartiles'!$AZ45*'Scenario Weighting'!F$14)+('GOM Scores and Quartiles'!$BB45*'Scenario Weighting'!F$15)+('GOM Scores and Quartiles'!$BC45*'Scenario Weighting'!F$16)+('GOM Scores and Quartiles'!$BE45*'Scenario Weighting'!F$17)+('GOM Scores and Quartiles'!$BF45*'Scenario Weighting'!F$18)) ->  | BK45: =('GOM Scores and Quartiles'!$BG45*0.12)+('GOM Scores and Quartiles'!$BH45*0.12)+('GOM Scores and Quartiles'!$AS45*0.2)+('GOM Scores and Quartiles'!$AT45*0.05)+('GOM Scores and Quartiles'!$AU45*0.1)+('GOM Scores and Quartiles'!$AV45*0.2)+('GOM Scores and Quartiles'!$AW45*0.1)+('GOM Scores and Quartiles'!$BE45*0.07)+('GOM Scores and Quartiles'!$BF45*0.04) -> 20.01904642 | BL45: =IF(AR45=0, "", ($BG45*'Scenario Weighting'!H$3)+('GOM Scores and Quartiles'!$BH45*'Scenario Weighting'!H$4)+('GOM Scores and Quartiles'!$AP45*'Scenario Weighting'!H$5)+('GOM Scores and Quartiles'!$AQ45*'Scenario Weighting'!H$6)+('GOM Scores and Quartiles'!$AR45*'Scenario Weighting'!H$7)+('GOM Scores and Quartiles'!$AS45*'Scenario Weighting'!H$12)+('GOM Scores and Quartiles'!$AT45*'Scenario Weighting'!H$8)+('GOM Scores and Quartiles'!$AU45*'Scenario Weighting'!H$9)+('GOM Scores and Quartiles'!$AV45*'Scenario Weighting'!H$10)+('GOM Scores and Quartiles'!$AW45*'Scenario Weighting'!H$11)+('GOM Scores and Quartiles'!$AX45*'Scenario Weighting'!H$13)+('GOM Scores and Quartiles'!$AZ45*'Scenario Weighting'!H$14)+('GOM Scores and Quartiles'!$BB45*'Scenario Weighting'!H$15)+('GOM Scores and Quartiles'!$BC45*'Scenario Weighting'!H$16)+('GOM Scores and Quartiles'!$BE45*'Scenario Weighting'!H$17)+('GOM Scores and Quartiles'!$BF45*'Scenario Weighting'!H$18)) ->  | BM45: =IF(BI45>='Scenario Weighting'!C$24, "75-100%", IF('GOM Scores and Quartiles'!BI45>='Scenario Weighting'!C$23, "50-75%", IF('GOM Scores and Quartiles'!BI45>='Scenario Weighting'!C$22, "25-50%", "0-25%"))) -> 0-25% | BN45: =IF(BJ45="", "", IF(BJ45>='Scenario Weighting'!D$24, "75-100%", IF('GOM Scores and Quartiles'!BJ45>='Scenario Weighting'!D$23, "50-75%", IF('GOM Scores and Quartiles'!BJ45>='Scenario Weighting'!D$22, "25-50%", "0-25%")))) ->  | BO45: =IF(BK45>='Scenario Weighting'!E$24, "75-100%", IF('GOM Scores and Quartiles'!BK45>='Scenario Weighting'!E$23, "50-75%", IF('GOM Scores and Quartiles'!BK45>='Scenario Weighting'!E$22, "25-50%", "0-25%"))) -> 0-25% | BP45: =IF(BL45="", "", IF(BL45>='Scenario Weighting'!F$24, "75-100%", IF('GOM Scores and Quartiles'!BL45>='Scenario Weighting'!F$23, "50-75%", IF('GOM Scores and Quartiles'!BL45>='Scenario Weighting'!F$22, "25-50%", "0-25%")))) -> 
A46: 41 | B46: 37045 | C46: -96.96405313 | D46: 26.50073122 | E46: 1631 | F46: 76.19073961 | G46: 860 | H46: 70.4256695 | I46: 286 | J46: 120.1278378 | K46: 0 | L46: 1 | M46: 0 | N46: 1 | O46: 1 | P46: 0 | Q46: 1 | R46: 1 | S46: 1 | T46: 0 | U46: 2 | V46: 0 | W46: 0 | X46: 0 | Y46: 1 | Z46: 0 | AA46: 0 | AB46: 4 | AC46: 9 | AD46: 75.18 | AE46: 14668.52 | AF46: 5132 | AG46: 1079.18 | AH46: 119.9088889 | AI46: 0 | AJ46: 0 | AK46: 0 | AL46: 27877036.51 | AM46: 61936 | AN46: 6881.777778 | AO46: 18.60628931 | AP46: 0 | AQ46: 0 | AR46: 0 | AS46: 100 | AT46: 0 | AU46: 0 | AV46: 0 | AW46: 48.18716379 | AX46: 100 | AY46: 53.76521333 | AZ46: 72.88665756 | BA46: 53.76521333 | BB46: 72.88665756 | BC46: 0 | BD46: 100 | BE46: 99.15966387 | BF46: 0 | BG46: 48.4806823 | BH46: 22.26155121 | BI46: =($BG46*'Scenario Weighting'!E$3)+('GOM Scores and Quartiles'!$BH46*'Scenario Weighting'!E$4)+('GOM Scores and Quartiles'!$AP46*'Scenario Weighting'!E$5)+('GOM Scores and Quartiles'!$AQ46*'Scenario Weighting'!E$6)+('GOM Scores and Quartiles'!$AR46*'Scenario Weighting'!E$7)+('GOM Scores and Quartiles'!$AS46*'Scenario Weighting'!E$12)+('GOM Scores and Quartiles'!$AT46*'Scenario Weighting'!E$8)+('GOM Scores and Quartiles'!$AU46*'Scenario Weighting'!E$9)+('GOM Scores and Quartiles'!$AV46*'Scenario Weighting'!E$10)+('GOM Scores and Quartiles'!$AW46*'Scenario Weighting'!E$11)+('GOM Scores and Quartiles'!$AX46*'Scenario Weighting'!E$13)+('GOM Scores and Quartiles'!$AZ46*'Scenario Weighting'!E$14)+('GOM Scores and Quartiles'!$BB46*'Scenario Weighting'!E$15)+('GOM Scores and Quartiles'!$BC46*'Scenario Weighting'!E$16)+('GOM Scores and Quartiles'!$BE46*'Scenario Weighting'!E$17)+('GOM Scores and Quartiles'!$BF46*'Scenario Weighting'!E$18) -> 62.27924195 | BJ46: =IF(AR46=0, "", ($BG46*'Scenario Weighting'!F$3)+('GOM Scores and Quartiles'!$BH46*'Scenario Weighting'!F$4)+('GOM Scores and Quartiles'!$AP46*'Scenario Weighting'!F$5)+('GOM Scores and Quartiles'!$AQ46*'Scenario Weighting'!F$6)+('GOM Scores and Quartiles'!$AR46*'Scenario Weighting'!F$7)+('GOM Scores and Quartiles'!$AS46*'Scenario Weighting'!F$12)+('GOM Scores and Quartiles'!$AT46*'Scenario Weighting'!F$8)+('GOM Scores and Quartiles'!$AU46*'Scenario Weighting'!F$9)+('GOM Scores and Quartiles'!$AV46*'Scenario Weighting'!F$10)+('GOM Scores and Quartiles'!$AW46*'Scenario Weighting'!F$11)+('GOM Scores and Quartiles'!$AX46*'Scenario Weighting'!F$13)+('GOM Scores and Quartiles'!$AZ46*'Scenario Weighting'!F$14)+('GOM Scores and Quartiles'!$BB46*'Scenario Weighting'!F$15)+('GOM Scores and Quartiles'!$BC46*'Scenario Weighting'!F$16)+('GOM Scores and Quartiles'!$BE46*'Scenario Weighting'!F$17)+('GOM Scores and Quartiles'!$BF46*'Scenario Weighting'!F$18)) ->  | BK46: =('GOM Scores and Quartiles'!$BG46*0.12)+('GOM Scores and Quartiles'!$BH46*0.12)+('GOM Scores and Quartiles'!$AS46*0.2)+('GOM Scores and Quartiles'!$AT46*0.05)+('GOM Scores and Quartiles'!$AU46*0.1)+('GOM Scores and Quartiles'!$AV46*0.2)+('GOM Scores and Quartiles'!$AW46*0.1)+('GOM Scores and Quartiles'!$BE46*0.07)+('GOM Scores and Quartiles'!$BF46*0.04) -> 40.24896087 | BL46: =IF(AR46=0, "", ($BG46*'Scenario Weighting'!H$3)+('GOM Scores and Quartiles'!$BH46*'Scenario Weighting'!H$4)+('GOM Scores and Quartiles'!$AP46*'Scenario Weighting'!H$5)+('GOM Scores and Quartiles'!$AQ46*'Scenario Weighting'!H$6)+('GOM Scores and Quartiles'!$AR46*'Scenario Weighting'!H$7)+('GOM Scores and Quartiles'!$AS46*'Scenario Weighting'!H$12)+('GOM Scores and Quartiles'!$AT46*'Scenario Weighting'!H$8)+('GOM Scores and Quartiles'!$AU46*'Scenario Weighting'!H$9)+('GOM Scores and Quartiles'!$AV46*'Scenario Weighting'!H$10)+('GOM Scores and Quartiles'!$AW46*'Scenario Weighting'!H$11)+('GOM Scores and Quartiles'!$AX46*'Scenario Weighting'!H$13)+('GOM Scores and Quartiles'!$AZ46*'Scenario Weighting'!H$14)+('GOM Scores and Quartiles'!$BB46*'Scenario Weighting'!H$15)+('GOM Scores and Quartiles'!$BC46*'Scenario Weighting'!H$16)+('GOM Scores and Quartiles'!$BE46*'Scenario Weighting'!H$17)+('GOM Scores and Quartiles'!$BF46*'Scenario Weighting'!H$18)) ->  | BM46: =IF(BI46>='Scenario Weighting'!C$24, "75-100%", IF('GOM Scores and Quartiles'!BI46>='Scenario Weighting'!C$23, "50-75%", IF('GOM Scores and Quartiles'!BI46>='Scenario Weighting'!C$22, "25-50%", "0-25%"))) -> 50-75% | BN46: =IF(BJ46="", "", IF(BJ46>='Scenario Weighting'!D$24, "75-100%", IF('GOM Scores and Quartiles'!BJ46>='Scenario Weighting'!D$23, "50-75%", IF('GOM Scores and Quartiles'!BJ46>='Scenario Weighting'!D$22, "25-50%", "0-25%")))) ->  | BO46: =IF(BK46>='Scenario Weighting'!E$24, "75-100%", IF('GOM Scores and Quartiles'!BK46>='Scenario Weighting'!E$23, "50-75%", IF('GOM Scores and Quartiles'!BK46>='Scenario Weighting'!E$22, "25-50%", "0-25%"))) -> 25-50% | BP46: =IF(BL46="", "", IF(BL46>='Scenario Weighting'!F$24, "75-100%", IF('GOM Scores and Quartiles'!BL46>='Scenario Weighting'!F$23, "50-75%", IF('GOM Scores and Quartiles'!BL46>='Scenario Weighting'!F$22, "25-50%", "0-25%")))) -> 
A47: 42 | B47: 37046 | C47: -97.03553738 | D47: 26.57221547 | E47: 1631 | F47: 73.85021181 | G47: 860 | H47: 73.69851577 | I47: 286 | J47: 114.1515851 | K47: 0 | L47: 0 | M47: 0 | N47: 0 | O47: 1 | P47: 0 | Q47: 1 | R47: 1 | S47: 1 | T47: 0 | U47: 0 | V47: 0 | W47: 0 | X47: 0 | Y47: 0 | Z47: 0 | AA47: 0 | AB47: 5 | AC47: 9 | AD47: 75.18 | AE47: 14668.52 | AF47: 5132 | AG47: 1079.18 | AH47: 119.9088889 | AI47: 0 | AJ47: 0 | AK47: 0 | AL47: 27877036.51 | AM47: 61936 | AN47: 6881.777778 | AO47: 18.60628931 | AP47: 0 | AQ47: 0 | AR47: 0 | AS47: 0 | AT47: 0 | AU47: 0 | AV47: 0 | AW47: 45.75286531 | AX47: 100 | AY47: 53.76521333 | AZ47: 72.88665756 | BA47: 53.76521333 | BB47: 72.88665756 | BC47: 0 | BD47: 100 | BE47: 100 | BF47: 0 | BG47: 48.4806823 | BH47: 22.26155121 | BI47: =($BG47*'Scenario Weighting'!E$3)+('GOM Scores and Quartiles'!$BH47*'Scenario Weighting'!E$4)+('GOM Scores and Quartiles'!$AP47*'Scenario Weighting'!E$5)+('GOM Scores and Quartiles'!$AQ47*'Scenario Weighting'!E$6)+('GOM Scores and Quartiles'!$AR47*'Scenario Weighting'!E$7)+('GOM Scores and Quartiles'!$AS47*'Scenario Weighting'!E$12)+('GOM Scores and Quartiles'!$AT47*'Scenario Weighting'!E$8)+('GOM Scores and Quartiles'!$AU47*'Scenario Weighting'!E$9)+('GOM Scores and Quartiles'!$AV47*'Scenario Weighting'!E$10)+('GOM Scores and Quartiles'!$AW47*'Scenario Weighting'!E$11)+('GOM Scores and Quartiles'!$AX47*'Scenario Weighting'!E$13)+('GOM Scores and Quartiles'!$AZ47*'Scenario Weighting'!E$14)+('GOM Scores and Quartiles'!$BB47*'Scenario Weighting'!E$15)+('GOM Scores and Quartiles'!$BC47*'Scenario Weighting'!E$16)+('GOM Scores and Quartiles'!$BE47*'Scenario Weighting'!E$17)+('GOM Scores and Quartiles'!$BF47*'Scenario Weighting'!E$18) -> 42.05261883 | BJ47: =IF(AR47=0, "", ($BG47*'Scenario Weighting'!F$3)+('GOM Scores and Quartiles'!$BH47*'Scenario Weighting'!F$4)+('GOM Scores and Quartiles'!$AP47*'Scenario Weighting'!F$5)+('GOM Scores and Quartiles'!$AQ47*'Scenario Weighting'!F$6)+('GOM Scores and Quartiles'!$AR47*'Scenario Weighting'!F$7)+('GOM Scores and Quartiles'!$AS47*'Scenario Weighting'!F$12)+('GOM Scores and Quartiles'!$AT47*'Scenario Weighting'!F$8)+('GOM Scores and Quartiles'!$AU47*'Scenario Weighting'!F$9)+('GOM Scores and Quartiles'!$AV47*'Scenario Weighting'!F$10)+('GOM Scores and Quartiles'!$AW47*'Scenario Weighting'!F$11)+('GOM Scores and Quartiles'!$AX47*'Scenario Weighting'!F$13)+('GOM Scores and Quartiles'!$AZ47*'Scenario Weighting'!F$14)+('GOM Scores and Quartiles'!$BB47*'Scenario Weighting'!F$15)+('GOM Scores and Quartiles'!$BC47*'Scenario Weighting'!F$16)+('GOM Scores and Quartiles'!$BE47*'Scenario Weighting'!F$17)+('GOM Scores and Quartiles'!$BF47*'Scenario Weighting'!F$18)) ->  | BK47: =('GOM Scores and Quartiles'!$BG47*0.12)+('GOM Scores and Quartiles'!$BH47*0.12)+('GOM Scores and Quartiles'!$AS47*0.2)+('GOM Scores and Quartiles'!$AT47*0.05)+('GOM Scores and Quartiles'!$AU47*0.1)+('GOM Scores and Quartiles'!$AV47*0.2)+('GOM Scores and Quartiles'!$AW47*0.1)+('GOM Scores and Quartiles'!$BE47*0.07)+('GOM Scores and Quartiles'!$BF47*0.04) -> 20.06435455 | BL47: =IF(AR47=0, "", ($BG47*'Scenario Weighting'!H$3)+('GOM Scores and Quartiles'!$BH47*'Scenario Weighting'!H$4)+('GOM Scores and Quartiles'!$AP47*'Scenario Weighting'!H$5)+('GOM Scores and Quartiles'!$AQ47*'Scenario Weighting'!H$6)+('GOM Scores and Quartiles'!$AR47*'Scenario Weighting'!H$7)+('GOM Scores and Quartiles'!$AS47*'Scenario Weighting'!H$12)+('GOM Scores and Quartiles'!$AT47*'Scenario Weighting'!H$8)+('GOM Scores and Quartiles'!$AU47*'Scenario Weighting'!H$9)+('GOM Scores and Quartiles'!$AV47*'Scenario Weighting'!H$10)+('GOM Scores and Quartiles'!$AW47*'Scenario Weighting'!H$11)+('GOM Scores and Quartiles'!$AX47*'Scenario Weighting'!H$13)+('GOM Scores and Quartiles'!$AZ47*'Scenario Weighting'!H$14)+('GOM Scores and Quartiles'!$BB47*'Scenario Weighting'!H$15)+('GOM Scores and Quartiles'!$BC47*'Scenario Weighting'!H$16)+('GOM Scores and Quartiles'!$BE47*'Scenario Weighting'!H$17)+('GOM Scores and Quartiles'!$BF47*'Scenario Weighting'!H$18)) ->  | BM47: =IF(BI47>='Scenario Weighting'!C$24, "75-100%", IF('GOM Scores and Quartiles'!BI47>='Scenario Weighting'!C$23, "50-75%", IF('GOM Scores and Quartiles'!BI47>='Scenario Weighting'!C$22, "25-50%", "0-25%"))) -> 0-25% | BN47: =IF(BJ47="", "", IF(BJ47>='Scenario Weighting'!D$24, "75-100%", IF('GOM Scores and Quartiles'!BJ47>='Scenario Weighting'!D$23, "50-75%", IF('GOM Scores and Quartiles'!BJ47>='Scenario Weighting'!D$22, "25-50%", "0-25%")))) ->  | BO47: =IF(BK47>='Scenario Weighting'!E$24, "75-100%", IF('GOM Scores and Quartiles'!BK47>='Scenario Weighting'!E$23, "50-75%", IF('GOM Scores and Quartiles'!BK47>='Scenario Weighting'!E$22, "25-50%", "0-25%"))) -> 0-25% | BP47: =IF(BL47="", "", IF(BL47>='Scenario Weighting'!F$24, "75-100%", IF('GOM Scores and Quartiles'!BL47>='Scenario Weighting'!F$23, "50-75%", IF('GOM Scores and Quartiles'!BL47>='Scenario Weighting'!F$22, "25-50%", "0-25%")))) -> 
A48: 43 | B48: 37047 | C48: -96.96405313 | D48: 26.57221547 | E48: 1631 | F48: 79.78452665 | G48: 860 | H48: 77.10295417 | I48: 149 | J48: 119.7773823 | K48: 0 | L48: 0 | M48: 0 | N48: 1 | O48: 0 | P48: 0 | Q48: 1 | R48: 1 | S48: 0 | T48: 0 | U48: 0 | V48: 0 | W48: 0 | X48: 0 | Y48: 1 | Z48: 0 | AA48: 0 | AB48: 4 | AC48: 9 | AD48: 75.18 | AE48: 14668.52 | AF48: 5132 | AG48: 1079.18 | AH48: 119.9088889 | AI48: 0 | AJ48: 0 | AK48: 0 | AL48: 27877036.51 | AM48: 61936 | AN48: 6881.777778 | AO48: 18.60628931 | AP48: 0 | AQ48: 0 | AR48: 0 | AS48: 100 | AT48: 0 | AU48: 0 | AV48: 0 | AW48: 48.04441326 | AX48: 100 | AY48: 53.76521333 | AZ48: 72.88665756 | BA48: 53.76521333 | BB48: 72.88665756 | BC48: 0 | BD48: 100 | BE48: 100 | BF48: 100 | BG48: 48.4806823 | BH48: 22.26155121 | BI48: =($BG48*'Scenario Weighting'!E$3)+('GOM Scores and Quartiles'!$BH48*'Scenario Weighting'!E$4)+('GOM Scores and Quartiles'!$AP48*'Scenario Weighting'!E$5)+('GOM Scores and Quartiles'!$AQ48*'Scenario Weighting'!E$6)+('GOM Scores and Quartiles'!$AR48*'Scenario Weighting'!E$7)+('GOM Scores and Quartiles'!$AS48*'Scenario Weighting'!E$12)+('GOM Scores and Quartiles'!$AT48*'Scenario Weighting'!E$8)+('GOM Scores and Quartiles'!$AU48*'Scenario Weighting'!E$9)+('GOM Scores and Quartiles'!$AV48*'Scenario Weighting'!E$10)+('GOM Scores and Quartiles'!$AW48*'Scenario Weighting'!E$11)+('GOM Scores and Quartiles'!$AX48*'Scenario Weighting'!E$13)+('GOM Scores and Quartiles'!$AZ48*'Scenario Weighting'!E$14)+('GOM Scores and Quartiles'!$BB48*'Scenario Weighting'!E$15)+('GOM Scores and Quartiles'!$BC48*'Scenario Weighting'!E$16)+('GOM Scores and Quartiles'!$BE48*'Scenario Weighting'!E$17)+('GOM Scores and Quartiles'!$BF48*'Scenario Weighting'!E$18) -> 67.28177362 | BJ48: =IF(AR48=0, "", ($BG48*'Scenario Weighting'!F$3)+('GOM Scores and Quartiles'!$BH48*'Scenario Weighting'!F$4)+('GOM Scores and Quartiles'!$AP48*'Scenario Weighting'!F$5)+('GOM Scores and Quartiles'!$AQ48*'Scenario Weighting'!F$6)+('GOM Scores and Quartiles'!$AR48*'Scenario Weighting'!F$7)+('GOM Scores and Quartiles'!$AS48*'Scenario Weighting'!F$12)+('GOM Scores and Quartiles'!$AT48*'Scenario Weighting'!F$8)+('GOM Scores and Quartiles'!$AU48*'Scenario Weighting'!F$9)+('GOM Scores and Quartiles'!$AV48*'Scenario Weighting'!F$10)+('GOM Scores and Quartiles'!$AW48*'Scenario Weighting'!F$11)+('GOM Scores and Quartiles'!$AX48*'Scenario Weighting'!F$13)+('GOM Scores and Quartiles'!$AZ48*'Scenario Weighting'!F$14)+('GOM Scores and Quartiles'!$BB48*'Scenario Weighting'!F$15)+('GOM Scores and Quartiles'!$BC48*'Scenario Weighting'!F$16)+('GOM Scores and Quartiles'!$BE48*'Scenario Weighting'!F$17)+('GOM Scores and Quartiles'!$BF48*'Scenario Weighting'!F$18)) ->  | BK48: =('GOM Scores and Quartiles'!$BG48*0.12)+('GOM Scores and Quartiles'!$BH48*0.12)+('GOM Scores and Quartiles'!$AS48*0.2)+('GOM Scores and Quartiles'!$AT48*0.05)+('GOM Scores and Quartiles'!$AU48*0.1)+('GOM Scores and Quartiles'!$AV48*0.2)+('GOM Scores and Quartiles'!$AW48*0.1)+('GOM Scores and Quartiles'!$BE48*0.07)+('GOM Scores and Quartiles'!$BF48*0.04) -> 44.29350935 | BL48: =IF(AR48=0, "", ($BG48*'Scenario Weighting'!H$3)+('GOM Scores and Quartiles'!$BH48*'Scenario Weighting'!H$4)+('GOM Scores and Quartiles'!$AP48*'Scenario Weighting'!H$5)+('GOM Scores and Quartiles'!$AQ48*'Scenario Weighting'!H$6)+('GOM Scores and Quartiles'!$AR48*'Scenario Weighting'!H$7)+('GOM Scores and Quartiles'!$AS48*'Scenario Weighting'!H$12)+('GOM Scores and Quartiles'!$AT48*'Scenario Weighting'!H$8)+('GOM Scores and Quartiles'!$AU48*'Scenario Weighting'!H$9)+('GOM Scores and Quartiles'!$AV48*'Scenario Weighting'!H$10)+('GOM Scores and Quartiles'!$AW48*'Scenario Weighting'!H$11)+('GOM Scores and Quartiles'!$AX48*'Scenario Weighting'!H$13)+('GOM Scores and Quartiles'!$AZ48*'Scenario Weighting'!H$14)+('GOM Scores and Quartiles'!$BB48*'Scenario Weighting'!H$15)+('GOM Scores and Quartiles'!$BC48*'Scenario Weighting'!H$16)+('GOM Scores and Quartiles'!$BE48*'Scenario Weighting'!H$17)+('GOM Scores and Quartiles'!$BF48*'Scenario Weighting'!H$18)) ->  | BM48: =IF(BI48>='Scenario Weighting'!C$24, "75-100%", IF('GOM Scores and Quartiles'!BI48>='Scenario Weighting'!C$23, "50-75%", IF('GOM Scores and Quartiles'!BI48>='Scenario Weighting'!C$22, "25-50%", "0-25%"))) -> 75-100% | BN48: =IF(BJ48="", "", IF(BJ48>='Scenario Weighting'!D$24, "75-100%", IF('GOM Scores and Quartiles'!BJ48>='Scenario Weighting'!D$23, "50-75%", IF('GOM Scores and Quartiles'!BJ48>='Scenario Weighting'!D$22, "25-50%", "0-25%")))) ->  | BO48: =IF(BK48>='Scenario Weighting'!E$24, "75-100%", IF('GOM Scores and Quartiles'!BK48>='Scenario Weighting'!E$23, "50-75%", IF('GOM Scores and Quartiles'!BK48>='Scenario Weighting'!E$22, "25-50%", "0-25%"))) -> 50-75% | BP48: =IF(BL48="", "", IF(BL48>='Scenario Weighting'!F$24, "75-100%", IF('GOM Scores and Quartiles'!BL48>='Scenario Weighting'!F$23, "50-75%", IF('GOM Scores and Quartiles'!BL48>='Scenario Weighting'!F$22, "25-50%", "0-25%")))) -> 
A49: 44 | B49: 37049 | C49: -97.10702163 | D49: 26.64369972 | E49: 1631 | F49: 72.84969928 | G49: 860 | H49: 78.30217054 | I49: 149 | J49: 108.7104136 | K49: 0 | L49: 0 | M49: 0 | N49: 0 | O49: 1 | P49: 0 | Q49: 0 | R49: 1 | S49: 1 | T49: 0 | U49: 2 | V49: 0 | W49: 0 | X49: 0 | Y49: 0 | Z49: 0 | AA49: 0 | AB49: 6 | AC49: 11 | AD49: 87.99 | AE49: 16905.04 | AF49: 6312 | AG49: 1227.18 | AH49: 111.5618182 | AI49: 0 | AJ49: 0 | AK49: 0 | AL49: 32945106.58 | AM49: 81517 | AN49: 7410.636364 | AO49: 21.82893082 | AP49: 0 | AQ49: 0 | AR49: 0 | AS49: 0 | AT49: 0 | AU49: 0 | AV49: 0 | AW49: 43.53652072 | AX49: 0 | AY49: 47.22694679 | AZ49: 75.4575975 | BA49: 47.22694679 | BB49: 75.4575975 | BC49: 0 | BD49: 100 | BE49: 99.15966387 | BF49: 0 | BG49: 55.98034445 | BH49: 26.50337459 | BI49: =($BG49*'Scenario Weighting'!E$3)+('GOM Scores and Quartiles'!$BH49*'Scenario Weighting'!E$4)+('GOM Scores and Quartiles'!$AP49*'Scenario Weighting'!E$5)+('GOM Scores and Quartiles'!$AQ49*'Scenario Weighting'!E$6)+('GOM Scores and Quartiles'!$AR49*'Scenario Weighting'!E$7)+('GOM Scores and Quartiles'!$AS49*'Scenario Weighting'!E$12)+('GOM Scores and Quartiles'!$AT49*'Scenario Weighting'!E$8)+('GOM Scores and Quartiles'!$AU49*'Scenario Weighting'!E$9)+('GOM Scores and Quartiles'!$AV49*'Scenario Weighting'!E$10)+('GOM Scores and Quartiles'!$AW49*'Scenario Weighting'!E$11)+('GOM Scores and Quartiles'!$AX49*'Scenario Weighting'!E$13)+('GOM Scores and Quartiles'!$AZ49*'Scenario Weighting'!E$14)+('GOM Scores and Quartiles'!$BB49*'Scenario Weighting'!E$15)+('GOM Scores and Quartiles'!$BC49*'Scenario Weighting'!E$16)+('GOM Scores and Quartiles'!$BE49*'Scenario Weighting'!E$17)+('GOM Scores and Quartiles'!$BF49*'Scenario Weighting'!E$18) -> 41.34668246 | BJ49: =IF(AR49=0, "", ($BG49*'Scenario Weighting'!F$3)+('GOM Scores and Quartiles'!$BH49*'Scenario Weighting'!F$4)+('GOM Scores and Quartiles'!$AP49*'Scenario Weighting'!F$5)+('GOM Scores and Quartiles'!$AQ49*'Scenario Weighting'!F$6)+('GOM Scores and Quartiles'!$AR49*'Scenario Weighting'!F$7)+('GOM Scores and Quartiles'!$AS49*'Scenario Weighting'!F$12)+('GOM Scores and Quartiles'!$AT49*'Scenario Weighting'!F$8)+('GOM Scores and Quartiles'!$AU49*'Scenario Weighting'!F$9)+('GOM Scores and Quartiles'!$AV49*'Scenario Weighting'!F$10)+('GOM Scores and Quartiles'!$AW49*'Scenario Weighting'!F$11)+('GOM Scores and Quartiles'!$AX49*'Scenario Weighting'!F$13)+('GOM Scores and Quartiles'!$AZ49*'Scenario Weighting'!F$14)+('GOM Scores and Quartiles'!$BB49*'Scenario Weighting'!F$15)+('GOM Scores and Quartiles'!$BC49*'Scenario Weighting'!F$16)+('GOM Scores and Quartiles'!$BE49*'Scenario Weighting'!F$17)+('GOM Scores and Quartiles'!$BF49*'Scenario Weighting'!F$18)) ->  | BK49: =('GOM Scores and Quartiles'!$BG49*0.12)+('GOM Scores and Quartiles'!$BH49*0.12)+('GOM Scores and Quartiles'!$AS49*0.2)+('GOM Scores and Quartiles'!$AT49*0.05)+('GOM Scores and Quartiles'!$AU49*0.1)+('GOM Scores and Quartiles'!$AV49*0.2)+('GOM Scores and Quartiles'!$AW49*0.1)+('GOM Scores and Quartiles'!$BE49*0.07)+('GOM Scores and Quartiles'!$BF49*0.04) -> 21.19287483 | BL49: =IF(AR49=0, "", ($BG49*'Scenario Weighting'!H$3)+('GOM Scores and Quartiles'!$BH49*'Scenario Weighting'!H$4)+('GOM Scores and Quartiles'!$AP49*'Scenario Weighting'!H$5)+('GOM Scores and Quartiles'!$AQ49*'Scenario Weighting'!H$6)+('GOM Scores and Quartiles'!$AR49*'Scenario Weighting'!H$7)+('GOM Scores and Quartiles'!$AS49*'Scenario Weighting'!H$12)+('GOM Scores and Quartiles'!$AT49*'Scenario Weighting'!H$8)+('GOM Scores and Quartiles'!$AU49*'Scenario Weighting'!H$9)+('GOM Scores and Quartiles'!$AV49*'Scenario Weighting'!H$10)+('GOM Scores and Quartiles'!$AW49*'Scenario Weighting'!H$11)+('GOM Scores and Quartiles'!$AX49*'Scenario Weighting'!H$13)+('GOM Scores and Quartiles'!$AZ49*'Scenario Weighting'!H$14)+('GOM Scores and Quartiles'!$BB49*'Scenario Weighting'!H$15)+('GOM Scores and Quartiles'!$BC49*'Scenario Weighting'!H$16)+('GOM Scores and Quartiles'!$BE49*'Scenario Weighting'!H$17)+('GOM Scores and Quartiles'!$BF49*'Scenario Weighting'!H$18)) ->  | BM49: =IF(BI49>='Scenario Weighting'!C$24, "75-100%", IF('GOM Scores and Quartiles'!BI49>='Scenario Weighting'!C$23, "50-75%", IF('GOM Scores and Quartiles'!BI49>='Scenario Weighting'!C$22, "25-50%", "0-25%"))) -> 0-25% | BN49: =IF(BJ49="", "", IF(BJ49>='Scenario Weighting'!D$24, "75-100%", IF('GOM Scores and Quartiles'!BJ49>='Scenario Weighting'!D$23, "50-75%", IF('GOM Scores and Quartiles'!BJ49>='Scenario Weighting'!D$22, "25-50%", "0-25%")))) ->  | BO49: =IF(BK49>='Scenario Weighting'!E$24, "75-100%", IF('GOM Scores and Quartiles'!BK49>='Scenario Weighting'!E$23, "50-75%", IF('GOM Scores and Quartiles'!BK49>='Scenario Weighting'!E$22, "25-50%", "0-25%"))) -> 0-25% | BP49: =IF(BL49="", "", IF(BL49>='Scenario Weighting'!F$24, "75-100%", IF('GOM Scores and Quartiles'!BL49>='Scenario Weighting'!F$23, "50-75%", IF('GOM Scores and Quartiles'!BL49>='Scenario Weighting'!F$22, "25-50%", "0-25%")))) -> 
A50: 45 | B50: 37050 | C50: -97.17850587 | D50: 26.71518396 | E50: 1631 | F50: 73.24413618 | G50: 860 | H50: 84.01706777 | I50: 149 | J50: 99.76272299 | K50: 0 | L50: 0 | M50: 0 | N50: 0 | O50: 1 | P50: 0 | Q50: 0 | R50: 1 | S50: 1 | T50: 0 | U50: 0 | V50: 0 | W50: 0 | X50: 0 | Y50: 0 | Z50: 0 | AA50: 0 | AB50: 3 | AC50: 10 | AD50: 80.46 | AE50: 15729.32 | AF50: 5830 | AG50: 1181.38 | AH50: 118.138 | AI50: 0 | AJ50: 0 | AK50: 0 | AL50: 30065761.56 | AM50: 70571 | AN50: 7057.1 | AO50: 19.93459119 | AP50: 0 | AQ50: 0 | AR50: 0 | AS50: 0 | AT50: 0 | AU50: 0 | AV50: 0 | AW50: 39.89187074 | AX50: 0 | AY50: 51.59770873 | AZ50: 73.43210029 | BA50: 51.59770873 | BB50: 73.43210029 | BC50: 0 | BD50: 100 | BE50: 100 | BF50: 0 | BG50: 52.03783431 | BH50: 24.09344875 | BI50: =($BG50*'Scenario Weighting'!E$3)+('GOM Scores and Quartiles'!$BH50*'Scenario Weighting'!E$4)+('GOM Scores and Quartiles'!$AP50*'Scenario Weighting'!E$5)+('GOM Scores and Quartiles'!$AQ50*'Scenario Weighting'!E$6)+('GOM Scores and Quartiles'!$AR50*'Scenario Weighting'!E$7)+('GOM Scores and Quartiles'!$AS50*'Scenario Weighting'!E$12)+('GOM Scores and Quartiles'!$AT50*'Scenario Weighting'!E$8)+('GOM Scores and Quartiles'!$AU50*'Scenario Weighting'!E$9)+('GOM Scores and Quartiles'!$AV50*'Scenario Weighting'!E$10)+('GOM Scores and Quartiles'!$AW50*'Scenario Weighting'!E$11)+('GOM Scores and Quartiles'!$AX50*'Scenario Weighting'!E$13)+('GOM Scores and Quartiles'!$AZ50*'Scenario Weighting'!E$14)+('GOM Scores and Quartiles'!$BB50*'Scenario Weighting'!E$15)+('GOM Scores and Quartiles'!$BC50*'Scenario Weighting'!E$16)+('GOM Scores and Quartiles'!$BE50*'Scenario Weighting'!E$17)+('GOM Scores and Quartiles'!$BF50*'Scenario Weighting'!E$18) -> 39.43850962 | BJ50: =IF(AR50=0, "", ($BG50*'Scenario Weighting'!F$3)+('GOM Scores and Quartiles'!$BH50*'Scenario Weighting'!F$4)+('GOM Scores and Quartiles'!$AP50*'Scenario Weighting'!F$5)+('GOM Scores and Quartiles'!$AQ50*'Scenario Weighting'!F$6)+('GOM Scores and Quartiles'!$AR50*'Scenario Weighting'!F$7)+('GOM Scores and Quartiles'!$AS50*'Scenario Weighting'!F$12)+('GOM Scores and Quartiles'!$AT50*'Scenario Weighting'!F$8)+('GOM Scores and Quartiles'!$AU50*'Scenario Weighting'!F$9)+('GOM Scores and Quartiles'!$AV50*'Scenario Weighting'!F$10)+('GOM Scores and Quartiles'!$AW50*'Scenario Weighting'!F$11)+('GOM Scores and Quartiles'!$AX50*'Scenario Weighting'!F$13)+('GOM Scores and Quartiles'!$AZ50*'Scenario Weighting'!F$14)+('GOM Scores and Quartiles'!$BB50*'Scenario Weighting'!F$15)+('GOM Scores and Quartiles'!$BC50*'Scenario Weighting'!F$16)+('GOM Scores and Quartiles'!$BE50*'Scenario Weighting'!F$17)+('GOM Scores and Quartiles'!$BF50*'Scenario Weighting'!F$18)) ->  | BK50: =('GOM Scores and Quartiles'!$BG50*0.12)+('GOM Scores and Quartiles'!$BH50*0.12)+('GOM Scores and Quartiles'!$AS50*0.2)+('GOM Scores and Quartiles'!$AT50*0.05)+('GOM Scores and Quartiles'!$AU50*0.1)+('GOM Scores and Quartiles'!$AV50*0.2)+('GOM Scores and Quartiles'!$AW50*0.1)+('GOM Scores and Quartiles'!$BE50*0.07)+('GOM Scores and Quartiles'!$BF50*0.04) -> 20.12494104 | BL50: =IF(AR50=0, "", ($BG50*'Scenario Weighting'!H$3)+('GOM Scores and Quartiles'!$BH50*'Scenario Weighting'!H$4)+('GOM Scores and Quartiles'!$AP50*'Scenario Weighting'!H$5)+('GOM Scores and Quartiles'!$AQ50*'Scenario Weighting'!H$6)+('GOM Scores and Quartiles'!$AR50*'Scenario Weighting'!H$7)+('GOM Scores and Quartiles'!$AS50*'Scenario Weighting'!H$12)+('GOM Scores and Quartiles'!$AT50*'Scenario Weighting'!H$8)+('GOM Scores and Quartiles'!$AU50*'Scenario Weighting'!H$9)+('GOM Scores and Quartiles'!$AV50*'Scenario Weighting'!H$10)+('GOM Scores and Quartiles'!$AW50*'Scenario Weighting'!H$11)+('GOM Scores and Quartiles'!$AX50*'Scenario Weighting'!H$13)+('GOM Scores and Quartiles'!$AZ50*'Scenario Weighting'!H$14)+('GOM Scores and Quartiles'!$BB50*'Scenario Weighting'!H$15)+('GOM Scores and Quartiles'!$BC50*'Scenario Weighting'!H$16)+('GOM Scores and Quartiles'!$BE50*'Scenario Weighting'!H$17)+('GOM Scores and Quartiles'!$BF50*'Scenario Weighting'!H$18)) ->  | BM50: =IF(BI50>='Scenario Weighting'!C$24, "75-100%", IF('GOM Scores and Quartiles'!BI50>='Scenario Weighting'!C$23, "50-75%", IF('GOM Scores and Quartiles'!BI50>='Scenario Weighting'!C$22, "25-50%", "0-25%"))) -> 0-25% | BN50: =IF(BJ50="", "", IF(BJ50>='Scenario Weighting'!D$24, "75-100%", IF('GOM Scores and Quartiles'!BJ50>='Scenario Weighting'!D$23, "50-75%", IF('GOM Scores and Quartiles'!BJ50>='Scenario Weighting'!D$22, "25-50%", "0-25%")))) ->  | BO50: =IF(BK50>='Scenario Weighting'!E$24, "75-100%", IF('GOM Scores and Quartiles'!BK50>='Scenario Weighting'!E$23, "50-75%", IF('GOM Scores and Quartiles'!BK50>='Scenario Weighting'!E$22, "25-50%", "0-25%"))) -> 0-25% | BP50: =IF(BL50="", "", IF(BL50>='Scenario Weighting'!F$24, "75-100%", IF('GOM Scores and Quartiles'!BL50>='Scenario Weighting'!F$23, "50-75%", IF('GOM Scores and Quartiles'!BL50>='Scenario Weighting'!F$22, "25-50%", "0-25%")))) -> 
A51: 46 | B51: 37051 | C51: -97.10702163 | D51: 26.71518396 | E51: 1631 | F51: 77.92316974 | G51: 860 | H51: 85.83606554 | I51: 149 | J51: 100.9372295 | K51: 0 | L51: 0 | M51: 0 | N51: 0 | O51: 1 | P51: 0 | Q51: 0 | R51: 1 | S51: 1 | T51: 0 | U51: 1 | V51: 0 | W51: 0 | X51: 0 | Y51: 0 | Z51: 0 | AA51: 0 | AB51: 3 | AC51: 11 | AD51: 87.99 | AE51: 16905.04 | AF51: 6312 | AG51: 1227.18 | AH51: 111.5618182 | AI51: 0 | AJ51: 0 | AK51: 0 | AL51: 32945106.58 | AM51: 81517 | AN51: 7410.636364 | AO51: 21.82893082 | AP51: 0 | AQ51: 0 | AR51: 0 | AS51: 0 | AT51: 0 | AU51: 0 | AV51: 0 | AW51: 40.37028081 | AX51: 0 | AY51: 47.22694679 | AZ51: 75.4575975 | BA51: 47.22694679 | BB51: 75.4575975 | BC51: 0 | BD51: 100 | BE51: 99.57983193 | BF51: 0 | BG51: 55.98034445 | BH51: 26.50337459 | BI51: =($BG51*'Scenario Weighting'!E$3)+('GOM Scores and Quartiles'!$BH51*'Scenario Weighting'!E$4)+('GOM Scores and Quartiles'!$AP51*'Scenario Weighting'!E$5)+('GOM Scores and Quartiles'!$AQ51*'Scenario Weighting'!E$6)+('GOM Scores and Quartiles'!$AR51*'Scenario Weighting'!E$7)+('GOM Scores and Quartiles'!$AS51*'Scenario Weighting'!E$12)+('GOM Scores and Quartiles'!$AT51*'Scenario Weighting'!E$8)+('GOM Scores and Quartiles'!$AU51*'Scenario Weighting'!E$9)+('GOM Scores and Quartiles'!$AV51*'Scenario Weighting'!E$10)+('GOM Scores and Quartiles'!$AW51*'Scenario Weighting'!E$11)+('GOM Scores and Quartiles'!$AX51*'Scenario Weighting'!E$13)+('GOM Scores and Quartiles'!$AZ51*'Scenario Weighting'!E$14)+('GOM Scores and Quartiles'!$BB51*'Scenario Weighting'!E$15)+('GOM Scores and Quartiles'!$BC51*'Scenario Weighting'!E$16)+('GOM Scores and Quartiles'!$BE51*'Scenario Weighting'!E$17)+('GOM Scores and Quartiles'!$BF51*'Scenario Weighting'!E$18) -> 41.03846183 | BJ51: =IF(AR51=0, "", ($BG51*'Scenario Weighting'!F$3)+('GOM Scores and Quartiles'!$BH51*'Scenario Weighting'!F$4)+('GOM Scores and Quartiles'!$AP51*'Scenario Weighting'!F$5)+('GOM Scores and Quartiles'!$AQ51*'Scenario Weighting'!F$6)+('GOM Scores and Quartiles'!$AR51*'Scenario Weighting'!F$7)+('GOM Scores and Quartiles'!$AS51*'Scenario Weighting'!F$12)+('GOM Scores and Quartiles'!$AT51*'Scenario Weighting'!F$8)+('GOM Scores and Quartiles'!$AU51*'Scenario Weighting'!F$9)+('GOM Scores and Quartiles'!$AV51*'Scenario Weighting'!F$10)+('GOM Scores and Quartiles'!$AW51*'Scenario Weighting'!F$11)+('GOM Scores and Quartiles'!$AX51*'Scenario Weighting'!F$13)+('GOM Scores and Quartiles'!$AZ51*'Scenario Weighting'!F$14)+('GOM Scores and Quartiles'!$BB51*'Scenario Weighting'!F$15)+('GOM Scores and Quartiles'!$BC51*'Scenario Weighting'!F$16)+('GOM Scores and Quartiles'!$BE51*'Scenario Weighting'!F$17)+('GOM Scores and Quartiles'!$BF51*'Scenario Weighting'!F$18)) ->  | BK51: =('GOM Scores and Quartiles'!$BG51*0.12)+('GOM Scores and Quartiles'!$BH51*0.12)+('GOM Scores and Quartiles'!$AS51*0.2)+('GOM Scores and Quartiles'!$AT51*0.05)+('GOM Scores and Quartiles'!$AU51*0.1)+('GOM Scores and Quartiles'!$AV51*0.2)+('GOM Scores and Quartiles'!$AW51*0.1)+('GOM Scores and Quartiles'!$BE51*0.07)+('GOM Scores and Quartiles'!$BF51*0.04) -> 20.9056626 | BL51: =IF(AR51=0, "", ($BG51*'Scenario Weighting'!H$3)+('GOM Scores and Quartiles'!$BH51*'Scenario Weighting'!H$4)+('GOM Scores and Quartiles'!$AP51*'Scenario Weighting'!H$5)+('GOM Scores and Quartiles'!$AQ51*'Scenario Weighting'!H$6)+('GOM Scores and Quartiles'!$AR51*'Scenario Weighting'!H$7)+('GOM Scores and Quartiles'!$AS51*'Scenario Weighting'!H$12)+('GOM Scores and Quartiles'!$AT51*'Scenario Weighting'!H$8)+('GOM Scores and Quartiles'!$AU51*'Scenario Weighting'!H$9)+('GOM Scores and Quartiles'!$AV51*'Scenario Weighting'!H$10)+('GOM Scores and Quartiles'!$AW51*'Scenario Weighting'!H$11)+('GOM Scores and Quartiles'!$AX51*'Scenario Weighting'!H$13)+('GOM Scores and Quartiles'!$AZ51*'Scenario Weighting'!H$14)+('GOM Scores and Quartiles'!$BB51*'Scenario Weighting'!H$15)+('GOM Scores and Quartiles'!$BC51*'Scenario Weighting'!H$16)+('GOM Scores and Quartiles'!$BE51*'Scenario Weighting'!H$17)+('GOM Scores and Quartiles'!$BF51*'Scenario Weighting'!H$18)) ->  | BM51: =IF(BI51>='Scenario Weighting'!C$24, "75-100%", IF('GOM Scores and Quartiles'!BI51>='Scenario Weighting'!C$23, "50-75%", IF('GOM Scores and Quartiles'!BI51>='Scenario Weighting'!C$22, "25-50%", "0-25%"))) -> 0-25% | BN51: =IF(BJ51="", "", IF(BJ51>='Scenario Weighting'!D$24, "75-100%", IF('GOM Scores and Quartiles'!BJ51>='Scenario Weighting'!D$23, "50-75%", IF('GOM Scores and Quartiles'!BJ51>='Scenario Weighting'!D$22, "25-50%", "0-25%")))) ->  | BO51: =IF(BK51>='Scenario Weighting'!E$24, "75-100%", IF('GOM Scores and Quartiles'!BK51>='Scenario Weighting'!E$23, "50-75%", IF('GOM Scores and Quartiles'!BK51>='Scenario Weighting'!E$22, "25-50%", "0-25%"))) -> 0-25% | BP51: =IF(BL51="", "", IF(BL51>='Scenario Weighting'!F$24, "75-100%", IF('GOM Scores and Quartiles'!BL51>='Scenario Weighting'!F$23, "50-75%", IF('GOM Scores and Quartiles'!BL51>='Scenario Weighting'!F$22, "25-50%", "0-25%")))) -> 
A52: 47 | B52: 37052 | C52: -97.03553738 | D52: 26.64369972 | E52: 1631 | F52: 78.20866726 | G52: 860 | H52: 80.88476797 | I52: 149 | J52: 110.2464514 | K52: 0 | L52: 0 | M52: 0 | N52: 0 | O52: 1 | P52: 0 | Q52: 1 | R52: 1 | S52: 1 | T52: 0 | U52: 0 | V52: 0 | W52: 0 | X52: 0 | Y52: 0 | Z52: 0 | AA52: 0 | AB52: 5 | AC52: 11 | AD52: 87.99 | AE52: 16905.04 | AF52: 6312 | AG52: 1227.18 | AH52: 111.5618182 | AI52: 0 | AJ52: 0 | AK52: 0 | AL52: 32945106.58 | AM52: 81517 | AN52: 7410.636364 | AO52: 21.82893082 | AP52: 0 | AQ52: 0 | AR52: 0 | AS52: 0 | AT52: 0 | AU52: 0 | AV52: 0 | AW52: 44.16219282 | AX52: 100 | AY52: 47.22694679 | AZ52: 75.4575975 | BA52: 47.22694679 | BB52: 75.4575975 | BC52: 0 | BD52: 100 | BE52: 100 | BF52: 0 | BG52: 55.98034445 | BH52: 26.50337459 | BI52: =($BG52*'Scenario Weighting'!E$3)+('GOM Scores and Quartiles'!$BH52*'Scenario Weighting'!E$4)+('GOM Scores and Quartiles'!$AP52*'Scenario Weighting'!E$5)+('GOM Scores and Quartiles'!$AQ52*'Scenario Weighting'!E$6)+('GOM Scores and Quartiles'!$AR52*'Scenario Weighting'!E$7)+('GOM Scores and Quartiles'!$AS52*'Scenario Weighting'!E$12)+('GOM Scores and Quartiles'!$AT52*'Scenario Weighting'!E$8)+('GOM Scores and Quartiles'!$AU52*'Scenario Weighting'!E$9)+('GOM Scores and Quartiles'!$AV52*'Scenario Weighting'!E$10)+('GOM Scores and Quartiles'!$AW52*'Scenario Weighting'!E$11)+('GOM Scores and Quartiles'!$AX52*'Scenario Weighting'!E$13)+('GOM Scores and Quartiles'!$AZ52*'Scenario Weighting'!E$14)+('GOM Scores and Quartiles'!$BB52*'Scenario Weighting'!E$15)+('GOM Scores and Quartiles'!$BC52*'Scenario Weighting'!E$16)+('GOM Scores and Quartiles'!$BE52*'Scenario Weighting'!E$17)+('GOM Scores and Quartiles'!$BF52*'Scenario Weighting'!E$18) -> 44.42605639 | BJ52: =IF(AR52=0, "", ($BG52*'Scenario Weighting'!F$3)+('GOM Scores and Quartiles'!$BH52*'Scenario Weighting'!F$4)+('GOM Scores and Quartiles'!$AP52*'Scenario Weighting'!F$5)+('GOM Scores and Quartiles'!$AQ52*'Scenario Weighting'!F$6)+('GOM Scores and Quartiles'!$AR52*'Scenario Weighting'!F$7)+('GOM Scores and Quartiles'!$AS52*'Scenario Weighting'!F$12)+('GOM Scores and Quartiles'!$AT52*'Scenario Weighting'!F$8)+('GOM Scores and Quartiles'!$AU52*'Scenario Weighting'!F$9)+('GOM Scores and Quartiles'!$AV52*'Scenario Weighting'!F$10)+('GOM Scores and Quartiles'!$AW52*'Scenario Weighting'!F$11)+('GOM Scores and Quartiles'!$AX52*'Scenario Weighting'!F$13)+('GOM Scores and Quartiles'!$AZ52*'Scenario Weighting'!F$14)+('GOM Scores and Quartiles'!$BB52*'Scenario Weighting'!F$15)+('GOM Scores and Quartiles'!$BC52*'Scenario Weighting'!F$16)+('GOM Scores and Quartiles'!$BE52*'Scenario Weighting'!F$17)+('GOM Scores and Quartiles'!$BF52*'Scenario Weighting'!F$18)) ->  | BK52: =('GOM Scores and Quartiles'!$BG52*0.12)+('GOM Scores and Quartiles'!$BH52*0.12)+('GOM Scores and Quartiles'!$AS52*0.2)+('GOM Scores and Quartiles'!$AT52*0.05)+('GOM Scores and Quartiles'!$AU52*0.1)+('GOM Scores and Quartiles'!$AV52*0.2)+('GOM Scores and Quartiles'!$AW52*0.1)+('GOM Scores and Quartiles'!$BE52*0.07)+('GOM Scores and Quartiles'!$BF52*0.04) -> 21.31426557 | BL52: =IF(AR52=0, "", ($BG52*'Scenario Weighting'!H$3)+('GOM Scores and Quartiles'!$BH52*'Scenario Weighting'!H$4)+('GOM Scores and Quartiles'!$AP52*'Scenario Weighting'!H$5)+('GOM Scores and Quartiles'!$AQ52*'Scenario Weighting'!H$6)+('GOM Scores and Quartiles'!$AR52*'Scenario Weighting'!H$7)+('GOM Scores and Quartiles'!$AS52*'Scenario Weighting'!H$12)+('GOM Scores and Quartiles'!$AT52*'Scenario Weighting'!H$8)+('GOM Scores and Quartiles'!$AU52*'Scenario Weighting'!H$9)+('GOM Scores and Quartiles'!$AV52*'Scenario Weighting'!H$10)+('GOM Scores and Quartiles'!$AW52*'Scenario Weighting'!H$11)+('GOM Scores and Quartiles'!$AX52*'Scenario Weighting'!H$13)+('GOM Scores and Quartiles'!$AZ52*'Scenario Weighting'!H$14)+('GOM Scores and Quartiles'!$BB52*'Scenario Weighting'!H$15)+('GOM Scores and Quartiles'!$BC52*'Scenario Weighting'!H$16)+('GOM Scores and Quartiles'!$BE52*'Scenario Weighting'!H$17)+('GOM Scores and Quartiles'!$BF52*'Scenario Weighting'!H$18)) ->  | BM52: =IF(BI52>='Scenario Weighting'!C$24, "75-100%", IF('GOM Scores and Quartiles'!BI52>='Scenario Weighting'!C$23, "50-75%", IF('GOM Scores and Quartiles'!BI52>='Scenario Weighting'!C$22, "25-50%", "0-25%"))) -> 0-25% | BN52: =IF(BJ52="", "", IF(BJ52>='Scenario Weighting'!D$24, "75-100%", IF('GOM Scores and Quartiles'!BJ52>='Scenario Weighting'!D$23, "50-75%", IF('GOM Scores and Quartiles'!BJ52>='Scenario Weighting'!D$22, "25-50%", "0-25%")))) ->  | BO52: =IF(BK52>='Scenario Weighting'!E$24, "75-100%", IF('GOM Scores and Quartiles'!BK52>='Scenario Weighting'!E$23, "50-75%", IF('GOM Scores and Quartiles'!BK52>='Scenario Weighting'!E$22, "25-50%", "0-25%"))) -> 0-25% | BP52: =IF(BL52="", "", IF(BL52>='Scenario Weighting'!F$24, "75-100%", IF('GOM Scores and Quartiles'!BL52>='Scenario Weighting'!F$23, "50-75%", IF('GOM Scores and Quartiles'!BL52>='Scenario Weighting'!F$22, "25-50%", "0-25%")))) -> 
A53: 48 | B53: 37053 | C53: -96.96405313 | D53: 26.64369972 | E53: 1631 | F53: 83.83503172 | G53: 860 | H53: 83.99657018 | I53: 149 | J53: 112.2098924 | K53: 0 | L53: 0 | M53: 0 | N53: 1 | O53: 0 | P53: 0 | Q53: 1 | R53: 1 | S53: 0 | T53: 0 | U53: 2 | V53: 0 | W53: 0 | X53: 0 | Y53: 2 | Z53: 0 | AA53: 0 | AB53: 4 | AC53: 10 | AD53: 82.71 | AE53: 15844.24 | AF53: 5614 | AG53: 1124.98 | AH53: 112.498 | AI53: 0 | AJ53: 0 | AK53: 0 | AL53: 30756381.53 | AM53: 72882 | AN53: 7288.2 | AO53: 20.50062893 | AP53: 0 | AQ53: 0 | AR53: 0 | AS53: 100 | AT53: 0 | AU53: 0 | AV53: 0 | AW53: 44.96195842 | AX53: 100 | AY53: 48.74062474 | AZ53: 75.16924878 | BA53: 48.74062474 | BB53: 75.16924878 | BC53: 0 | BD53: 100 | BE53: 99.15966387 | BF53: 100 | BG53: 52.42319244 | BH53: 24.67147705 | BI53: =($BG53*'Scenario Weighting'!E$3)+('GOM Scores and Quartiles'!$BH53*'Scenario Weighting'!E$4)+('GOM Scores and Quartiles'!$AP53*'Scenario Weighting'!E$5)+('GOM Scores and Quartiles'!$AQ53*'Scenario Weighting'!E$6)+('GOM Scores and Quartiles'!$AR53*'Scenario Weighting'!E$7)+('GOM Scores and Quartiles'!$AS53*'Scenario Weighting'!E$12)+('GOM Scores and Quartiles'!$AT53*'Scenario Weighting'!E$8)+('GOM Scores and Quartiles'!$AU53*'Scenario Weighting'!E$9)+('GOM Scores and Quartiles'!$AV53*'Scenario Weighting'!E$10)+('GOM Scores and Quartiles'!$AW53*'Scenario Weighting'!E$11)+('GOM Scores and Quartiles'!$AX53*'Scenario Weighting'!E$13)+('GOM Scores and Quartiles'!$AZ53*'Scenario Weighting'!E$14)+('GOM Scores and Quartiles'!$BB53*'Scenario Weighting'!E$15)+('GOM Scores and Quartiles'!$BC53*'Scenario Weighting'!E$16)+('GOM Scores and Quartiles'!$BE53*'Scenario Weighting'!E$17)+('GOM Scores and Quartiles'!$BF53*'Scenario Weighting'!E$18) -> 68.59436418 | BJ53: =IF(AR53=0, "", ($BG53*'Scenario Weighting'!F$3)+('GOM Scores and Quartiles'!$BH53*'Scenario Weighting'!F$4)+('GOM Scores and Quartiles'!$AP53*'Scenario Weighting'!F$5)+('GOM Scores and Quartiles'!$AQ53*'Scenario Weighting'!F$6)+('GOM Scores and Quartiles'!$AR53*'Scenario Weighting'!F$7)+('GOM Scores and Quartiles'!$AS53*'Scenario Weighting'!F$12)+('GOM Scores and Quartiles'!$AT53*'Scenario Weighting'!F$8)+('GOM Scores and Quartiles'!$AU53*'Scenario Weighting'!F$9)+('GOM Scores and Quartiles'!$AV53*'Scenario Weighting'!F$10)+('GOM Scores and Quartiles'!$AW53*'Scenario Weighting'!F$11)+('GOM Scores and Quartiles'!$AX53*'Scenario Weighting'!F$13)+('GOM Scores and Quartiles'!$AZ53*'Scenario Weighting'!F$14)+('GOM Scores and Quartiles'!$BB53*'Scenario Weighting'!F$15)+('GOM Scores and Quartiles'!$BC53*'Scenario Weighting'!F$16)+('GOM Scores and Quartiles'!$BE53*'Scenario Weighting'!F$17)+('GOM Scores and Quartiles'!$BF53*'Scenario Weighting'!F$18)) ->  | BK53: =('GOM Scores and Quartiles'!$BG53*0.12)+('GOM Scores and Quartiles'!$BH53*0.12)+('GOM Scores and Quartiles'!$AS53*0.2)+('GOM Scores and Quartiles'!$AT53*0.05)+('GOM Scores and Quartiles'!$AU53*0.1)+('GOM Scores and Quartiles'!$AV53*0.2)+('GOM Scores and Quartiles'!$AW53*0.1)+('GOM Scores and Quartiles'!$BE53*0.07)+('GOM Scores and Quartiles'!$BF53*0.04) -> 44.68873265 | BL53: =IF(AR53=0, "", ($BG53*'Scenario Weighting'!H$3)+('GOM Scores and Quartiles'!$BH53*'Scenario Weighting'!H$4)+('GOM Scores and Quartiles'!$AP53*'Scenario Weighting'!H$5)+('GOM Scores and Quartiles'!$AQ53*'Scenario Weighting'!H$6)+('GOM Scores and Quartiles'!$AR53*'Scenario Weighting'!H$7)+('GOM Scores and Quartiles'!$AS53*'Scenario Weighting'!H$12)+('GOM Scores and Quartiles'!$AT53*'Scenario Weighting'!H$8)+('GOM Scores and Quartiles'!$AU53*'Scenario Weighting'!H$9)+('GOM Scores and Quartiles'!$AV53*'Scenario Weighting'!H$10)+('GOM Scores and Quartiles'!$AW53*'Scenario Weighting'!H$11)+('GOM Scores and Quartiles'!$AX53*'Scenario Weighting'!H$13)+('GOM Scores and Quartiles'!$AZ53*'Scenario Weighting'!H$14)+('GOM Scores and Quartiles'!$BB53*'Scenario Weighting'!H$15)+('GOM Scores and Quartiles'!$BC53*'Scenario Weighting'!H$16)+('GOM Scores and Quartiles'!$BE53*'Scenario Weighting'!H$17)+('GOM Scores and Quartiles'!$BF53*'Scenario Weighting'!H$18)) ->  | BM53: =IF(BI53>='Scenario Weighting'!C$24, "75-100%", IF('GOM Scores and Quartiles'!BI53>='Scenario Weighting'!C$23, "50-75%", IF('GOM Scores and Quartiles'!BI53>='Scenario Weighting'!C$22, "25-50%", "0-25%"))) -> 75-100% | BN53: =IF(BJ53="", "", IF(BJ53>='Scenario Weighting'!D$24, "75-100%", IF('GOM Scores and Quartiles'!BJ53>='Scenario Weighting'!D$23, "50-75%", IF('GOM Scores and Quartiles'!BJ53>='Scenario Weighting'!D$22, "25-50%", "0-25%")))) ->  | BO53: =IF(BK53>='Scenario Weighting'!E$24, "75-100%", IF('GOM Scores and Quartiles'!BK53>='Scenario Weighting'!E$23, "50-75%", IF('GOM Scores and Quartiles'!BK53>='Scenario Weighting'!E$22, "25-50%", "0-25%"))) -> 50-75% | BP53: =IF(BL53="", "", IF(BL53>='Scenario Weighting'!F$24, "75-100%", IF('GOM Scores and Quartiles'!BL53>='Scenario Weighting'!F$23, "50-75%", IF('GOM Scores and Quartiles'!BL53>='Scenario Weighting'!F$22, "25-50%", "0-25%")))) -> 
A54: 49 | B54: 37054 | C54: -97.03553738 | D54: 26.71518396 | E54: 1631 | F54: 82.95503198 | G54: 860 | H54: 88.19689412 | I54: 149 | J54: 102.5886856 | K54: 0 | L54: 0 | M54: 0 | N54: 1 | O54: 1 | P54: 0 | Q54: 1 | R54: 1 | S54: 1 | T54: 0 | U54: 2 | V54: 0 | W54: 0 | X54: 0 | Y54: 1 | Z54: 0 | AA54: 0 | AB54: 4 | AC54: 11 | AD54: 87.99 | AE54: 16905.04 | AF54: 6312 | AG54: 1227.18 | AH54: 111.5618182 | AI54: 0 | AJ54: 0 | AK54: 0 | AL54: 32945106.58 | AM54: 81517 | AN54: 7410.636364 | AO54: 21.82893082 | AP54: 0 | AQ54: 0 | AR54: 0 | AS54: 100 | AT54: 0 | AU54: 0 | AV54: 0 | AW54: 41.04296606 | AX54: 100 | AY54: 47.22694679 | AZ54: 75.4575975 | BA54: 47.22694679 | BB54: 75.4575975 | BC54: 0 | BD54: 100 | BE54: 99.15966387 | BF54: 0 | BG54: 55.98034445 | BH54: 26.50337459 | BI54: =($BG54*'Scenario Weighting'!E$3)+('GOM Scores and Quartiles'!$BH54*'Scenario Weighting'!E$4)+('GOM Scores and Quartiles'!$AP54*'Scenario Weighting'!E$5)+('GOM Scores and Quartiles'!$AQ54*'Scenario Weighting'!E$6)+('GOM Scores and Quartiles'!$AR54*'Scenario Weighting'!E$7)+('GOM Scores and Quartiles'!$AS54*'Scenario Weighting'!E$12)+('GOM Scores and Quartiles'!$AT54*'Scenario Weighting'!E$8)+('GOM Scores and Quartiles'!$AU54*'Scenario Weighting'!E$9)+('GOM Scores and Quartiles'!$AV54*'Scenario Weighting'!E$10)+('GOM Scores and Quartiles'!$AW54*'Scenario Weighting'!E$11)+('GOM Scores and Quartiles'!$AX54*'Scenario Weighting'!E$13)+('GOM Scores and Quartiles'!$AZ54*'Scenario Weighting'!E$14)+('GOM Scores and Quartiles'!$BB54*'Scenario Weighting'!E$15)+('GOM Scores and Quartiles'!$BC54*'Scenario Weighting'!E$16)+('GOM Scores and Quartiles'!$BE54*'Scenario Weighting'!E$17)+('GOM Scores and Quartiles'!$BF54*'Scenario Weighting'!E$18) -> 64.09732699 | BJ54: =IF(AR54=0, "", ($BG54*'Scenario Weighting'!F$3)+('GOM Scores and Quartiles'!$BH54*'Scenario Weighting'!F$4)+('GOM Scores and Quartiles'!$AP54*'Scenario Weighting'!F$5)+('GOM Scores and Quartiles'!$AQ54*'Scenario Weighting'!F$6)+('GOM Scores and Quartiles'!$AR54*'Scenario Weighting'!F$7)+('GOM Scores and Quartiles'!$AS54*'Scenario Weighting'!F$12)+('GOM Scores and Quartiles'!$AT54*'Scenario Weighting'!F$8)+('GOM Scores and Quartiles'!$AU54*'Scenario Weighting'!F$9)+('GOM Scores and Quartiles'!$AV54*'Scenario Weighting'!F$10)+('GOM Scores and Quartiles'!$AW54*'Scenario Weighting'!F$11)+('GOM Scores and Quartiles'!$AX54*'Scenario Weighting'!F$13)+('GOM Scores and Quartiles'!$AZ54*'Scenario Weighting'!F$14)+('GOM Scores and Quartiles'!$BB54*'Scenario Weighting'!F$15)+('GOM Scores and Quartiles'!$BC54*'Scenario Weighting'!F$16)+('GOM Scores and Quartiles'!$BE54*'Scenario Weighting'!F$17)+('GOM Scores and Quartiles'!$BF54*'Scenario Weighting'!F$18)) ->  | BK54: =('GOM Scores and Quartiles'!$BG54*0.12)+('GOM Scores and Quartiles'!$BH54*0.12)+('GOM Scores and Quartiles'!$AS54*0.2)+('GOM Scores and Quartiles'!$AT54*0.05)+('GOM Scores and Quartiles'!$AU54*0.1)+('GOM Scores and Quartiles'!$AV54*0.2)+('GOM Scores and Quartiles'!$AW54*0.1)+('GOM Scores and Quartiles'!$BE54*0.07)+('GOM Scores and Quartiles'!$BF54*0.04) -> 40.94351936 | BL54: =IF(AR54=0, "", ($BG54*'Scenario Weighting'!H$3)+('GOM Scores and Quartiles'!$BH54*'Scenario Weighting'!H$4)+('GOM Scores and Quartiles'!$AP54*'Scenario Weighting'!H$5)+('GOM Scores and Quartiles'!$AQ54*'Scenario Weighting'!H$6)+('GOM Scores and Quartiles'!$AR54*'Scenario Weighting'!H$7)+('GOM Scores and Quartiles'!$AS54*'Scenario Weighting'!H$12)+('GOM Scores and Quartiles'!$AT54*'Scenario Weighting'!H$8)+('GOM Scores and Quartiles'!$AU54*'Scenario Weighting'!H$9)+('GOM Scores and Quartiles'!$AV54*'Scenario Weighting'!H$10)+('GOM Scores and Quartiles'!$AW54*'Scenario Weighting'!H$11)+('GOM Scores and Quartiles'!$AX54*'Scenario Weighting'!H$13)+('GOM Scores and Quartiles'!$AZ54*'Scenario Weighting'!H$14)+('GOM Scores and Quartiles'!$BB54*'Scenario Weighting'!H$15)+('GOM Scores and Quartiles'!$BC54*'Scenario Weighting'!H$16)+('GOM Scores and Quartiles'!$BE54*'Scenario Weighting'!H$17)+('GOM Scores and Quartiles'!$BF54*'Scenario Weighting'!H$18)) ->  | BM54: =IF(BI54>='Scenario Weighting'!C$24, "75-100%", IF('GOM Scores and Quartiles'!BI54>='Scenario Weighting'!C$23, "50-75%", IF('GOM Scores and Quartiles'!BI54>='Scenario Weighting'!C$22, "25-50%", "0-25%"))) -> 50-75% | BN54: =IF(BJ54="", "", IF(BJ54>='Scenario Weighting'!D$24, "75-100%", IF('GOM Scores and Quartiles'!BJ54>='Scenario Weighting'!D$23, "50-75%", IF('GOM Scores and Quartiles'!BJ54>='Scenario Weighting'!D$22, "25-50%", "0-25%")))) ->  | BO54: =IF(BK54>='Scenario Weighting'!E$24, "75-100%", IF('GOM Scores and Quartiles'!BK54>='Scenario Weighting'!E$23, "50-75%", IF('GOM Scores and Quartiles'!BK54>='Scenario Weighting'!E$22, "25-50%", "0-25%"))) -> 25-50% | BP54: =IF(BL54="", "", IF(BL54>='Scenario Weighting'!F$24, "75-100%", IF('GOM Scores and Quartiles'!BL54>='Scenario Weighting'!F$23, "50-75%", IF('GOM Scores and Quartiles'!BL54>='Scenario Weighting'!F$22, "25-50%", "0-25%")))) -> 
A55: 50 | B55: 37055 | C55: -96.96405313 | D55: 26.71518396 | E55: 1631 | F55: 88.27941006 | G55: 860 | H55: 91.05741872 | I55: 149 | J55: 104.6945229 | K55: 0 | L55: 0 | M55: 0 | N55: 1 | O55: 0 | P55: 0 | Q55: 1 | R55: 1 | S55: 0 | T55: 0 | U55: 4 | V55: 0 | W55: 0 | X55: 0 | Y55: 5 | Z55: 0 | AA55: 0 | AB55: 4 | AC55: 10 | AD55: 82.71 | AE55: 15844.24 | AF55: 5614 | AG55: 1124.98 | AH55: 112.498 | AI55: 0 | AJ55: 0 | AK55: 0 | AL55: 30756381.53 | AM55: 72882 | AN55: 7288.2 | AO55: 20.50062893 | AP55: 0 | AQ55: 0 | AR55: 0 | AS55: 100 | AT55: 0 | AU55: 0 | AV55: 0 | AW55: 41.90073371 | AX55: 100 | AY55: 48.74062474 | AZ55: 75.16924878 | BA55: 48.74062474 | BB55: 75.16924878 | BC55: 0 | BD55: 100 | BE55: 98.31932773 | BF55: 100 | BG55: 52.42319244 | BH55: 24.67147705 | BI55: =($BG55*'Scenario Weighting'!E$3)+('GOM Scores and Quartiles'!$BH55*'Scenario Weighting'!E$4)+('GOM Scores and Quartiles'!$AP55*'Scenario Weighting'!E$5)+('GOM Scores and Quartiles'!$AQ55*'Scenario Weighting'!E$6)+('GOM Scores and Quartiles'!$AR55*'Scenario Weighting'!E$7)+('GOM Scores and Quartiles'!$AS55*'Scenario Weighting'!E$12)+('GOM Scores and Quartiles'!$AT55*'Scenario Weighting'!E$8)+('GOM Scores and Quartiles'!$AU55*'Scenario Weighting'!E$9)+('GOM Scores and Quartiles'!$AV55*'Scenario Weighting'!E$10)+('GOM Scores and Quartiles'!$AW55*'Scenario Weighting'!E$11)+('GOM Scores and Quartiles'!$AX55*'Scenario Weighting'!E$13)+('GOM Scores and Quartiles'!$AZ55*'Scenario Weighting'!E$14)+('GOM Scores and Quartiles'!$BB55*'Scenario Weighting'!E$15)+('GOM Scores and Quartiles'!$BC55*'Scenario Weighting'!E$16)+('GOM Scores and Quartiles'!$BE55*'Scenario Weighting'!E$17)+('GOM Scores and Quartiles'!$BF55*'Scenario Weighting'!E$18) -> 68.27143498 | BJ55: =IF(AR55=0, "", ($BG55*'Scenario Weighting'!F$3)+('GOM Scores and Quartiles'!$BH55*'Scenario Weighting'!F$4)+('GOM Scores and Quartiles'!$AP55*'Scenario Weighting'!F$5)+('GOM Scores and Quartiles'!$AQ55*'Scenario Weighting'!F$6)+('GOM Scores and Quartiles'!$AR55*'Scenario Weighting'!F$7)+('GOM Scores and Quartiles'!$AS55*'Scenario Weighting'!F$12)+('GOM Scores and Quartiles'!$AT55*'Scenario Weighting'!F$8)+('GOM Scores and Quartiles'!$AU55*'Scenario Weighting'!F$9)+('GOM Scores and Quartiles'!$AV55*'Scenario Weighting'!F$10)+('GOM Scores and Quartiles'!$AW55*'Scenario Weighting'!F$11)+('GOM Scores and Quartiles'!$AX55*'Scenario Weighting'!F$13)+('GOM Scores and Quartiles'!$AZ55*'Scenario Weighting'!F$14)+('GOM Scores and Quartiles'!$BB55*'Scenario Weighting'!F$15)+('GOM Scores and Quartiles'!$BC55*'Scenario Weighting'!F$16)+('GOM Scores and Quartiles'!$BE55*'Scenario Weighting'!F$17)+('GOM Scores and Quartiles'!$BF55*'Scenario Weighting'!F$18)) ->  | BK55: =('GOM Scores and Quartiles'!$BG55*0.12)+('GOM Scores and Quartiles'!$BH55*0.12)+('GOM Scores and Quartiles'!$AS55*0.2)+('GOM Scores and Quartiles'!$AT55*0.05)+('GOM Scores and Quartiles'!$AU55*0.1)+('GOM Scores and Quartiles'!$AV55*0.2)+('GOM Scores and Quartiles'!$AW55*0.1)+('GOM Scores and Quartiles'!$BE55*0.07)+('GOM Scores and Quartiles'!$BF55*0.04) -> 44.32378665 | BL55: =IF(AR55=0, "", ($BG55*'Scenario Weighting'!H$3)+('GOM Scores and Quartiles'!$BH55*'Scenario Weighting'!H$4)+('GOM Scores and Quartiles'!$AP55*'Scenario Weighting'!H$5)+('GOM Scores and Quartiles'!$AQ55*'Scenario Weighting'!H$6)+('GOM Scores and Quartiles'!$AR55*'Scenario Weighting'!H$7)+('GOM Scores and Quartiles'!$AS55*'Scenario Weighting'!H$12)+('GOM Scores and Quartiles'!$AT55*'Scenario Weighting'!H$8)+('GOM Scores and Quartiles'!$AU55*'Scenario Weighting'!H$9)+('GOM Scores and Quartiles'!$AV55*'Scenario Weighting'!H$10)+('GOM Scores and Quartiles'!$AW55*'Scenario Weighting'!H$11)+('GOM Scores and Quartiles'!$AX55*'Scenario Weighting'!H$13)+('GOM Scores and Quartiles'!$AZ55*'Scenario Weighting'!H$14)+('GOM Scores and Quartiles'!$BB55*'Scenario Weighting'!H$15)+('GOM Scores and Quartiles'!$BC55*'Scenario Weighting'!H$16)+('GOM Scores and Quartiles'!$BE55*'Scenario Weighting'!H$17)+('GOM Scores and Quartiles'!$BF55*'Scenario Weighting'!H$18)) ->  | BM55: =IF(BI55>='Scenario Weighting'!C$24, "75-100%", IF('GOM Scores and Quartiles'!BI55>='Scenario Weighting'!C$23, "50-75%", IF('GOM Scores and Quartiles'!BI55>='Scenario Weighting'!C$22, "25-50%", "0-25%"))) -> 75-100% | BN55: =IF(BJ55="", "", IF(BJ55>='Scenario Weighting'!D$24, "75-100%", IF('GOM Scores and Quartiles'!BJ55>='Scenario Weighting'!D$23, "50-75%", IF('GOM Scores and Quartiles'!BJ55>='Scenario Weighting'!D$22, "25-50%", "0-25%")))) ->  | BO55: =IF(BK55>='Scenario Weighting'!E$24, "75-100%", IF('GOM Scores and Quartiles'!BK55>='Scenario Weighting'!E$23, "50-75%", IF('GOM Scores and Quartiles'!BK55>='Scenario Weighting'!E$22, "25-50%", "0-25%"))) -> 50-75% | BP55: =IF(BL55="", "", IF(BL55>='Scenario Weighting'!F$24, "75-100%", IF('GOM Scores and Quartiles'!BL55>='Scenario Weighting'!F$23, "50-75%", IF('GOM Scores and Quartiles'!BL55>='Scenario Weighting'!F$22, "25-50%", "0-25%")))) -> 
A56: 51 | B56: 37056 | C56: -96.89256889 | D56: 26.21479424 | E56: 1671 | F56: 69.55550643 | G56: 860 | H56: 53.77097875 | I56: 286 | J56: 128.2074934 | K56: 0 | L56: 0 | M56: 0 | N56: 1 | O56: 0 | P56: 0 | Q56: 0 | R56: 1 | S56: 0 | T56: 4 | U56: 4 | V56: 0 | W56: 0 | X56: 0 | Y56: 1 | Z56: 0 | AA56: 0 | AB56: 3 | AC56: 5 | AD56: 31.9 | AE56: 2932.66 | AF56: 2739 | AG56: 730.58 | AH56: 146.116 | AI56: 0 | AJ56: 0 | AK56: 0 | AL56: 16089607.61 | AM56: 29958 | AN56: 5991.6 | AO56: 7.718238994 | AP56: 0 | AQ56: 0 | AR56: 0 | AS56: 100 | AT56: 0 | AU56: 0 | AV56: 0 | AW56: 51.47823832 | AX56: 0 | AY56: 64.77046073 | AZ56: 64.81473496 | BA56: 64.77046073 | BB56: 64.81473496 | BC56: 0 | BD56: 99.1011236 | BE56: 98.31932773 | BF56: 100 | BG56: 9.127139682 | BH56: 12.39582505 | BI56: =($BG56*'Scenario Weighting'!E$3)+('GOM Scores and Quartiles'!$BH56*'Scenario Weighting'!E$4)+('GOM Scores and Quartiles'!$AP56*'Scenario Weighting'!E$5)+('GOM Scores and Quartiles'!$AQ56*'Scenario Weighting'!E$6)+('GOM Scores and Quartiles'!$AR56*'Scenario Weighting'!E$7)+('GOM Scores and Quartiles'!$AS56*'Scenario Weighting'!E$12)+('GOM Scores and Quartiles'!$AT56*'Scenario Weighting'!E$8)+('GOM Scores and Quartiles'!$AU56*'Scenario Weighting'!E$9)+('GOM Scores and Quartiles'!$AV56*'Scenario Weighting'!E$10)+('GOM Scores and Quartiles'!$AW56*'Scenario Weighting'!E$11)+('GOM Scores and Quartiles'!$AX56*'Scenario Weighting'!E$13)+('GOM Scores and Quartiles'!$AZ56*'Scenario Weighting'!E$14)+('GOM Scores and Quartiles'!$BB56*'Scenario Weighting'!E$15)+('GOM Scores and Quartiles'!$BC56*'Scenario Weighting'!E$16)+('GOM Scores and Quartiles'!$BE56*'Scenario Weighting'!E$17)+('GOM Scores and Quartiles'!$BF56*'Scenario Weighting'!E$18) -> 54.78707558 | BJ56: =IF(AR56=0, "", ($BG56*'Scenario Weighting'!F$3)+('GOM Scores and Quartiles'!$BH56*'Scenario Weighting'!F$4)+('GOM Scores and Quartiles'!$AP56*'Scenario Weighting'!F$5)+('GOM Scores and Quartiles'!$AQ56*'Scenario Weighting'!F$6)+('GOM Scores and Quartiles'!$AR56*'Scenario Weighting'!F$7)+('GOM Scores and Quartiles'!$AS56*'Scenario Weighting'!F$12)+('GOM Scores and Quartiles'!$AT56*'Scenario Weighting'!F$8)+('GOM Scores and Quartiles'!$AU56*'Scenario Weighting'!F$9)+('GOM Scores and Quartiles'!$AV56*'Scenario Weighting'!F$10)+('GOM Scores and Quartiles'!$AW56*'Scenario Weighting'!F$11)+('GOM Scores and Quartiles'!$AX56*'Scenario Weighting'!F$13)+('GOM Scores and Quartiles'!$AZ56*'Scenario Weighting'!F$14)+('GOM Scores and Quartiles'!$BB56*'Scenario Weighting'!F$15)+('GOM Scores and Quartiles'!$BC56*'Scenario Weighting'!F$16)+('GOM Scores and Quartiles'!$BE56*'Scenario Weighting'!F$17)+('GOM Scores and Quartiles'!$BF56*'Scenario Weighting'!F$18)) ->  | BK56: =('GOM Scores and Quartiles'!$BG56*0.12)+('GOM Scores and Quartiles'!$BH56*0.12)+('GOM Scores and Quartiles'!$AS56*0.2)+('GOM Scores and Quartiles'!$AT56*0.05)+('GOM Scores and Quartiles'!$AU56*0.1)+('GOM Scores and Quartiles'!$AV56*0.2)+('GOM Scores and Quartiles'!$AW56*0.1)+('GOM Scores and Quartiles'!$BE56*0.07)+('GOM Scores and Quartiles'!$BF56*0.04) -> 38.61293254 | BL56: =IF(AR56=0, "", ($BG56*'Scenario Weighting'!H$3)+('GOM Scores and Quartiles'!$BH56*'Scenario Weighting'!H$4)+('GOM Scores and Quartiles'!$AP56*'Scenario Weighting'!H$5)+('GOM Scores and Quartiles'!$AQ56*'Scenario Weighting'!H$6)+('GOM Scores and Quartiles'!$AR56*'Scenario Weighting'!H$7)+('GOM Scores and Quartiles'!$AS56*'Scenario Weighting'!H$12)+('GOM Scores and Quartiles'!$AT56*'Scenario Weighting'!H$8)+('GOM Scores and Quartiles'!$AU56*'Scenario Weighting'!H$9)+('GOM Scores and Quartiles'!$AV56*'Scenario Weighting'!H$10)+('GOM Scores and Quartiles'!$AW56*'Scenario Weighting'!H$11)+('GOM Scores and Quartiles'!$AX56*'Scenario Weighting'!H$13)+('GOM Scores and Quartiles'!$AZ56*'Scenario Weighting'!H$14)+('GOM Scores and Quartiles'!$BB56*'Scenario Weighting'!H$15)+('GOM Scores and Quartiles'!$BC56*'Scenario Weighting'!H$16)+('GOM Scores and Quartiles'!$BE56*'Scenario Weighting'!H$17)+('GOM Scores and Quartiles'!$BF56*'Scenario Weighting'!H$18)) ->  | BM56: =IF(BI56>='Scenario Weighting'!C$24, "75-100%", IF('GOM Scores and Quartiles'!BI56>='Scenario Weighting'!C$23, "50-75%", IF('GOM Scores and Quartiles'!BI56>='Scenario Weighting'!C$22, "25-50%", "0-25%"))) -> 25-50% | BN56: =IF(BJ56="", "", IF(BJ56>='Scenario Weighting'!D$24, "75-100%", IF('GOM Scores and Quartiles'!BJ56>='Scenario Weighting'!D$23, "50-75%", IF('GOM Scores and Quartiles'!BJ56>='Scenario Weighting'!D$22, "25-50%", "0-25%")))) ->  | BO56: =IF(BK56>='Scenario Weighting'!E$24, "75-100%", IF('GOM Scores and Quartiles'!BK56>='Scenario Weighting'!E$23, "50-75%", IF('GOM Scores and Quartiles'!BK56>='Scenario Weighting'!E$22, "25-50%", "0-25%"))) -> 25-50% | BP56: =IF(BL56="", "", IF(BL56>='Scenario Weighting'!F$24, "75-100%", IF('GOM Scores and Quartiles'!BL56>='Scenario Weighting'!F$23, "50-75%", IF('GOM Scores and Quartiles'!BL56>='Scenario Weighting'!F$22, "25-50%", "0-25%")))) -> 
A57: 52 | B57: 37057 | C57: -96.82108464 | D57: 26.21479424 | E57: 1671 | F57: 76.0682801 | G57: 860 | H57: 60.09126802 | I57: 286 | J57: 135.2696485 | K57: 0 | L57: 0 | M57: 0 | N57: 0 | O57: 1 | P57: 0 | Q57: 0 | R57: 1 | S57: 1 | T57: 0 | U57: 0 | V57: 0 | W57: 0 | X57: 0 | Y57: 0 | Z57: 0 | AA57: 0 | AB57: 2 | AC57: 5 | AD57: 31.9 | AE57: 2932.66 | AF57: 2739 | AG57: 730.58 | AH57: 146.116 | AI57: 0 | AJ57: 0 | AK57: 0 | AL57: 16089607.61 | AM57: 29958 | AN57: 5991.6 | AO57: 7.718238994 | AP57: 0 | AQ57: 0 | AR57: 0 | AS57: 0 | AT57: 0 | AU57: 0 | AV57: 0 | AW57: 54.35485583 | AX57: 0 | AY57: 64.77046073 | AZ57: 64.81473496 | BA57: 64.77046073 | BB57: 64.81473496 | BC57: 0 | BD57: 100 | BE57: 100 | BF57: 0 | BG57: 9.127139682 | BH57: 12.39582505 | BI57: =($BG57*'Scenario Weighting'!E$3)+('GOM Scores and Quartiles'!$BH57*'Scenario Weighting'!E$4)+('GOM Scores and Quartiles'!$AP57*'Scenario Weighting'!E$5)+('GOM Scores and Quartiles'!$AQ57*'Scenario Weighting'!E$6)+('GOM Scores and Quartiles'!$AR57*'Scenario Weighting'!E$7)+('GOM Scores and Quartiles'!$AS57*'Scenario Weighting'!E$12)+('GOM Scores and Quartiles'!$AT57*'Scenario Weighting'!E$8)+('GOM Scores and Quartiles'!$AU57*'Scenario Weighting'!E$9)+('GOM Scores and Quartiles'!$AV57*'Scenario Weighting'!E$10)+('GOM Scores and Quartiles'!$AW57*'Scenario Weighting'!E$11)+('GOM Scores and Quartiles'!$AX57*'Scenario Weighting'!E$13)+('GOM Scores and Quartiles'!$AZ57*'Scenario Weighting'!E$14)+('GOM Scores and Quartiles'!$BB57*'Scenario Weighting'!E$15)+('GOM Scores and Quartiles'!$BC57*'Scenario Weighting'!E$16)+('GOM Scores and Quartiles'!$BE57*'Scenario Weighting'!E$17)+('GOM Scores and Quartiles'!$BF57*'Scenario Weighting'!E$18) -> 30.10835078 | BJ57: =IF(AR57=0, "", ($BG57*'Scenario Weighting'!F$3)+('GOM Scores and Quartiles'!$BH57*'Scenario Weighting'!F$4)+('GOM Scores and Quartiles'!$AP57*'Scenario Weighting'!F$5)+('GOM Scores and Quartiles'!$AQ57*'Scenario Weighting'!F$6)+('GOM Scores and Quartiles'!$AR57*'Scenario Weighting'!F$7)+('GOM Scores and Quartiles'!$AS57*'Scenario Weighting'!F$12)+('GOM Scores and Quartiles'!$AT57*'Scenario Weighting'!F$8)+('GOM Scores and Quartiles'!$AU57*'Scenario Weighting'!F$9)+('GOM Scores and Quartiles'!$AV57*'Scenario Weighting'!F$10)+('GOM Scores and Quartiles'!$AW57*'Scenario Weighting'!F$11)+('GOM Scores and Quartiles'!$AX57*'Scenario Weighting'!F$13)+('GOM Scores and Quartiles'!$AZ57*'Scenario Weighting'!F$14)+('GOM Scores and Quartiles'!$BB57*'Scenario Weighting'!F$15)+('GOM Scores and Quartiles'!$BC57*'Scenario Weighting'!F$16)+('GOM Scores and Quartiles'!$BE57*'Scenario Weighting'!F$17)+('GOM Scores and Quartiles'!$BF57*'Scenario Weighting'!F$18)) ->  | BK57: =('GOM Scores and Quartiles'!$BG57*0.12)+('GOM Scores and Quartiles'!$BH57*0.12)+('GOM Scores and Quartiles'!$AS57*0.2)+('GOM Scores and Quartiles'!$AT57*0.05)+('GOM Scores and Quartiles'!$AU57*0.1)+('GOM Scores and Quartiles'!$AV57*0.2)+('GOM Scores and Quartiles'!$AW57*0.1)+('GOM Scores and Quartiles'!$BE57*0.07)+('GOM Scores and Quartiles'!$BF57*0.04) -> 15.01824135 | BL57: =IF(AR57=0, "", ($BG57*'Scenario Weighting'!H$3)+('GOM Scores and Quartiles'!$BH57*'Scenario Weighting'!H$4)+('GOM Scores and Quartiles'!$AP57*'Scenario Weighting'!H$5)+('GOM Scores and Quartiles'!$AQ57*'Scenario Weighting'!H$6)+('GOM Scores and Quartiles'!$AR57*'Scenario Weighting'!H$7)+('GOM Scores and Quartiles'!$AS57*'Scenario Weighting'!H$12)+('GOM Scores and Quartiles'!$AT57*'Scenario Weighting'!H$8)+('GOM Scores and Quartiles'!$AU57*'Scenario Weighting'!H$9)+('GOM Scores and Quartiles'!$AV57*'Scenario Weighting'!H$10)+('GOM Scores and Quartiles'!$AW57*'Scenario Weighting'!H$11)+('GOM Scores and Quartiles'!$AX57*'Scenario Weighting'!H$13)+('GOM Scores and Quartiles'!$AZ57*'Scenario Weighting'!H$14)+('GOM Scores and Quartiles'!$BB57*'Scenario Weighting'!H$15)+('GOM Scores and Quartiles'!$BC57*'Scenario Weighting'!H$16)+('GOM Scores and Quartiles'!$BE57*'Scenario Weighting'!H$17)+('GOM Scores and Quartiles'!$BF57*'Scenario Weighting'!H$18)) ->  | BM57: =IF(BI57>='Scenario Weighting'!C$24, "75-100%", IF('GOM Scores and Quartiles'!BI57>='Scenario Weighting'!C$23, "50-75%", IF('GOM Scores and Quartiles'!BI57>='Scenario Weighting'!C$22, "25-50%", "0-25%"))) -> 0-25% | BN57: =IF(BJ57="", "", IF(BJ57>='Scenario Weighting'!D$24, "75-100%", IF('GOM Scores and Quartiles'!BJ57>='Scenario Weighting'!D$23, "50-75%", IF('GOM Scores and Quartiles'!BJ57>='Scenario Weighting'!D$22, "25-50%", "0-25%")))) ->  | BO57: =IF(BK57>='Scenario Weighting'!E$24, "75-100%", IF('GOM Scores and Quartiles'!BK57>='Scenario Weighting'!E$23, "50-75%", IF('GOM Scores and Quartiles'!BK57>='Scenario Weighting'!E$22, "25-50%", "0-25%"))) -> 0-25% | BP57: =IF(BL57="", "", IF(BL57>='Scenario Weighting'!F$24, "75-100%", IF('GOM Scores and Quartiles'!BL57>='Scenario Weighting'!F$23, "50-75%", IF('GOM Scores and Quartiles'!BL57>='Scenario Weighting'!F$22, "25-50%", "0-25%")))) -> 
A58: 53 | B58: 37058 | C58: -96.89256889 | D58: 26.28627848 | E58: 1671 | F58: 72.92241355 | G58: 860 | H58: 58.08786592 | I58: 286 | J58: 127.2242712 | K58: 0 | L58: 0 | M58: 0 | N58: 0 | O58: 0 | P58: 0 | Q58: 0 | R58: 1 | S58: 0 | T58: 0 | U58: 0 | V58: 0 | W58: 0 | X58: 0 | Y58: 0 | Z58: 0 | AA58: 0 | AB58: 1 | AC58: 6 | AD58: 33.68 | AE58: 3987.42 | AF58: 3572 | AG58: 823.18 | AH58: 137.1966667 | AI58: 0 | AJ58: 0 | AK58: 0 | AL58: 17394065.31 | AM58: 37178 | AN58: 6196.333333 | AO58: 8.166037736 | AP58: 0 | AQ58: 0 | AR58: 0 | AS58: 0 | AT58: 0 | AU58: 0 | AV58: 0 | AW58: 51.07774382 | AX58: 0 | AY58: 62.23934723 | AZ58: 67.56193468 | BA58: 62.23934723 | BB58: 67.56193468 | BC58: 0 | BD58: 100 | BE58: 100 | BF58: 100 | BG58: 12.66403792 | BH58: 13.48761721 | BI58: =($BG58*'Scenario Weighting'!E$3)+('GOM Scores and Quartiles'!$BH58*'Scenario Weighting'!E$4)+('GOM Scores and Quartiles'!$AP58*'Scenario Weighting'!E$5)+('GOM Scores and Quartiles'!$AQ58*'Scenario Weighting'!E$6)+('GOM Scores and Quartiles'!$AR58*'Scenario Weighting'!E$7)+('GOM Scores and Quartiles'!$AS58*'Scenario Weighting'!E$12)+('GOM Scores and Quartiles'!$AT58*'Scenario Weighting'!E$8)+('GOM Scores and Quartiles'!$AU58*'Scenario Weighting'!E$9)+('GOM Scores and Quartiles'!$AV58*'Scenario Weighting'!E$10)+('GOM Scores and Quartiles'!$AW58*'Scenario Weighting'!E$11)+('GOM Scores and Quartiles'!$AX58*'Scenario Weighting'!E$13)+('GOM Scores and Quartiles'!$AZ58*'Scenario Weighting'!E$14)+('GOM Scores and Quartiles'!$BB58*'Scenario Weighting'!E$15)+('GOM Scores and Quartiles'!$BC58*'Scenario Weighting'!E$16)+('GOM Scores and Quartiles'!$BE58*'Scenario Weighting'!E$17)+('GOM Scores and Quartiles'!$BF58*'Scenario Weighting'!E$18) -> 36.29910306 | BJ58: =IF(AR58=0, "", ($BG58*'Scenario Weighting'!F$3)+('GOM Scores and Quartiles'!$BH58*'Scenario Weighting'!F$4)+('GOM Scores and Quartiles'!$AP58*'Scenario Weighting'!F$5)+('GOM Scores and Quartiles'!$AQ58*'Scenario Weighting'!F$6)+('GOM Scores and Quartiles'!$AR58*'Scenario Weighting'!F$7)+('GOM Scores and Quartiles'!$AS58*'Scenario Weighting'!F$12)+('GOM Scores and Quartiles'!$AT58*'Scenario Weighting'!F$8)+('GOM Scores and Quartiles'!$AU58*'Scenario Weighting'!F$9)+('GOM Scores and Quartiles'!$AV58*'Scenario Weighting'!F$10)+('GOM Scores and Quartiles'!$AW58*'Scenario Weighting'!F$11)+('GOM Scores and Quartiles'!$AX58*'Scenario Weighting'!F$13)+('GOM Scores and Quartiles'!$AZ58*'Scenario Weighting'!F$14)+('GOM Scores and Quartiles'!$BB58*'Scenario Weighting'!F$15)+('GOM Scores and Quartiles'!$BC58*'Scenario Weighting'!F$16)+('GOM Scores and Quartiles'!$BE58*'Scenario Weighting'!F$17)+('GOM Scores and Quartiles'!$BF58*'Scenario Weighting'!F$18)) ->  | BK58: =('GOM Scores and Quartiles'!$BG58*0.12)+('GOM Scores and Quartiles'!$BH58*0.12)+('GOM Scores and Quartiles'!$AS58*0.2)+('GOM Scores and Quartiles'!$AT58*0.05)+('GOM Scores and Quartiles'!$AU58*0.1)+('GOM Scores and Quartiles'!$AV58*0.2)+('GOM Scores and Quartiles'!$AW58*0.1)+('GOM Scores and Quartiles'!$BE58*0.07)+('GOM Scores and Quartiles'!$BF58*0.04) -> 19.245973 | BL58: =IF(AR58=0, "", ($BG58*'Scenario Weighting'!H$3)+('GOM Scores and Quartiles'!$BH58*'Scenario Weighting'!H$4)+('GOM Scores and Quartiles'!$AP58*'Scenario Weighting'!H$5)+('GOM Scores and Quartiles'!$AQ58*'Scenario Weighting'!H$6)+('GOM Scores and Quartiles'!$AR58*'Scenario Weighting'!H$7)+('GOM Scores and Quartiles'!$AS58*'Scenario Weighting'!H$12)+('GOM Scores and Quartiles'!$AT58*'Scenario Weighting'!H$8)+('GOM Scores and Quartiles'!$AU58*'Scenario Weighting'!H$9)+('GOM Scores and Quartiles'!$AV58*'Scenario Weighting'!H$10)+('GOM Scores and Quartiles'!$AW58*'Scenario Weighting'!H$11)+('GOM Scores and Quartiles'!$AX58*'Scenario Weighting'!H$13)+('GOM Scores and Quartiles'!$AZ58*'Scenario Weighting'!H$14)+('GOM Scores and Quartiles'!$BB58*'Scenario Weighting'!H$15)+('GOM Scores and Quartiles'!$BC58*'Scenario Weighting'!H$16)+('GOM Scores and Quartiles'!$BE58*'Scenario Weighting'!H$17)+('GOM Scores and Quartiles'!$BF58*'Scenario Weighting'!H$18)) ->  | BM58: =IF(BI58>='Scenario Weighting'!C$24, "75-100%", IF('GOM Scores and Quartiles'!BI58>='Scenario Weighting'!C$23, "50-75%", IF('GOM Scores and Quartiles'!BI58>='Scenario Weighting'!C$22, "25-50%", "0-25%"))) -> 0-25% | BN58: =IF(BJ58="", "", IF(BJ58>='Scenario Weighting'!D$24, "75-100%", IF('GOM Scores and Quartiles'!BJ58>='Scenario Weighting'!D$23, "50-75%", IF('GOM Scores and Quartiles'!BJ58>='Scenario Weighting'!D$22, "25-50%", "0-25%")))) ->  | BO58: =IF(BK58>='Scenario Weighting'!E$24, "75-100%", IF('GOM Scores and Quartiles'!BK58>='Scenario Weighting'!E$23, "50-75%", IF('GOM Scores and Quartiles'!BK58>='Scenario Weighting'!E$22, "25-50%", "0-25%"))) -> 0-25% | BP58: =IF(BL58="", "", IF(BL58>='Scenario Weighting'!F$24, "75-100%", IF('GOM Scores and Quartiles'!BL58>='Scenario Weighting'!F$23, "50-75%", IF('GOM Scores and Quartiles'!BL58>='Scenario Weighting'!F$22, "25-50%", "0-25%")))) -> 
A59: 54 | B59: 37059 | C59: -96.82108464 | D59: 26.28627848 | E59: 1671 | F59: 79.15865816 | G59: 860 | H59: 63.97971839 | I59: 286 | J59: 134.3338801 | K59: 0 | L59: 0 | M59: 0 | N59: 0 | O59: 1 | P59: 0 | Q59: 0 | R59: 1 | S59: 1 | T59: 0 | U59: 0 | V59: 0 | W59: 0 | X59: 0 | Y59: 0 | Z59: 0 | AA59: 0 | AB59: 1 | AC59: 5 | AD59: 31.9 | AE59: 2932.66 | AF59: 2739 | AG59: 730.58 | AH59: 146.116 | AI59: 0 | AJ59: 0 | AK59: 0 | AL59: 16089607.61 | AM59: 29958 | AN59: 5991.6 | AO59: 7.718238994 | AP59: 0 | AQ59: 0 | AR59: 0 | AS59: 0 | AT59: 0 | AU59: 0 | AV59: 0 | AW59: 53.97369064 | AX59: 0 | AY59: 64.77046073 | AZ59: 64.81473496 | BA59: 64.77046073 | BB59: 64.81473496 | BC59: 0 | BD59: 100 | BE59: 100 | BF59: 0 | BG59: 9.127139682 | BH59: 12.39582505 | BI59: =($BG59*'Scenario Weighting'!E$3)+('GOM Scores and Quartiles'!$BH59*'Scenario Weighting'!E$4)+('GOM Scores and Quartiles'!$AP59*'Scenario Weighting'!E$5)+('GOM Scores and Quartiles'!$AQ59*'Scenario Weighting'!E$6)+('GOM Scores and Quartiles'!$AR59*'Scenario Weighting'!E$7)+('GOM Scores and Quartiles'!$AS59*'Scenario Weighting'!E$12)+('GOM Scores and Quartiles'!$AT59*'Scenario Weighting'!E$8)+('GOM Scores and Quartiles'!$AU59*'Scenario Weighting'!E$9)+('GOM Scores and Quartiles'!$AV59*'Scenario Weighting'!E$10)+('GOM Scores and Quartiles'!$AW59*'Scenario Weighting'!E$11)+('GOM Scores and Quartiles'!$AX59*'Scenario Weighting'!E$13)+('GOM Scores and Quartiles'!$AZ59*'Scenario Weighting'!E$14)+('GOM Scores and Quartiles'!$BB59*'Scenario Weighting'!E$15)+('GOM Scores and Quartiles'!$BC59*'Scenario Weighting'!E$16)+('GOM Scores and Quartiles'!$BE59*'Scenario Weighting'!E$17)+('GOM Scores and Quartiles'!$BF59*'Scenario Weighting'!E$18) -> 30.07023426 | BJ59: =IF(AR59=0, "", ($BG59*'Scenario Weighting'!F$3)+('GOM Scores and Quartiles'!$BH59*'Scenario Weighting'!F$4)+('GOM Scores and Quartiles'!$AP59*'Scenario Weighting'!F$5)+('GOM Scores and Quartiles'!$AQ59*'Scenario Weighting'!F$6)+('GOM Scores and Quartiles'!$AR59*'Scenario Weighting'!F$7)+('GOM Scores and Quartiles'!$AS59*'Scenario Weighting'!F$12)+('GOM Scores and Quartiles'!$AT59*'Scenario Weighting'!F$8)+('GOM Scores and Quartiles'!$AU59*'Scenario Weighting'!F$9)+('GOM Scores and Quartiles'!$AV59*'Scenario Weighting'!F$10)+('GOM Scores and Quartiles'!$AW59*'Scenario Weighting'!F$11)+('GOM Scores and Quartiles'!$AX59*'Scenario Weighting'!F$13)+('GOM Scores and Quartiles'!$AZ59*'Scenario Weighting'!F$14)+('GOM Scores and Quartiles'!$BB59*'Scenario Weighting'!F$15)+('GOM Scores and Quartiles'!$BC59*'Scenario Weighting'!F$16)+('GOM Scores and Quartiles'!$BE59*'Scenario Weighting'!F$17)+('GOM Scores and Quartiles'!$BF59*'Scenario Weighting'!F$18)) ->  | BK59: =('GOM Scores and Quartiles'!$BG59*0.12)+('GOM Scores and Quartiles'!$BH59*0.12)+('GOM Scores and Quartiles'!$AS59*0.2)+('GOM Scores and Quartiles'!$AT59*0.05)+('GOM Scores and Quartiles'!$AU59*0.1)+('GOM Scores and Quartiles'!$AV59*0.2)+('GOM Scores and Quartiles'!$AW59*0.1)+('GOM Scores and Quartiles'!$BE59*0.07)+('GOM Scores and Quartiles'!$BF59*0.04) -> 14.98012483 | BL59: =IF(AR59=0, "", ($BG59*'Scenario Weighting'!H$3)+('GOM Scores and Quartiles'!$BH59*'Scenario Weighting'!H$4)+('GOM Scores and Quartiles'!$AP59*'Scenario Weighting'!H$5)+('GOM Scores and Quartiles'!$AQ59*'Scenario Weighting'!H$6)+('GOM Scores and Quartiles'!$AR59*'Scenario Weighting'!H$7)+('GOM Scores and Quartiles'!$AS59*'Scenario Weighting'!H$12)+('GOM Scores and Quartiles'!$AT59*'Scenario Weighting'!H$8)+('GOM Scores and Quartiles'!$AU59*'Scenario Weighting'!H$9)+('GOM Scores and Quartiles'!$AV59*'Scenario Weighting'!H$10)+('GOM Scores and Quartiles'!$AW59*'Scenario Weighting'!H$11)+('GOM Scores and Quartiles'!$AX59*'Scenario Weighting'!H$13)+('GOM Scores and Quartiles'!$AZ59*'Scenario Weighting'!H$14)+('GOM Scores and Quartiles'!$BB59*'Scenario Weighting'!H$15)+('GOM Scores and Quartiles'!$BC59*'Scenario Weighting'!H$16)+('GOM Scores and Quartiles'!$BE59*'Scenario Weighting'!H$17)+('GOM Scores and Quartiles'!$BF59*'Scenario Weighting'!H$18)) ->  | BM59: =IF(BI59>='Scenario Weighting'!C$24, "75-100%", IF('GOM Scores and Quartiles'!BI59>='Scenario Weighting'!C$23, "50-75%", IF('GOM Scores and Quartiles'!BI59>='Scenario Weighting'!C$22, "25-50%", "0-25%"))) -> 0-25% | BN59: =IF(BJ59="", "", IF(BJ59>='Scenario Weighting'!D$24, "75-100%", IF('GOM Scores and Quartiles'!BJ59>='Scenario Weighting'!D$23, "50-75%", IF('GOM Scores and Quartiles'!BJ59>='Scenario Weighting'!D$22, "25-50%", "0-25%")))) ->  | BO59: =IF(BK59>='Scenario Weighting'!E$24, "75-100%", IF('GOM Scores and Quartiles'!BK59>='Scenario Weighting'!E$23, "50-75%", IF('GOM Scores and Quartiles'!BK59>='Scenario Weighting'!E$22, "25-50%", "0-25%"))) -> 0-25% | BP59: =IF(BL59="", "", IF(BL59>='Scenario Weighting'!F$24, "75-100%", IF('GOM Scores and Quartiles'!BL59>='Scenario Weighting'!F$23, "50-75%", IF('GOM Scores and Quartiles'!BL59>='Scenario Weighting'!F$22, "25-50%", "0-25%")))) -> 
A60: 55 | B60: 37060 | C60: -96.7496004 | D60: 26.21479424 | E60: 1671 | F60: 82.68614036 | G60: 860 | H60: 66.58032772 | I60: 286 | J60: 142.3393974 | K60: 0 | L60: 0 | M60: 0 | N60: 0 | O60: 1 | P60: 0 | Q60: 0 | R60: 1 | S60: 1 | T60: 0 | U60: 0 | V60: 0 | W60: 0 | X60: 0 | Y60: 0 | Z60: 0 | AA60: 0 | AB60: 1 | AC60: 5 | AD60: 31.9 | AE60: 2932.66 | AF60: 2739 | AG60: 730.58 | AH60: 146.116 | AI60: 0 | AJ60: 0 | AK60: 0 | AL60: 16089607.61 | AM60: 29958 | AN60: 5991.6 | AO60: 7.718238994 | AP60: 0 | AQ60: 0 | AR60: 0 | AS60: 0 | AT60: 0 | AU60: 0 | AV60: 0 | AW60: 57.23456653 | AX60: 0 | AY60: 64.77046073 | AZ60: 64.81473496 | BA60: 64.77046073 | BB60: 64.81473496 | BC60: 0 | BD60: 100 | BE60: 100 | BF60: 0 | BG60: 9.127139682 | BH60: 12.39582505 | BI60: =($BG60*'Scenario Weighting'!E$3)+('GOM Scores and Quartiles'!$BH60*'Scenario Weighting'!E$4)+('GOM Scores and Quartiles'!$AP60*'Scenario Weighting'!E$5)+('GOM Scores and Quartiles'!$AQ60*'Scenario Weighting'!E$6)+('GOM Scores and Quartiles'!$AR60*'Scenario Weighting'!E$7)+('GOM Scores and Quartiles'!$AS60*'Scenario Weighting'!E$12)+('GOM Scores and Quartiles'!$AT60*'Scenario Weighting'!E$8)+('GOM Scores and Quartiles'!$AU60*'Scenario Weighting'!E$9)+('GOM Scores and Quartiles'!$AV60*'Scenario Weighting'!E$10)+('GOM Scores and Quartiles'!$AW60*'Scenario Weighting'!E$11)+('GOM Scores and Quartiles'!$AX60*'Scenario Weighting'!E$13)+('GOM Scores and Quartiles'!$AZ60*'Scenario Weighting'!E$14)+('GOM Scores and Quartiles'!$BB60*'Scenario Weighting'!E$15)+('GOM Scores and Quartiles'!$BC60*'Scenario Weighting'!E$16)+('GOM Scores and Quartiles'!$BE60*'Scenario Weighting'!E$17)+('GOM Scores and Quartiles'!$BF60*'Scenario Weighting'!E$18) -> 30.39632185 | BJ60: =IF(AR60=0, "", ($BG60*'Scenario Weighting'!F$3)+('GOM Scores and Quartiles'!$BH60*'Scenario Weighting'!F$4)+('GOM Scores and Quartiles'!$AP60*'Scenario Weighting'!F$5)+('GOM Scores and Quartiles'!$AQ60*'Scenario Weighting'!F$6)+('GOM Scores and Quartiles'!$AR60*'Scenario Weighting'!F$7)+('GOM Scores and Quartiles'!$AS60*'Scenario Weighting'!F$12)+('GOM Scores and Quartiles'!$AT60*'Scenario Weighting'!F$8)+('GOM Scores and Quartiles'!$AU60*'Scenario Weighting'!F$9)+('GOM Scores and Quartiles'!$AV60*'Scenario Weighting'!F$10)+('GOM Scores and Quartiles'!$AW60*'Scenario Weighting'!F$11)+('GOM Scores and Quartiles'!$AX60*'Scenario Weighting'!F$13)+('GOM Scores and Quartiles'!$AZ60*'Scenario Weighting'!F$14)+('GOM Scores and Quartiles'!$BB60*'Scenario Weighting'!F$15)+('GOM Scores and Quartiles'!$BC60*'Scenario Weighting'!F$16)+('GOM Scores and Quartiles'!$BE60*'Scenario Weighting'!F$17)+('GOM Scores and Quartiles'!$BF60*'Scenario Weighting'!F$18)) ->  | BK60: =('GOM Scores and Quartiles'!$BG60*0.12)+('GOM Scores and Quartiles'!$BH60*0.12)+('GOM Scores and Quartiles'!$AS60*0.2)+('GOM Scores and Quartiles'!$AT60*0.05)+('GOM Scores and Quartiles'!$AU60*0.1)+('GOM Scores and Quartiles'!$AV60*0.2)+('GOM Scores and Quartiles'!$AW60*0.1)+('GOM Scores and Quartiles'!$BE60*0.07)+('GOM Scores and Quartiles'!$BF60*0.04) -> 15.30621242 | BL60: =IF(AR60=0, "", ($BG60*'Scenario Weighting'!H$3)+('GOM Scores and Quartiles'!$BH60*'Scenario Weighting'!H$4)+('GOM Scores and Quartiles'!$AP60*'Scenario Weighting'!H$5)+('GOM Scores and Quartiles'!$AQ60*'Scenario Weighting'!H$6)+('GOM Scores and Quartiles'!$AR60*'Scenario Weighting'!H$7)+('GOM Scores and Quartiles'!$AS60*'Scenario Weighting'!H$12)+('GOM Scores and Quartiles'!$AT60*'Scenario Weighting'!H$8)+('GOM Scores and Quartiles'!$AU60*'Scenario Weighting'!H$9)+('GOM Scores and Quartiles'!$AV60*'Scenario Weighting'!H$10)+('GOM Scores and Quartiles'!$AW60*'Scenario Weighting'!H$11)+('GOM Scores and Quartiles'!$AX60*'Scenario Weighting'!H$13)+('GOM Scores and Quartiles'!$AZ60*'Scenario Weighting'!H$14)+('GOM Scores and Quartiles'!$BB60*'Scenario Weighting'!H$15)+('GOM Scores and Quartiles'!$BC60*'Scenario Weighting'!H$16)+('GOM Scores and Quartiles'!$BE60*'Scenario Weighting'!H$17)+('GOM Scores and Quartiles'!$BF60*'Scenario Weighting'!H$18)) ->  | BM60: =IF(BI60>='Scenario Weighting'!C$24, "75-100%", IF('GOM Scores and Quartiles'!BI60>='Scenario Weighting'!C$23, "50-75%", IF('GOM Scores and Quartiles'!BI60>='Scenario Weighting'!C$22, "25-50%", "0-25%"))) -> 0-25% | BN60: =IF(BJ60="", "", IF(BJ60>='Scenario Weighting'!D$24, "75-100%", IF('GOM Scores and Quartiles'!BJ60>='Scenario Weighting'!D$23, "50-75%", IF('GOM Scores and Quartiles'!BJ60>='Scenario Weighting'!D$22, "25-50%", "0-25%")))) ->  | BO60: =IF(BK60>='Scenario Weighting'!E$24, "75-100%", IF('GOM Scores and Quartiles'!BK60>='Scenario Weighting'!E$23, "50-75%", IF('GOM Scores and Quartiles'!BK60>='Scenario Weighting'!E$22, "25-50%", "0-25%"))) -> 0-25% | BP60: =IF(BL60="", "", IF(BL60>='Scenario Weighting'!F$24, "75-100%", IF('GOM Scores and Quartiles'!BL60>='Scenario Weighting'!F$23, "50-75%", IF('GOM Scores and Quartiles'!BL60>='Scenario Weighting'!F$22, "25-50%", "0-25%")))) -> 
A61: 56 | B61: 37061 | C61: -96.67811615 | D61: 26.21479424 | E61: 1671 | F61: 89.38575097 | G61: 860 | H61: 73.19328215 | I61: 286 | J61: 149.4156621 | K61: 0 | L61: 0 | M61: 0 | N61: 0 | O61: 1 | P61: 0 | Q61: 0 | R61: 0 | S61: 1 | T61: 0 | U61: 0 | V61: 0 | W61: 0 | X61: 0 | Y61: 0 | Z61: 0 | AA61: 0 | AB61: 0 | AC61: 4 | AD61: 24.77 | AE61: 2236.34 | AF61: 2102 | AG61: 708.18 | AH61: 177.045 | AI61: 0 | AJ61: 0 | AK61: 0 | AL61: 13795828.89 | AM61: 17431 | AN61: 4357.75 | AO61: 5.924528302 | AP61: 0 | AQ61: 0 | AR61: 0 | AS61: 0 | AT61: 0 | AU61: 0 | AV61: 0 | AW61: 60.11693129 | AX61: 0 | AY61: 84.96971071 | AZ61: 55.28844673 | BA61: 84.96971071 | BB61: 55.28844673 | BC61: 0 | BD61: 100 | BE61: 100 | BF61: 0 | BG61: 6.792188618 | BH61: 10.47600072 | BI61: =($BG61*'Scenario Weighting'!E$3)+('GOM Scores and Quartiles'!$BH61*'Scenario Weighting'!E$4)+('GOM Scores and Quartiles'!$AP61*'Scenario Weighting'!E$5)+('GOM Scores and Quartiles'!$AQ61*'Scenario Weighting'!E$6)+('GOM Scores and Quartiles'!$AR61*'Scenario Weighting'!E$7)+('GOM Scores and Quartiles'!$AS61*'Scenario Weighting'!E$12)+('GOM Scores and Quartiles'!$AT61*'Scenario Weighting'!E$8)+('GOM Scores and Quartiles'!$AU61*'Scenario Weighting'!E$9)+('GOM Scores and Quartiles'!$AV61*'Scenario Weighting'!E$10)+('GOM Scores and Quartiles'!$AW61*'Scenario Weighting'!E$11)+('GOM Scores and Quartiles'!$AX61*'Scenario Weighting'!E$13)+('GOM Scores and Quartiles'!$AZ61*'Scenario Weighting'!E$14)+('GOM Scores and Quartiles'!$BB61*'Scenario Weighting'!E$15)+('GOM Scores and Quartiles'!$BC61*'Scenario Weighting'!E$16)+('GOM Scores and Quartiles'!$BE61*'Scenario Weighting'!E$17)+('GOM Scores and Quartiles'!$BF61*'Scenario Weighting'!E$18) -> 27.18845555 | BJ61: =IF(AR61=0, "", ($BG61*'Scenario Weighting'!F$3)+('GOM Scores and Quartiles'!$BH61*'Scenario Weighting'!F$4)+('GOM Scores and Quartiles'!$AP61*'Scenario Weighting'!F$5)+('GOM Scores and Quartiles'!$AQ61*'Scenario Weighting'!F$6)+('GOM Scores and Quartiles'!$AR61*'Scenario Weighting'!F$7)+('GOM Scores and Quartiles'!$AS61*'Scenario Weighting'!F$12)+('GOM Scores and Quartiles'!$AT61*'Scenario Weighting'!F$8)+('GOM Scores and Quartiles'!$AU61*'Scenario Weighting'!F$9)+('GOM Scores and Quartiles'!$AV61*'Scenario Weighting'!F$10)+('GOM Scores and Quartiles'!$AW61*'Scenario Weighting'!F$11)+('GOM Scores and Quartiles'!$AX61*'Scenario Weighting'!F$13)+('GOM Scores and Quartiles'!$AZ61*'Scenario Weighting'!F$14)+('GOM Scores and Quartiles'!$BB61*'Scenario Weighting'!F$15)+('GOM Scores and Quartiles'!$BC61*'Scenario Weighting'!F$16)+('GOM Scores and Quartiles'!$BE61*'Scenario Weighting'!F$17)+('GOM Scores and Quartiles'!$BF61*'Scenario Weighting'!F$18)) ->  | BK61: =('GOM Scores and Quartiles'!$BG61*0.12)+('GOM Scores and Quartiles'!$BH61*0.12)+('GOM Scores and Quartiles'!$AS61*0.2)+('GOM Scores and Quartiles'!$AT61*0.05)+('GOM Scores and Quartiles'!$AU61*0.1)+('GOM Scores and Quartiles'!$AV61*0.2)+('GOM Scores and Quartiles'!$AW61*0.1)+('GOM Scores and Quartiles'!$BE61*0.07)+('GOM Scores and Quartiles'!$BF61*0.04) -> 15.08387585 | BL61: =IF(AR61=0, "", ($BG61*'Scenario Weighting'!H$3)+('GOM Scores and Quartiles'!$BH61*'Scenario Weighting'!H$4)+('GOM Scores and Quartiles'!$AP61*'Scenario Weighting'!H$5)+('GOM Scores and Quartiles'!$AQ61*'Scenario Weighting'!H$6)+('GOM Scores and Quartiles'!$AR61*'Scenario Weighting'!H$7)+('GOM Scores and Quartiles'!$AS61*'Scenario Weighting'!H$12)+('GOM Scores and Quartiles'!$AT61*'Scenario Weighting'!H$8)+('GOM Scores and Quartiles'!$AU61*'Scenario Weighting'!H$9)+('GOM Scores and Quartiles'!$AV61*'Scenario Weighting'!H$10)+('GOM Scores and Quartiles'!$AW61*'Scenario Weighting'!H$11)+('GOM Scores and Quartiles'!$AX61*'Scenario Weighting'!H$13)+('GOM Scores and Quartiles'!$AZ61*'Scenario Weighting'!H$14)+('GOM Scores and Quartiles'!$BB61*'Scenario Weighting'!H$15)+('GOM Scores and Quartiles'!$BC61*'Scenario Weighting'!H$16)+('GOM Scores and Quartiles'!$BE61*'Scenario Weighting'!H$17)+('GOM Scores and Quartiles'!$BF61*'Scenario Weighting'!H$18)) ->  | BM61: =IF(BI61>='Scenario Weighting'!C$24, "75-100%", IF('GOM Scores and Quartiles'!BI61>='Scenario Weighting'!C$23, "50-75%", IF('GOM Scores and Quartiles'!BI61>='Scenario Weighting'!C$22, "25-50%", "0-25%"))) -> 0-25% | BN61: =IF(BJ61="", "", IF(BJ61>='Scenario Weighting'!D$24, "75-100%", IF('GOM Scores and Quartiles'!BJ61>='Scenario Weighting'!D$23, "50-75%", IF('GOM Scores and Quartiles'!BJ61>='Scenario Weighting'!D$22, "25-50%", "0-25%")))) ->  | BO61: =IF(BK61>='Scenario Weighting'!E$24, "75-100%", IF('GOM Scores and Quartiles'!BK61>='Scenario Weighting'!E$23, "50-75%", IF('GOM Scores and Quartiles'!BK61>='Scenario Weighting'!E$22, "25-50%", "0-25%"))) -> 0-25% | BP61: =IF(BL61="", "", IF(BL61>='Scenario Weighting'!F$24, "75-100%", IF('GOM Scores and Quartiles'!BL61>='Scenario Weighting'!F$23, "50-75%", IF('GOM Scores and Quartiles'!BL61>='Scenario Weighting'!F$22, "25-50%", "0-25%")))) -> 
A62: 57 | B62: 37062 | C62: -96.7496004 | D62: 26.28627848 | E62: 1671 | F62: 85.53775617 | G62: 860 | H62: 70.10622987 | I62: 286 | J62: 141.4461554 | K62: 0 | L62: 0 | M62: 0 | N62: 0 | O62: 1 | P62: 0 | Q62: 0 | R62: 0 | S62: 2 | T62: 0 | U62: 0 | V62: 0 | W62: 0 | X62: 0 | Y62: 0 | Z62: 0 | AA62: 0 | AB62: 0 | AC62: 5 | AD62: 31.9 | AE62: 2932.66 | AF62: 2739 | AG62: 730.58 | AH62: 146.116 | AI62: 0 | AJ62: 0 | AK62: 0 | AL62: 16089607.61 | AM62: 29958 | AN62: 5991.6 | AO62: 7.718238994 | AP62: 0 | AQ62: 0 | AR62: 0 | AS62: 0 | AT62: 0 | AU62: 0 | AV62: 0 | AW62: 56.87072354 | AX62: 0 | AY62: 64.77046073 | AZ62: 64.81473496 | BA62: 64.77046073 | BB62: 64.81473496 | BC62: 0 | BD62: 100 | BE62: 100 | BF62: 0 | BG62: 9.127139682 | BH62: 12.39582505 | BI62: =($BG62*'Scenario Weighting'!E$3)+('GOM Scores and Quartiles'!$BH62*'Scenario Weighting'!E$4)+('GOM Scores and Quartiles'!$AP62*'Scenario Weighting'!E$5)+('GOM Scores and Quartiles'!$AQ62*'Scenario Weighting'!E$6)+('GOM Scores and Quartiles'!$AR62*'Scenario Weighting'!E$7)+('GOM Scores and Quartiles'!$AS62*'Scenario Weighting'!E$12)+('GOM Scores and Quartiles'!$AT62*'Scenario Weighting'!E$8)+('GOM Scores and Quartiles'!$AU62*'Scenario Weighting'!E$9)+('GOM Scores and Quartiles'!$AV62*'Scenario Weighting'!E$10)+('GOM Scores and Quartiles'!$AW62*'Scenario Weighting'!E$11)+('GOM Scores and Quartiles'!$AX62*'Scenario Weighting'!E$13)+('GOM Scores and Quartiles'!$AZ62*'Scenario Weighting'!E$14)+('GOM Scores and Quartiles'!$BB62*'Scenario Weighting'!E$15)+('GOM Scores and Quartiles'!$BC62*'Scenario Weighting'!E$16)+('GOM Scores and Quartiles'!$BE62*'Scenario Weighting'!E$17)+('GOM Scores and Quartiles'!$BF62*'Scenario Weighting'!E$18) -> 30.35993755 | BJ62: =IF(AR62=0, "", ($BG62*'Scenario Weighting'!F$3)+('GOM Scores and Quartiles'!$BH62*'Scenario Weighting'!F$4)+('GOM Scores and Quartiles'!$AP62*'Scenario Weighting'!F$5)+('GOM Scores and Quartiles'!$AQ62*'Scenario Weighting'!F$6)+('GOM Scores and Quartiles'!$AR62*'Scenario Weighting'!F$7)+('GOM Scores and Quartiles'!$AS62*'Scenario Weighting'!F$12)+('GOM Scores and Quartiles'!$AT62*'Scenario Weighting'!F$8)+('GOM Scores and Quartiles'!$AU62*'Scenario Weighting'!F$9)+('GOM Scores and Quartiles'!$AV62*'Scenario Weighting'!F$10)+('GOM Scores and Quartiles'!$AW62*'Scenario Weighting'!F$11)+('GOM Scores and Quartiles'!$AX62*'Scenario Weighting'!F$13)+('GOM Scores and Quartiles'!$AZ62*'Scenario Weighting'!F$14)+('GOM Scores and Quartiles'!$BB62*'Scenario Weighting'!F$15)+('GOM Scores and Quartiles'!$BC62*'Scenario Weighting'!F$16)+('GOM Scores and Quartiles'!$BE62*'Scenario Weighting'!F$17)+('GOM Scores and Quartiles'!$BF62*'Scenario Weighting'!F$18)) ->  | BK62: =('GOM Scores and Quartiles'!$BG62*0.12)+('GOM Scores and Quartiles'!$BH62*0.12)+('GOM Scores and Quartiles'!$AS62*0.2)+('GOM Scores and Quartiles'!$AT62*0.05)+('GOM Scores and Quartiles'!$AU62*0.1)+('GOM Scores and Quartiles'!$AV62*0.2)+('GOM Scores and Quartiles'!$AW62*0.1)+('GOM Scores and Quartiles'!$BE62*0.07)+('GOM Scores and Quartiles'!$BF62*0.04) -> 15.26982812 | BL62: =IF(AR62=0, "", ($BG62*'Scenario Weighting'!H$3)+('GOM Scores and Quartiles'!$BH62*'Scenario Weighting'!H$4)+('GOM Scores and Quartiles'!$AP62*'Scenario Weighting'!H$5)+('GOM Scores and Quartiles'!$AQ62*'Scenario Weighting'!H$6)+('GOM Scores and Quartiles'!$AR62*'Scenario Weighting'!H$7)+('GOM Scores and Quartiles'!$AS62*'Scenario Weighting'!H$12)+('GOM Scores and Quartiles'!$AT62*'Scenario Weighting'!H$8)+('GOM Scores and Quartiles'!$AU62*'Scenario Weighting'!H$9)+('GOM Scores and Quartiles'!$AV62*'Scenario Weighting'!H$10)+('GOM Scores and Quartiles'!$AW62*'Scenario Weighting'!H$11)+('GOM Scores and Quartiles'!$AX62*'Scenario Weighting'!H$13)+('GOM Scores and Quartiles'!$AZ62*'Scenario Weighting'!H$14)+('GOM Scores and Quartiles'!$BB62*'Scenario Weighting'!H$15)+('GOM Scores and Quartiles'!$BC62*'Scenario Weighting'!H$16)+('GOM Scores and Quartiles'!$BE62*'Scenario Weighting'!H$17)+('GOM Scores and Quartiles'!$BF62*'Scenario Weighting'!H$18)) ->  | BM62: =IF(BI62>='Scenario Weighting'!C$24, "75-100%", IF('GOM Scores and Quartiles'!BI62>='Scenario Weighting'!C$23, "50-75%", IF('GOM Scores and Quartiles'!BI62>='Scenario Weighting'!C$22, "25-50%", "0-25%"))) -> 0-25% | BN62: =IF(BJ62="", "", IF(BJ62>='Scenario Weighting'!D$24, "75-100%", IF('GOM Scores and Quartiles'!BJ62>='Scenario Weighting'!D$23, "50-75%", IF('GOM Scores and Quartiles'!BJ62>='Scenario Weighting'!D$22, "25-50%", "0-25%")))) ->  | BO62: =IF(BK62>='Scenario Weighting'!E$24, "75-100%", IF('GOM Scores and Quartiles'!BK62>='Scenario Weighting'!E$23, "50-75%", IF('GOM Scores and Quartiles'!BK62>='Scenario Weighting'!E$22, "25-50%", "0-25%"))) -> 0-25% | BP62: =IF(BL62="", "", IF(BL62>='Scenario Weighting'!F$24, "75-100%", IF('GOM Scores and Quartiles'!BL62>='Scenario Weighting'!F$23, "50-75%", IF('GOM Scores and Quartiles'!BL62>='Scenario Weighting'!F$22, "25-50%", "0-25%")))) -> 
A63: 58 | B63: 37063 | C63: -96.67811615 | D63: 26.28627848 | E63: 1671 | F63: 92.03000815 | G63: 860 | H63: 76.41097582 | I63: 286 | J63: 148.5607139 | K63: 0 | L63: 0 | M63: 0 | N63: 0 | O63: 1 | P63: 0 | Q63: 0 | R63: 0 | S63: 1 | T63: 0 | U63: 0 | V63: 0 | W63: 0 | X63: 0 | Y63: 0 | Z63: 0 | AA63: 0 | AB63: 0 | AC63: 5 | AD63: 31.9 | AE63: 2932.66 | AF63: 2739 | AG63: 730.58 | AH63: 146.116 | AI63: 0 | AJ63: 0 | AK63: 0 | AL63: 16089607.61 | AM63: 29958 | AN63: 5991.6 | AO63: 7.718238994 | AP63: 0 | AQ63: 0 | AR63: 0 | AS63: 0 | AT63: 0 | AU63: 0 | AV63: 0 | AW63: 59.76868646 | AX63: 0 | AY63: 64.77046073 | AZ63: 64.81473496 | BA63: 64.77046073 | BB63: 64.81473496 | BC63: 0 | BD63: 100 | BE63: 100 | BF63: 0 | BG63: 9.127139682 | BH63: 12.39582505 | BI63: =($BG63*'Scenario Weighting'!E$3)+('GOM Scores and Quartiles'!$BH63*'Scenario Weighting'!E$4)+('GOM Scores and Quartiles'!$AP63*'Scenario Weighting'!E$5)+('GOM Scores and Quartiles'!$AQ63*'Scenario Weighting'!E$6)+('GOM Scores and Quartiles'!$AR63*'Scenario Weighting'!E$7)+('GOM Scores and Quartiles'!$AS63*'Scenario Weighting'!E$12)+('GOM Scores and Quartiles'!$AT63*'Scenario Weighting'!E$8)+('GOM Scores and Quartiles'!$AU63*'Scenario Weighting'!E$9)+('GOM Scores and Quartiles'!$AV63*'Scenario Weighting'!E$10)+('GOM Scores and Quartiles'!$AW63*'Scenario Weighting'!E$11)+('GOM Scores and Quartiles'!$AX63*'Scenario Weighting'!E$13)+('GOM Scores and Quartiles'!$AZ63*'Scenario Weighting'!E$14)+('GOM Scores and Quartiles'!$BB63*'Scenario Weighting'!E$15)+('GOM Scores and Quartiles'!$BC63*'Scenario Weighting'!E$16)+('GOM Scores and Quartiles'!$BE63*'Scenario Weighting'!E$17)+('GOM Scores and Quartiles'!$BF63*'Scenario Weighting'!E$18) -> 30.64973384 | BJ63: =IF(AR63=0, "", ($BG63*'Scenario Weighting'!F$3)+('GOM Scores and Quartiles'!$BH63*'Scenario Weighting'!F$4)+('GOM Scores and Quartiles'!$AP63*'Scenario Weighting'!F$5)+('GOM Scores and Quartiles'!$AQ63*'Scenario Weighting'!F$6)+('GOM Scores and Quartiles'!$AR63*'Scenario Weighting'!F$7)+('GOM Scores and Quartiles'!$AS63*'Scenario Weighting'!F$12)+('GOM Scores and Quartiles'!$AT63*'Scenario Weighting'!F$8)+('GOM Scores and Quartiles'!$AU63*'Scenario Weighting'!F$9)+('GOM Scores and Quartiles'!$AV63*'Scenario Weighting'!F$10)+('GOM Scores and Quartiles'!$AW63*'Scenario Weighting'!F$11)+('GOM Scores and Quartiles'!$AX63*'Scenario Weighting'!F$13)+('GOM Scores and Quartiles'!$AZ63*'Scenario Weighting'!F$14)+('GOM Scores and Quartiles'!$BB63*'Scenario Weighting'!F$15)+('GOM Scores and Quartiles'!$BC63*'Scenario Weighting'!F$16)+('GOM Scores and Quartiles'!$BE63*'Scenario Weighting'!F$17)+('GOM Scores and Quartiles'!$BF63*'Scenario Weighting'!F$18)) ->  | BK63: =('GOM Scores and Quartiles'!$BG63*0.12)+('GOM Scores and Quartiles'!$BH63*0.12)+('GOM Scores and Quartiles'!$AS63*0.2)+('GOM Scores and Quartiles'!$AT63*0.05)+('GOM Scores and Quartiles'!$AU63*0.1)+('GOM Scores and Quartiles'!$AV63*0.2)+('GOM Scores and Quartiles'!$AW63*0.1)+('GOM Scores and Quartiles'!$BE63*0.07)+('GOM Scores and Quartiles'!$BF63*0.04) -> 15.55962441 | BL63: =IF(AR63=0, "", ($BG63*'Scenario Weighting'!H$3)+('GOM Scores and Quartiles'!$BH63*'Scenario Weighting'!H$4)+('GOM Scores and Quartiles'!$AP63*'Scenario Weighting'!H$5)+('GOM Scores and Quartiles'!$AQ63*'Scenario Weighting'!H$6)+('GOM Scores and Quartiles'!$AR63*'Scenario Weighting'!H$7)+('GOM Scores and Quartiles'!$AS63*'Scenario Weighting'!H$12)+('GOM Scores and Quartiles'!$AT63*'Scenario Weighting'!H$8)+('GOM Scores and Quartiles'!$AU63*'Scenario Weighting'!H$9)+('GOM Scores and Quartiles'!$AV63*'Scenario Weighting'!H$10)+('GOM Scores and Quartiles'!$AW63*'Scenario Weighting'!H$11)+('GOM Scores and Quartiles'!$AX63*'Scenario Weighting'!H$13)+('GOM Scores and Quartiles'!$AZ63*'Scenario Weighting'!H$14)+('GOM Scores and Quartiles'!$BB63*'Scenario Weighting'!H$15)+('GOM Scores and Quartiles'!$BC63*'Scenario Weighting'!H$16)+('GOM Scores and Quartiles'!$BE63*'Scenario Weighting'!H$17)+('GOM Scores and Quartiles'!$BF63*'Scenario Weighting'!H$18)) ->  | BM63: =IF(BI63>='Scenario Weighting'!C$24, "75-100%", IF('GOM Scores and Quartiles'!BI63>='Scenario Weighting'!C$23, "50-75%", IF('GOM Scores and Quartiles'!BI63>='Scenario Weighting'!C$22, "25-50%", "0-25%"))) -> 0-25% | BN63: =IF(BJ63="", "", IF(BJ63>='Scenario Weighting'!D$24, "75-100%", IF('GOM Scores and Quartiles'!BJ63>='Scenario Weighting'!D$23, "50-75%", IF('GOM Scores and Quartiles'!BJ63>='Scenario Weighting'!D$22, "25-50%", "0-25%")))) ->  | BO63: =IF(BK63>='Scenario Weighting'!E$24, "75-100%", IF('GOM Scores and Quartiles'!BK63>='Scenario Weighting'!E$23, "50-75%", IF('GOM Scores and Quartiles'!BK63>='Scenario Weighting'!E$22, "25-50%", "0-25%"))) -> 0-25% | BP63: =IF(BL63="", "", IF(BL63>='Scenario Weighting'!F$24, "75-100%", IF('GOM Scores and Quartiles'!BL63>='Scenario Weighting'!F$23, "50-75%", IF('GOM Scores and Quartiles'!BL63>='Scenario Weighting'!F$22, "25-50%", "0-25%")))) -> 
